{"text_format":"1","workbook":"xlsx","n_sheets":39,"sheets":["表紙","目次 (5)","5-1","5-1-1","5-1-2","5-1-3","5-1-4","5-1-5","5-1-6","5-1-7","5-1-8","5-1-9","5-1-10","5-1-11","5-1-12","5-1-13","5-2","5-2-1","5-2-2","5-2-3","5-3","5-3-1","5-3-2","5-4","5-4-1","5-4-2","5-4-3","5-4-4","5-4-5","5-4-6","5-4-7","5-4-8","5-4-9","5-4-10","5-4-11","5-4-12","5-4-13","5-4-14","1-1-12"],"not_rendered":{"charts":0,"images":0,"macros":1,"external_links":8,"defined_names":729,"comments":0,"pivot_tables":0},"unopened":[],"bounds":{"document_bytes":16777216,"sheet_cells":100000,"rows_first":2000,"rows_last":500,"rows_between":2000,"halvings":0,"cell_chars":16384,"cell_head_chars":4096},"cells_cut":0,"cells_raw":0,"read":"whole","date_system":"1900"}

{"sheet":"表紙","index":0,"n_rows":64,"n_cols":1,"rows_kept":64,"cut":false,"hidden":false,"merged":[[28,0,28,7],[29,0,29,7],[30,0,30,7],[7,0,7,7],[8,0,8,7],[24,0,24,7],[25,0,25,7],[26,0,26,7],[27,0,27,7],[10,0,10,7]]}
[]
[]
[]
[]
[]
[]
[]
["令和４年度"]
["大正区事業・業務計画書"]
[]
["５　「区民が主役」のまちへ"]
[]
[]
[]
[]
[]
[]
[]
[]
[]
[]
[]
[]
[]
[]
[]
[]
["大　阪　市　大　正　区"]
[]
["令和４年４月１日　策定"]
[]
[]
[]
[]
["「大正区将来ビジョン」「事業・業務計画書」の概要及び位置づけについて"]
[]
[]
[]
[]
[]
[]
[]
[]
[]
[]
[]
[]
[]
[]
[]
[]
[]
[]
[]
[]
[]
[]
[]
[]
["本書の構成について"]
[]
["　　本書では、大正区将来ビジョン５つの柱にそって、事業・業務計画を体系化するため、"]
["　５つの柱を構成する各施策を１つの単位とし、事業・業務計画を紐付けております。"]
["　また、５つの柱に該当しない、いわゆる内部事務のような事務は、その他に集約しています。"]

{"sheet":"目次 (5)","index":1,"n_rows":47,"n_cols":15,"rows_kept":47,"cut":false,"hidden":false,"merged":[[6,8,7,8],[6,9,6,12],[6,13,6,14],[3,0,3,12],[4,0,4,12],[5,0,5,12],[8,0,8,3],[6,4,7,4],[6,5,7,5],[6,6,7,6],[6,7,7,7]]}
["令和４年度大正区事業・業務計画書　一覧（目次）"]
[]
["【表の記載項目】"]
["・修正箇所：令和４年度事業・業務計画書の当初からの修正箇所がある場合、○を記載しております。"]
["・スケジュール：○（予定通り進捗）、△（一部進捗に遅れ）、×（計画の変更を必要とするほど進捗の遅れ）、－（該当する項目なし）"]
["・自己評価：　◎：目標値を大幅に上回り達成（目標数値の+10%以上）、〇：目標値を達成（目標数値の0%以上～+10%未満）\n　　　　　　　　　△：目標値を下回り未達成（目標数値の－10%以上～0%未満）、×：目標値を大幅に下回り未達成（目標数値の－10%未満）"]
[null,null,null,null,"ﾍﾟｰｼﾞ","重複\n番号","新規","担当課","修正箇所","スケジュール",null,null,null,"自己評価"]
[null,null,null,null,null,null,null,null,null,"4～6月","7～9月","10～12月","1～3月","業績目標","成果目標"]
["「大正区将来ビジョン」「事業・業務計画書」の概要及び位置づけについて",null,null,null,1]
["本書の構成について",null,null,null,2]
["５","「区民が主役」のまちへ"]
[null,"5-1","地域活動の活性化",null,1]
[null,null,"5-1-1",{"$f":"'5-1-1'!E2","v":"大正区コミュニティ育成事業"},{"$f":"E12+2","v":3},null,null,"地域協働課\n（地域協働）","○",{"$f":"'5-1-1'!$AC$34","v":"〇"},{"$f":"'5-1-1'!$AC$37","v":"〇"},{"$f":"'5-1-1'!$AC$40","v":"〇"},{"$f":"'5-1-1'!$AC$43","v":"〇"},{"$f":"'5-1-1'!$AD$70","v":"〇"},{"$f":"'5-1-1'!$AD$73","v":"〇"}]
[null,null,"5-1-2",{"$f":"'5-1-2'!E2","v":"地域まちづくり実行委員会に対する支援事業"},{"$f":"E13+2","v":5},null,null,"地域協働課\n（地域協働）","○",{"$f":"'5-1-2'!$AC$34","v":"〇"},{"$f":"'5-1-2'!$AC$37","v":"〇"},{"$f":"'5-1-2'!$AC$40","v":"〇"},{"$f":"'5-1-2'!$AC$43","v":"〇"},{"$f":"'5-1-2'!$AD$70","v":"〇"},{"$f":"'5-1-2'!$AD$73","v":"△"}]
[null,null,"5-1-3",{"$f":"'5-1-3'!E2","v":"地域まちづくり実行委員会のつながりの拡充にかかる支援"},{"$f":"E14+2","v":7},null,null,"地域協働課\n（地域協働）",null,{"$f":"'5-1-3'!$AC$32","v":"〇"},{"$f":"'5-1-3'!$AC$35","v":"〇"},{"$f":"'5-1-3'!$AC$38","v":"〇"},{"$f":"'5-1-3'!$AC$41","v":"〇"},{"$f":"'5-1-3'!$AD$67","v":"〇"},{"$f":"'5-1-3'!$AD$70","v":"〇"}]
[null,null,"5-1-4",{"$f":"'5-1-4'!E2","v":"区民協働による魅力活性化事業"},9,null,null,"地域協働課\n（地域協働）","○",{"$f":"'5-1-4'!$AC$34","v":"〇"},{"$f":"'5-1-4'!$AC$37","v":"〇"},{"$f":"'5-1-4'!$AC$40","v":"〇"},{"$f":"'5-1-4'!$AC$43","v":"〇"},{"$f":"'5-1-4'!$AD$70","v":"△"},{"$f":"'5-1-4'!$AD$73","v":"◎"}]
[null,null,"5-1-5",{"$f":"'5-1-5'!E2","v":"区役所コンサート"},11,null,null,"地域協働課\n（地域協働）","○",{"$f":"'5-1-5'!$AC$34","v":"〇"},{"$f":"'5-1-5'!$AC$37","v":"〇"},{"$f":"'5-1-5'!$AC$40","v":"〇"},{"$f":"'5-1-5'!$AC$43","v":"〇"},{"$f":"'5-1-5'!$AD$70","v":"◎"},{"$f":"'5-1-5'!$AD$73","v":"◎"}]
[null,null,"5-1-6",{"$f":"'5-1-6'!E2","v":"生涯学習の実施支援"},13,null,null,"保健福祉課\n（こども教育）","○",{"$f":"'5-1-6'!$AC$34","v":"〇"},{"$f":"'5-1-6'!$AC$37","v":"〇"},{"$f":"'5-1-6'!$AC$40","v":"〇"},{"$f":"'5-1-6'!$AC$43","v":"〇"},{"$f":"'5-1-6'!$AD$70","v":"△"},{"$f":"'5-1-6'!$AD$73","v":"×"}]
[null,null,"5-1-7",{"$f":"'5-1-7'!E2","v":"はぐくみネットの連携強化支援"},15,null,null,"保健福祉課\n（こども教育）",null,{"$f":"'5-1-7'!$AC$34","v":"〇"},{"$f":"'5-1-7'!$AC$37","v":"〇"},{"$f":"'5-1-7'!$AC$40","v":"〇"},{"$f":"'5-1-7'!$AC$43","v":"〇"},{"$f":"'5-1-7'!$AD$70","v":"△"},{"$f":"'5-1-7'!$AD$73","v":"〇"}]
[null,null,"5-1-8",{"$f":"'5-1-8'!E2","v":"学校体育施設の地域への開放"},17,null,null,"保健福祉課\n（こども教育）",null,{"$f":"'5-1-8'!$AC$34","v":"〇"},{"$f":"'5-1-8'!$AC$37","v":"〇"},{"$f":"'5-1-8'!$AC$40","v":"〇"},{"$f":"'5-1-8'!$AC$43","v":"〇"},{"$f":"'5-1-8'!$AD$70","v":"〇"},{"$f":"'5-1-8'!$AD$73","v":"×"}]
[null,null,"5-1-9",{"$f":"'5-1-9'!E2","v":"スポーツ推進委員活動の支援"},{"$f":"E20+2","v":19},null,null,"地域協働課\n（地域協働）",null,{"$f":"'5-1-9'!$AC$34","v":"〇"},{"$f":"'5-1-9'!$AC$37","v":"〇"},{"$f":"'5-1-9'!$AC$40","v":"〇"},{"$f":"'5-1-9'!$AC$43","v":"〇"},{"$f":"'5-1-9'!$AD$70","v":"○"},{"$f":"'5-1-9'!$AD$73","v":"◎"}]
[null,null,"5-1-10",{"$f":"'5-1-10'!E2","v":"大正区成人式の実施"},21,null,null,"地域協働課\n（地域協働）",null,{"$f":"'5-1-10'!$AC$34","v":"〇"},{"$f":"'5-1-10'!$AC$37","v":"〇"},{"$f":"'5-1-10'!$AC$40","v":"〇"},{"$f":"'5-1-10'!$AC$43","v":"〇"},{"$f":"'5-1-10'!$AD$70","v":"×"},{"$f":"'5-1-10'!$AD$73","v":"○"}]
[null,null,"5-1-11",{"$f":"'5-1-11'!E2","v":"青少年指導員・青少年福祉委員活動の支援"},23,null,null,"地域協働課\n（地域協働）",null,{"$f":"'5-1-11'!$AC$34","v":"〇"},{"$f":"'5-1-11'!$AC$37","v":"〇"},{"$f":"'5-1-11'!$AC$40","v":"〇"},{"$f":"'5-1-11'!$AC$43","v":"〇"},{"$f":"'5-1-11'!$AD$70","v":"○"},{"$f":"'5-1-11'!$AD$73","v":"△"}]
[null,null,"5-1-12",{"$f":"'5-1-12'!E2","v":"区役所附設会館の管理運営"},25,null,null,"地域協働課\n（地域協働）","○",{"$f":"'5-1-12'!$AC$34","v":"〇"},{"$f":"'5-1-12'!$AC$37","v":"〇"},{"$f":"'5-1-12'!$AC$40","v":"〇"},{"$f":"'5-1-12'!$AC$43","v":"〇"},{"$f":"'5-1-12'!$AD$70","v":"△"},{"$f":"'5-1-12'!$AD$73","v":"△"}]
[null,null,"5-1-13",{"$f":"'5-1-13'!E2","v":"エリア価値の向上に向けた地域活性化事業"},{"$f":"E24+2","v":27},"4-1-3","〇","地域協働課\n（地域協働）","○",{"$f":"'5-1-13'!$AC$34","v":"×"},{"$f":"'5-1-13'!$AC$37","v":"〇"},{"$f":"'5-1-13'!$AC$40","v":"〇"},{"$f":"'5-1-13'!$AC$43","v":"〇"},{"$f":"'5-1-13'!$AD$70","v":"〇"},{"$f":"'5-1-13'!$AD$73","v":"◎"}]
[null,"5-2","区民ニーズの把握",null,{"$f":"E25+2","v":29}]
[null,null,"5-2-1",{"$f":"'5-2-1'!E2","v":"「市民の声」などの受付・回答"},{"$f":"E26+1","v":30},null,null,"総務課",null,{"$f":"'5-2-1'!$AC$34","v":"○"},{"$f":"'5-2-1'!$AC$37","v":"○"},{"$f":"'5-2-1'!$AC$40","v":"○"},{"$f":"'5-2-1'!$AC$43","v":"〇"},{"$f":"'5-2-1'!$AD$70","v":"△"},{"$f":"'5-2-1'!$AD$73","v":"△"}]
[null,null,"5-2-2",{"$f":"'5-2-2'!E2","v":"区民意識調査の実施"},{"$f":"E27+2","v":32},null,null,"総務課","○",{"$f":"'5-2-2'!$AC$34","v":"〇"},{"$f":"'5-2-2'!$AC$37","v":"〇"},{"$f":"'5-2-2'!$AC$40","v":"〇"},{"$f":"'5-2-2'!$AC$43","v":"〇"},{"$f":"'5-2-2'!$AD$70","v":"×"},{"$f":"'5-2-2'!$AD$73","v":"△"}]
[null,null,"5-2-3",{"$f":"'5-2-3'!E2","v":"区民等の多様な意見の把握・反映（区政会議）"},{"$f":"E28+2","v":34},null,null,"総務課","○",{"$f":"'5-2-3'!$AC$34","v":"〇"},{"$f":"'5-2-3'!$AC$37","v":"〇"},{"$f":"'5-2-3'!$AC$40","v":"〇"},{"$f":"'5-2-3'!$AC$43","v":"〇"},{"$f":"'5-2-3'!$AD$70","v":"○"},{"$f":"'5-2-3'!$AD$73","v":"△"}]
[null,"5-3","情報発信・伝達力の強化",null,{"$f":"E29+2","v":36}]
[null,null,"5-3-1",{"$f":"'5-3-1'!E2","v":"広報紙「こんにちは大正」の製作（企画編集・印刷・全戸配布）"},{"$f":"E30+1","v":37},null,null,"総務課",null,{"$f":"'5-3-1'!$AC$34","v":"○"},{"$f":"'5-3-1'!$AC$37","v":"○"},{"$f":"'5-3-1'!$AC$40","v":"○"},{"$f":"'5-3-1'!$AC$43","v":"〇"},{"$f":"'5-3-1'!$AD$70","v":"◎"},{"$f":"'5-3-1'!$AD$73","v":"△"}]
[null,null,"5-3-2",{"$f":"'5-3-2'!E2","v":"区の行政情報・魅力発信の充実"},{"$f":"E31+2","v":39},null,null,"総務課","○",{"$f":"'5-3-2'!$AC$34","v":"○"},{"$f":"'5-3-2'!$AC$37","v":"○"},{"$f":"'5-3-2'!$AC$40","v":"×"},{"$f":"'5-3-2'!$AC$43","v":"×"},{"$f":"'5-3-2'!$AD$70","v":"×"},{"$f":"'5-3-2'!$AD$73","v":"〇"}]
[null,"5-4","窓口サービスの充実",null,{"$f":"E32+2","v":41}]
[null,null,"5-4-1",{"$f":"'5-4-1'!E2","v":"窓口サービスの充実"},{"$f":"E33+2","v":43},null,null,"窓口サービス課",null,{"$f":"'5-4-1'!$AC$34","v":"〇"},{"$f":"'5-4-1'!$AC$37","v":"〇"},{"$f":"'5-4-1'!$AC$40","v":"〇"},{"$f":"'5-4-1'!$AC$43","v":"〇"},{"$f":"'5-4-1'!$AD$70","v":"〇"},{"$f":"'5-4-1'!$AD$73","v":"×"}]
[null,null,"5-4-2",{"$f":"'5-4-2'!E2","v":"マイナンバーカードの普及への取組み"},{"$f":"E34+2","v":45},null,null,"窓口サービス課",null,{"$f":"'5-4-2'!$AC$34","v":"〇"},{"$f":"'5-4-2'!$AC$37","v":"〇"},{"$f":"'5-4-2'!$AC$40","v":"〇"},{"$f":"'5-4-2'!$AC$43","v":"〇"},{"$f":"'5-4-2'!$AD$70","v":"〇"},{"$f":"'5-4-2'!$AD$73","v":"×"}]
[null,null,"5-4-3",{"$f":"'5-4-3'!E2","v":"窓口サービスにおける不適切事務の撲滅"},{"$f":"E35+2","v":47},null,null,"窓口サービス課",null,{"$f":"'5-4-3'!$AC$34","v":"〇"},{"$f":"'5-4-3'!$AC$37","v":"〇"},{"$f":"'5-4-3'!$AC$40","v":"〇"},{"$f":"'5-4-3'!$AC$43","v":"〇"},{"$f":"'5-4-3'!$AD$70","v":"○"},{"$f":"'5-4-3'!$AD$73","v":"×"}]
[null,null,"5-4-4",{"$f":"'5-4-4'!E2","v":"国民健康保険料の未収金の減少及び未納防止"},49,null,null,"窓口サービス課",null,{"$f":"'5-4-4'!$AC$34","v":"〇"},{"$f":"'5-4-4'!$AC$37","v":"〇"},{"$f":"'5-4-4'!$AC$40","v":"〇"},{"$f":"'5-4-4'!$AC$43","v":"〇"},{"$f":"'5-4-4'!$AD$70","v":"○"},{"$f":"'5-4-4'!$AD$73","v":"○"}]
[null,null,"5-4-5",{"$f":"'5-4-5'!E2","v":"庶務業務及びコンプライアンスの確保"},51,null,null,"総務課","○",{"$f":"'5-4-5'!$AC$34","v":"〇"},{"$f":"'5-4-5'!$AC$37","v":"〇"},{"$f":"'5-4-5'!$AC$40","v":"〇"},{"$f":"'5-4-5'!$AC$43","v":"〇"},{"$f":"'5-4-5'!$AD$70","v":"〇"},{"$f":"'5-4-5'!$AD$73","v":"◎"}]
[null,null,"5-4-6",{"$f":"'5-4-6'!E2","v":"弁護士による無料法律相談の実施"},{"$f":"E38+3","v":54},null,null,"総務課",null,{"$f":"'5-4-6'!$AC$34","v":"○"},{"$f":"'5-4-6'!$AC$37","v":"○"},{"$f":"'5-4-6'!$AC$40","v":"○"},{"$f":"'5-4-6'!$AC$43","v":"〇"},{"$f":"'5-4-6'!$AD$70","v":"〇"},{"$f":"'5-4-6'!$AD$73","v":"〇"}]
[null,null,"5-4-7",{"$f":"'5-4-7'!E2","v":"不動産に関する無料相談の実施"},{"$f":"E39+2","v":56},null,null,"総務課",null,{"$f":"'5-4-7'!$AC$34","v":"○"},{"$f":"'5-4-7'!$AC$37","v":"○"},{"$f":"'5-4-7'!$AC$40","v":"○"},{"$f":"'5-4-7'!$AC$43","v":"〇"},{"$f":"'5-4-7'!$AD$70","v":"〇"},{"$f":"'5-4-7'!$AD$73","v":"◎"}]
[null,null,"5-4-8",{"$f":"'5-4-8'!E2","v":"区庁舎・設備等の維持管理"},{"$f":"E40+2","v":58},null,null,"総務課","○",{"$f":"'5-4-8'!$AC$34","v":"△"},{"$f":"'5-4-8'!$AC$37","v":"〇"},{"$f":"'5-4-8'!$AC$40","v":"△"},{"$f":"'5-4-8'!$AC$43","v":"〇"},{"$f":"'5-4-8'!$AD$70","v":"×"},{"$f":"'5-4-8'!$AD$73","v":"×"}]
[null,null,"5-4-9",{"$f":"'5-4-9'!E2","v":"住民情報業務等の適切な運営管理"},60,null,null,"窓口サービス課",null,{"$f":"'5-4-9'!$AC$34","v":"〇"},{"$f":"'5-4-9'!$AC$37","v":"〇"},{"$f":"'5-4-9'!$AC$40","v":"〇"},{"$f":"'5-4-9'!$AC$43","v":"〇"},{"$f":"'5-4-9'!$AD$70","v":"〇"},{"$f":"'5-4-9'!$AD$73","v":"〇"}]
[null,null,"5-4-10",{"$f":"'5-4-10'!E2","v":"保健福祉課（福祉グループ）窓口受付等業務"},62,null,null,"保健福祉課\n（福祉）",null,{"$f":"'5-4-10'!$AC$34","v":"○"},{"$f":"'5-4-10'!$AC$37","v":"○"},{"$f":"'5-4-10'!$AC$40","v":"○"},{"$f":"'5-4-10'!$AC$43","v":"○"},{"$f":"'5-4-10'!$AD$70","v":"○"},{"$f":"'5-4-10'!$AD$73","v":"○"}]
[null,null,"5-4-11",{"$f":"'5-4-11'!E2","v":"介護保険料の収納率の向上"},64,null,null,"保健福祉課\n（介護）",null,{"$f":"'5-4-11'!$AC$34","v":"○"},{"$f":"'5-4-11'!$AC$37","v":"○"},{"$f":"'5-4-11'!$AC$40","v":"○"},{"$f":"'5-4-11'!$AC$43","v":"○"},{"$f":"'5-4-11'!$AD$70","v":"〇"},{"$f":"'5-4-11'!$AD$73","v":"〇"}]
[null,null,"5-4-12",{"$f":"'5-4-12'!E2","v":"保健福祉課（介護保険グループ）窓口受付等業務"},66,null,null,"保健福祉課\n（介護）",null,{"$f":"'5-4-12'!$AC$34","v":"○"},{"$f":"'5-4-12'!$AC$37","v":"○"},{"$f":"'5-4-12'!$AC$40","v":"○"},{"$f":"'5-4-12'!$AC$43","v":"○"},{"$f":"'5-4-12'!$AD$70","v":"〇"},{"$f":"'5-4-12'!$AD$73","v":"×"}]
[null,null,"5-4-13",{"$f":"'5-4-13'!E2","v":"保健福祉課（健康づくり・保健活動グループ）窓口受付等業務"},{"$f":"E45+2","v":68},null,null,"保健福祉課\n（健康づくり）",null,{"$f":"'5-4-13'!$AC$34","v":"〇"},{"$f":"'5-4-13'!$AC$37","v":"〇"},{"$f":"'5-4-13'!$AC$40","v":"〇"},{"$f":"'5-4-13'!$AC$43","v":"〇"},{"$f":"'5-4-13'!$AD$70","v":"〇"},{"$f":"'5-4-13'!$AD$73","v":"◎"}]
[null,null,"5-4-14",{"$f":"'[1]5-4-14'!E2","v":"保健福祉課（こども・教育グループ）窓口受付等業務"},{"$f":"E46+2","v":70},null,null,"保健福祉課\n（こども教育）",null,{"$f":"'5-4-14'!$AC$34","v":"〇"},{"$f":"'5-4-14'!$AC$37","v":"〇"},{"$f":"'5-4-14'!$AC$40","v":"〇"},{"$f":"'5-4-14'!$AC$43","v":"〇"},{"$f":"'5-4-14'!$AD$70","v":"〇"},{"$f":"'5-4-14'!$AD$73","v":"×"}]

{"sheet":"5-1","index":2,"n_rows":48,"n_cols":5,"rows_kept":48,"cut":false,"hidden":false,"merged":[[36,2,36,3],[36,4,36,9],[37,2,37,3],[37,4,37,9],[34,2,34,3],[34,4,34,9],[35,2,35,3],[35,4,35,9],[40,2,40,3],[40,4,40,9],[41,2,41,3],[41,4,41,9],[38,2,38,3],[38,4,38,9],[39,2,39,3],[39,4,39,9],[44,2,44,3],[44,4,44,9],[42,2,42,3],[42,4,42,9],[43,2,43,3],[43,4,43,9],[45,2,45,3],[45,4,45,9],[46,2,46,3],[46,4,46,9],[47,2,47,3],[47,4,47,9]]}
["【5】「区民が主役」のまちへ"]
[]
[null,"5-1　地域活動の活性化"]
[]
[null,"◆","目指すべき将来像"]
[]
[]
[]
[]
[]
[null,"◆","施策"]
[]
[]
[]
[]
[]
[null,"◆","施策目標"]
[]
[]
[]
[]
[]
[]
[]
[]
[]
[]
[]
[]
[]
[]
[]
[]
[null,"◆","具体的取組（事業・業務計画書）"]
[null,null,"取組番号",null,"事業名"]
[null,null,"5-1-1",null,{"$f":"'目次 (5)'!D13","v":"大正区コミュニティ育成事業"}]
[null,null,"5-1-2",null,{"$f":"'目次 (5)'!D14","v":"地域まちづくり実行委員会に対する支援事業"}]
[null,null,"5-1-3",null,{"$f":"'目次 (5)'!D15","v":"地域まちづくり実行委員会のつながりの拡充にかかる支援"}]
[null,null,"5-1-4",null,{"$f":"'目次 (5)'!D16","v":"区民協働による魅力活性化事業"}]
[null,null,"5-1-5",null,{"$f":"'目次 (5)'!D17","v":"区役所コンサート"}]
[null,null,"5-1-6",null,{"$f":"'目次 (5)'!D18","v":"生涯学習の実施支援"}]
[null,null,"5-1-7",null,{"$f":"'目次 (5)'!D19","v":"はぐくみネットの連携強化支援"}]
[null,null,"5-1-8",null,{"$f":"'目次 (5)'!D20","v":"学校体育施設の地域への開放"}]
[null,null,"5-1-9",null,{"$f":"'目次 (5)'!D21","v":"スポーツ推進委員活動の支援"}]
[null,null,"5-1-10",null,{"$f":"'目次 (5)'!D22","v":"大正区成人式の実施"}]
[null,null,"5-1-11",null,{"$f":"'目次 (5)'!D23","v":"青少年指導員・青少年福祉委員活動の支援"}]
[null,null,"5-1-12",null,{"$f":"'目次 (5)'!D24","v":"区役所附設会館の管理運営"}]
[null,null,"5-1-13",null,{"$f":"'目次 (5)'!D25","v":"エリア価値の向上に向けた地域活性化事業"}]

{"sheet":"5-1-1","index":3,"n_rows":90,"n_cols":34,"rows_kept":90,"cut":false,"hidden":false,"merged":[[0,0,0,3],[0,4,0,20],[0,21,0,27],[0,28,0,29],[0,30,0,31],[1,4,2,20],[1,21,2,27],[1,28,2,29],[1,30,2,31],[1,0,2,3],[5,33,7,34],[9,1,16,6],[9,7,16,31],[17,1,17,6],[17,7,17,31],[18,1,18,6],[18,7,18,31],[4,0,4,6],[4,7,4,31],[5,0,19,0],[5,1,8,6],[5,7,8,31],[19,1,19,6],[19,7,19,31],[20,0,27,0],[20,1,20,6],[20,7,20,31],[21,1,23,6],[21,7,23,31],[24,1,26,6],[24,7,26,31],[27,1,27,6],[27,7,27,31],[29,0,29,23],[29,24,29,27],[29,28,29,29],[29,30,29,31],[30,0,32,0],[30,1,32,1],[30,2,32,23],[30,24,32,27],[30,28,32,29],[30,30,32,31],[33,0,35,1],[33,2,35,23],[33,24,35,27],[33,28,35,29],[33,30,35,31],[36,0,38,1],[36,2,38,23],[36,24,38,27],[36,28,38,29],[36,30,38,31],[45,0,46,1],[45,2,46,31],[47,0,47,6],[47,7,47,31],[48,0,48,6],[48,7,48,31],[39,0,41,1],[39,2,41,23],[39,24,41,27],[39,28,41,29],[39,30,41,31],[42,0,44,1],[42,2,44,23],[42,24,44,27],[42,28,44,29],[42,30,44,31],[53,7,53,31],[54,1,54,6],[54,7,54,31],[55,1,55,6],[55,7,55,31],[56,1,56,6],[56,7,56,31],[49,0,65,0],[49,1,49,6],[49,7,49,31],[50,1,50,6],[50,7,50,31],[51,1,51,6],[51,7,51,31],[52,1,52,6],[52,7,52,31],[53,1,53,6],[64,1,64,6],[64,7,64,31],[65,1,65,6],[65,7,65,31],[66,0,66,6],[66,7,66,31],[57,1,61,6],[57,7,61,31],[62,1,62,6],[62,7,62,31],[63,1,63,6],[63,7,63,31],[72,0,76,3],[72,4,76,6],[72,7,76,19],[72,20,76,28],[72,29,76,31],[77,0,79,6],[77,7,79,31],[67,0,67,6],[67,7,67,31],[68,0,71,3],[68,4,71,6],[68,7,71,19],[68,20,71,28],[68,29,68,31],[69,29,71,31],[89,0,89,3],[89,4,89,31],[80,0,83,6],[80,7,83,31],[85,0,87,3],[85,4,85,7],[85,8,85,31],[86,4,86,7],[86,8,86,31],[87,4,87,7],[87,8,87,31]]}
["取組番号",null,null,null,"事業名",null,null,null,null,null,null,null,null,null,null,null,null,null,null,null,null,"作成年月日・担当",null,null,null,null,null,null,"重点",null,"新規"]
[{"$f":"RIGHT(CELL(\"filename\",A4),LEN(CELL(\"filename\",A4))-FIND(\"]\",CELL(\"filename\",A4)))","v":"5-1-1"},null,null,null,"大正区コミュニティ育成事業",null,null,null,null,null,null,null,null,null,null,null,null,null,null,null,null,"令和４年4月1日\n地域協働課（地域協働）"]
[]
[]
["項目",null,null,null,null,null,null,"内容"]
["事業・業務概要","目的\n（事業の背景を含む）",null,null,null,null,null,"大正区において、これまで培われてきた社会教育関係団体等のノウハウを活かすとともに、地域活動団体・ＮＰＯ等をはじめとした市民活動団体・企業等が参画する仕組みづくりを構築し、区全体や、身近な地域毎で住民主体のコミュニティの育成をはかることで、区や地域への愛着を高め、「自ら地域のことは自らの地域で決める」との自律した意識のもと、地域福祉、地域防災、地域コミュニティの充実と区民相互のつながりづくりの活性化を図ることを目的とする。コミュニティを基盤とした地域防災、地域福祉をはじめとするまちづくり活動への住民の参加促進を図ることを目的とする。",null,null,null,null,null,null,null,null,null,null,null,null,null,null,null,null,null,null,null,null,null,null,null,null,null,"一覧へ戻る"]
[]
[]
[]
[null,"内容",null,null,null,null,null,"地域コミュニティの推進に向け、日頃、地域活動と関わりの少ない若い世代をはじめ多くの企業・区民が、地域活動団体・NPO等をはじめとした市民活動団体・企業等と協働しながら企画・実施する。事業実施にあたっては、以上の趣旨を踏まえ、多種多様な取組を通じて、住民同士のコミ ュニティづくりとともに、多くの人々が気軽に参加できる事業として実施するため、地域コミュニティづくりに精通した民間事業者から広く企画提案を募集する。上記目的を達成するためにコミュニティの輪を拡げる事業、文化芸術に親しむ事業等、区民・各種団体と協働しながら実施する。また令和4年度は大正区制90周年を機に、、区民の愛着が高い噴水広場の改修や、まちの魅力を写し撮ったフォトコンテストなどを行い、大正区の良さ、魅力・文化・歴史を改めて認識し、地域への関心を深めるとともに、さらなるにぎわいの創出を図る。90周年を区全体として祝い、盛り上げていくため、地域各団体と区役所が協力し、区の魅力を発信する記念事業を実施する。"]
[]
[]
[]
[]
[]
[]
[]
[null,"予算額（予算科目）",null,null,null,null,null,"6,266千円（区政推進基金寄附金2,496千円含む）"]
[null,"事業実施期間（回数）",null,null,null,null,null,"令和4年4月1日～令和5年3月31日"]
[null,"事業対象者（人数）",null,null,null,null,null,"区内全10地域"]
["委託関係","契約・入札方法",null,null,null,null,null,"公募型プロポーザル方式"]
[null,"募集要項のポイント",null,null,null,null,null,"本事業は、住民主体のコミュニティの育成をはかり、みんなが話し合い、協力しながらまちづくりを推進ことを目的としており、広く地域住民や各種団体が参画する仕組みを構築し、様々な事業を展開するうえで、行政にはない新たな発想や、民間事業者の高いノウハウを求めており、価格以外の要素も含めて総合的に判断する。"]
[]
[]
[null,"仕様書のポイント",null,null,null,null,null,"各事業を単にイベントとして開催するのではなく、広く地域住民や地域の各種団体が参画する仕組みを構築でき、地域活動協議会や区民等との協働のうえ、住民主体のコミュニティの育成につながる事業として「大正区制90周年記念業務（区民まつり含む）」「区民ギャラリー業務」の企画提案を求める。"]
[]
[]
[null,"選考委員等選考方式",null,null,null,null,null,"専門知識を持つ外部委員3名による選考会議にて選定"]
[]
["スケジュール（実施決裁、入札募集開始、説明会、選考会、事業の実施　等）",null,null,null,null,null,null,null,null,null,null,null,null,null,null,null,null,null,null,null,null,null,null,null,"広報スケジュール",null,null,null,"スケ",null,"作業"]
["（前年度）","1月～3月","【１月】プロポーザル公募開始",null,null,null,null,null,null,null,null,null,null,null,null,null,null,null,null,null,null,null,null,null,null,null,null,null,"〇",null,"〇"]
[]
[]
["4月～\n6月",null,"プロポーザル公募開始\nプレゼンテーション・選定会議\n事業報告書等提出\n事業実施（区民ギャラリー、フォトコンテスト等準備）",null,null,null,null,null,null,null,null,null,null,null,null,null,null,null,null,null,null,null,null,null,"ホームページに募集案内を掲載",null,null,null,"〇",null,"〇"]
[]
[]
["7月～\n9月",null,"事前準備（各種団体、企業等との調整）\n事業実施（区民ギャラリー、フォトコンテスト等準備、噴水改修）",null,null,null,null,null,null,null,null,null,null,null,null,null,null,null,null,null,null,null,null,null,null,null,null,null,"〇",null,"〇"]
[]
[]
["10月～\n12月",null,"事業実施（区民まつり、記念式典）",null,null,null,null,null,null,null,null,null,null,null,null,null,null,null,null,null,null,null,null,null,null,null,null,null,"〇",null,"〇"]
[]
[]
["1月～\n3月",null,"【１月】プロポーザル公募開始⇒応募なかったため３月に再募集\n【３月４月】プレゼンテーション・選定会議\n事業報告書等提出\n事業実施（区民ギャラリー）",null,null,null,null,null,null,null,null,null,null,null,null,null,null,null,null,null,null,null,null,null,null,null,null,null,"〇",null,"×"]
[]
[]
["備考"]
[]
["項目",null,null,null,null,null,null,"内容"]
["講座・イベント・会議名",null,null,null,null,null,null,"①区制90周年記念業務②区民ギャラリー業務"]
["イベント等開催関係","開催日時",null,null,null,null,null,"令和４年４月１日～令和５年３月３１日"]
[null,"開催場所",null,null,null,null,null,"大正区役所他"]
[null,"区役所の主催等",null,null,null,null,null,"区役所"]
[null,"その他主催団体・組織等",null,null,null,null,null,"―"]
[null,"共催団体・組織等",null,null,null,null,null,"―"]
[null,"後援団体・組織等",null,null,null,null,null,"区内各種団体・区内業種団体・企業"]
[null,"目標事業規模",null,null,null,null,null,"区内10（小学校下）地域の参加"]
[null,"その他留意事項",null,null,null,null,null,"―"]
[null,"イベント等\n当日タイムテーブル",null,null,null,null,null,"・大正区制90周年記念業務（通年）\n　記念式典（10月1日）\n　モニュメントを活用したPR\n　記録・展示\n・区民まつり業務（10月第３日曜日）\n・区民ギャラリー業務（通年）"]
[]
[]
[]
[]
[null,"挨拶者",null,null,null,null,null,"―"]
[null,"来賓紹介",null,null,null,null,null,"―"]
[null,"祝電紹介の方法",null,null,null,null,null,"―"]
[null,"動員の方法",null,null,null,null,null,"区広報紙、ホームページ、ポスター、チラシ等"]
["その他他課との連携等",null,null,null,null,null,null,"総務課、政策推進課地域協働課、保健福祉課、窓口サービス課"]
["前年度実績",null,null,null,null,null,null,"「大正区民まつり」（昨年度及び今年度中止）が大正区における地域への愛着と誇りの醸成につながると答えた割合　73.4%（令和３年度）"]
["業績目標",null,null,null,"実績",null,null,"区内10（小学校下）地域の参加",null,null,null,null,null,null,null,null,null,null,null,null,"区内10（小学校下）地域の参加",null,null,null,null,null,null,null,null,"自己評価"]
[null,null,null,null,null,null,null,null,null,null,null,null,null,null,null,null,null,null,null,null,null,null,null,null,null,null,null,null,null,"〇"]
[]
[]
["成果目標",null,null,null,"実績",null,null,"・区や地域への愛着の向上につながっていると答えた割合：73.4％以上（「大正区民まつり」「大正区制９０周年記念フォトコンテスト」「大正区制９０周年記念式典（演奏会）」の平均）",null,null,null,null,null,null,null,null,null,null,null,null,"区や地域への愛着の向上につながっていると答えた割合：80.5％",null,null,null,null,null,null,null,null,"〇"]
[]
[]
[]
[]
["中期展望",null,null,null,null,null,null,"コミュニティを基盤とした地域防災、地域福祉をはじめとする住民主体のまちづくりが行われている"]
[]
[]
["成果目標が\n中期展望に\n寄与する理由",null,null,null,null,null,null,"区全体や、身近な地域毎で住民主体のコミュニティの育成をはかり、互いにつながり支え合うことで「自らの地域のことは自らの地域で決める」との区民の自律意識が向上し、中期展望寄与すると考えられる。"]
[]
[]
[]
[]
["SDGｓゴール",null,null,null,17,null,null,null,{"$f":"+IF(ISERROR(VLOOKUP($E86,[2]SDGｓ!$A$2:$B$18,2,0)),\"\",VLOOKUP($E86,[2]SDGｓ!$A$2:$B$18,2,0))","v":"パートナーシップで目標を達成しよう"}]
[null,null,null,null,11,null,null,null,{"$f":"+IF(ISERROR(VLOOKUP($E87,[2]SDGｓ!$A$2:$B$18,2,0)),\"\",VLOOKUP($E87,[2]SDGｓ!$A$2:$B$18,2,0))","v":"住み続けられるまちづくりを"}]
[null,null,null,null,null,null,null,null,{"$f":"+IF(ISERROR(VLOOKUP($E88,[2]SDGｓ!$A$2:$B$18,2,0)),\"\",VLOOKUP($E88,[2]SDGｓ!$A$2:$B$18,2,0))","v":""}]
[]
["修正履歴",null,null,null,"課名、成果目標の修正"]

{"sheet":"5-1-2","index":4,"n_rows":90,"n_cols":41,"rows_kept":90,"cut":false,"hidden":false,"merged":[[0,0,0,3],[0,4,0,20],[0,21,0,27],[0,28,0,29],[0,30,0,31],[1,4,2,20],[1,21,2,27],[1,28,2,29],[1,30,2,31],[1,0,2,3],[8,33,9,36],[9,1,16,6],[9,7,16,31],[17,1,17,6],[17,7,17,31],[18,1,18,6],[18,7,18,31],[4,0,4,6],[4,7,4,31],[5,0,19,0],[5,1,8,6],[5,7,8,31],[19,1,19,6],[19,7,19,31],[20,0,27,0],[20,1,20,6],[20,7,20,31],[21,1,23,6],[21,7,23,31],[24,1,26,6],[24,7,26,31],[27,1,27,6],[27,7,27,31],[29,0,29,23],[29,24,29,27],[29,28,29,29],[29,30,29,31],[30,0,32,0],[30,1,32,1],[30,2,32,23],[30,24,32,27],[30,28,32,29],[30,30,32,31],[33,0,35,1],[33,2,35,23],[33,24,35,27],[33,28,35,29],[33,30,35,31],[36,0,38,1],[36,2,38,23],[36,24,38,27],[36,28,38,29],[36,30,38,31],[45,0,46,1],[45,2,46,31],[47,0,47,6],[47,7,47,31],[48,0,48,6],[48,7,48,31],[39,0,41,1],[39,2,41,23],[39,24,41,27],[39,28,41,29],[39,30,41,31],[42,0,44,1],[42,2,44,23],[42,24,44,27],[42,28,44,29],[42,30,44,31],[53,7,53,31],[54,1,54,6],[54,7,54,31],[55,1,55,6],[55,7,55,31],[56,1,56,6],[56,7,56,31],[49,0,65,0],[49,1,49,6],[49,7,49,31],[50,1,50,6],[50,7,50,31],[51,1,51,6],[51,7,51,31],[52,1,52,6],[52,7,52,31],[53,1,53,6],[64,1,64,6],[64,7,64,31],[65,1,65,6],[65,7,65,31],[66,0,66,6],[66,7,66,31],[57,1,61,6],[57,7,61,31],[62,1,62,6],[62,7,62,31],[63,1,63,6],[63,7,63,31],[72,0,76,3],[72,4,76,6],[72,7,76,19],[72,20,76,28],[72,29,76,31],[77,0,79,6],[77,7,79,31],[67,0,67,6],[67,7,67,31],[68,0,71,3],[68,4,71,6],[68,7,71,19],[68,20,71,28],[68,29,68,31],[69,29,71,31],[89,0,89,3],[89,4,89,31],[80,0,83,6],[80,7,83,31],[85,0,87,3],[85,4,85,7],[85,8,85,31],[86,4,86,7],[86,8,86,31],[87,4,87,7],[87,8,87,31]]}
["取組番号",null,null,null,"事業名",null,null,null,null,null,null,null,null,null,null,null,null,null,null,null,null,"作成年月日・担当",null,null,null,null,null,null,"重点",null,"新規"]
[{"$f":"RIGHT(CELL(\"filename\",A4),LEN(CELL(\"filename\",A4))-FIND(\"]\",CELL(\"filename\",A4)))","v":"5-1-2"},null,null,null,"地域まちづくり実行委員会に対する支援事業",null,null,null,null,null,null,null,null,null,null,null,null,null,null,null,null,"令和4年4月1日\n地域協働課（地域協働）",null,null,null,null,null,null,null,null,null,null,null,"目次（１）へ戻る",null,1,"だれもが健康で安心して暮らせるまちへ"]
[null,null,null,null,null,null,null,null,null,null,null,null,null,null,null,null,null,null,null,null,null,null,null,null,null,null,null,null,null,null,null,null,null,"目次（２）へ戻る",null,"2","快適で安全なまちへ"]
[null,null,null,null,null,null,null,null,null,null,null,null,null,null,null,null,null,null,null,null,null,null,null,null,null,null,null,null,null,null,null,null,null,"目次（３）へ戻る",null,"3","次世代の未来が輝くまちへ"]
["項目",null,null,null,null,null,null,"内容",null,null,null,null,null,null,null,null,null,null,null,null,null,null,null,null,null,null,null,null,null,null,null,null,null,"目次（４）へ戻る",null,"4","活力ある元気なまちへ"]
["事業・業務概要","目的\n（事業の背景を含む）",null,null,null,null,null,"地域まちづくり実行委員会が準行政的機能や総意形成機能を担うとともに、｢地域福祉｣、｢地域防災｣、｢地域コミュニティ｣の強化をはじめとする各地域の特性に即した課題の解決に向けた取組をより一層自律的に進めていけるよう、適切な支援を行う。",null,null,null,null,null,null,null,null,null,null,null,null,null,null,null,null,null,null,null,null,null,null,null,null,null,"目次（５）へ戻る",null,"5","「区民が主役」のまちへ"]
[null,null,null,null,null,null,null,null,null,null,null,null,null,null,null,null,null,null,null,null,null,null,null,null,null,null,null,null,null,null,null,null,null,"目次（６）へ戻る",null,"6","その他"]
[null,null,null,null,null,null,null,null,null,null,null,null,null,null,null,null,null,null,null,null,null,null,null,null,null,null,null,null,null,null,null,null,null,null,null,null,null,null,null,null,"施策"]
[]
[null,"内容",null,null,null,null,null,"【財政的支援】\n　・区長指定の活動分野における、各地域の自律的な地域活動および地域まちづくり実行委員会の運営に対し、地域活動協議会補助金を交付する。\n\n【機能的支援】\n　・地域の実情や特性に即した地域運営を促進するため、中間支援組織を活用した積極的支援を行う。"]
[]
[]
[]
[]
[]
[]
[]
[null,"予算額（予算科目）",null,null,null,null,null,"41,281千円"]
[null,"事業実施期間（回数）",null,null,null,null,null,"令和４年４月～令和５年３月"]
[null,"事業対象者（人数）",null,null,null,null,null,"区内全10地域まちづくり実行委員会"]
["委託関係","契約・入札方法",null,null,null,null,null,"【機能的支援】公募型プロポーザル方式"]
[null,"募集要項のポイント",null,null,null,null,null,"　地域まちづくり実行委員会に期待される機能を備えるための効果的・効率的な支援を行うことのできる民間事業者を選定するため、支援手法に関する専門知識、ノウハウや経験など価格以外の要素も含めて総合的に判断する。"]
[]
[]
[null,"仕様書のポイント",null,null,null,null,null,"　地域福祉、地域防災機能の強化、情報発信力の強化に対する支援等に重点を置いた取組を通じて、各地域まちづくり実行委員会を中心とした地域コミュニティの強化につながるよう、各地域の実情に応じた効果的かつ積極的な支援策について、企画提案を求める。"]
[]
[]
[null,"選考メンバー等選考方式",null,null,null,null,null,"まちづくり、地域コミュニティの運営に関する有識者"]
[]
["スケジュール（実施決裁、入札募集開始、説明会、選考会、事業の実施　等）",null,null,null,null,null,null,null,null,null,null,null,null,null,null,null,null,null,null,null,null,null,null,null,"広報スケジュール",null,null,null,"スケ",null,"作業"]
["（前年度）","1月～3月","【通年】地域まちづくり実行委員会の自律的運営に対する効果的･積極的支援\n【２月】令和４年度補助金申請締切\n【２月】令和４年度中間支援組織にかかる事業者選定会議\n【３月】令和３年度補助金事業の終了",null,null,null,null,null,null,null,null,null,null,null,null,null,null,null,null,null,null,null,null,null,null,null,null,null,"〇",null,"〇"]
[]
[]
["4月～\n6月",null,"【通年】地域まちづくり実行委員会の自律的運営に対する効果的･積極的支援\n【４月】令和３年度補助金事業決算、令和４年度補助金交付決定\n【５月】令和４年度補助金事業説明会",null,null,null,null,null,null,null,null,null,null,null,null,null,null,null,null,null,null,null,null,null,null,null,null,null,"〇",null,"〇"]
[]
[]
["7月～\n9月",null,"【通年】地域まちづくり実行委員会の自律的運営に対する効果的･積極的支援\n【９月】令和４年度補助金事業中間チェック説明会",null,null,null,null,null,null,null,null,null,null,null,null,null,null,null,null,null,null,null,null,null,null,null,null,null,"〇",null,"〇"]
[]
[]
["10月～\n12月",null,"【通年】地域まちづくり実行委員会の自律的運営に対する効果的･積極的支援\n【１１１２月】令和５年度補助金事業にかかる申請説明会\n【１２月】令和５年度中間支援組織にかかる事業者公募開始",null,null,null,null,null,null,null,null,null,null,null,null,null,null,null,null,null,null,null,null,null,"区広報紙",null,null,null,"〇",null,"〇"]
[]
[]
["1月～\n3月",null,"【通年】地域まちづくり実行委員会の自律的運営に対する効果的･積極的支援\n【１月】令和５年度中間支援組織にかかる事業者公募開始\n【２月】令和５年度補助金申請締切\n【２３月】令和５年度中間支援組織にかかる事業者選定会議\n【３月】令和４年度補助金事業の終了",null,null,null,null,null,null,null,null,null,null,null,null,null,null,null,null,null,null,null,null,null,null,null,null,null,"〇",null,"〇"]
[]
[]
["備考"]
[]
["項目",null,null,null,null,null,null,"内容"]
["講座・イベント・会議名",null,null,null,null,null,null,"地域活動協議会補助金にかかる説明会"]
["イベント等開催関係","開催日時",null,null,null,null,null,"５月、９月、１１月"]
[null,"開催場所",null,null,null,null,null,"区役所及び各地域"]
[null,"区役所の主催等",null,null,null,null,null,"主催"]
[null,"その他主催団体・組織等",null,null,null,null,null,"－"]
[null,"共催団体・組織等",null,null,null,null,null,"－"]
[null,"後援団体・組織等",null,null,null,null,null,"－"]
[null,"目標事業規模",null,null,null,null,null,"－"]
[null,"その他留意事項",null,null,null,null,null,"－"]
[null,"イベント等\n当日タイムテーブル",null,null,null,null,null,"－"]
[]
[]
[]
[]
[null,"挨拶者",null,null,null,null,null,"大正区長及び大正区副区長"]
[null,"来賓紹介",null,null,null,null,null,"－"]
[null,"祝電紹介の方法",null,null,null,null,null,"－"]
[null,"動員の方法",null,null,null,null,null,"－"]
["その他他課との連携等",null,null,null,null,null,null,"　準行政的機能や総意形成機能を担うとともに、｢地域福祉｣、｢地域防災｣、｢地域コミュニティ｣の強化をはじめとする各地域の特性に即した課題の解決に向けて取り組む地域まちづくり実行委員会の活動は、区政に密接に関わるものであるとともに、その活動分野は多岐にわたることから、全庁的に連携し支援する必要がある。"]
["前年度実績",null,null,null,null,null,null,"・地域活動協議会補助金の趣旨について、地域まちづくり実行委員会の会議の場などで説明を行った件数３回(R3)\n・地域まちづくり実行委員会を知っている区民の割合　57.5%(R3)\n・地域まちづくり実行委員会の構成団体が、大阪市やまちづくりセンター等から自分の地域に即した支援を受けることができていると感じた割合89.1%(R3)\n・まちづくりセンター等の支援を受けた団体が、支援に満足している割合 89.9%(R3)"]
["業績目標",null,null,null,"実績",null,null,"・各地域まちづくり実行委員会が、区長の指定する分野の事業を実施すること（事業数・内容は各地域の実情に応じて異なる）\n・地域活動協議会補助金の趣旨について、地域まちづくり実行委員会の会議の場などで説明を行った回数 ３回",null,null,null,null,null,null,null,null,null,null,null,null,"・各地域まちづくり実行委員会が、区長の指定する分野の事業を実施する（事業数・内容は各地域の実情に応じて異なる）10地域\n・地域活動協議会補助金の趣旨について、地域まちづくり実行委員会の会議の場などで説明を行った回数 ３回",null,null,null,null,null,null,null,null,"自己評価"]
[null,null,null,null,null,null,null,null,null,null,null,null,null,null,null,null,null,null,null,null,null,null,null,null,null,null,null,null,null,"〇"]
[]
[]
["成果目標",null,null,null,"実績",null,null,"・地域まちづくり実行委員会を知っている区民の割合：前年度(57.5%)以上\n・地域まちづくり実行委員会の構成団体が、大阪市やまちづくりセンター等から自分の地域に即した支援を受けることができていると感じた割合：前年度(89.1%)以上\n・まちづくりセンター等の支援を受けた団体が、支援に満足している割合：前年度(89.9%）以上",null,null,null,null,null,null,null,null,null,null,null,null,"・地域まちづくり実行委員会を知っている区民の割合：55.6%\n・地域まちづくり実行委員会の構成団体が、大阪市やまちづくりセンター等から自分の地域に即した支援を受けることができていると感じた割合：91.4%\n・まちづくりセンター等の支援を受けた団体が、支援に満足している割合：88.3%",null,null,null,null,null,null,null,null,"△"]
[]
[]
[]
[]
["中期展望",null,null,null,null,null,null,"各地域まちづくり実行委員会の取り組む「防災、防犯など安心・安全なまちづくりにかかる取組み及び地域福祉、子育て支援、地域コミュニティづくりなどその地域特性に即した地域課題の解決に向けた取組」が自律的に進められている。"]
[]
[]
["成果目標が\n中期展望に\n寄与する理由",null,null,null,null,null,null,"地域運営に取り組む地域まちづくり実行委員会の構成団体に対し適切な支援が実施され、同実行委員会が取り組む地域活動が地域住民に認知されることで、自律的な地域運営が推進されることから、中期展望に寄与することが期待できる。"]
[]
[]
[]
[]
["SDGｓゴール",null,null,null,11,null,null,null,{"$f":"+IF(ISERROR(VLOOKUP($E86,[2]SDGｓ!$A$2:$B$18,2,0)),\"\",VLOOKUP($E86,[2]SDGｓ!$A$2:$B$18,2,0))","v":"住み続けられるまちづくりを"}]
[null,null,null,null,"-",null,null,null,{"$f":"+IF(ISERROR(VLOOKUP($E87,#REF!,2,0)),\"\",VLOOKUP($E87,#REF!,2,0))","v":""}]
[null,null,null,null,"-",null,null,null,{"$f":"+IF(ISERROR(VLOOKUP($E88,#REF!,2,0)),\"\",VLOOKUP($E88,#REF!,2,0))","v":""}]
[]
["修正履歴",null,null,null,"①令和５年度補助金説明会を１１月から１２月へ修正（各地域委員長との日程調整の結果）\n②令和５年度中間支援組織にかかる事業者公募開始を１２月から１月へ修正\n③令和５年度中間支援組織にかかる事業者選定会議を２月から３月へ修正（②③：事務の効率化を図るためコミュニティ育成事業の公募スケジュールに合わせて実施することとしたため）"]

{"sheet":"5-1-3","index":5,"n_rows":87,"n_cols":41,"rows_kept":87,"cut":false,"hidden":false,"merged":[[0,0,0,3],[0,4,0,20],[0,21,0,27],[0,28,0,29],[0,30,0,31],[1,4,2,20],[1,21,2,27],[1,28,2,29],[1,30,2,31],[1,0,2,3],[4,0,4,6],[4,7,4,31],[5,0,17,0],[5,1,6,6],[5,7,6,31],[7,1,14,6],[7,7,14,31],[15,1,15,6],[20,7,20,31],[15,7,15,31],[16,1,16,6],[16,7,16,31],[17,1,17,6],[17,7,17,31],[18,1,18,6],[18,7,18,31],[19,1,21,6],[19,7,19,31],[28,0,30,0],[28,1,30,1],[28,2,30,23],[28,24,30,27],[28,28,30,29],[28,30,30,31],[25,1,25,6],[25,7,25,31],[27,0,27,23],[27,24,27,27],[27,28,27,29],[27,30,27,31],[18,0,25,0],[21,7,21,31],[22,1,24,6],[22,7,22,31],[23,7,23,31],[24,7,24,31],[31,0,33,1],[31,2,33,23],[31,24,33,27],[31,28,33,29],[31,30,33,31],[34,0,36,1],[34,2,36,23],[34,24,36,27],[34,28,36,29],[34,30,36,31],[43,0,43,1],[43,2,43,31],[44,0,44,6],[44,7,44,31],[45,0,45,6],[45,7,45,31],[37,0,39,1],[37,2,39,23],[37,24,39,27],[37,28,39,29],[37,30,39,31],[40,0,42,1],[40,2,42,23],[40,24,42,27],[40,28,42,29],[40,30,42,31],[50,7,50,31],[51,1,51,6],[51,7,51,31],[52,1,52,6],[52,7,52,31],[53,1,53,6],[53,7,53,31],[46,0,62,0],[46,1,46,6],[46,7,46,31],[47,1,47,6],[47,7,47,31],[48,1,48,6],[48,7,48,31],[49,1,49,6],[49,7,49,31],[50,1,50,6],[61,1,61,6],[61,7,61,31],[62,1,62,6],[62,7,62,31],[63,0,63,6],[63,7,63,31],[54,1,58,6],[54,7,58,31],[59,1,59,6],[59,7,59,31],[60,1,60,6],[60,7,60,31],[69,0,73,3],[69,4,73,6],[69,7,73,19],[69,20,73,28],[69,29,73,31],[74,0,76,6],[74,7,76,31],[64,0,64,6],[64,7,64,31],[65,0,68,3],[65,4,68,6],[65,7,68,19],[65,20,68,28],[65,29,65,31],[66,29,68,31],[86,0,86,3],[86,4,86,31],[77,0,80,6],[77,7,80,31],[82,0,84,3],[82,4,82,7],[82,8,82,31],[83,4,83,7],[83,8,83,31],[84,4,84,7],[84,8,84,31]]}
["取組番号",null,null,null,"事業名",null,null,null,null,null,null,null,null,null,null,null,null,null,null,null,null,"作成年月日・担当",null,null,null,null,null,null,"重点",null,"新規"]
[{"$f":"RIGHT(CELL(\"filename\",A4),LEN(CELL(\"filename\",A4))-FIND(\"]\",CELL(\"filename\",A4)))","v":"5-1-3"},null,null,null,"地域まちづくり実行委員会のつながりの拡充にかかる支援",null,null,null,null,null,null,null,null,null,null,null,null,null,null,null,null,"令和4年4月1日\n地域協働課（地域協働）",null,null,null,null,null,null,null,null,null,null,null,"目次（１）へ戻る",null,1,"だれもが健康で安心して暮らせるまちへ"]
[null,null,null,null,null,null,null,null,null,null,null,null,null,null,null,null,null,null,null,null,null,null,null,null,null,null,null,null,null,null,null,null,null,"目次（２）へ戻る",null,"2","快適で安全なまちへ"]
[null,null,null,null,null,null,null,null,null,null,null,null,null,null,null,null,null,null,null,null,null,null,null,null,null,null,null,null,null,null,null,null,null,"目次（３）へ戻る",null,"3","次世代の未来が輝くまちへ"]
["項目",null,null,null,null,null,null,"内容",null,null,null,null,null,null,null,null,null,null,null,null,null,null,null,null,null,null,null,null,null,null,null,null,null,"目次（４）へ戻る",null,"4","活力ある元気なまちへ"]
["事業・業務概要","目的\n（事業の背景を含む）",null,null,null,null,null,"　各地域まちづくり実行委員会が地域課題の解決を自律的に進められる状態となるよう、各団体間での情報交換や情報共有を促し、各地域の「互助・共助」の取組みの活性化を図ることを目的とする。",null,null,null,null,null,null,null,null,null,null,null,null,null,null,null,null,null,null,null,null,null,null,null,null,null,"目次（５）へ戻る",null,"5","「区民が主役」のまちへ"]
[null,null,null,null,null,null,null,null,null,null,null,null,null,null,null,null,null,null,null,null,null,null,null,null,null,null,null,null,null,null,null,null,null,"目次（６）へ戻る",null,"6","その他"]
[null,"内容",null,null,null,null,null,"【大正区地域まちづくり実行委員会委員長会の開催】\n　区施策への協議・議論の場として、各地域まちづくり実行委員会委員長等と意見交換を行うとともに、各団体間での情報交換や情報共有を行う。\n　また、各地域まちづくり実行委員会が地域自治の中心的役割を担うために必要な、総意形成機能を発揮する機会を促す。\n　(例)　・地域活動協議会補助金の活用にかかる決定\n　　　　 ・地域要望のとりまとめ\n　　　　 ・区から地域に依頼する各種委員の各地域での推薦者の決定\n　　　　 ・街路樹の剪定など、区や局が実施する各地域の固有案件にかかる意見聴取\n　　　　 ・地域集会施設の建替にかかる最終決定　　など\n\n【地域担当職員による地域情報の共有】\n　地域の自律的な地域運営を支援し、区民が主役の区政運営を推進するため、地域担当制職員による地域行事や地域活動、地域団体の会議等への参加や地域の担い手へのヒアリング等による地域情報の把握及び整理を行う。",null,null,null,null,null,null,null,null,null,null,null,null,null,null,null,null,null,null,null,null,null,null,null,null,null,null,null,null,null,null,null,null,"施策"]
[]
[]
[]
[]
[]
[]
[]
[null,"予算額（予算科目）",null,null,null,null,null,"－"]
[null,"事業実施期間（回数）",null,null,null,null,null,"通年"]
[null,"事業対象者（人数）",null,null,null,null,null,"区内全10地域活動協議会"]
["委託関係","契約・入札方法",null,null,null,null,null,"－"]
[null,"募集要項のポイント",null,null,null,null,null,"－"]
[null,null,null,null,null,null,null,"－"]
[null,null,null,null,null,null,null,"－"]
[null,"仕様書のポイント",null,null,null,null,null,"－"]
[null,null,null,null,null,null,null,"－"]
[null,null,null,null,null,null,null,"－"]
[null,"選考委員等選考方式",null,null,null,null,null,"－"]
[]
["スケジュール（実施決裁、入札募集開始、説明会、選考会、事業の実施　等）",null,null,null,null,null,null,null,null,null,null,null,null,null,null,null,null,null,null,null,null,null,null,null,"広報スケジュール",null,null,null,"スケ",null,"作業"]
["（前年度）","1月～3月","【１月】地域まちづくり実行委員会委員長会開催\n　　　　令和４年度区役所事業などについて\n　　　　審議･協議･意見交換など",null,null,null,null,null,null,null,null,null,null,null,null,null,null,null,null,null,null,null,null,null,null,null,null,null,"〇",null,"〇"]
[]
[]
["4月～\n6月",null,"【４・５月】地域まちづくり実行委員会委員長会開催\n　　　　　　区役所への申出制度の紹介について\n　　　　　　審議･協議･意見交換など\n月１回程度の地域担当制職員による全体会議の開催\n地域担当制職員による各地域団体の会議等への参加および情報共有",null,null,null,null,null,null,null,null,null,null,null,null,null,null,null,null,null,null,null,null,null,null,null,null,null,"〇",null,"〇"]
[]
[]
["7月～\n9月",null,"【７・９月】地域まちづくり実行委員会委員長会開催\n　　　　　　地域活動協議会補助金中間チェックについて\n　　　　　　審議･協議･意見交換など\n月１回程度の地域担当制職員による全体会議の開催\n地域担当制職員による各地域団体の会議等への参加および情報共有",null,null,null,null,null,null,null,null,null,null,null,null,null,null,null,null,null,null,null,null,null,null,null,null,null,"〇",null,"〇"]
[]
[]
["10月～\n12月",null,"【10・11月】地域まちづくり実行委員会委員長会開催\n　　　　　 　 令和５年度補助金申請について\n　　　　　 　 審議･協議･意見交換など\n月１回程度の地域担当制職員による全体会議の開催\n地域担当制職員による各地域団体の会議等への参加および情報共有",null,null,null,null,null,null,null,null,null,null,null,null,null,null,null,null,null,null,null,null,null,null,null,null,null,"〇",null,"〇"]
[]
[]
["1月～\n3月",null,"【１･３月】地域まちづくり実行委員会委員長会開催\n　　　　　令和４年度補助金の決算について、令和５年度区役所事業について\n　　　　　審議･協議･意見交換など\n月１回程度の地域担当制職員による全体会議の開催\n地域担当制職員による各地域団体の会議等への参加および情報共有",null,null,null,null,null,null,null,null,null,null,null,null,null,null,null,null,null,null,null,null,null,null,null,null,null,"〇",null,"〇"]
[]
[]
["備考"]
["項目",null,null,null,null,null,null,"内容"]
["講座・イベント・会議名",null,null,null,null,null,null,"大正区地域まちづくり実行委員会委員長会"]
["イベント等開催関係","開催日時",null,null,null,null,null,"年８回以上"]
[null,"開催場所",null,null,null,null,null,"区役所会議室など"]
[null,"区役所の主催等",null,null,null,null,null,"事務局"]
[null,"その他主催団体・組織等",null,null,null,null,null,"－"]
[null,"共催団体・組織等",null,null,null,null,null,"－"]
[null,"後援団体・組織等",null,null,null,null,null,"－"]
[null,"目標事業規模",null,null,null,null,null,"－"]
[null,"その他留意事項",null,null,null,null,null,"－"]
[null,"イベント等\n当日タイムテーブル",null,null,null,null,null,"【事前準備】 ・依頼・報告事項エントリーシート及び関係書類の提出：開催10日前\n　　　　　　　　・区長とのレク：開催8日前\n　　　　　　　　・代表幹事とのレク：開催7日前\n【会議内容】 ・代表幹事あいさつ、区長あいさつ、審議・協議・報告事項及び質疑応答・意見交\n　　　　　　　　　換、まちづくりセンターからのお知らせ、その他"]
[]
[]
[]
[]
[null,"挨拶者"]
[null,"来賓紹介",null,null,null,null,null,"－"]
[null,"祝電紹介の方法",null,null,null,null,null,"－"]
[null,"動員の方法",null,null,null,null,null,"－"]
["その他他課との連携等",null,null,null,null,null,null,"　準行政的機能や総意形成機能を担うとともに、大正区将来ビジョン２０２２に掲げる「地域包括支援体制」において中心的な役割を担うことが期待されている地域まちづくり実行委員会の委員長をメンバーとする会議であり、区政に密接に関わりがあることから、全庁的に連携し、意見交換・情報共有等を行っていく必要がある。"]
["前年度実績",null,null,null,null,null,null,"・大正区地域まちづくり実行委員会委員長会の開催：8回(R3)\n・地域まちづくり実行委員会の構成団体が、地域特性に即した地域課題の解決に向けた取組が自律的に進められている状態にあると思う割合：)91.2％(R3)"]
["業績目標",null,null,null,"実績",null,null,"大正区地域まちづくり実行委員会委員長会の開催　年８回以上",null,null,null,null,null,null,null,null,null,null,null,null,"大正区地域まちづくり実行委員会委員長会の開催　年８回",null,null,null,null,null,null,null,null,"自己評価"]
[null,null,null,null,null,null,null,null,null,null,null,null,null,null,null,null,null,null,null,null,null,null,null,null,null,null,null,null,null,"〇"]
[]
[]
["成果目標",null,null,null,"実績",null,null,"地域まちづくり実行委員会の構成団体が、地域特性に即した地域課題の解決に向けた取組が自律的に進められている状態にあると思う割合：前年度(91.2%)以上",null,null,null,null,null,null,null,null,null,null,null,null,"地域まちづくり実行委員会の構成団体が、地域特性に即した地域課題の解決に向けた取組が自律的に進められている状態にあると思う割合：95.0%",null,null,null,null,null,null,null,null,"〇"]
[]
[]
[]
[]
["中期展望",null,null,null,null,null,null,"・各地域における課題解決やまちづくりの推進に向け、各地域まちづくり実行委員会の長による定期的な協議・議論や情報交換・共有などを通じて、小学校区単位にとどまらず中学校区のコミュニティ強化や連携などにかかる各地域の取組が活性化している状態。"]
[]
[]
["成果目標が\n中期展望に\n寄与する理由",null,null,null,null,null,null,"地域自治の中心的役割を担う各地域まちづくり実行委員会が、自律的に地域運営に取り組んでいる状態となることで、中期展望に寄与することが期待できる。"]
[]
[]
[]
[]
["SDGｓゴール",null,null,null,11,null,null,null,"住み続けられるまちづくりを"]
[null,null,null,null,"-",null,null,null,{"$f":"+IF(ISERROR(VLOOKUP($E84,#REF!,2,0)),\"\",VLOOKUP($E84,#REF!,2,0))","v":""}]
[null,null,null,null,"-",null,null,null,{"$f":"+IF(ISERROR(VLOOKUP($E85,#REF!,2,0)),\"\",VLOOKUP($E85,#REF!,2,0))","v":""}]
[]
["修正履歴"]

{"sheet":"5-1-4","index":6,"n_rows":89,"n_cols":41,"rows_kept":89,"cut":false,"hidden":false,"merged":[[0,0,0,3],[0,4,0,20],[0,21,0,27],[0,28,0,29],[0,30,0,31],[1,4,2,20],[1,21,2,27],[1,28,2,29],[1,30,2,31],[1,0,2,3],[4,0,4,6],[4,7,4,31],[5,0,19,0],[5,1,8,6],[5,7,8,31],[9,1,16,6],[9,7,16,31],[17,1,17,6],[17,7,17,31],[18,1,18,6],[18,7,18,31],[19,1,19,6],[19,7,19,31],[20,0,27,0],[20,1,20,6],[20,7,20,31],[21,1,23,6],[21,7,23,31],[30,0,32,0],[30,1,32,1],[30,2,32,23],[30,24,32,27],[30,28,32,29],[30,30,32,31],[24,1,26,6],[24,7,26,31],[27,1,27,6],[27,7,27,31],[29,0,29,23],[29,24,29,27],[29,28,29,29],[29,30,29,31],[33,0,35,1],[33,2,35,23],[33,24,35,27],[33,28,35,29],[33,30,35,31],[36,0,38,1],[36,2,38,23],[36,24,38,27],[36,28,38,29],[36,30,38,31],[45,0,46,1],[45,2,46,31],[47,0,47,6],[47,7,47,31],[48,0,48,6],[48,7,48,31],[39,0,41,1],[39,2,41,23],[39,24,41,27],[39,28,41,29],[39,30,41,31],[42,0,44,1],[42,2,44,23],[42,24,44,27],[42,28,44,29],[42,30,44,31],[53,7,53,31],[54,1,54,6],[54,7,54,31],[55,1,55,6],[55,7,55,31],[56,1,56,6],[56,7,56,31],[49,0,65,0],[49,1,49,6],[49,7,49,31],[50,1,50,6],[50,7,50,31],[51,1,51,6],[51,7,51,31],[52,1,52,6],[52,7,52,31],[53,1,53,6],[64,1,64,6],[64,7,64,31],[65,1,65,6],[65,7,65,31],[66,0,66,6],[66,7,66,31],[57,1,61,6],[57,7,61,31],[62,1,62,6],[62,7,62,31],[63,1,63,6],[63,7,63,31],[72,0,76,3],[72,4,76,6],[72,7,76,19],[72,20,76,28],[72,29,76,31],[77,0,79,6],[77,7,79,31],[67,0,67,6],[67,7,67,31],[68,0,71,3],[68,4,71,6],[68,7,71,19],[68,20,71,28],[68,29,68,31],[69,29,71,31],[88,0,88,3],[88,4,88,31],[80,0,82,6],[80,7,82,31],[80,32,82,38],[84,0,86,3],[84,4,84,7],[84,8,84,31],[85,4,85,7],[85,8,85,31],[86,4,86,7],[86,8,86,31]]}
["取組番号",null,null,null,"事業名",null,null,null,null,null,null,null,null,null,null,null,null,null,null,null,null,"作成年月日・担当",null,null,null,null,null,null,"重点",null,"新規"]
[{"$f":"RIGHT(CELL(\"filename\",A4),LEN(CELL(\"filename\",A4))-FIND(\"]\",CELL(\"filename\",A4)))","v":"5-1-4"},null,null,null,"区民協働による魅力活性化事業",null,null,null,null,null,null,null,null,null,null,null,null,null,null,null,null,"令和4年4月1日\n地域協働課（地域協働）",null,null,null,null,null,null,null,null,null,null,null,"目次（１）へ戻る",null,1,"だれもが健康で安心して暮らせるまちへ"]
[null,null,null,null,null,null,null,null,null,null,null,null,null,null,null,null,null,null,null,null,null,null,null,null,null,null,null,null,null,null,null,null,null,"目次（２）へ戻る",null,"2","快適で安全なまちへ"]
[null,null,null,null,null,null,null,null,null,null,null,null,null,null,null,null,null,null,null,null,null,null,null,null,null,null,null,null,null,null,null,null,null,"目次（３）へ戻る",null,"3","次世代の未来が輝くまちへ"]
["項目",null,null,null,null,null,null,"内容",null,null,null,null,null,null,null,null,null,null,null,null,null,null,null,null,null,null,null,null,null,null,null,null,null,"目次（４）へ戻る",null,"4","活力ある元気なまちへ"]
["事業・業務概要","目的\n（事業の背景を含む）",null,null,null,null,null,"　区の特色を活かした文化事業や多様な世代が参画できる事業を、大正区わがまちビジョン運営委員会と区役所が相互に協力・連携し、地域・学校等も巻き込んだ事業形態として実施することで、行政だけでは実現できない相乗効果を生むことにより大正区への愛着を高めるとともに、地域コミュニティの充実につながる住民主体のまちづくり活動の推進に寄与することを目的とする。",null,null,null,null,null,null,null,null,null,null,null,null,null,null,null,null,null,null,null,null,null,null,null,null,null,"目次（５）へ戻る",null,"5","「区民が主役」のまちへ"]
[null,null,null,null,null,null,null,null,null,null,null,null,null,null,null,null,null,null,null,null,null,null,null,null,null,null,null,null,null,null,null,null,null,"目次（６）へ戻る",null,"6","その他"]
[null,null,null,null,null,null,null,null,null,null,null,null,null,null,null,null,null,null,null,null,null,null,null,null,null,null,null,null,null,null,null,null,null,null,null,null,null,null,null,null,"施策"]
[]
[null,"内容",null,null,null,null,null,"〇わがまちビジョン運営委員会と連携し次の事業を行う。\n樹木札設置:区内の子ども達が自然に親しむ機会として、また生命ある樹木等の名称や特徴を覚えてもらうため「樹木札設置」を、八幡屋公園事務所（建設局）、小学校、こども会、わがまちビジョン運営委員会と協働して実施する。\n・10年後の手紙：大正区内の小学校４年生全員に、「１０年後の私へ」というテーマで手紙を書いてもらい、10年後の成人式にて返却する。\n・文楽公演：大阪が誇る伝統芸能である「文楽」に触れる機会を提供し、文化の普及・振興を図るとともに身近に「文楽」に触れる場のある地域への愛着を高める。\n〇わがまちビジョン運営委員会が企画する事業について、連携・協力を行う。\n\n　"]
[]
[]
[]
[]
[]
[]
[]
[null,"予算額（予算科目）",null,null,null,null,null,"685千円（印刷製本費、通信運搬料、委託料）"]
[null,"事業実施期間（回数）",null,null,null,null,null,"10年後の私への手紙：年１回（成人の日のつどいの日に開催）文楽体験と公演年1回"]
[null,"事業対象者（人数）",null,null,null,null,null,"区内在住・在学・在勤者"]
["委託関係","契約・入札方法",null,null,null,null,null,"随意契約（比較見積）"]
[null,"募集要項のポイント",null,null,null,null,null,"－"]
[]
[]
[null,"仕様書のポイント",null,null,null,null,null,"－"]
[]
[]
[null,"選考委員等選考方式",null,null,null,null,null,"－"]
[]
["スケジュール（実施決算、入札募集開始、説明会、選考会、事業の実施　等）",null,null,null,null,null,null,null,null,null,null,null,null,null,null,null,null,null,null,null,null,null,null,null,"広報スケジュール",null,null,null,"スケ",null,"作業"]
["（前年度）","1月～3月","【1月】１０年後の私への手紙事業実施\n【1月】文楽体験と公演事業実施\n【2月】10年後の私への手紙：小学校より手紙回収、整理・保管\n【2月】第4回大正区わがまちビジョン運営委員会・区役所連絡会開催\n",null,null,null,null,null,null,null,null,null,null,null,null,null,null,null,null,null,null,null,null,null,"－",null,null,null,"〇",null,"〇"]
[]
[]
["4月～\n6月",null,"【5月】第1回大正区わがまちビジョン運営委員会・区役所連絡会開催\n【6月】文楽体験と公演：小・中学校へ児童・生徒の参加協力依頼",null,null,null,null,null,null,null,null,null,null,null,null,null,null,null,null,null,null,null,null,null,null,null,null,null,"〇",null,"〇"]
[]
[]
["7月～\n9月",null,"【7月】第2回大正区わがまちビジョン運営委員会・区役所連絡会開催\n【9月】文楽体験と公演：委託契約締結\n",null,null,null,null,null,null,null,null,null,null,null,null,null,null,null,null,null,null,null,null,null,null,null,null,null,"〇",null,"〇"]
[]
[]
["10月～\n12月",null,"【10月】文楽体験と公演：チラシ・ポスター作成、印刷\n【10月】樹木札設置：八幡屋公園事務所（樹木札設置指導・監督）に協力依頼、小学校に周知チラシの配布依頼、こども会に参加児童の集約依頼\n【11月】樹木札設置実施\n【12月】文楽体験と公演：一般参加者募集\n【12月】10年後の私への手紙：成人式案内状にて周知\n【12月】第3回大正区わがまちビジョン運営委員会・区役所連絡会\n【12月】10年後の私への手紙：学校、区子連周知依頼",null,null,null,null,null,null,null,null,null,null,null,null,null,null,null,null,null,null,null,null,null,"広報紙・HP掲載、フェイスブック、ツイッター",null,null,null,"〇",null,"〇"]
[]
[]
["1月～\n3月",null,"【1月】10年後の私への手紙事業実施：新成人に手紙を返却（成人式当日）\n【1月】文楽体験と公演事業実施。事業報告書提出。\n【2月】10年後の私への手紙：小学校より手紙回収、整理・保管\n【3月】第4回大正区わがまちビジョン運営委員会・区役所連絡会開催\n\n",null,null,null,null,null,null,null,null,null,null,null,null,null,null,null,null,null,null,null,null,null,"フェイスブック、ツイッター",null,null,null,"〇",null,"〇"]
[]
[]
["備考",null,"小・中学校へ児童・生徒の参加協力依頼について検討段階で、文楽公演の時期をを夏休みにすれば小・中学生も参加しやすくなりより効果的ではないかとの意見があり、これを受けて記載していたが、実施段階で協議した結果、従来通り1月の開催となったため削除"]
[]
["項目",null,null,null,null,null,null,"内容"]
["講座・イベント・会議名",null,null,null,null,null,null,"①樹木札設置　①②10年後の私への手紙　②③文楽体験と公演"]
["イベント等開催関係","開催日時",null,null,null,null,null,"①令和4年11月5日　①②令和5年1月8日（成人式当日）　②③令和5年1月頃29日"]
[null,"開催場所",null,null,null,null,null,"①千島公園　②③区民ホール"]
[null,"区役所の主催等",null,null,null,null,null,"共催"]
[null,"その他主催団体・組織等",null,null,null,null,null,"―"]
[null,"共催団体・組織等",null,null,null,null,null,"①②③大正区わがまちビジョン運営委員会"]
[null,"後援団体・組織等",null,null,null,null,null,"①②「成人の日のつどい」運営委員会、大正区子ども会育成連合協議会"]
[null,"目標事業規模",null,null,null,null,null,"―"]
[null,"その他留意事項",null,null,null,null,null,"―"]
[null,"イベント等\n当日タイムテーブル",null,null,null,null,null,"①9:00 会場設営　　①②　10:30　会場設営　　　②③　 9:00 　　会場設営　\n　 9:30 受付開始　　　　　  11:00　受付開始     　　  　 13:30　　 受付開始　　\n 10:00 樹木札設置　　　　 13:00　受付終了   　　　　   14:00     上演開始   \n 11:30　終了　　  　　　　　　　　　　後片付け       　　　 15:30     上演終了　　　　　　　　　　　　　　　　　 \n　　　　　後片付け　　　　  　　                                          　後片付け   　　　　　　  \n"]
[]
[]
[]
[]
[null,"挨拶者",null,null,null,null,null,"大正区わがまちビジョン運営委員会委員長、区長"]
[null,"来賓紹介",null,null,null,null,null,"－"]
[null,"祝電紹介の方法",null,null,null,null,null,"－"]
[null,"動員の方法",null,null,null,null,null,"区広報紙・ホームページ、チラシ、ポスター等"]
["その他他課との連携等",null,null,null,null,null,null,"－"]
["前年度実績",null,null,null,null,null,null,"樹木札設置：参加児童数16名（R1）※R2、R3は中止\n10年後の私への手紙：手紙を取りにきた新成人の人数429名\n文楽公演：新型コロナウイルス感染症対策を講じ令和4年1月29日実施\n「文楽体験と公演の参加者アンケートにおいて、「文楽体験と講演」を通じて、より大正区や地域に愛着を感じられると答えた割合：94.9%"]
["業績目標",null,null,null,"実績",null,null,"樹木札設置：参加児童数を前回（16名）より増やす。\n10年後の私への手紙：区ＨＰや成人式案内状を活用し、前年度より手紙を受け取りに来る新成人（416名）を増やす。\n文楽体験と公演：新型コロナウイルス感染症対策を講じた企画を行う。\n",null,null,null,null,null,null,null,null,null,null,null,null,"樹木札：参加児童29名\n10年後私への手紙：10年後の私への手紙受け取り数411名\n文楽体験と公演：新型コロナウイルス感染症対策を講じた企画を実施。",null,null,null,null,null,null,null,null,"自己評価"]
[null,null,null,null,null,null,null,null,null,null,null,null,null,null,null,null,null,null,null,null,null,null,null,null,null,null,null,null,null,"△"]
[]
[]
["成果目標",null,null,null,"実績",null,null,"事業参加者アンケート区民意識調査において、本事業が大正区や地域への愛着の向上につながると答えた割合：9552.1(R2)%%以上（「子どもたちによる公園への樹木札設置」、「小学4年生を対象とした10年後の私への手紙」、「文楽公演と体験」の平均）",null,null,null,null,null,null,null,null,null,null,null,null,"区民意識調査において、本事業が大正区や地域への愛着の向上につながると答えた割合「子どもたちによる公園への樹木札設置」、「小学4年生を対象とした10年後の私への手紙」、「文楽公演と体験」の平均）59.8%",null,null,null,null,null,null,null,null,"◎"]
[]
[]
[]
[]
["中期展望",null,null,null,null,null,null,"「大正区将来ビジョン2022」の５つの柱のひとつ「区民が主役」のまちへの実現が進められている状態。"]
[]
[]
["成果目標が\n中期展望に\n寄与する理由",null,null,null,null,null,null,"新たなまちの魅力発掘や大正区への愛着の向上により、これまで地域活動に参画していなかった区民が参画することにつながることが期待され、「区民が主役」のまちづくり活動の推進が図られるため。"]
[]
[]
[]
["SDGｓゴール",null,null,null,17,null,null,null,{"$f":"+IF(ISERROR(VLOOKUP($E85,[3]SDGｓ!$A$2:$B$18,2,0)),\"\",VLOOKUP($E85,[3]SDGｓ!$A$2:$B$18,2,0))","v":"パートナーシップで目標を達成しよう"}]
[null,null,null,null,"-",null,null,null,{"$f":"+IF(ISERROR(VLOOKUP($E86,#REF!,2,0)),\"\",VLOOKUP($E86,#REF!,2,0))","v":""}]
[null,null,null,null,"-",null,null,null,{"$f":"+IF(ISERROR(VLOOKUP($E87,#REF!,2,0)),\"\",VLOOKUP($E87,#REF!,2,0))","v":""}]
[]
["修正履歴",null,null,null,"事業見直し、スケジュールの修正\n業績目標・成果目標の修正"]

{"sheet":"5-1-5","index":7,"n_rows":90,"n_cols":34,"rows_kept":90,"cut":false,"hidden":false,"merged":[[0,0,0,3],[0,4,0,20],[0,21,0,27],[0,28,0,29],[0,30,0,31],[1,4,2,20],[1,21,2,27],[1,28,2,29],[1,30,2,31],[1,0,2,3],[5,33,7,34],[9,1,16,6],[9,7,16,31],[17,1,17,6],[17,7,17,31],[18,1,18,6],[18,7,18,31],[4,0,4,6],[4,7,4,31],[5,0,19,0],[5,1,8,6],[5,7,8,31],[19,1,19,6],[19,7,19,31],[20,0,27,0],[20,1,20,6],[20,7,20,31],[21,1,23,6],[21,7,23,31],[24,1,26,6],[24,7,26,31],[27,1,27,6],[27,7,27,31],[29,0,29,23],[29,24,29,27],[29,28,29,29],[29,30,29,31],[30,0,32,0],[30,1,32,1],[30,2,32,23],[30,24,32,27],[30,28,32,29],[30,30,32,31],[33,0,35,1],[33,2,35,23],[33,24,35,27],[33,28,35,29],[33,30,35,31],[36,0,38,1],[36,2,38,23],[36,24,38,27],[36,28,38,29],[36,30,38,31],[45,0,46,1],[45,2,46,31],[47,0,47,6],[47,7,47,31],[48,0,48,6],[48,7,48,31],[39,0,41,1],[39,2,41,23],[39,24,41,27],[39,28,41,29],[39,30,41,31],[42,0,44,1],[42,2,44,23],[42,24,44,27],[42,28,44,29],[42,30,44,31],[53,7,53,31],[54,1,54,6],[54,7,54,31],[55,1,55,6],[55,7,55,31],[56,1,56,6],[56,7,56,31],[49,0,65,0],[49,1,49,6],[49,7,49,31],[50,1,50,6],[50,7,50,31],[51,1,51,6],[51,7,51,31],[52,1,52,6],[52,7,52,31],[53,1,53,6],[64,1,64,6],[64,7,64,31],[65,1,65,6],[65,7,65,31],[66,0,66,6],[66,7,66,31],[57,1,61,6],[57,7,61,31],[62,1,62,6],[62,7,62,31],[63,1,63,6],[63,7,63,31],[72,0,76,3],[72,4,76,6],[72,7,76,19],[72,20,76,28],[72,29,76,31],[77,0,79,6],[77,7,79,31],[67,0,67,6],[67,7,67,31],[68,0,71,3],[68,4,71,6],[68,7,71,19],[68,20,71,28],[68,29,68,31],[69,29,71,31],[89,0,89,3],[89,4,89,31],[80,0,83,6],[80,7,83,31],[85,0,87,3],[85,4,85,7],[85,8,85,31],[86,4,86,7],[86,8,86,31],[87,4,87,7],[87,8,87,31]]}
["取組番号",null,null,null,"事業名",null,null,null,null,null,null,null,null,null,null,null,null,null,null,null,null,"作成年月日・担当",null,null,null,null,null,null,"重点",null,"新規"]
[{"$f":"RIGHT(CELL(\"filename\",A4),LEN(CELL(\"filename\",A4))-FIND(\"]\",CELL(\"filename\",A4)))","v":"5-1-5"},null,null,null,"区役所コンサート",null,null,null,null,null,null,null,null,null,null,null,null,null,null,null,null,"令和4年4月1日\n地域協働課(地域協働)"]
[]
[]
["項目",null,null,null,null,null,null,"内容"]
["事業・業務概要","目的\n（事業の背景を含む）",null,null,null,null,null,"プロの演奏家による上質な音楽を鑑賞する機会を区民に提供することにより、音楽が区民にとって身近なものとなり、区民自身が音楽に携わるきっかけとなることで、まちに音楽があふれ、大正区の魅力のひとつとなることを目的とする。",null,null,null,null,null,null,null,null,null,null,null,null,null,null,null,null,null,null,null,null,null,null,null,null,null,"一覧へ戻る"]
[]
[]
[]
[null,"内容",null,null,null,null,null,"大正区への親しみや区民としての誇りの醸成につながるプロの演奏家による無料のコンサートを開催する。\n新型コロナウイルス感染症拡大を考慮し、演奏家と来場者及び来場者同士の距離を確保する等、密集・密接を回避し、また、手指消毒や来場者情報の把握する等、感染予防について対策を講じたうえで開催する。"]
[]
[]
[]
[]
[]
[]
[]
[null,"予算額（予算科目）",null,null,null,null,null,"41千円（役務費）、165千円（委託料）"]
[null,"事業実施期間（回数）",null,null,null,null,null,"３回（10月、12月、２月）"]
[null,"事業対象者（人数）",null,null,null,null,null,"来庁者"]
["委託関係","契約・入札方法",null,null,null,null,null,"随意契約（比較見積）"]
[null,"募集要項のポイント"]
[]
[]
[null,"仕様書のポイント",null,null,null,null,null,"プロの演奏家によるコンサートを企画・実施する。\n企画内容は、毎回異なる声楽や器楽演奏などの室内楽を基本とし、本業務目的を達成しうるプロの演奏家を派遣できるものに業務委託する。\n"]
[]
[]
[null,"選考委員等選考方式",null,null,null,null,null,"随意契約（比較見積）"]
[]
["スケジュール（実施決裁、入札募集開始、説明会、選考会、事業の実施　等）",null,null,null,null,null,null,null,null,null,null,null,null,null,null,null,null,null,null,null,null,null,null,null,"広報スケジュール",null,null,null,"スケ",null,"作業"]
["（前年度）","1月～3月",null,null,null,null,null,null,null,null,null,null,null,null,null,null,null,null,null,null,null,null,null,null,null,null,null,null,"〇",null,"〇"]
[]
[]
["4月～\n6月",null,"６月：委託業務契約事務",null,null,null,null,null,null,null,null,null,null,null,null,null,null,null,null,null,null,null,null,null,null,null,null,null,"〇",null,"〇"]
[]
[]
["7月～\n9月",null,null,null,null,null,null,null,null,null,null,null,null,null,null,null,null,null,null,null,null,null,null,null,"広報紙、HP・SNS",null,null,null,"〇",null,"〇"]
[]
[]
["10月～\n12月",null,"10月：第１回区役所コンサート\n12月：第２回区役所コンサート",null,null,null,null,null,null,null,null,null,null,null,null,null,null,null,null,null,null,null,null,null,"毎月　広報紙、区HP・SNS",null,null,null,"〇",null,"〇"]
[]
[]
["1月～\n3月",null,"２月：第３回区役所コンサート",null,null,null,null,null,null,null,null,null,null,null,null,null,null,null,null,null,null,null,null,null,"毎月　広報紙、区HP・SNS",null,null,null,"〇",null,"〇"]
[]
[]
["備考"]
[]
["項目",null,null,null,null,null,null,"内容"]
["講座・イベント・会議名",null,null,null,null,null,null,"区役所コンサート（３回）"]
["イベント等開催関係","開催日時",null,null,null,null,null,"10月、12月、２月"]
[null,"開催場所",null,null,null,null,null,"区役所２階さわやか広場等"]
[null,"区役所の主催等",null,null,null,null,null,"大正区役所主催"]
[null,"その他主催団体・組織等",null,null,null,null,null,"―"]
[null,"共催団体・組織等",null,null,null,null,null,"―"]
[null,"後援団体・組織等",null,null,null,null,null,"―"]
[null,"目標事業規模",null,null,null,null,null,"―"]
[null,"その他留意事項",null,null,null,null,null,"―"]
[null,"イベント等\n当日タイムテーブル",null,null,null,null,null,"―"]
[]
[]
[]
[]
[null,"挨拶者",null,null,null,null,null,"―"]
[null,"来賓紹介",null,null,null,null,null,"―"]
[null,"祝電紹介の方法",null,null,null,null,null,"―"]
[null,"動員の方法",null,null,null,null,null,"区広報紙、ホームページ、ポスター、チラシ等"]
["その他他課との連携等",null,null,null,null,null,null,"―"]
["前年度実績",null,null,null,null,null,null,"参加者：R3.12.20　42名、R4.1.26　58名、R4.3.1　58名\n事業が区民の文化意識の高揚や大正区におけるシビックプライドの醸成につながると答えた割合：47.5％（令和２年度）※令和3年度調査未実施"]
["業績目標",null,null,null,"実績",null,null,"収容可能人数の90％以上",null,null,null,null,null,null,null,null,null,null,null,null,"参加者：令和4年度　R4.10　70名　R4.12　86名　R5.3　115名　収容可能人数の100％",null,null,null,null,null,null,null,null,"自己評価"]
[null,null,null,null,null,null,null,null,null,null,null,null,null,null,null,null,null,null,null,null,null,null,null,null,null,null,null,null,null,"◎"]
[]
[]
["成果目標",null,null,null,"実績",null,null,"区民意識調査で事業が大正区への親しみや区民としての誇りの醸成につながると答えた割合：50％以上",null,null,null,null,null,null,null,null,null,null,null,null,0.60499999999999998,null,null,null,null,null,null,null,null,"◎"]
[]
[]
[]
[]
["中期展望",null,null,null,null,null,null,"大正区において音楽が身近な存在となり、まちにあるれている状態をめざす。"]
[]
[]
["成果目標が\n中期展望に\n寄与する理由",null,null,null,null,null,null,"大正区への親しみや区民としての誇りの醸成に繋がると評価されることは、音楽が区民にとって有益であり、また、区民の関心を惹きつける存在となり、区民が音楽に携わる可能性を高めることとなるため。"]
[]
[]
[]
[]
["SDGｓゴール",null,null,null,17,null,null,null,"パートナーシップで目標を達成しよう"]
[]
[null,null,null,null,null,null,null,null,""]
[]
["修正履歴",null,null,null,"成果目標の修正"]

{"sheet":"5-1-6","index":8,"n_rows":90,"n_cols":34,"rows_kept":90,"cut":false,"hidden":false,"merged":[[0,0,0,3],[0,4,0,20],[0,21,0,27],[0,28,0,29],[0,30,0,31],[1,4,2,20],[1,21,2,27],[1,28,2,29],[1,30,2,31],[1,0,2,3],[5,33,7,34],[9,1,16,6],[9,7,16,31],[17,1,17,6],[17,7,17,31],[18,1,18,6],[18,7,18,31],[4,0,4,6],[4,7,4,31],[5,0,19,0],[5,1,8,6],[5,7,8,31],[19,1,19,6],[19,7,19,31],[20,0,27,0],[20,1,20,6],[20,7,20,31],[21,1,23,6],[21,7,23,31],[24,1,26,6],[24,7,26,31],[27,1,27,6],[27,7,27,31],[29,0,29,23],[29,24,29,27],[29,28,29,29],[29,30,29,31],[30,0,32,0],[30,1,32,1],[30,2,32,23],[30,24,32,27],[30,28,32,29],[30,30,32,31],[33,0,35,1],[33,2,35,23],[33,24,44,27],[33,28,35,29],[33,30,35,31],[36,0,38,1],[36,2,38,23],[36,28,38,29],[36,30,38,31],[39,0,41,1],[45,0,46,1],[45,2,46,31],[47,0,47,6],[47,7,47,31],[48,0,48,6],[48,7,48,31],[39,2,41,23],[39,28,41,29],[39,30,41,31],[42,0,44,1],[42,2,44,23],[42,28,44,29],[42,30,44,31],[53,7,53,31],[54,1,54,6],[54,7,54,31],[55,1,55,6],[55,7,55,31],[56,1,56,6],[56,7,56,31],[49,0,65,0],[49,1,49,6],[49,7,49,31],[50,1,50,6],[50,7,50,31],[51,1,51,6],[51,7,51,31],[52,1,52,6],[52,7,52,31],[53,1,53,6],[64,1,64,6],[64,7,64,31],[65,1,65,6],[65,7,65,31],[66,0,66,6],[66,7,66,31],[57,1,61,6],[57,7,61,31],[62,1,62,6],[62,7,62,31],[63,1,63,6],[63,7,63,31],[72,0,76,3],[72,4,76,6],[72,7,76,19],[72,20,76,28],[72,29,76,31],[77,0,79,6],[77,7,79,31],[67,0,67,6],[67,7,67,31],[68,0,71,3],[68,4,71,6],[68,7,71,19],[68,20,71,28],[68,29,68,31],[69,29,71,31],[89,0,89,3],[89,4,89,31],[80,0,83,6],[80,7,83,31],[85,0,87,3],[85,4,85,7],[85,8,85,31],[86,4,86,7],[86,8,86,31],[87,4,87,7],[87,8,87,31]]}
["取組番号",null,null,null,"事業名",null,null,null,null,null,null,null,null,null,null,null,null,null,null,null,null,"作成年月日・担当",null,null,null,null,null,null,"重点",null,"新規"]
[{"$f":"RIGHT(CELL(\"filename\",A4),LEN(CELL(\"filename\",A4))-FIND(\"]\",CELL(\"filename\",A4)))","v":"5-1-6"},null,null,null,"生涯学習の実施支援",null,null,null,null,null,null,null,null,null,null,null,null,null,null,null,null,"令和４年４月１日\n保健福祉課（こども・教育）"]
[]
[]
["項目",null,null,null,null,null,null,"内容"]
["事業・業務概要","目的\n（事業の背景を含む）",null,null,null,null,null,"　第４次生涯学習大阪計画（R４～R7予定）を踏まえ、生涯学習推進員が地域活動協議会の一員として、各種団体との連携を図りながら、多様なニーズに応じた講座等の開催を通じて学習機会の提供を行うことにより、誰もが主体的に学び続けることができるよう、情報共有の場や、発表の場の提供などの支援を行う。",null,null,null,null,null,null,null,null,null,null,null,null,null,null,null,null,null,null,null,null,null,null,null,null,null,"一覧へ戻る"]
[]
[]
[]
[null,"内容",null,null,null,null,null,"生涯学習に関する取り組みの共有や、各校下間の生涯学習推進員の連携強化を図るため「生涯学習推進員・区役所連絡会」を開催する。\n各生涯学習関連施設が行う取組みを情報共有し、啓発協力を行うとともに、区内施設館の連携強化を図るため「生涯学習関連施設連絡会議」を開催する。\n生涯学習関連事業の実施告知・報告を区HPやSNS等へも掲載し、学びのきっかけづくりとなるよう区民へ広く周知を図るとともに区内の生涯学習施設や教育機関等と連携し、学習機会の提供並びに情報の取りまとめを行う。\nまた、各地域の生涯学習ルーム・各種サークル・団体等が取り組んでいる活動の成果を発表する場として、こどもから大人まで世代を問わず多くの区民が気軽に参加できる内容となるよう「大正生涯学習フェスティバル」を実施する。"]
[]
[]
[]
[]
[]
[]
[]
[null,"予算額（予算科目）",null,null,null,null,null,"761千円（報償金、通信運搬費、委託料）"]
[null,"事業実施期間（回数）",null,null,null,null,null,"令和４年４月１日～令和５年３月31日／フェスティバル：年１回（11月上旬の土・日曜日）"]
[null,"事業対象者（人数）",null,null,null,null,null,"主に区内在住・在学・在勤者"]
["委託関係","契約・入札方法",null,null,null,null,null,"公募型プロポーザル方式（大正生涯学習フェスティバル）"]
[null,"募集要項のポイント",null,null,null,null,null,"単にイベントとして実施するのではなく、参加者一人ひとりが積極的に生涯学習に取り組むきっかけとなるしかけが必要であるため、興味を喚起する画期的で魅力的な企画や、こどもから大人まで幅広い世代の区民がより多く参加するよう、地域を巻き込んだ情報発信力等の提案を求める。"]
[]
[]
[null,"仕様書のポイント",null,null,null,null,null,"新たな「学び」へのきっかけとなり、参加者一人ひとりが学習活動への意欲を一層高め、「学び」の成果を地域に還元できるような内容とする。\n新型コロナウィルス感染症対策を踏まえた新しい様式での実施とする。\n"]
[]
[]
[null,"選考委員等選考方式",null,null,null,null,null,"専門知識を持つ外部委員3名による選考会議にて選定"]
[]
["スケジュール（実施決裁、入札募集開始、説明会、選考会、事業の実施　等）",null,null,null,null,null,null,null,null,null,null,null,null,null,null,null,null,null,null,null,null,null,null,null,"広報スケジュール",null,null,null,"スケ",null,"作業"]
["（前年度）","1月～3月","・生涯学習ルーム関係書類提出依頼",null,null,null,null,null,null,null,null,null,null,null,null,null,null,null,null,null,null,null,null,null,null,null,null,null,"〇",null,"〇"]
[]
[]
["4月～\n6月",null,"【4～6月】大正区生涯学習推進員区役所連絡会(月1回)\n【5月】生涯学習関連施設連絡会議（奇数月）\n大正生涯学習フェスティバル\n【4月】実施決裁\n【5月】入札募集、実施説明会の開催\n【6月】委託事業者の選考",null,null,null,null,null,null,null,null,null,null,null,null,null,null,null,null,null,null,null,null,null,"生涯学習関連事業の実施告知・報告について、情報発信（区ホームページ・フェイスブック・ツイッター）",null,null,null,"〇",null,"〇"]
[]
[]
["7月～\n9月",null,"【7月】大正区生涯学習推進員区役所連絡会(月1回)\n【7月】生涯学習関連施設連絡会議（奇数月）\n【9月】大正区生涯学習推進員区役所連絡会(月1回)\n【9月】生涯学習関連施設連絡会議（奇数月）\n【7月】大正生涯学習フェスティバルにかかる委託契約の締結",null,null,null,null,null,null,null,null,null,null,null,null,null,null,null,null,null,null,null,null,null,null,null,null,null,"〇",null,"〇"]
[]
[]
["10月～\n12月",null,"【10月】大正区生涯学習推進員区役所連絡会(月1回)\n【11月】大正区生涯学習推進員区役所連絡会(月1回)\n【11月】生涯学習関連施設連絡会議（奇数月）\n【11月】生涯学習フェスティバル実施",null,null,null,null,null,null,null,null,null,null,null,null,null,null,null,null,null,null,null,null,null,null,null,null,null,"〇",null,"〇"]
[]
[]
["1月～\n3月",null,"【1～3月】大正区生涯学習推進員区役所連絡会(月1回)\n・生涯学習ルーム関係書類提出依頼\n【1・3月】生涯学習関連施設連絡会議（奇数月）\n\n\n\n",null,null,null,null,null,null,null,null,null,null,null,null,null,null,null,null,null,null,null,null,null,null,null,null,null,"〇",null,"〇"]
[]
[]
["備考",null,"連絡会は８月、12月休会"]
[]
["項目",null,null,null,null,null,null,"内容"]
["講座・イベント・会議名",null,null,null,null,null,null,"大正区生涯学習推進員区役所連絡会／大正生涯学習フェスティバル"]
["イベント等開催関係","開催日時",null,null,null,null,null,"　毎月第3木曜日（8月12月休会）／令和４年度11月上旬の土・日曜日"]
[null,"開催場所",null,null,null,null,null,"大正会館会議室（予定）／大正区コミュニティセンター"]
[null,"区役所の主催等",null,null,null,null,null,"事務局／主催"]
[null,"その他主催団体・組織等",null,null,null,null,null,"大阪市生涯学習推進員大正区連絡会"]
[null,"共催団体・組織等",null,null,null,null,null,"―"]
[null,"後援団体・組織等",null,null,null,null,null,"―"]
[null,"目標事業規模",null,null,null,null,null,"来場者700人以上"]
[null,"その他留意事項",null,null,null,null,null,"―"]
[null,"イベント等\n当日タイムテーブル",null,null,null,null,null,"\n１日目　10:00　　オープニングセレモニー開会\n　　　　　　　　　　　区長あいさつ\n　　　　　　　　　　　ワークショップ、展示\n　　　　　15:00　　終了\n２日目　10:00　　舞台発表、展示\n　　　　　16:00　　終了\n\n変更内容：例年２日間開催だったが、令和４年度より１日のみの開催とした。\n変更理由：生涯学習推進員の意向が１日間開催であったため。\n\n"]
[]
[]
[]
[]
[null,"挨拶者",null,null,null,null,null,"区長"]
[null,"来賓紹介",null,null,null,null,null,"府議会議員、市会議員"]
[null,"祝電紹介の方法",null,null,null,null,null,"掲示"]
[null,"動員の方法",null,null,null,null,null,"各団体に周知、各町会でポスター掲示等"]
["その他他課との連携等",null,null,null,null,null,null,"―"]
["前年度実績",null,null,null,null,null,null,"・生涯学習ルーム　６６講座（令和３年度）\n・こんにちは大正による生涯学習に係る記事掲載：１回（令和３年度）\n・区民意識調査において「生涯学習の機会の広がりを感じる」と答えた割合：43.9％（令和３年度）\n"]
["業績目標",null,null,null,"実績",null,null,"・こんにちは大正による大正生涯学習フェスティバル等生涯学習に関する記事記載：１回以上\n・区ＨＰの活用によるＰＲの強化と参加者アンケートにより把握したニーズを事業に反映させることなどにより、前年度（令和元年度：820名）より参加者を増やす。",null,null,null,null,null,null,null,null,null,null,null,null,"・こんにちは大正による大正生涯学習フェスティバル等生涯学習に関する記事記載：2回\n・令和４年度の生涯学習フェスティバル参加者数は、614名であった。",null,null,null,null,null,null,null,null,"自己評価"]
[null,null,null,null,null,null,null,null,null,null,null,null,null,null,null,null,null,null,null,null,null,null,null,null,null,null,null,null,null,"△"]
[]
[]
["成果目標",null,null,null,"実績",null,null,"・区民意識調査において「生涯学習の機会の広がりを感じる」と答えた割合：55.4％以上",null,null,null,null,null,null,null,null,null,null,null,null,"・区民意識調査において「生涯学習の機会の広がりを感じる」と答えた割合：34.2％以上",null,null,null,null,null,null,null,null,"×"]
[]
[]
[]
[]
["中期展望",null,null,null,null,null,null,"身近に開催される講座等の内容を知ることが出来、参加を通じ、地域住民が自律的に生涯学習を進められ、区民全体が生涯学習に興味を持ち、継続して学習することで、自らを高めている状態。"]
[]
[]
["成果目標が\n中期展望に\n寄与する理由",null,null,null,null,null,null,"生涯学習の機会が広がることにより、区内の生涯学習の取組みに対する理解が深められ、より自律的な生涯学習活動が図られる。\n"]
[]
[]
[]
[]
["SDGｓゴール",null,null,null,4,null,null,null,{"$f":"+IF(ISERROR(VLOOKUP($E86,[4]SDGｓ!$A$2:$B$18,2,0)),\"\",VLOOKUP($E86,[4]SDGｓ!$A$2:$B$18,2,0))","v":"質の高い教育をみんなに"}]
[null,null,null,null,10,null,null,null,{"$f":"+IF(ISERROR(VLOOKUP($E87,[4]SDGｓ!$A$2:$B$18,2,0)),\"\",VLOOKUP($E87,[4]SDGｓ!$A$2:$B$18,2,0))","v":"人や国の不平等をなくそう"}]
[null,null,null,null,null,null,null,null,{"$f":"+IF(ISERROR(VLOOKUP($E88,[4]SDGｓ!$A$2:$B$18,2,0)),\"\",VLOOKUP($E88,[4]SDGｓ!$A$2:$B$18,2,0))","v":""}]
[]
["修正履歴",null,null,null,"事業内容の修正"]

{"sheet":"5-1-7","index":9,"n_rows":90,"n_cols":34,"rows_kept":90,"cut":false,"hidden":false,"merged":[[0,0,0,3],[0,4,0,20],[0,21,0,27],[0,28,0,29],[0,30,0,31],[1,4,2,20],[1,21,2,27],[1,28,2,29],[1,30,2,31],[1,0,2,3],[5,33,7,34],[9,1,16,6],[9,7,16,31],[17,1,17,6],[17,7,17,31],[18,1,18,6],[18,7,18,31],[4,0,4,6],[4,7,4,31],[5,0,19,0],[5,1,8,6],[5,7,8,31],[19,1,19,6],[19,7,19,31],[20,0,27,0],[20,1,20,6],[20,7,20,31],[21,1,23,6],[21,7,23,31],[24,1,26,6],[24,7,26,31],[27,1,27,6],[27,7,27,31],[29,0,29,23],[29,24,29,27],[29,28,29,29],[29,30,29,31],[30,0,32,0],[30,1,32,1],[30,2,32,23],[30,24,32,27],[30,28,32,29],[30,30,32,31],[33,0,35,1],[33,2,35,23],[33,24,35,27],[33,28,35,29],[33,30,35,31],[36,0,38,1],[36,2,38,23],[36,24,38,27],[36,28,38,29],[36,30,38,31],[45,0,46,1],[45,2,46,31],[47,0,47,6],[47,7,47,31],[48,0,48,6],[48,7,48,31],[39,0,41,1],[39,2,41,23],[39,24,41,27],[39,28,41,29],[39,30,41,31],[42,0,44,1],[42,2,44,23],[42,24,44,27],[42,28,44,29],[42,30,44,31],[53,7,53,31],[54,1,54,6],[54,7,54,31],[55,1,55,6],[55,7,55,31],[56,1,56,6],[56,7,56,31],[49,0,65,0],[49,1,49,6],[49,7,49,31],[50,1,50,6],[50,7,50,31],[51,1,51,6],[51,7,51,31],[52,1,52,6],[52,7,52,31],[53,1,53,6],[64,1,64,6],[64,7,64,31],[65,1,65,6],[65,7,65,31],[66,0,66,6],[66,7,66,31],[57,1,61,6],[57,7,61,31],[62,1,62,6],[62,7,62,31],[63,1,63,6],[63,7,63,31],[72,0,76,3],[72,4,76,6],[72,7,76,19],[72,20,76,28],[72,29,76,31],[77,0,79,6],[77,7,79,31],[67,0,67,6],[67,7,67,31],[68,0,71,3],[68,4,71,6],[68,7,71,19],[68,20,71,28],[68,29,68,31],[69,29,71,31],[89,0,89,3],[89,4,89,31],[80,0,83,6],[80,7,83,31],[85,0,87,3],[85,4,85,7],[85,8,85,31],[86,4,86,7],[86,8,86,31],[87,4,87,7],[87,8,87,31]]}
["取組番号",null,null,null,"事業名",null,null,null,null,null,null,null,null,null,null,null,null,null,null,null,null,"作成年月日・担当",null,null,null,null,null,null,"重点",null,"新規"]
[{"$f":"RIGHT(CELL(\"filename\",A4),LEN(CELL(\"filename\",A4))-FIND(\"]\",CELL(\"filename\",A4)))","v":"5-1-7"},null,null,null,"はぐくみネットの連携強化支援",null,null,null,null,null,null,null,null,null,null,null,null,null,null,null,null,"令和４年４月１日\n保健福祉課（こども・教育）"]
[]
[]
["項目",null,null,null,null,null,null,"内容"]
["事業・業務概要","目的\n（事業の背景を含む）",null,null,null,null,null,"はぐくみネット運営委員会が地域活動協議会の一員として、「家庭」「学校」「地域」が一体となり、様々な経験や学びを通じて、学校教育支援活動が行えるよう、区役所が、運営支援を行うことにより、地域社会で様々な人が継続的に子どもに関わるしくみをつくり、人と人とのつながりによって子どもの人間性を豊かにし「生きる力」をはぐくんでいくことをめざす。",null,null,null,null,null,null,null,null,null,null,null,null,null,null,null,null,null,null,null,null,null,null,null,null,null,"一覧へ戻る"]
[]
[]
[]
[null,"内容",null,null,null,null,null,"子どもの成長に役立つ活動を通じて人と人のつながりをつくることをめざし、構成する諸団体やはぐくみネットの取組の要である地域ボランティア「はぐくみネットコーディネータ－」が中心を担うはぐくみネット運営委員会により、休日や放課後などに子どもの体験教室や、大人と子どもが交流する催し、地域の子育て・教育について考える活動など自主的、主体的に取り組まれるよう、区役所が、事務手続き、活動状況の把握、運営に関する相談・助言等はぐくみネット事業の推進にかかる業務を行うことにより、運営支援を行う。"]
[]
[]
[]
[]
[]
[]
[]
[null,"予算額（予算科目）",null,null,null,null,null,"（【参考】地域活動協議会補助金26,836千円（全体））"]
[null,"事業実施期間（回数）",null,null,null,null,null,"令和４年４月１日～令和５年３月31日"]
[null,"事業対象者（人数）",null,null,null,null,null,"区内全般（はぐくみネットコーディネーターと連携）"]
["委託関係","契約・入札方法",null,null,null,null,null,"―"]
[null,"募集要項のポイント",null,null,null,null,null,"―"]
[]
[]
[null,"仕様書のポイント",null,null,null,null,null,"―"]
[]
[]
[null,"選考委員等選考方式"]
[]
["スケジュール（実施決裁、入札募集開始、説明会、選考会、事業の実施　等）",null,null,null,null,null,null,null,null,null,null,null,null,null,null,null,null,null,null,null,null,null,null,null,"広報スケジュール",null,null,null,"スケ",null,"作業"]
["（前年度）","1月～3月","・行政財産使用承認依頼\n・次年度の計画案の提出\n",null,null,null,null,null,null,null,null,null,null,null,null,null,null,null,null,null,null,null,null,null,null,null,null,null,"〇",null,"〇"]
[]
[]
["4月～\n6月",null,"・前年度の事業報告\n・各校下ではぐくみネットの取組みを実施\n・適宜情報共有や意見交換",null,null,null,null,null,null,null,null,null,null,null,null,null,null,null,null,null,null,null,null,null,null,null,null,null,"〇",null,"〇"]
[]
[]
["7月～\n9月",null,"・各校下ではぐくみネットの取組みを実施\n・適宜情報共有や意見交換",null,null,null,null,null,null,null,null,null,null,null,null,null,null,null,null,null,null,null,null,null,null,null,null,null,"〇",null,"〇"]
[]
[]
["10月～\n12月",null,"・各校下ではぐくみネットの取組みを実施\n・適宜情報共有や意見交換",null,null,null,null,null,null,null,null,null,null,null,null,null,null,null,null,null,null,null,null,null,null,null,null,null,"〇",null,"〇"]
[]
[]
["1月～\n3月",null,"・各校下ではぐくみネットの取組みを実施\n・適宜情報共有や意見交換\n・令和５年度からのはぐくみネットの在り方について情報共有\n・行政財産使用承認依頼\n",null,null,null,null,null,null,null,null,null,null,null,null,null,null,null,null,null,null,null,null,null,null,null,null,null,"〇",null,"〇"]
[]
[]
["備考"]
[]
["項目",null,null,null,null,null,null,"内容"]
["講座・イベント・会議名",null,null,null,null,null,null,"はぐくみネットコーディネーター連絡会"]
["イベント等開催関係","開催日時",null,null,null,null,null,"未定"]
[null,"開催場所",null,null,null,null,null,"区役所会議室"]
[null,"区役所の主催等",null,null,null,null,null,"主催"]
[null,"その他主催団体・組織等",null,null,null,null,null,"―"]
[null,"共催団体・組織等",null,null,null,null,null,"―"]
[null,"後援団体・組織等",null,null,null,null,null,"―"]
[null,"目標事業規模",null,null,null,null,null,"―"]
[null,"その他留意事項",null,null,null,null,null,"―"]
[null,"イベント等\n当日タイムテーブル",null,null,null,null,null,"【仮】\n各コーディネーターの活動について\n地域の取り組み状況について"]
[]
[]
[]
[]
[null,"挨拶者",null,null,null,null,null,"―"]
[null,"来賓紹介",null,null,null,null,null,"―"]
[null,"祝電紹介の方法",null,null,null,null,null,"―"]
[null,"動員の方法",null,null,null,null,null,"―"]
["その他他課との連携等",null,null,null,null,null,null,"―"]
["前年度実績",null,null,null,null,null,null,"・各校区はぐくみネット事務局会議を開催した（各校下１回以上計13回）（令和３年度）\n・各はぐくみネット関係者の「連絡会議」｢公開研修｣「研究発表会」等へコーディネーターが参加した（令和３年度）\n・各地域において、はぐくみネットコーディネーターが地域と学校をつなぐ取り組みに従事した校下：10校下（令和３年度）"]
["業績目標",null,null,null,"実績",null,null,"各校区はぐくみネット事務局会議の開催（年1回以上）\n各はぐくみネット関係者の「連絡会議」｢公開研修｣「研究発表会」等へはぐくみネットコーディネーターが参加（年１回以上）",null,null,null,null,null,null,null,null,null,null,null,null,"７校区ではぐくみネット事務局会議の開催（年1回以上）\n・各はぐくみネット関係者の「連絡会議」｢公開研修｣「研究発表会」等へはぐくみネットコーディネーターが参加（年１回以上））",null,null,null,null,null,null,null,null,"自己評価"]
[null,null,null,null,null,null,null,null,null,null,null,null,null,null,null,null,null,null,null,null,null,null,null,null,null,null,null,null,null,"△"]
[]
[]
["成果目標",null,null,null,"実績",null,null,"各地域において、はぐくみネットコーディネーターが地域と学校をつなぐ取り組みに従事した校下：10校下",null,null,null,null,null,null,null,null,null,null,null,null,"各地域において、はぐくみネットコーディネーターが地域と学校をつなぐ取り組みに従事した校下：10校下",null,null,null,null,null,null,null,null,"〇"]
[]
[]
[]
[]
["中期展望",null,null,null,null,null,null,"休日や放課後などに子どもの体験教室や、大人と子どもが交流する催しが開催され、地域で子育て・教育について考えられている状態。"]
[]
[]
["成果目標が\n中期展望に\n寄与する理由",null,null,null,null,null,null,"コーディネーターが地域と学校をつなぐ取組みに従事することにより、地域に開かれた学校づくりが進められることから、地域全体の子育て、教育についての関心を高めることにつながる。"]
[]
[]
[]
[]
["SDGｓゴール",null,null,null,4,null,null,null,{"$f":"+IF(ISERROR(VLOOKUP($E86,[4]SDGｓ!$A$2:$B$18,2,0)),\"\",VLOOKUP($E86,[4]SDGｓ!$A$2:$B$18,2,0))","v":"質の高い教育をみんなに"}]
[null,null,null,null,10,null,null,null,{"$f":"+IF(ISERROR(VLOOKUP($E87,[4]SDGｓ!$A$2:$B$18,2,0)),\"\",VLOOKUP($E87,[4]SDGｓ!$A$2:$B$18,2,0))","v":"人や国の不平等をなくそう"}]
[null,null,null,null,null,null,null,null,{"$f":"+IF(ISERROR(VLOOKUP($E88,[4]SDGｓ!$A$2:$B$18,2,0)),\"\",VLOOKUP($E88,[4]SDGｓ!$A$2:$B$18,2,0))","v":""}]
[]
["修正履歴"]

{"sheet":"5-1-8","index":10,"n_rows":90,"n_cols":41,"rows_kept":90,"cut":false,"hidden":false,"merged":[[0,0,0,3],[0,4,0,20],[0,21,0,27],[0,28,0,29],[0,30,0,31],[1,4,2,20],[1,21,2,27],[1,28,2,29],[1,30,2,31],[1,0,2,3],[5,33,7,34],[9,1,16,6],[9,7,16,31],[17,1,17,6],[17,7,17,31],[18,1,18,6],[18,7,18,31],[4,0,4,6],[4,7,4,31],[5,0,19,0],[5,1,8,6],[5,7,8,31],[19,1,19,6],[19,7,19,31],[20,0,27,0],[20,1,20,6],[20,7,20,31],[21,1,23,6],[21,7,23,31],[24,1,26,6],[24,7,26,31],[27,1,27,6],[27,7,27,31],[29,0,29,23],[29,24,29,27],[29,28,29,29],[29,30,29,31],[30,0,32,0],[30,1,32,1],[30,2,32,23],[30,24,32,27],[30,28,32,29],[30,30,32,31],[33,0,35,1],[33,2,35,23],[33,24,35,27],[33,28,35,29],[33,30,35,31],[36,0,38,1],[36,2,38,23],[36,24,38,27],[36,28,38,29],[36,30,38,31],[45,0,46,1],[45,2,46,31],[47,0,47,6],[47,7,47,31],[48,0,48,6],[48,7,48,31],[39,0,41,1],[39,2,41,23],[39,24,41,27],[39,28,41,29],[39,30,41,31],[42,0,44,1],[42,2,44,23],[42,24,44,27],[42,28,44,29],[42,30,44,31],[53,7,53,31],[54,1,54,6],[54,7,54,31],[55,1,55,6],[55,7,55,31],[56,1,56,6],[56,7,56,31],[49,0,65,0],[49,1,49,6],[49,7,49,31],[50,1,50,6],[50,7,50,31],[51,1,51,6],[51,7,51,31],[52,1,52,6],[52,7,52,31],[53,1,53,6],[64,1,64,6],[64,7,64,31],[65,1,65,6],[65,7,65,31],[66,0,66,6],[66,7,66,31],[57,1,61,6],[57,7,61,31],[62,1,62,6],[62,7,62,31],[63,1,63,6],[63,7,63,31],[72,0,76,3],[72,4,76,6],[72,7,76,19],[72,20,76,28],[72,29,76,31],[77,0,79,6],[77,7,79,31],[67,0,67,6],[67,7,67,31],[68,0,71,3],[68,4,71,6],[68,7,71,19],[68,20,71,28],[68,29,68,31],[69,29,71,31],[89,0,89,3],[89,4,89,31],[80,0,83,6],[80,7,83,31],[85,0,87,3],[85,4,85,7],[85,8,85,31],[86,4,86,7],[86,8,86,31],[87,4,87,7],[87,8,87,31]]}
["取組番号",null,null,null,"事業名",null,null,null,null,null,null,null,null,null,null,null,null,null,null,null,null,"作成年月日・担当",null,null,null,null,null,null,"重点",null,"新規"]
[{"$f":"RIGHT(CELL(\"filename\",A4),LEN(CELL(\"filename\",A4))-FIND(\"]\",CELL(\"filename\",A4)))","v":"5-1-8"},null,null,null,"学校体育施設の地域への開放",null,null,null,null,null,null,null,null,null,null,null,null,null,null,null,null,"令和４年４月１日\n保健福祉課（こども・教育）"]
[]
[]
["項目",null,null,null,null,null,null,"内容"]
["事業・業務概要","目的\n（事業の背景を含む）",null,null,null,null,null,"大阪市立の学校が保有する体育施設を地域に開放し、地域住民に対して継続的にスポーツの場を提供するとともに、自主的主体的に運営や活動の推進を図ることによって、住民の健康・体力の維持増進、生涯スポーツの振興等に寄与するよう支援する。",null,null,null,null,null,null,null,null,null,null,null,null,null,null,null,null,null,null,null,null,null,null,null,null,null,"一覧へ戻る"]
[]
[null,null,null,null,null,null,null,null,null,null,null,null,null,null,null,null,null,null,null,null,null,null,null,null,null,null,null,null,null,null,null,null,null,null,null,null,null,null,null,null,"施策"]
[]
[null,"内容",null,null,null,null,null,"学校ごとに設置する学校体育施設開放事業運営委員会の自主的、主体的な運営により、地域住民の健康・体力の維持増進、生涯スポーツの振興等が図られるよう、事務手続き、活動状況の把握、運営に関する相談・助言等の運営支援を行う。"]
[]
[]
[]
[]
[]
[]
[]
[null,"予算額（予算科目）",null,null,null,null,null,"（経済戦略局ＣＭ予算）774千円（光熱水費））\n（【参考】地域活動協議会補助金27,032千円（全体））"]
[null,"事業実施期間（回数）",null,null,null,null,null,"令和４年４月１日～令和５年３月31日"]
[null,"事業対象者（人数）",null,null,null,null,null,"原則として、当該校区内の児童、生徒及び住民"]
["委託関係","契約・入札方法",null,null,null,null,null,"―"]
[null,"募集要項のポイント",null,null,null,null,null,"―"]
[]
[]
[null,"仕様書のポイント",null,null,null,null,null,"―"]
[]
[]
[null,"選考委員等選考方式"]
[]
["スケジュール（実施決裁、入札募集開始、説明会、選考会、事業の実施　等）",null,null,null,null,null,null,null,null,null,null,null,null,null,null,null,null,null,null,null,null,null,null,null,"広報スケジュール",null,null,null,"スケ",null,"作業"]
["（前年度）","1月～3月","・事業実施報告の提出依頼\n・事業の履行確認",null,null,null,null,null,null,null,null,null,null,null,null,null,null,null,null,null,null,null,null,null,null,null,null,null,"〇",null,"〇"]
[]
[]
["4月～\n6月",null,"事業実績報告等の集約\n事業の履行確認\n",null,null,null,null,null,null,null,null,null,null,null,null,null,null,null,null,null,null,null,null,null,null,null,null,null,"〇",null,"〇"]
[]
[]
["7月～\n9月",null,"事業の履行確認",null,null,null,null,null,null,null,null,null,null,null,null,null,null,null,null,null,null,null,null,null,null,null,null,null,"〇",null,"〇"]
[]
[]
["10月～\n12月",null,"事業の履行確認",null,null,null,null,null,null,null,null,null,null,null,null,null,null,null,null,null,null,null,null,null,null,null,null,null,"〇",null,"〇"]
[]
[]
["1月～\n3月",null,"・事業実施報告の提出依頼\n・事業の履行確認\n",null,null,null,null,null,null,null,null,null,null,null,null,null,null,null,null,null,null,null,null,null,null,null,null,null,"〇",null,"〇"]
[]
[]
["備考"]
[]
["項目",null,null,null,null,null,null,"内容"]
["講座・イベント・会議名",null,null,null,null,null,null,"―"]
["イベント等開催関係","開催日時",null,null,null,null,null,"―"]
[null,"開催場所",null,null,null,null,null,"―"]
[null,"区役所の主催等",null,null,null,null,null,"―"]
[null,"その他主催団体・組織等",null,null,null,null,null,"―"]
[null,"共催団体・組織等",null,null,null,null,null,"―"]
[null,"後援団体・組織等",null,null,null,null,null,"―"]
[null,"目標事業規模",null,null,null,null,null,"―"]
[null,"その他留意事項",null,null,null,null,null,"―"]
[null,"イベント等\n当日タイムテーブル",null,null,null,null,null,"―"]
[]
[]
[]
[]
[null,"挨拶者",null,null,null,null,null,"―"]
[null,"来賓紹介",null,null,null,null,null,"―"]
[null,"祝電紹介の方法",null,null,null,null,null,"―"]
[null,"動員の方法",null,null,null,null,null,"―"]
["その他他課との連携等",null,null,null,null,null,null,"―"]
["前年度実績",null,null,null,null,null,null,"・各学校体育施設開放事業運営委員会へ運営に関する相談・助言を行った回数：各運営委員会１回以上（令和３年度）\n・年間総開放回数2,687回（令和３年度）\n・延べ利用者数45,486人（令和３年度）\n・学校体育施設開放事業に新たに参画した新規利用団体数：0団体（令和３年度）\n・各学校体育施設開放事業運営委員会へ運営に関する相談・助言を行った回数：各運営委員会１回以上（令和３年度）"]
["業績目標",null,null,null,"実績",null,null,"各学校体育施設開放事業運営委員会へ運営に関する相談・助言を行った回数：各運営委員会１回以上",null,null,null,null,null,null,null,null,null,null,null,null,"各学校体育施設開放事業運営委員会へ運営に関する相談・助言を行った回数：各運営委員会１回以上",null,null,null,null,null,null,null,null,"自己評価"]
[null,null,null,null,null,null,null,null,null,null,null,null,null,null,null,null,null,null,null,null,null,null,null,null,null,null,null,null,null,"〇"]
[]
[]
["成果目標",null,null,null,"実績",null,null,"学校体育施設開放事業に新たに参画した新規利用団体数を前年度（令和３年度：０団体）より向上させる。",null,null,null,null,null,null,null,null,null,null,null,null,"学校体育施設開放事業に新たに参画した新規利用団体数：０団体",null,null,null,null,null,null,null,null,"×"]
[]
[]
[]
[]
["中期展望",null,null,null,null,null,null,"学校体育施設開放事業により、地域住民による自主的、主体的な運営や活動の推進が図られ、住民の健康・体力の維持増進、生涯スポーツの振興等に寄与している状態。"]
[]
[]
["成果目標が\n中期展望に\n寄与する理由",null,null,null,null,null,null,"より多くの団体・区民が学校体育施設開放事業へ参加し、地域住民による自主的・主体的な取組みが促進されることで、健康・体力の維持増進につながり、生涯スポーツの振興等が図られる。\n"]
[]
[]
[]
[]
["SDGｓゴール",null,null,null,4,null,null,null,{"$f":"+IF(ISERROR(VLOOKUP($E86,[4]SDGｓ!$A$2:$B$18,2,0)),\"\",VLOOKUP($E86,[4]SDGｓ!$A$2:$B$18,2,0))","v":"質の高い教育をみんなに"}]
[null,null,null,null,10,null,null,null,{"$f":"+IF(ISERROR(VLOOKUP($E87,[4]SDGｓ!$A$2:$B$18,2,0)),\"\",VLOOKUP($E87,[4]SDGｓ!$A$2:$B$18,2,0))","v":"人や国の不平等をなくそう"}]
[null,null,null,null,null,null,null,null,{"$f":"+IF(ISERROR(VLOOKUP($E88,[4]SDGｓ!$A$2:$B$18,2,0)),\"\",VLOOKUP($E88,[4]SDGｓ!$A$2:$B$18,2,0))","v":""}]
[]
["修正履歴"]

{"sheet":"5-1-9","index":11,"n_rows":90,"n_cols":34,"rows_kept":90,"cut":false,"hidden":false,"merged":[[0,0,0,3],[0,4,0,20],[0,21,0,27],[0,28,0,29],[0,30,0,31],[1,4,2,20],[1,21,2,27],[1,28,2,29],[1,30,2,31],[1,0,2,3],[5,33,7,34],[9,1,16,6],[9,7,16,31],[17,1,17,6],[17,7,17,31],[18,1,18,6],[18,7,18,31],[4,0,4,6],[4,7,4,31],[5,0,19,0],[5,1,8,6],[5,7,8,31],[19,1,19,6],[19,7,19,31],[20,0,27,0],[20,1,20,6],[20,7,20,31],[21,1,23,6],[21,7,23,31],[24,1,26,6],[24,7,26,31],[27,1,27,6],[27,7,27,31],[29,0,29,23],[29,24,29,27],[29,28,29,29],[29,30,29,31],[30,0,32,0],[30,1,32,1],[30,2,32,23],[30,24,32,27],[30,28,32,29],[30,30,32,31],[33,0,35,1],[33,2,35,23],[33,24,44,27],[33,28,35,29],[33,30,35,31],[36,0,38,1],[36,2,38,23],[36,28,38,29],[36,30,38,31],[39,0,41,1],[45,0,46,1],[45,2,46,31],[47,0,47,6],[47,7,47,31],[48,0,48,6],[48,7,48,31],[39,2,41,23],[39,28,41,29],[39,30,41,31],[42,0,44,1],[42,2,44,23],[42,28,44,29],[42,30,44,31],[53,7,53,31],[54,1,54,6],[54,7,54,31],[55,1,55,6],[55,7,55,31],[56,1,56,6],[56,7,56,31],[49,0,65,0],[49,1,49,6],[49,7,49,31],[50,1,50,6],[50,7,50,31],[51,1,51,6],[51,7,51,31],[52,1,52,6],[52,7,52,31],[53,1,53,6],[64,1,64,6],[64,7,64,31],[65,1,65,6],[65,7,65,31],[66,0,66,6],[66,7,66,31],[57,1,61,6],[57,7,61,31],[62,1,62,6],[62,7,62,31],[63,1,63,6],[63,7,63,31],[72,0,76,3],[72,4,76,6],[72,7,76,19],[72,20,76,28],[72,29,76,31],[77,0,79,6],[77,7,79,31],[67,0,67,6],[67,7,67,31],[68,0,71,3],[68,4,71,6],[68,7,71,19],[68,20,71,28],[68,29,68,31],[69,29,71,31],[89,0,89,3],[89,4,89,31],[80,0,83,6],[80,7,83,31],[85,0,87,3],[85,4,85,7],[85,8,85,31],[86,4,86,7],[86,8,86,31],[87,4,87,7],[87,8,87,31]]}
["取組番号",null,null,null,"事業名",null,null,null,null,null,null,null,null,null,null,null,null,null,null,null,null,"作成年月日・担当",null,null,null,null,null,null,"重点",null,"新規"]
[{"$f":"RIGHT(CELL(\"filename\",A4),LEN(CELL(\"filename\",A4))-FIND(\"]\",CELL(\"filename\",A4)))","v":"5-1-9"},null,null,null,"スポーツ推進委員活動の支援",null,null,null,null,null,null,null,null,null,null,null,null,null,null,null,null,"令和４年4月1日\n地域協働課（地域協働）"]
[]
[]
["項目",null,null,null,null,null,null,"内容"]
["事業・業務概要","目的\n（事業の背景を含む）",null,null,null,null,null,"本市では従来より市民一人ひとりが日常的に、スポーツ・レクリエーション活動に親しむことができるように、その普及・振興を推進しているところである。\n　教育長より委嘱を受けたスポーツ推進委員が、特に活動の拠点を地域において、住民との連帯の中でスポーツ・レクリエーション事業の企画・立案を行い、委員相互の協力体制のもと活発に事業の発展をはかることにより、本市における生涯スポーツの振興のより一層の充実を図る。",null,null,null,null,null,null,null,null,null,null,null,null,null,null,null,null,null,null,null,null,null,null,null,null,null,"一覧へ戻る"]
[]
[]
[]
[null,"内容",null,null,null,null,null,"・改選事務（２年毎）：令和４・５年度委嘱\n　候補者の推薦依頼（区→まちづくり実行委員会等）、候補者の推薦（区→経済戦略局）\n　新たな担い手確保に向けて、広報等による支援\n・支出事務\n　報酬の支払い（年２回：９月・３月）\n（参考）スポーツ推進委員の主な任務\n　・地域（町会・小中学校区等）におけるスポーツ・レクリエーション事業の企画・実施\n　・市・区におけるスポーツ・レクリエーション事業への参画並びに協力"]
[]
[]
[]
[]
[]
[]
[]
[null,"予算額（予算科目）",null,null,null,null,null,"335千円(令和3年度）"]
[null,"事業実施期間（回数）",null,null,null,null,null,"委嘱期間：２年（令和4年4月～令和6年3月）"]
[null,"事業対象者（人数）",null,null,null,null,null,"主に区内在住・在学・在勤者"]
["委託関係","契約・入札方法",null,null,null,null,null,"地域団体からの推薦"]
[null,"募集要項のポイント"]
[]
[]
[null,"仕様書のポイント"]
[]
[]
[null,"選考委員等選考方式"]
[]
["スケジュール（実施決裁、入札募集開始、説明会、選考会、事業の実施　等）",null,null,null,null,null,null,null,null,null,null,null,null,null,null,null,null,null,null,null,null,null,null,null,"広報スケジュール",null,null,null,"スケ",null,"作業"]
["（前年度）","1月～3月","【3月】報酬の支払い（下半期分）",null,null,null,null,null,null,null,null,null,null,null,null,null,null,null,null,null,null,null,null,null,"委員募集と紹介記事の掲載",null,null,null,"〇",null,"〇"]
[]
[]
["4月～\n6月",null,"【4月】委嘱状伝達式\n【4～6月】区定例会への出席（区との連絡・確認事項があれば）",null,null,null,null,null,null,null,null,null,null,null,null,null,null,null,null,null,null,null,null,null,"活動についての情報発信（区ホームページ・ツイッター・フェイスブック）随時",null,null,null,"〇",null,"〇"]
[]
[]
["7月～\n9月",null,"【8月】候補者の追加推薦（区→経済戦略局）\n【9月】報酬の支払い（上半期分）\n【7～9月】区定例会への出席（区との連絡・確認事項があれば）",null,null,null,null,null,null,null,null,null,null,null,null,null,null,null,null,null,null,null,null,null,null,null,null,null,"〇",null,"〇"]
[]
[]
["10月～\n12月",null,"【10～12月】区定例会への出席（区との連絡・確認事項があれば）",null,null,null,null,null,null,null,null,null,null,null,null,null,null,null,null,null,null,null,null,null,null,null,null,null,"〇",null,"〇"]
[]
[]
["1月～\n3月",null,"【1月】候補者の追加推薦（区→経済戦略局）\n【3月】報酬の支払い（下半期分）\n【1～3月】区定例会への出席（区との連絡・確認事項があれば）",null,null,null,null,null,null,null,null,null,null,null,null,null,null,null,null,null,null,null,null,null,null,null,null,null,"〇",null,"〇"]
[]
[]
["備考"]
[]
["項目",null,null,null,null,null,null,"内容"]
["講座・イベント・会議名",null,null,null,null,null,null,"大阪市スポーツ推進委員委嘱状伝達式"]
["イベント等開催関係","開催日時",null,null,null,null,null,"令和4年4月中旬予定　19:00～"]
[null,"開催場所",null,null,null,null,null,"大正会館　第4・5会議室"]
[null,"区役所の主催等",null,null,null,null,null,"主催"]
[null,"その他主催団体・組織等",null,null,null,null,null,"―"]
[null,"共催団体・組織等",null,null,null,null,null,"―"]
[null,"後援団体・組織等",null,null,null,null,null,"―"]
[null,"目標事業規模",null,null,null,null,null,"委嘱者27名"]
[null,"その他留意事項",null,null,null,null,null,"―"]
[null,"イベント等\n当日タイムテーブル",null,null,null,null,null,"19:00　開会\n19:05　委嘱状伝達\n19:20　区長あいさつ\n19:25　スポーツ推進委員代表あいさつ\n19:30　閉会"]
[]
[]
[]
[]
[null,"挨拶者",null,null,null,null,null,"区長、スポーツ推進委員代表"]
[null,"来賓紹介",null,null,null,null,null,"―"]
[null,"祝電紹介の方法",null,null,null,null,null,"―"]
[null,"動員の方法",null,null,null,null,null,"―"]
["その他他課との連携等",null,null,null,null,null,null,"―"]
["前年度実績",null,null,null,null,null,null,"地域数：10地域、\n区民意識調査におけるスポーツ推進委員の活動が大正区における生涯スポーツの振興に役立っていると答えた割合：　40.8%（令和３年度）"]
["業績目標",null,null,null,"実績",null,null,"スポーツ推進委員によりスポーツ・レクリエーションの普及・振興に関する活動が実施されている地域数：10地域",null,null,null,null,null,null,null,null,null,null,null,null,"スポーツ推進委員によりスポーツ・レクリエーションの普及・振興に関する活動が実施されている地域数：10地域",null,null,null,null,null,null,null,null,"自己評価"]
[null,null,null,null,null,null,null,null,null,null,null,null,null,null,null,null,null,null,null,null,null,null,null,null,null,null,null,null,null,"○"]
[]
[]
["成果目標",null,null,null,"実績",null,null,"・区民意識調査でスポーツ推進委員の活動が各校下における生涯スポーツの振興に役立っていると答えた割合：40.8%以上",null,null,null,null,null,null,null,null,null,null,null,null,"区民意識調査でスポーツ推進委員の活動が各校下における生涯スポーツの振興に役立っていると答えた割合：56.6%",null,null,null,null,null,null,null,null,"◎"]
[]
[]
[]
[]
["中期展望",null,null,null,null,null,null,"スポーツ推進委員が、活動の拠点を各校下において、住民との連帯の中でスポーツ・レクリエーション事業の企画・立案を行い、委員相互の協力体制のもと活発に事業が開催され、地域コミュニティが活性されている状態。"]
[]
[]
["成果目標が\n中期展望に\n寄与する理由",null,null,null,null,null,null,"スポーツ推進委員が実施するスポーツ・レクリエーション事業が各校下における生涯スポーツの振興に役立つことによって、参加者の増加が見込まれ、スポーツを通じた地域コミュニティの活性化が図られるため"]
[]
[]
[]
[]
["SDGｓゴール",null,null,null,17,null,null,null,"パートナーシップで目標を達成しよう"]
[null,null,null,null,null,null,null,null,{"$f":"+IF(ISERROR(VLOOKUP($E87,#REF!,2,0)),\"\",VLOOKUP($E87,#REF!,2,0))","v":""}]
[null,null,null,null,null,null,null,null,{"$f":"+IF(ISERROR(VLOOKUP($E88,#REF!,2,0)),\"\",VLOOKUP($E88,#REF!,2,0))","v":""}]
[]
["修正履歴"]

{"sheet":"5-1-10","index":12,"n_rows":90,"n_cols":34,"rows_kept":90,"cut":false,"hidden":false,"merged":[[0,0,0,3],[0,4,0,20],[0,21,0,27],[0,28,0,29],[0,30,0,31],[1,4,2,20],[1,21,2,27],[1,28,2,29],[1,30,2,31],[1,0,2,3],[5,33,7,34],[9,1,16,6],[9,7,16,31],[17,1,17,6],[17,7,17,31],[18,1,18,6],[18,7,18,31],[4,0,4,6],[4,7,4,31],[5,0,19,0],[5,1,8,6],[5,7,8,31],[19,1,19,6],[19,7,19,31],[20,0,27,0],[20,1,20,6],[20,7,20,31],[21,1,23,6],[21,7,23,31],[24,1,26,6],[24,7,26,31],[27,1,27,6],[27,7,27,31],[29,0,29,23],[29,24,29,27],[29,28,29,29],[29,30,29,31],[30,0,32,0],[30,1,32,1],[30,2,32,23],[30,24,32,27],[30,28,32,29],[30,30,32,31],[33,0,35,1],[33,2,35,23],[33,24,35,27],[33,28,35,29],[33,30,35,31],[36,0,38,1],[36,2,38,23],[36,24,38,27],[36,28,38,29],[36,30,38,31],[45,0,46,1],[45,2,46,31],[47,0,47,6],[47,7,47,31],[48,0,48,6],[48,7,48,31],[39,0,41,1],[39,2,41,23],[39,24,41,27],[39,28,41,29],[39,30,41,31],[42,0,44,1],[42,2,44,23],[42,24,44,27],[42,28,44,29],[42,30,44,31],[53,7,53,31],[54,1,54,6],[54,7,54,31],[55,1,55,6],[55,7,55,31],[56,1,56,6],[56,7,56,31],[49,0,65,0],[49,1,49,6],[49,7,49,31],[50,1,50,6],[50,7,50,31],[51,1,51,6],[51,7,51,31],[52,1,52,6],[52,7,52,31],[53,1,53,6],[64,1,64,6],[64,7,64,31],[65,1,65,6],[65,7,65,31],[66,0,66,6],[66,7,66,31],[57,1,61,6],[57,7,61,31],[62,1,62,6],[62,7,62,31],[63,1,63,6],[63,7,63,31],[72,0,76,3],[72,4,76,6],[72,7,76,19],[72,20,76,28],[72,29,76,31],[77,0,79,6],[77,7,79,31],[67,0,67,6],[67,7,67,31],[68,0,71,3],[68,4,71,6],[68,7,71,19],[68,20,71,28],[68,29,68,31],[69,29,71,31],[89,0,89,3],[89,4,89,31],[80,0,83,6],[80,7,83,31],[85,0,87,3],[85,4,85,7],[85,8,85,31],[86,4,86,7],[86,8,86,31],[87,4,87,7],[87,8,87,31]]}
["取組番号",null,null,null,"事業名",null,null,null,null,null,null,null,null,null,null,null,null,null,null,null,null,"作成年月日・担当",null,null,null,null,null,null,"重点",null,"新規"]
[{"$f":"RIGHT(CELL(\"filename\",A4),LEN(CELL(\"filename\",A4))-FIND(\"]\",CELL(\"filename\",A4)))","v":"5-1-10"},null,null,null,"大正区成人式の実施",null,null,null,null,null,null,null,null,null,null,null,null,null,null,null,null,"令和４年4月1日\n地域協働課（地域協働）"]
[]
[]
["項目",null,null,null,null,null,null,"内容"]
["事業・業務概要","目的\n（事業の背景を含む）",null,null,null,null,null,"新成人としての自覚や地域に見守り、育てられ健全に成長を遂げたことへの感謝を促すとともに、青少年健全育成に関する各種団体と協力し、新成人を祝い励ますことにより、区内における諸活動の担い手へと繋がるよう、新成人と各種団体間のコミュニティづくりを行う。",null,null,null,null,null,null,null,null,null,null,null,null,null,null,null,null,null,null,null,null,null,null,null,null,null,"一覧へ戻る"]
[]
[]
[]
[null,"内容",null,null,null,null,null,"大正区成人式を青少年指導員・青少年福祉委員・子ども会など地域団体によって組織された大正区成人式運営委員会と連携して開催する。"]
[]
[]
[]
[]
[]
[]
[]
[null,"予算額（予算科目）",null,null,null,null,null,"182千円"]
[null,"事業実施期間（回数）",null,null,null,null,null,"年1回（10月～1月）：「大正区成人式」の実施（準備含む）"]
[null,"事業対象者（人数）",null,null,null,null,null,"区民(在住・在勤・在学)および青少年健全育成に関心のある方、新成人"]
["委託関係","契約・入札方法",null,null,null,null,null,"―"]
[null,"募集要項のポイント",null,null,null,null,null,"―"]
[]
[]
[null,"仕様書のポイント",null,null,null,null,null,"―"]
[]
[]
[null,"選考委員等選考方式",null,null,null,null,null,"―"]
[]
["スケジュール（実施決裁、入札募集開始、説明会、選考会、事業の実施　等）",null,null,null,null,null,null,null,null,null,null,null,null,null,null,null,null,null,null,null,null,null,null,null,"広報スケジュール",null,null,null,"スケ",null,"作業"]
["（前年度）","1月～3月","【1月】運営委員会、事前準備（新成人代表による前日リハーサルの実施）・事業実施\n【12月・１月】開催日時の周知",null,null,null,null,null,null,null,null,null,null,null,null,null,null,null,null,null,null,null,null,null,"区広報紙、HP\nで開催日時に\nついて広報",null,null,null,"〇",null,"〇"]
[]
[]
["4月～\n6月",null,null,null,null,null,null,null,null,null,null,null,null,null,null,null,null,null,null,null,null,null,null,null,null,null,null,null,"〇",null,"〇"]
[]
[]
["7月～\n9月",null,null,null,null,null,null,null,null,null,null,null,null,null,null,null,null,null,null,null,null,null,null,null,null,null,null,null,"〇",null,"〇"]
[]
[]
["10月～\n12月",null,"【10月】・実施起案、運営委員会開催、各種団体・企業等への協賛の依頼\n　　　　 ・対象者（新成人）に案内状発送（新成人代表の選考）\n【12月】・10年後の私への手紙事業について連携",null,null,null,null,null,null,null,null,null,null,null,null,null,null,null,null,null,null,null,null,null,"区広報紙、HP\nで事業の実施\nについて広報",null,null,null,"〇",null,"〇"]
[]
[]
["1月～\n3月",null,"【1月】運営委員会開催、事前準備（新成人代表による前日リハーサルの実施）・事業実施",null,null,null,null,null,null,null,null,null,null,null,null,null,null,null,null,null,null,null,null,null,null,null,null,null,"〇",null,"〇"]
[]
[]
["備考"]
[]
["項目",null,null,null,null,null,null,"内容"]
["講座・イベント・会議名",null,null,null,null,null,null,"大正区成人式","大正区成人式","大正区成人式","大正区成人式","大正区成人式","大正区成人式","大正区成人式","大正区成人式","大正区成人式","大正区成人式","大正区成人式","大正区成人式","大正区成人式","大正区成人式","大正区成人式","大正区成人式","大正区成人式","大正区成人式","大正区成人式","大正区成人式","大正区成人式","大正区成人式","大正区成人式","大正区成人式","大正区成人式"]
["イベント等開催関係","開催日時",null,null,null,null,null,"令和5年1月8日（日）※時間詳細は「イベント等タイムテーブル」欄参照","令和４年1月９日（日）※時間詳細は「イベント等タイムテーブル」欄参照","令和４年1月９日（日）※時間詳細は「イベント等タイムテーブル」欄参照","令和４年1月９日（日）※時間詳細は「イベント等タイムテーブル」欄参照","令和４年1月９日（日）※時間詳細は「イベント等タイムテーブル」欄参照","令和４年1月９日（日）※時間詳細は「イベント等タイムテーブル」欄参照","令和４年1月９日（日）※時間詳細は「イベント等タイムテーブル」欄参照","令和４年1月９日（日）※時間詳細は「イベント等タイムテーブル」欄参照","令和４年1月９日（日）※時間詳細は「イベント等タイムテーブル」欄参照","令和４年1月９日（日）※時間詳細は「イベント等タイムテーブル」欄参照","令和４年1月９日（日）※時間詳細は「イベント等タイムテーブル」欄参照","令和４年1月９日（日）※時間詳細は「イベント等タイムテーブル」欄参照","令和４年1月９日（日）※時間詳細は「イベント等タイムテーブル」欄参照","令和４年1月９日（日）※時間詳細は「イベント等タイムテーブル」欄参照","令和４年1月９日（日）※時間詳細は「イベント等タイムテーブル」欄参照","令和４年1月９日（日）※時間詳細は「イベント等タイムテーブル」欄参照","令和４年1月９日（日）※時間詳細は「イベント等タイムテーブル」欄参照","令和４年1月９日（日）※時間詳細は「イベント等タイムテーブル」欄参照","令和４年1月９日（日）※時間詳細は「イベント等タイムテーブル」欄参照","令和４年1月９日（日）※時間詳細は「イベント等タイムテーブル」欄参照","令和４年1月９日（日）※時間詳細は「イベント等タイムテーブル」欄参照","令和４年1月９日（日）※時間詳細は「イベント等タイムテーブル」欄参照","令和４年1月９日（日）※時間詳細は「イベント等タイムテーブル」欄参照","令和４年1月９日（日）※時間詳細は「イベント等タイムテーブル」欄参照","令和４年1月９日（日）※時間詳細は「イベント等タイムテーブル」欄参照"]
[null,"開催場所",null,null,null,null,null,"大正区民ホール","大正区民ホール","大正区民ホール","大正区民ホール","大正区民ホール","大正区民ホール","大正区民ホール","大正区民ホール","大正区民ホール","大正区民ホール","大正区民ホール","大正区民ホール","大正区民ホール","大正区民ホール","大正区民ホール","大正区民ホール","大正区民ホール","大正区民ホール","大正区民ホール","大正区民ホール","大正区民ホール","大正区民ホール","大正区民ホール","大正区民ホール","大正区民ホール"]
[null,"区役所の主催等",null,null,null,null,null,"主催","主催","主催","主催","主催","主催","主催","主催","主催","主催","主催","主催","主催","主催","主催","主催","主催","主催","主催","主催","主催","主催","主催","主催","主催"]
[null,"その他主催団体・組織等",null,null,null,null,null,"「大正区成人式」運営委員会","「大正区成人式」運営委員会","「大正区成人式」運営委員会","「大正区成人式」運営委員会","「大正区成人式」運営委員会","「大正区成人式」運営委員会","「大正区成人式」運営委員会","「大正区成人式」運営委員会","「大正区成人式」運営委員会","「大正区成人式」運営委員会","「大正区成人式」運営委員会","「大正区成人式」運営委員会","「大正区成人式」運営委員会","「大正区成人式」運営委員会","「大正区成人式」運営委員会","「大正区成人式」運営委員会","「大正区成人式」運営委員会","「大正区成人式」運営委員会","「大正区成人式」運営委員会","「大正区成人式」運営委員会","「大正区成人式」運営委員会","「大正区成人式」運営委員会","「大正区成人式」運営委員会","「大正区成人式」運営委員会","「大正区成人式」運営委員会"]
[null,"共催団体・組織等",null,null,null,null,null,"―","―","―","―","―","―","―","―","―","―","―","―","―","―","―","―","―","―","―","―","―","―","―","―","―"]
[null,"後援団体・組織等",null,null,null,null,null,"大正区政協力会、大阪大正ライオンズクラブ　ほか","大正区政協力会、大阪大正ライオンズクラブ　ほか","大正区政協力会、大阪大正ライオンズクラブ　ほか","大正区政協力会、大阪大正ライオンズクラブ　ほか","大正区政協力会、大阪大正ライオンズクラブ　ほか","大正区政協力会、大阪大正ライオンズクラブ　ほか","大正区政協力会、大阪大正ライオンズクラブ　ほか","大正区政協力会、大阪大正ライオンズクラブ　ほか","大正区政協力会、大阪大正ライオンズクラブ　ほか","大正区政協力会、大阪大正ライオンズクラブ　ほか","大正区政協力会、大阪大正ライオンズクラブ　ほか","大正区政協力会、大阪大正ライオンズクラブ　ほか","大正区政協力会、大阪大正ライオンズクラブ　ほか","大正区政協力会、大阪大正ライオンズクラブ　ほか","大正区政協力会、大阪大正ライオンズクラブ　ほか","大正区政協力会、大阪大正ライオンズクラブ　ほか","大正区政協力会、大阪大正ライオンズクラブ　ほか","大正区政協力会、大阪大正ライオンズクラブ　ほか","大正区政協力会、大阪大正ライオンズクラブ　ほか","大正区政協力会、大阪大正ライオンズクラブ　ほか","大正区政協力会、大阪大正ライオンズクラブ　ほか","大正区政協力会、大阪大正ライオンズクラブ　ほか","大正区政協力会、大阪大正ライオンズクラブ　ほか","大正区政協力会、大阪大正ライオンズクラブ　ほか","大正区政協力会、大阪大正ライオンズクラブ　ほか"]
[null,"目標事業規模",null,null,null,null,null,"各種団体の協力を得て参加者　400人","各種団体の協力を得て参加者　400人","各種団体の協力を得て参加者　400人","各種団体の協力を得て参加者　400人","各種団体の協力を得て参加者　400人","各種団体の協力を得て参加者　400人","各種団体の協力を得て参加者　400人","各種団体の協力を得て参加者　400人","各種団体の協力を得て参加者　400人","各種団体の協力を得て参加者　400人","各種団体の協力を得て参加者　400人","各種団体の協力を得て参加者　400人","各種団体の協力を得て参加者　400人","各種団体の協力を得て参加者　400人","各種団体の協力を得て参加者　400人","各種団体の協力を得て参加者　400人","各種団体の協力を得て参加者　400人","各種団体の協力を得て参加者　400人","各種団体の協力を得て参加者　400人","各種団体の協力を得て参加者　400人","各種団体の協力を得て参加者　400人","各種団体の協力を得て参加者　400人","各種団体の協力を得て参加者　400人","各種団体の協力を得て参加者　400人","各種団体の協力を得て参加者　400人"]
[null,"その他留意事項",null,null,null,null,null,"―"]
[null,"イベント等\n当日タイムテーブル",null,null,null,null,null,"【区事業】\n９：３０　みおつくしの鐘打鐘\n１０：００　受付開始（「10年後の私への手紙」の返却）\n１０：３０　第１部開始（式典）/区長あいさつ/関係団体祝辞等/新成人誓いの言葉\n【運営委員会事業】\n１１：００　第２部開始（アトラクション） １２：３０　終了"]
[]
[]
[]
[]
[null,"挨拶者",null,null,null,null,null,"区長、大正区成人式運営委員長（新成人代表）　ほか"]
[null,"来賓紹介",null,null,null,null,null,"各会長、ライオンズクラブ会長、議員"]
[null,"祝電紹介の方法",null,null,null,null,null,"―"]
[null,"動員の方法",null,null,null,null,null,"区広報紙・ホームページ、ポスター、チラシ等"]
["その他他課との連携等",null,null,null,null,null,null,"わがまちビジョン運営委員会（「10年後の私への手紙」の返却）"]
["前年度実績",null,null,null,null,null,null,"・区広報紙や区HPを活用し、新成人の参加率：69.9％（令和3年度）\n・区民意識調査において、本事業が「青少年が健全に育つ環境づくりに効果がある」と回答した割合：62.3％（令和3年度）"]
["業績目標",null,null,null,"実績",null,null,"区広報紙や区HPを活用し、新成人の参加率80％以上",null,null,null,null,null,null,null,null,null,null,null,null,"区広報紙や区HPを活用し、新成人の参加率71.8％",null,null,null,null,null,null,null,null,"自己評価"]
[null,null,null,null,null,null,null,null,null,null,null,null,null,null,null,null,null,null,null,null,null,null,null,null,null,null,null,null,null,"×"]
[]
[]
["成果目標",null,null,null,"実績",null,null,"区民意識調査において、本事業が「青少年が健全に育つ環境づくりに効果がある」と回答した割合が70％以上",null,null,null,null,null,null,null,null,null,null,null,null,"区民意識調査において、本事業が「青少年が健全に育つ環境づくりに効果がある」と回答した割合が71.2％",null,null,null,null,null,null,null,null,"○"]
[]
[]
[]
[]
["中期展望",null,null,null,null,null,null,"各種関係団体相互の連携の充実を図りながら、将来を担う子どもたちが地域で健全に育つ環境を実現する。"]
[]
[]
["成果目標が\n中期展望に\n寄与する理由",null,null,null,null,null,null,"本事業が大正区内の青少年健全育成の推進につながることにより、各種団体の活動への関心を高め、青少年と関わる人材の拡大が図られることから、地域において青少年を見守る環境が整い、青少年の健全な育成につながる。"]
[]
[]
[]
[]
["SDGｓゴール",null,null,null,4,null,null,null,"質の高い教育をみんなに"]
[null,null,null,null,null,null,null,null,""]
[null,null,null,null,null,null,null,null,""]
[]
["修正履歴"]

{"sheet":"5-1-11","index":13,"n_rows":90,"n_cols":34,"rows_kept":90,"cut":false,"hidden":false,"merged":[[0,0,0,3],[0,4,0,20],[0,21,0,27],[0,28,0,29],[0,30,0,31],[1,4,2,20],[1,21,2,27],[1,28,2,29],[1,30,2,31],[1,0,2,3],[5,33,7,34],[9,1,16,6],[9,7,16,31],[17,1,17,6],[17,7,17,31],[18,1,18,6],[18,7,18,31],[4,0,4,6],[4,7,4,31],[5,0,19,0],[5,1,8,6],[5,7,8,31],[19,1,19,6],[19,7,19,31],[20,0,27,0],[20,1,20,6],[20,7,20,31],[21,1,23,6],[21,7,23,31],[24,1,26,6],[24,7,26,31],[27,1,27,6],[27,7,27,31],[29,0,29,23],[29,24,29,27],[29,28,29,29],[29,30,29,31],[30,0,32,0],[30,1,32,1],[30,2,32,23],[30,24,32,27],[30,28,32,29],[30,30,32,31],[33,0,35,1],[33,2,35,23],[33,24,44,27],[33,28,35,29],[33,30,35,31],[36,0,38,1],[36,2,38,23],[36,28,38,29],[36,30,38,31],[39,0,41,1],[45,0,46,1],[45,2,46,31],[47,0,47,6],[47,7,47,31],[48,0,48,6],[48,7,48,31],[39,2,41,23],[39,28,41,29],[39,30,41,31],[42,0,44,1],[42,2,44,23],[42,28,44,29],[42,30,44,31],[53,7,53,31],[54,1,54,6],[54,7,54,31],[55,1,55,6],[55,7,55,31],[56,1,56,6],[56,7,56,31],[49,0,65,0],[49,1,49,6],[49,7,49,31],[50,1,50,6],[50,7,50,31],[51,1,51,6],[51,7,51,31],[52,1,52,6],[52,7,52,31],[53,1,53,6],[64,1,64,6],[64,7,64,31],[65,1,65,6],[65,7,65,31],[66,0,66,6],[66,7,66,31],[57,1,61,6],[57,7,61,31],[62,1,62,6],[62,7,62,31],[63,1,63,6],[63,7,63,31],[72,0,76,3],[72,4,76,6],[72,7,76,19],[72,20,76,28],[72,29,76,31],[77,0,79,6],[77,7,79,31],[67,0,67,6],[67,7,67,31],[68,0,71,3],[68,4,71,6],[68,7,71,19],[68,20,71,28],[68,29,68,31],[69,29,71,31],[89,0,89,3],[89,4,89,31],[80,0,83,6],[80,7,83,31],[85,0,87,3],[85,4,85,7],[85,8,85,31],[86,4,86,7],[86,8,86,31],[87,4,87,7],[87,8,87,31]]}
["取組番号",null,null,null,"事業名",null,null,null,null,null,null,null,null,null,null,null,null,null,null,null,null,"作成年月日・担当",null,null,null,null,null,null,"重点",null,"新規"]
[{"$f":"RIGHT(CELL(\"filename\",A4),LEN(CELL(\"filename\",A4))-FIND(\"]\",CELL(\"filename\",A4)))","v":"5-1-11"},null,null,null,"青少年指導員・青少年福祉委員活動の支援",null,null,null,null,null,null,null,null,null,null,null,null,null,null,null,null,"令和４年4月1日\n地域協働課（地域協働）"]
[]
[]
["項目",null,null,null,null,null,null,"内容"]
["事業・業務概要","目的\n（事業の背景を含む）",null,null,null,null,null,"青少年指導員・青少年福祉委員活動を推進することにより、住民との連携の下で地域における青少年の健全育成を図ることを目的とする。",null,null,null,null,null,null,null,null,null,null,null,null,null,null,null,null,null,null,null,null,null,null,null,null,null,"一覧へ戻る"]
[]
[]
[]
[null,"内容",null,null,null,null,null,"要綱に基づき市長から委嘱を受けた「青少年指導員」・「青少年福祉委員」及び「ユースリーダー」と良好な関係を構築するとともに、青少年の健全育成に関する活動を支援する。\nまた、定例会へ適宜出席するなど、青少年指導員・福祉委員活動の把握と新たな担い手確保に向けて広報等による連携を強化する。"]
[]
[]
[]
[]
[]
[]
[]
[null,"予算額（予算科目）",null,null,null,null,null,"1,657千円"]
[null,"事業実施期間（回数）",null,null,null,null,null,"令和４年４月～令和５年３月"]
[null,"事業対象者（人数）",null,null,null,null,null,"区民(在住・在勤・在学)および青少年健全育成に関心のある方"]
["委託関係","契約・入札方法",null,null,null,null,null,"―"]
[null,"募集要項のポイント",null,null,null,null,null,"―"]
[]
[]
[null,"仕様書のポイント",null,null,null,null,null,"―"]
[]
[]
[null,"選考委員等選考方式",null,null,null,null,null,"―"]
[]
["スケジュール（実施決裁、入札募集開始、説明会、選考会、事業の実施　等）",null,null,null,null,null,null,null,null,null,null,null,null,null,null,null,null,null,null,null,null,null,null,null,"広報スケジュール",null,null,null,"スケ",null,"作業"]
["（前年度）","1月～3月","【1～3月】活動実績確認\n　　　　　　関係要綱等における区のルールについて、内容の見直しを検討\n【3月】年間活動実績の確認\n　　　　次年度事業実施起案 ",null,null,null,null,null,null,null,null,null,null,null,null,null,null,null,null,null,null,null,null,null,null,null,null,null,"〇",null,"〇"]
[]
[]
["4月～\n6月",null,"【毎月】市内統一指導ルーム、活動実績確認\n【４月】前年度の実績報告書の審査及び精算報告書の作成・交付額確定通知等\n【４月】委嘱状伝達式\n【４月】交付金交付\n【４～６月】区定例会への出席（区との連絡・確認事項があれば）",null,null,null,null,null,null,null,null,null,null,null,null,null,null,null,null,null,null,null,null,null,"活動についての情報発信（区ホームページ・ツイッター・フェイスブック）随時",null,null,null,"〇",null,"〇"]
[]
[]
["7月～\n9月",null,"【毎月】活動実績確認\n【７～９月】区定例会への出席（区との連絡・確認事項があれば）",null,null,null,null,null,null,null,null,null,null,null,null,null,null,null,null,null,null,null,null,null,null,null,null,null,"〇",null,"〇"]
[]
[]
["10月～\n12月",null,"【毎月】活動実績確認\n【10月】中間決算の確認\n【10～12月】区定例会への出席（区との連絡・確認事項があれば）",null,null,null,null,null,null,null,null,null,null,null,null,null,null,null,null,null,null,null,null,null,null,null,null,null,"〇",null,"〇"]
[]
[]
["1月～\n3月",null,"【1～3月】活動実績確認\n【3月】年間活動実績の確認\n　　　　次年度事業実施起案 \n【１～３月】区定例会への出席（区との連絡・確認事項があれば）",null,null,null,null,null,null,null,null,null,null,null,null,null,null,null,null,null,null,null,null,null,null,null,null,null,"〇",null,"〇"]
[]
[]
["備考"]
[]
["項目",null,null,null,null,null,null,"内容"]
["講座・イベント・会議名",null,null,null,null,null,null,"大正区青少年指導員・青少年福祉委員委嘱状交付式"]
["イベント等開催関係","開催日時",null,null,null,null,null,"令和4年4月中旬"]
[null,"開催場所",null,null,null,null,null,"大正会館3階ホール"]
[null,"区役所の主催等",null,null,null,null,null,"主催"]
[null,"その他主催団体・組織等",null,null,null,null,null,"―"]
[null,"共催団体・組織等",null,null,null,null,null,"―"]
[null,"後援団体・組織等",null,null,null,null,null,"地域選考会（10校下）"]
[null,"目標事業規模",null,null,null,null,null,"260人（青少年指導員124人、青少年福祉委員124人、地域選考会）"]
[null,"その他留意事項",null,null,null,null,null,"―"]
[null,"イベント等\n当日タイムテーブル",null,null,null,null,null,"19:00　開会\n19:05　区長あいさつ\n19:10　委嘱状交付（区長→地域代表者）\n　　　　　①　青少年指導員\n　　　　　②　青少年福祉委員\n19:55　地域選考会委員長紹介\n20:00　閉会"]
[]
[]
[]
[]
[null,"挨拶者",null,null,null,null,null,"区長"]
[null,"来賓紹介",null,null,null,null,null,"―"]
[null,"祝電紹介の方法",null,null,null,null,null,"―"]
[null,"動員の方法",null,null,null,null,null,"―"]
["その他他課との連携等",null,null,null,null,null,null,"―"]
["前年度実績",null,null,null,null,null,null,"・区内小学校下（10校下）すべてで、青少年指導員、青少年福祉委員の活動が行われている。\n・区役所ホームページに紹介記事を掲載（１回） \n・区民意識調査において、本事業が「青少年が健全に育つ環境づくりに効果がある」と回答した割合が57.8％（令和3年度）"]
["業績目標",null,null,null,"実績",null,null,"活動を区役所のホームページ、ＳＮＳ（ツイッター、フェイスブック）に掲載する。",null,null,null,null,null,null,null,null,null,null,null,null,"区役所のホームページ、ＳＮＳ（ツイッター、フェイスブック）に1回の掲載",null,null,null,null,null,null,null,null,"自己評価"]
[null,null,null,null,null,null,null,null,null,null,null,null,null,null,null,null,null,null,null,null,null,null,null,null,null,null,null,null,null,"○"]
[]
[]
["成果目標",null,null,null,"実績",null,null,"区民意識調査において、本事業が「青少年が健全に育つ環境づくりに効果がある」と回答した割合　70.0％以上",null,null,null,null,null,null,null,null,null,null,null,null,"区民意識調査において、本事業が「青少年が健全に育つ環境づくりに効果がある」と回答した割合　64.4％",null,null,null,null,null,null,null,null,"△"]
[]
[]
[]
[]
["中期展望",null,null,null,null,null,null,"各種関係団体相互の連携の充実を図りながら、将来を担う子どもたちが地域で健全に育つ環境を実現する。"]
[]
[]
["成果目標が\n中期展望に\n寄与する理由",null,null,null,null,null,null,"青少年指導員、青少年福祉委員の活動が大正区内の青少年健全育成の推進につながることにより、青少年健全育成に携わってもらえる人材の拡大が図られることから、地域において青少年を見守る環境が整い、青少年の健全な育成につながる。"]
[]
[]
[]
[]
["SDGｓゴール",null,null,null,4,null,null,null,"質の高い教育をみんなに"]
[null,null,null,null,null,null,null,null,""]
[null,null,null,null,null,null,null,null,""]
[]
["修正履歴"]

{"sheet":"5-1-12","index":14,"n_rows":90,"n_cols":34,"rows_kept":90,"cut":false,"hidden":false,"merged":[[0,0,0,3],[0,4,0,20],[0,21,0,27],[0,28,0,29],[0,30,0,31],[1,4,2,20],[1,21,2,27],[1,28,2,29],[1,30,2,31],[1,0,2,3],[5,33,7,34],[9,1,16,6],[9,7,16,31],[17,1,17,6],[17,7,17,31],[18,1,18,6],[18,7,18,31],[4,0,4,6],[4,7,4,31],[5,0,19,0],[5,1,8,6],[5,7,8,31],[19,1,19,6],[19,7,19,31],[20,0,27,0],[20,1,20,6],[20,7,20,31],[21,1,23,6],[21,7,23,31],[24,1,26,6],[24,7,26,31],[27,1,27,6],[27,7,27,31],[29,0,29,23],[29,24,29,27],[29,28,29,29],[29,30,29,31],[30,0,32,0],[30,1,32,1],[30,2,32,23],[30,24,32,27],[30,28,32,29],[30,30,32,31],[33,0,35,1],[33,2,35,23],[33,24,35,27],[33,28,35,29],[33,30,35,31],[36,0,38,1],[36,2,38,23],[36,24,38,27],[36,28,38,29],[36,30,38,31],[45,0,46,1],[45,2,46,31],[47,0,47,6],[47,7,47,31],[48,0,48,6],[48,7,48,31],[39,0,41,1],[39,2,41,23],[39,24,41,27],[39,28,41,29],[39,30,41,31],[42,0,44,1],[42,2,44,23],[42,24,44,27],[42,28,44,29],[42,30,44,31],[53,7,53,31],[54,1,54,6],[54,7,54,31],[55,1,55,6],[55,7,55,31],[56,1,56,6],[56,7,56,31],[49,0,65,0],[49,1,49,6],[49,7,49,31],[50,1,50,6],[50,7,50,31],[51,1,51,6],[51,7,51,31],[52,1,52,6],[52,7,52,31],[53,1,53,6],[64,1,64,6],[64,7,64,31],[65,1,65,6],[65,7,65,31],[66,0,66,6],[66,7,66,31],[57,1,61,6],[57,7,61,31],[62,1,62,6],[62,7,62,31],[63,1,63,6],[63,7,63,31],[72,0,76,3],[72,4,76,6],[72,7,76,19],[72,20,76,28],[72,29,76,31],[77,0,79,6],[77,7,79,31],[67,0,67,6],[67,7,67,31],[68,0,71,3],[68,4,71,6],[68,7,71,19],[68,20,71,28],[68,29,68,31],[69,29,71,31],[89,0,89,3],[89,4,89,31],[80,0,83,6],[80,7,83,31],[85,0,87,3],[85,4,85,7],[85,8,85,31],[86,4,86,7],[86,8,86,31],[87,4,87,7],[87,8,87,31]]}
["取組番号",null,null,null,"事業名",null,null,null,null,null,null,null,null,null,null,null,null,null,null,null,null,"作成年月日・担当",null,null,null,null,null,null,"重点",null,"新規"]
[{"$f":"RIGHT(CELL(\"filename\",A4),LEN(CELL(\"filename\",A4))-FIND(\"]\",CELL(\"filename\",A4)))","v":"5-1-12"},null,null,null,"区役所附設会館の管理運営",null,null,null,null,null,null,null,null,null,null,null,null,null,null,null,null,"令和４年4月1日\n地域協働課（地域協働）"]
[]
[]
["項目",null,null,null,null,null,null,"内容"]
["事業・業務概要","目的\n（事業の背景を含む）",null,null,null,null,null,"コミュニティ活動の振興並びに地域における文化の向上及び福祉の増進を図るとともに、市民の集会その他各種行事の場を提供することにより市民相互の交流を促進し、連帯感あふれるまちづくりの推進に寄与することを目的とする。",null,null,null,null,null,null,null,null,null,null,null,null,null,null,null,null,null,null,null,null,null,null,null,null,null,"一覧へ戻る"]
[]
[]
[]
[null,"内容",null,null,null,null,null,"・施設利用申込の手続き、利用方法諸手続きの説明、 予約・申込受付、使用料の徴収、使用許可書の交付、 諸設備、機器、設備等の管理、貸出、点検立会い、補修指示等\n・指定管理者の管理業務の状況について、事業報告書や自己点検に係る書類等について点検・確認と実地調査"]
[]
[]
[]
[]
[]
[]
[]
[null,"予算額（予算科目）",null,null,null,null,null,"34,167千円"]
[null,"事業実施期間（回数）",null,null,null,null,null,"通年（4月～3月）"]
[null,"事業対象者（人数）",null,null,null,null,null,"主に区内在住・在学・在勤の方"]
["委託関係","契約・入札方法"]
[null,"募集要項のポイント"]
[]
[]
[null,"仕様書のポイント"]
[]
[]
[null,"選考委員等選考方式"]
[]
["スケジュール（実施決裁、入札募集開始、説明会、選考会、事業の実施　等）",null,null,null,null,null,null,null,null,null,null,null,null,null,null,null,null,null,null,null,null,null,null,null,"広報スケジュール",null,null,null,"スケ",null,"作業"]
["（前年度）","1月～3月","【３月】指定管理者の自己点検結果報告に基づく実地調査",null,null,null,null,null,null,null,null,null,null,null,null,null,null,null,null,null,null,null,null,null,null,null,null,null,"〇",null,"〇"]
[]
[]
["4月～\n6月",null,"【通年】大正会館指定管理者との施設管理運営業務の調整。補修等を含む施設の良好な維持管理。指定管理者による貸館業務、自己点検・結果報告、事業報告書提出、調整会議開催。施設利用申込みの受付及び許可書の交付(使用料の徴収含む)。",null,null,null,null,null,null,null,null,null,null,null,null,null,null,null,null,null,null,null,null,null,null,null,null,null,"〇",null,"〇"]
[]
[]
["7月～\n9月",null,"【７月】指定管理者の自己点検結果報告に基づく実地調査の実施\n【８月】指定管理者の評価結果公表",null,null,null,null,null,null,null,null,null,null,null,null,null,null,null,null,null,null,null,null,null,null,null,null,null,"〇",null,"〇"]
[]
[]
["10月～\n12月",null,null,null,null,null,null,null,null,null,null,null,null,null,null,null,null,null,null,null,null,null,null,null,null,null,null,null,"〇",null,"〇"]
[]
[]
["1月～\n3月",null,"【３月】指定管理者の自己点検結果報告に基づく実地調査の実施",null,null,null,null,null,null,null,null,null,null,null,null,null,null,null,null,null,null,null,null,null,null,null,null,null,"〇",null,"〇"]
[]
[]
["備考"]
[]
["項目",null,null,null,null,null,null,"内容"]
["講座・イベント・会議名",null,null,null,null,null,null,"―"]
["イベント等開催関係","開催日時",null,null,null,null,null,"―"]
[null,"開催場所",null,null,null,null,null,"―"]
[null,"区役所の主催等",null,null,null,null,null,"―"]
[null,"その他主催団体・組織等",null,null,null,null,null,"―"]
[null,"共催団体・組織等",null,null,null,null,null,"―"]
[null,"後援団体・組織等",null,null,null,null,null,"―"]
[null,"目標事業規模",null,null,null,null,null,"―"]
[null,"その他留意事項",null,null,null,null,null,"―"]
[null,"イベント等\n当日タイムテーブル",null,null,null,null,null,"―"]
[]
[]
[]
[]
[null,"挨拶者",null,null,null,null,null,"―"]
[null,"来賓紹介",null,null,null,null,null,"―"]
[null,"祝電紹介の方法",null,null,null,null,null,"―"]
[null,"動員の方法",null,null,null,null,null,"―"]
["その他他課との連携等",null,null,null,null,null,null,"―"]
["前年度実績",null,null,null,null,null,null,"＜大正会館＞利用率38.2％（R3）＜大正区民ホール＞利用率50.8％（R3）\n区役所附設会館が市民利用施設として供用されていることで、地域におけるコミュニティ活動の振興、文化の向上及び福祉の増進、市民相互の交流の促進につながると答えた割合：　＜大正会館＞58.1％＜区民ホール＞75.1%＜噴水広場＞59.7%（令和３年度）"]
["業績目標",null,null,null,"実績",null,null,"・区ＨＰや区広報紙を活用し、優先使用や減免制度を周知することで、利用率を前年度より増やす。",null,null,null,null,null,null,null,null,null,null,null,null,"大正会館（利用率R3・38.2％　R4・43.9%）\n大正区民ホール（利用率R3・50.8％　R4 ・47.2％）",null,null,null,null,null,null,null,null,"自己評価"]
[null,null,null,null,null,null,null,null,null,null,null,null,null,null,null,null,null,null,null,null,null,null,null,null,null,null,null,null,null,"△"]
[]
[]
["成果目標",null,null,null,"実績",null,null,"区民意識調査で区役所附設会館が市民利用施設として供用されていることで、地域におけるコミュニティ活動の振興、文化の向上及び福祉の増進、市民相互の交流の促進につながると答えた割合：各60％以上",null,null,null,null,null,null,null,null,null,null,null,null,"・区役所附設会館が市民利用施設として供用されていることで、地域におけるコミュニティ活動の振興、文化の向上及び福祉の増進、市民相互の交流の促進につながると答えた割合\n（大正区民ホール）：75.3％\n（大正会館）:54.2％\n（噴水広場）：68.2％",null,null,null,null,null,null,null,null,"△"]
[]
[]
[]
[]
["中期展望",null,null,null,null,null,null,"附設会館の利用により大正区における地域コミュニティが充実している"]
[]
[]
["成果目標が\n中期展望に\n寄与する理由",null,null,null,null,null,null,"附設会館の利用が活発化することで、コミュニティ活動の振興、地域における文化の向上及び福祉の増進、市民相互の交流の促進、連帯感あふれるまちづくりの推進が図られることから、地域コミュニティの充実につながるため。"]
[]
[]
[]
[]
["SDGｓゴール",null,null,null,11,null,null,null,"住み続けられるまちづくりを"]
[null,null,null,null,null,null,null,null,{"$f":"+IF(ISERROR(VLOOKUP($E87,#REF!,2,0)),\"\",VLOOKUP($E87,#REF!,2,0))","v":""}]
[null,null,null,null,null,null,null,null,{"$f":"+IF(ISERROR(VLOOKUP($E88,#REF!,2,0)),\"\",VLOOKUP($E88,#REF!,2,0))","v":""}]
[]
["修正履歴",null,null,null,"成果目標の修正"]

{"sheet":"5-1-13","index":15,"n_rows":90,"n_cols":34,"rows_kept":90,"cut":false,"hidden":false,"merged":[[0,0,0,3],[0,4,0,20],[0,21,0,27],[0,28,0,29],[0,30,0,31],[1,4,2,20],[1,21,2,27],[1,28,2,29],[1,30,2,31],[1,0,2,3],[5,33,7,34],[9,1,16,6],[9,7,16,31],[17,1,17,6],[17,7,17,31],[18,1,18,6],[18,7,18,31],[4,0,4,6],[4,7,4,31],[5,0,19,0],[5,1,8,6],[5,7,8,31],[19,1,19,6],[19,7,19,31],[20,0,27,0],[20,1,20,6],[20,7,20,31],[21,1,23,6],[21,7,23,31],[24,1,26,6],[24,7,26,31],[27,1,27,6],[27,7,27,31],[29,0,29,23],[29,24,29,27],[29,28,29,29],[29,30,29,31],[30,0,32,0],[30,1,32,1],[30,2,32,23],[30,24,32,27],[30,28,32,29],[30,30,32,31],[33,0,35,1],[33,2,35,23],[33,24,35,27],[33,28,35,29],[33,30,35,31],[36,0,38,1],[36,2,38,23],[36,24,38,27],[36,28,38,29],[36,30,38,31],[45,0,46,1],[45,2,46,31],[47,0,47,6],[47,7,47,31],[48,0,48,6],[48,7,48,31],[39,0,41,1],[39,2,41,23],[39,24,41,27],[39,28,41,29],[39,30,41,31],[42,0,44,1],[42,2,44,23],[42,24,44,27],[42,28,44,29],[42,30,44,31],[53,7,53,31],[54,1,54,6],[54,7,54,31],[55,1,55,6],[55,7,55,31],[56,1,56,6],[56,7,56,31],[49,0,65,0],[49,1,49,6],[49,7,49,31],[50,1,50,6],[50,7,50,31],[51,1,51,6],[51,7,51,31],[52,1,52,6],[52,7,52,31],[53,1,53,6],[64,1,64,6],[64,7,64,31],[65,1,65,6],[65,7,65,31],[66,0,66,6],[66,7,66,31],[57,1,61,6],[57,7,61,31],[62,1,62,6],[62,7,62,31],[63,1,63,6],[63,7,63,31],[72,0,76,3],[72,4,76,6],[72,7,76,19],[72,20,76,28],[72,29,76,31],[77,0,79,6],[77,7,79,31],[67,0,67,6],[67,7,67,31],[68,0,71,3],[68,4,71,6],[68,7,71,19],[68,20,71,28],[68,29,68,31],[69,29,71,31],[89,0,89,3],[89,4,89,31],[80,0,83,6],[80,7,83,31],[85,0,87,3],[85,4,85,7],[85,8,85,31],[86,4,86,7],[86,8,86,31],[87,4,87,7],[87,8,87,31]]}
["取組番号",null,null,null,"事業名",null,null,null,null,null,null,null,null,null,null,null,null,null,null,null,null,"作成年月日・担当",null,null,null,null,null,null,"重点",null,"新規"]
["4-1-3\n5-1-13",null,null,null,"エリア価値の向上に向けた地域活性化事業",null,null,null,null,null,null,null,null,null,null,null,null,null,null,null,null,"令和4年4月1日\n地域協働課(地域協働)",null,null,null,null,null,null,null,null,"〇"]
[]
[]
["項目",null,null,null,null,null,null,"内容"]
["事業・業務概要","目的\n（事業の背景を含む）",null,null,null,null,null,"大正区においては、自然動態（出生・死亡に伴う人口の動き）及び社会動態（転入、転出等に伴う人口の動き）ともに下降傾向となっており、人口は年々減少している。\nまた、この人口減少により、地域活動の担い手不足や空き家の増加等が顕著となっている状況である。\nこの状況を鑑み、これから大正区が人々の注目を集め、大正区・地域に関わりたくなるまちとなるよう、地域活性化事業によるエリア価値の向上をめざす。",null,null,null,null,null,null,null,null,null,null,null,null,null,null,null,null,null,null,null,null,null,null,null,null,null,"一覧へ戻る"]
[]
[]
[]
[null,"内容",null,null,null,null,null,"エリア価値向上について、代表的な取組パターンとしては次の①から④の取組がある。\n①公共空間の利活用\n道路、公園、河川空間など、誰でも利用することができる都市空間を居心地よく魅力あるものとして活用。\n②遊休不動産の再生\n空き家、空き店舗などの遊休不動産を活用し、地域のニーズに応じた様々な施設へとリノベーション。\n③コンテンツや事業の創出\n地域独自の資源を活かしたまちづくりのための人材の育成等の取組。\n④エリア環境の改善\n移動しやすい交通の確保、魅力を高める景観の整備などエリア環境の改善に向けた取組。\n①～④を実現するために、令和4年に実施する大正区政90周年のイベント（令和4年10月）を目途に社会実験として、景観等の整備を完了した千島公園（④の取組）及び周辺一帯を活用し、開催日を多くの人の記憶に残せるように、毎月決まった日に区役所が占用主体となって公園の通路やステージ等を活用した賑わいの創出を実施する（①の取組）。具体の取り組みとして、千島公園イベント広場「くさっパひろっパ」に完成したステージを有効活用したライブや漫才などのイベント、昭和山はなのみちでは飲食・休憩スペース等を設置、特色ある商品や飲食物のテイクアウト販売を行う。合わせて、不動産所有者や事業者と連携した空家相談や店舗探し、家探しができる取り組みを実施し、出店者や来場者へ大正区への出店、移住を促すための一助となる有効な情報を提供することにより区内外からの関心を集める（②の取組）。この賑わいの創出にあたっては、興味を持ち、自ら希望する区内の飲食店・物販店、ものづくり企業やRETOWN、WALPA、URなどが一定出店できるよう配慮し、これまである大正区独自の、あるいは新たに生み出す魅力を来場者へ印象づける（③の取組）。\nなお、本事業実施に際しては、企画・立案・実施する事業者を公募型プロポーザルにより募集する。\n社会実験の期間は令和4年10月～令和5年11月までとする。"]
[]
[]
[]
[]
[]
[]
[]
[null,"予算額（予算科目）",null,null,null,null,null,"53千円（報奨金）、3千円（役務費）、5,379千円（委託料）"]
[null,"事業実施期間（回数）",null,null,null,null,null,"令和4年10月から令和5年3月まで（毎月1回：全６回）"]
[null,"事業対象者（人数）",null,null,null,null,null,"約5000人"]
["委託関係","契約・入札方法",null,null,null,null,null,"公募型プロポーザル方式"]
[null,"募集要項のポイント",null,null,null,null,null,"・大正区独自の魅力を来場者へ印象づける企画の提案\n・空家相談、店舗探し、家探しができるブースの設置\n・集客が見込める飲食店（キッチンカー）・物販店の誘致\n・出店する店舗が利用するテントの購入　など"]
[]
[]
[null,"仕様書のポイント",null,null,null,null,null,"民間事業者の高いノウハウや経験、行政にはない新たな発想を持ち、エリア価値の向上につながる企画提案を求める。"]
[]
[]
[null,"選考委員等選考方式",null,null,null,null,null,"専門知識を持つ外部委員3名による選考会議にて選定"]
[]
["スケジュール（実施決裁、入札募集開始、説明会、選考会、事業の実施　等）",null,null,null,null,null,null,null,null,null,null,null,null,null,null,null,null,null,null,null,null,null,null,null,"広報スケジュール",null,null,null,"スケ",null,"作業"]
["（前年度）","1月～3月","事業者へヒアリング、募集要綱、仕様書作成。\n公園の使用について、建設局と調整。",null,null,null,null,null,null,null,null,null,null,null,null,null,null,null,null,null,null,null,null,null,null,null,null,null,"〇",null,"〇"]
[]
[]
["4月～\n6月",null,"【4月】実施決裁、募集開始\n【5月】委託事業者の選考\n【6月】委託契約締結（委託事業者の選定に至らず再募集）\n",null,null,null,null,null,null,null,null,null,null,null,null,null,null,null,null,null,null,null,null,null,"HPで募集案内を掲載",null,null,null,"×",null,"〇"]
[]
[]
["7月～\n9月",null,"【7月～9月】\n委託事業者の再選考\n委託契約締結\n事業実施に向けた調整",null,null,null,null,null,null,null,null,null,null,null,null,null,null,null,null,null,null,null,null,null,"広報紙、HP・SNS",null,null,null,"〇",null,"〇"]
[]
[]
["10月～\n12月",null,"【10月】事業実施（1回目）以後毎月1回実施（全6回）\n【10月～12月】\n予定どおり、マルシェ及び空家まち歩きを、10月23日、11月27日、12月25日に開催。",null,null,null,null,null,null,null,null,null,null,null,null,null,null,null,null,null,null,null,null,null,"毎月　広報紙、区HP・SNS",null,null,null,"〇",null,"〇"]
[]
[]
["1月～\n3月",null,"【1月～3月】\n予定どおり、マルシェ及び空家まち歩きを、1月22日、2月26日、3月26日に開催。",null,null,null,null,null,null,null,null,null,null,null,null,null,null,null,null,null,null,null,null,null,"毎月　広報紙、区HP・SNS",null,null,null,"〇",null,"〇"]
[]
[]
["備考"]
[]
["項目",null,null,null,null,null,null,"内容"]
["講座・イベント・会議名",null,null,null,null,null,null,"―"]
["イベント等開催関係","開催日時",null,null,null,null,null,"令和4年10月から令和5年3月まで（毎月1回：全６回）"]
[null,"開催場所",null,null,null,null,null,"千島公園及び周辺一帯"]
[null,"区役所の主催等",null,null,null,null,null,"主催"]
[null,"その他主催団体・組織等",null,null,null,null,null,"―"]
[null,"共催団体・組織等",null,null,null,null,null,"―"]
[null,"後援団体・組織等",null,null,null,null,null,"―"]
[null,"目標事業規模",null,null,null,null,null,"―"]
[null,"その他留意事項",null,null,null,null,null,"―"]
[null,"イベント等\n当日タイムテーブル",null,null,null,null,null,"―"]
[]
[]
[]
[]
[null,"挨拶者",null,null,null,null,null,"―"]
[null,"来賓紹介",null,null,null,null,null,"―"]
[null,"祝電紹介の方法",null,null,null,null,null,"―"]
[null,"動員の方法",null,null,null,null,null,"区広報紙、ホームページ、ポスター、チラシ等"]
["その他他課との連携等",null,null,null,null,null,null,"―"]
["前年度実績",null,null,null,null,null,null,"新規事業"]
["業績目標",null,null,null,"実績",null,null,"事業実施(10月)以後毎月1回、計6回実施",null,null,null,null,null,null,null,null,null,null,null,null,"予定通り毎月1回、計6回実施",null,null,null,null,null,null,null,null,"自己評価"]
[null,null,null,null,null,null,null,null,null,null,null,null,null,null,null,null,null,null,null,null,null,null,null,null,null,null,null,null,null,"〇"]
[]
[]
["成果目標",null,null,null,"実績",null,null,"・賑わい創出事業に参画した事業者のうち、事業継続を望むと答えた者：40％以上\n・賑わい創出事業に参加した来場者のうち、本事業がまちの魅力であり、まちの活性化にもつながっていると感じると答えた者の割合：40％以上",null,null,null,null,null,null,null,null,null,null,null,null,"・賑わい創出事業に参画した事業者のうち、事業継続を望むと答えた者：100％（全出店者）\n・賑わい創出事業に参加した来場者のうち、本事業がまちの魅力であり、まちの活性化にもつながっていると感じると答えた者の割合：96.9％",null,null,null,null,null,null,null,null,"◎"]
[]
[]
[]
[]
["中期展望",null,null,null,null,null,null,"大正区の強みが区内外を問わず広く認知されエリア価値が向上している状態。"]
[]
[]
["成果目標が\n中期展望に\n寄与する理由",null,null,null,null,null,null,"大正区が区民及び区民以外の人から住みたいまちとして認知されることは、暮らす場所として魅力的であるととらえられていることを示しており、ひいてはエリア価値の向上を示すこととなるため。"]
[]
[]
[]
[]
["SDGｓゴール",null,null,null,11,null,null,null,"住み続けられるまちづくりを"]
[null,null,null,null,17,null,null,null,"パートナーシップで目標を達成しよう"]
[null,null,null,null,null,null,null,null,""]
[]
["修正履歴",null,null,null,"スケジュールの修正"]

{"sheet":"5-2","index":16,"n_rows":27,"n_cols":5,"rows_kept":27,"cut":false,"hidden":false,"merged":[[25,2,25,3],[25,4,25,9],[26,2,26,3],[26,4,26,9],[23,2,23,3],[23,4,23,9],[24,2,24,3],[24,4,24,9]]}
["【5】「区民が主役」のまちへ"]
[]
[null,"5-2　区民ニーズの把握"]
[]
[null,"◆","目指すべき将来像"]
[]
[]
[]
[]
[]
[null,"◆","施策"]
[]
[]
[]
[]
[]
[null,"◆","施策目標"]
[]
[]
[]
[]
[]
[null,"◆","具体的取組（事業・業務計画書）"]
[null,null,"取組番号",null,"事業名"]
[null,null,"5-2-1",null,{"$f":"'目次 (5)'!D27","v":"「市民の声」などの受付・回答"}]
[null,null,"5-2-2",null,{"$f":"'目次 (5)'!D28","v":"区民意識調査の実施"}]
[null,null,"5-2-3",null,{"$f":"'目次 (5)'!D29","v":"区民等の多様な意見の把握・反映（区政会議）"}]

{"sheet":"5-2-1","index":17,"n_rows":90,"n_cols":34,"rows_kept":90,"cut":false,"hidden":false,"merged":[[0,0,0,3],[0,4,0,20],[0,21,0,27],[0,28,0,29],[0,30,0,31],[1,4,2,20],[1,21,2,27],[1,28,2,29],[1,30,2,31],[1,0,2,3],[5,33,7,34],[9,1,16,6],[9,7,16,31],[17,1,17,6],[17,7,17,31],[18,1,18,6],[18,7,18,31],[4,0,4,6],[4,7,4,31],[5,0,19,0],[5,1,8,6],[5,7,8,31],[19,1,19,6],[19,7,19,31],[20,0,27,0],[20,1,20,6],[20,7,20,31],[21,1,23,6],[21,7,23,31],[24,1,26,6],[24,7,26,31],[27,1,27,6],[27,7,27,31],[29,0,29,23],[29,24,29,27],[29,28,29,29],[29,30,29,31],[30,0,32,0],[30,1,32,1],[30,2,32,23],[30,24,32,27],[30,28,32,29],[30,30,32,31],[33,0,35,1],[33,2,35,23],[33,24,35,27],[33,28,35,29],[33,30,35,31],[36,0,38,1],[36,2,38,23],[36,24,38,27],[36,28,38,29],[36,30,38,31],[45,0,46,1],[45,2,46,31],[47,0,47,6],[47,7,47,31],[48,0,48,6],[48,7,48,31],[39,0,41,1],[39,2,41,23],[39,24,41,27],[39,28,41,29],[39,30,41,31],[42,0,44,1],[42,2,44,23],[42,24,44,27],[42,28,44,29],[42,30,44,31],[53,7,53,31],[54,1,54,6],[54,7,54,31],[55,1,55,6],[55,7,55,31],[56,1,56,6],[56,7,56,31],[49,0,65,0],[49,1,49,6],[49,7,49,31],[50,1,50,6],[50,7,50,31],[51,1,51,6],[51,7,51,31],[52,1,52,6],[52,7,52,31],[53,1,53,6],[64,1,64,6],[64,7,64,31],[65,1,65,6],[65,7,65,31],[66,0,66,6],[66,7,66,31],[57,1,61,6],[57,7,61,31],[62,1,62,6],[62,7,62,31],[63,1,63,6],[63,7,63,31],[72,0,76,3],[72,4,76,6],[72,7,76,19],[72,20,76,28],[72,29,76,31],[77,0,79,6],[77,7,79,31],[67,0,67,6],[67,7,67,31],[68,0,71,3],[68,4,71,6],[68,7,71,19],[68,20,71,28],[68,29,68,31],[69,29,71,31],[89,0,89,3],[89,4,89,31],[80,0,83,6],[80,7,83,31],[85,0,87,3],[85,4,85,7],[85,8,85,31],[86,4,86,7],[86,8,86,31],[87,4,87,7],[87,8,87,31]]}
["取組番号",null,null,null,"事業名",null,null,null,null,null,null,null,null,null,null,null,null,null,null,null,null,"作成年月日・担当",null,null,null,null,null,null,"重点",null,"新規"]
[{"$f":"RIGHT(CELL(\"filename\",A4),LEN(CELL(\"filename\",A4))-FIND(\"]\",CELL(\"filename\",A4)))","v":"5-2-1"},null,null,null,"「市民の声」などの受付・回答",null,null,null,null,null,null,null,null,null,null,null,null,null,null,null,null,"令和4年4月1日\n総務課（庶務）"]
[]
[]
["項目",null,null,null,null,null,null,"内容"]
["事業・業務概要","目的\n（事業の背景を含む）",null,null,null,null,null,"市政・区政に対する意見・要望等を的確に把握することを目的とする。",null,null,null,null,null,null,null,null,null,null,null,null,null,null,null,null,null,null,null,null,null,null,null,null,null,"一覧へ戻る"]
[]
[]
[]
[null,"内容",null,null,null,null,null,"当区役所に寄せられた「市民の声」や団体等からの要望書などに対して、直接市民・団体等に回答するなど、説明責任を果たす。\nまた、区役所に多く寄せられる意見や問合せなどをピックアップし、取組み状況などの情報を取りまとめたうえで、区役所内掲示板や区ホームページ・広報紙などで随時広報を行う。"]
[]
[]
[]
[]
[]
[]
[]
[null,"予算額（予算科目）",null,null,null,null,null,"3千円（通信運搬費　広聴事業）"]
[null,"事業実施期間（回数）",null,null,null,null,null,"通年"]
[null,"事業対象者（人数）",null,null,null,null,null,"大阪市民"]
["委託関係","契約・入札方法",null,null,null,null,null,"―"]
[null,"募集要項のポイント",null,null,null,null,null,"―"]
[]
[]
[null,"仕様書のポイント",null,null,null,null,null,"―"]
[]
[]
[null,"選考委員等選考方式",null,null,null,null,null,"―"]
[]
["スケジュール（実施決裁、入札募集開始、説明会、選考会、事業の実施　等）",null,null,null,null,null,null,null,null,null,null,null,null,null,null,null,null,null,null,null,null,null,null,null,"広報スケジュール",null,null,null,"スケ",null,"作業"]
["（前年度）","1月～3月","区民や団体等から寄せられた意見・要望への対応（随時）\n区役所内掲示板などへの広報の開始（1月～）",null,null,null,null,null,null,null,null,null,null,null,null,null,null,null,null,null,null,null,null,null,"区広報紙、ＨＰでの広報（随時）",null,null,null,"○",null,"○"]
[]
[]
["4月～\n6月",null,"区民や団体等から寄せられた意見・要望への対応（随時）\n",null,null,null,null,null,null,null,null,null,null,null,null,null,null,null,null,null,null,null,null,null,"区広報紙、ＨＰでの広報（随時）",null,null,null,"○",null,"○"]
[]
[]
["7月～\n9月",null,"区民や団体等から寄せられた意見・要望への対応（随時）",null,null,null,null,null,null,null,null,null,null,null,null,null,null,null,null,null,null,null,null,null,"区広報紙、ＨＰでの広報（随時）",null,null,null,"○",null,"○"]
[]
[]
["10月～\n12月",null,"区民や団体等から寄せられた意見・要望への対応（随時）",null,null,null,null,null,null,null,null,null,null,null,null,null,null,null,null,null,null,null,null,null,"区広報紙、ＨＰでの広報（随時）",null,null,null,"○",null,"○"]
[]
[]
["1月～\n3月",null,"区民や団体等から寄せられた意見・要望への対応（随時）",null,null,null,null,null,null,null,null,null,null,null,null,null,null,null,null,null,null,null,null,null,"区広報紙、ＨＰでの広報（随時）",null,null,null,"〇",null,"〇"]
[]
[]
["備考"]
[]
["項目",null,null,null,null,null,null,"内容"]
["講座・イベント・会議名",null,null,null,null,null,null,"―"]
["イベント等開催関係","開催日時",null,null,null,null,null,"―"]
[null,"開催場所",null,null,null,null,null,"―"]
[null,"区役所の主催等",null,null,null,null,null,"―"]
[null,"その他主催団体・組織等",null,null,null,null,null,"―"]
[null,"共催団体・組織等",null,null,null,null,null,"―"]
[null,"後援団体・組織等",null,null,null,null,null,"―"]
[null,"目標事業規模",null,null,null,null,null,"―"]
[null,"その他留意事項",null,null,null,null,null,"―"]
[null,"イベント等\n当日タイムテーブル",null,null,null,null,null,"―"]
[]
[]
[]
[]
[null,"挨拶者",null,null,null,null,null,"―"]
[null,"来賓紹介",null,null,null,null,null,"―"]
[null,"祝電紹介の方法",null,null,null,null,null,"―"]
[null,"動員の方法",null,null,null,null,null,"―"]
["その他他課との連携等",null,null,null,null,null,null,"全課"]
["前年度実績",null,null,null,null,null,null,"【令和3年度実績】\n受付件数：14件（うち大正区役所に関するもの8件）\n【令和3年度実績】\n「市民の声」の受付日から回答までの処理平均日数：12日\n【令和3年度区民アンケート調査（市民局実施）】\n区役所が相談や問い合わせ内容について適切に対応したと思う区民の割合：74.3％"]
["業績目標",null,null,null,"実績",null,null,"「市民の声」の迅速な回答\n受付日から回答までの処理平均日数：12日以内",null,null,null,null,null,null,null,null,null,null,null,null,"処理平均日数13.1日",null,null,null,null,null,null,null,null,"自己評価"]
[null,null,null,null,null,null,null,null,null,null,null,null,null,null,null,null,null,null,null,null,null,null,null,null,null,null,null,null,null,"△"]
[]
[]
["成果目標",null,null,null,"実績",null,null,"【令和4年度区民アンケート調査（市民局実施）】\n区役所が相談や問い合わせ内容について適切に対応したと思う区民の割合：80％以上\n",null,null,null,null,null,null,null,null,null,null,null,null,"令和４年度の区民アンケートにおいて「適切に対応した」と答えた区民の割合は78.5％となった。",null,null,null,null,null,null,null,null,"△"]
[]
[]
[]
[]
["中期展望",null,null,null,null,null,null,"「市民の声」をはじめ、当区に寄せられた意見・要望などに対して迅速かつ適切に対応する"]
[]
[]
["成果目標が\n中期展望に\n寄与する理由",null,null,null,null,null,null,"どのような事案についても説明責任を果たせるよう、職員一人ひとりが広聴担当であると意識することで満足度が向上し、「市民の声」等に迅速かつ適切に対応できることに繋がるため。"]
[]
[]
[]
[]
["SDGｓゴール",null,null,null,10,null,null,null,{"$f":"+IF(ISERROR(VLOOKUP($E86,[5]SDGｓ!$A$2:$B$18,2,0)),\"\",VLOOKUP($E86,[5]SDGｓ!$A$2:$B$18,2,0))","v":"人や国の不平等をなくそう"}]
[null,null,null,null,null,null,null,null,{"$f":"+IF(ISERROR(VLOOKUP($E87,[5]SDGｓ!$A$2:$B$18,2,0)),\"\",VLOOKUP($E87,[5]SDGｓ!$A$2:$B$18,2,0))","v":""}]
[null,null,null,null,null,null,null,null,{"$f":"+IF(ISERROR(VLOOKUP($E88,[5]SDGｓ!$A$2:$B$18,2,0)),\"\",VLOOKUP($E88,[5]SDGｓ!$A$2:$B$18,2,0))","v":""}]
[]
["修正履歴"]

{"sheet":"5-2-2","index":18,"n_rows":90,"n_cols":34,"rows_kept":90,"cut":false,"hidden":false,"merged":[[0,0,0,3],[0,4,0,20],[0,21,0,27],[0,28,0,29],[0,30,0,31],[1,4,2,20],[1,21,2,27],[1,28,2,29],[1,30,2,31],[1,0,2,3],[5,33,7,34],[9,1,16,6],[9,7,16,31],[17,1,17,6],[17,7,17,31],[18,1,18,6],[18,7,18,31],[4,0,4,6],[4,7,4,31],[5,0,19,0],[5,1,8,6],[5,7,8,31],[19,1,19,6],[19,7,19,31],[20,0,27,0],[20,1,20,6],[20,7,20,31],[21,1,23,6],[21,7,23,31],[24,1,26,6],[24,7,26,31],[27,1,27,6],[27,7,27,31],[29,0,29,23],[29,24,29,27],[29,28,29,29],[29,30,29,31],[30,0,32,0],[30,1,32,1],[30,2,32,23],[30,24,32,27],[30,28,32,29],[30,30,32,31],[33,0,35,1],[33,2,35,23],[33,24,35,27],[33,28,35,29],[33,30,35,31],[36,0,38,1],[36,2,38,23],[36,24,38,27],[36,28,38,29],[36,30,38,31],[45,0,46,1],[45,2,46,31],[47,0,47,6],[47,7,47,31],[48,0,48,6],[48,7,48,31],[39,0,41,1],[39,2,41,23],[39,24,41,27],[39,28,41,29],[39,30,41,31],[42,0,44,1],[42,2,44,23],[42,24,44,27],[42,28,44,29],[42,30,44,31],[53,7,53,31],[54,1,54,6],[54,7,54,31],[55,1,55,6],[55,7,55,31],[56,1,56,6],[56,7,56,31],[49,0,65,0],[49,1,49,6],[49,7,49,31],[50,1,50,6],[50,7,50,31],[51,1,51,6],[51,7,51,31],[52,1,52,6],[52,7,52,31],[53,1,53,6],[64,1,64,6],[64,7,64,31],[65,1,65,6],[65,7,65,31],[66,0,66,6],[66,7,66,31],[57,1,61,6],[57,7,61,31],[62,1,62,6],[62,7,62,31],[63,1,63,6],[63,7,63,31],[72,0,76,3],[72,4,76,6],[72,7,76,19],[72,20,76,28],[72,29,76,31],[77,0,79,6],[77,7,79,31],[67,0,67,6],[67,7,67,31],[68,0,71,3],[68,4,71,6],[68,7,71,19],[68,20,71,28],[68,29,68,31],[69,29,71,31],[89,0,89,3],[89,4,89,31],[80,0,83,6],[80,7,83,31],[85,0,87,3],[85,4,85,7],[85,8,85,31],[86,4,86,7],[86,8,86,31],[87,4,87,7],[87,8,87,31]]}
["取組番号",null,null,null,"事業名",null,null,null,null,null,null,null,null,null,null,null,null,null,null,null,null,"作成年月日・担当",null,null,null,null,null,null,"重点",null,"新規"]
[{"$f":"RIGHT(CELL(\"filename\",A4),LEN(CELL(\"filename\",A4))-FIND(\"]\",CELL(\"filename\",A4)))","v":"5-2-2"},null,null,null,"区民意識調査の実施",null,null,null,null,null,null,null,null,null,null,null,null,null,null,null,null,"令和4年4月1日\n総務課（庶務）"]
[]
[]
["項目",null,null,null,null,null,null,"内容"]
["事業・業務概要","目的\n（事業の背景を含む）",null,null,null,null,null,"無作為抽出した区民に対する区民意識調査などを実施することで、より幅広い区民ニーズや意見・評価を的確に把握し、施策や事業に反映する。",null,null,null,null,null,null,null,null,null,null,null,null,null,null,null,null,null,null,null,null,null,null,null,null,null,"一覧へ戻る"]
[]
[]
[]
[null,"内容",null,null,null,null,null,"無作為抽出した区民に対する区民意識調査を実施（区役所実施分2回、市民局実施分1回）。また、回答方法について、利便性の向上や若年層（主に18～29歳）の回答率向上、近年のオンライン化を考慮し、オンライン回答（行政オンラインシステムを活用）等の実施について検討する。\nＳＮＳ（LINE・Twitter・Facebook）を活用した区民の意見やニーズの把握に努める。\nＰＤＣＡサイクル徹底のため、各事業の効果測定を行うとともに、調査結果の分析・課題抽出により、今後の区政運営に活用する。"]
[]
[]
[]
[]
[]
[]
[]
[null,"予算額（予算科目）",null,null,null,null,null,"998千円（委託料　広聴事業）＋市民局へ予算配付　598千円（通信運搬費、委託料）　"]
[null,"事業実施期間（回数）",null,null,null,null,null,"令和4年4月～令和5年3月"]
[null,"事業対象者（人数）",null,null,null,null,null,"無作為抽出した区民（1,500人。市民局実施分は2,000人）"]
["委託関係","契約・入札方法",null,null,null,null,null,"事後審査型制限付一般競争入札"]
[null,"募集要項のポイント",null,null,null,null,null,"―"]
[]
[]
[null,"仕様書のポイント",null,null,null,null,null,"単純集計と当区が指示するクロス集計を行うこと。\n単純集計及びクロス集計結果から読み取れる客観的な事実及び特徴的な事実や傾向（設問ごと及び属性ごとの回答傾向等）についての分析を行うこと。"]
[]
[]
[null,"選考委員等選考方式",null,null,null,null,null,"―"]
[]
["スケジュール（実施決裁、入札募集開始、説明会、選考会、事業の実施　等）",null,null,null,null,null,null,null,null,null,null,null,null,null,null,null,null,null,null,null,null,null,null,null,"広報スケジュール",null,null,null,"スケ",null,"作業"]
["（前年度）","1月～3月","3月　　　実施決裁、 研修準備",null,null,null,null,null,null,null,null,null,null,null,null,null,null,null,null,null,null,null,null,null,null,null,null,null,"〇",null,"〇"]
[]
[]
["4月～\n6月",null,"4月     　職員研修会の開催（主な内容：設問の工夫の仕方について）\n4～5月 6月 各課にアンケート設問照会(主な内容：設問の工夫の仕方についても合\n　　　　　　　わせて通知)\n　 　　　　　 契約準備、アンケート設問の調整\n6月　　　 契約締結\nＳＮＳ（ラインのアンケート機能）を活用した区民の意見やニーズの把握（随時）",null,null,null,null,null,null,null,null,null,null,null,null,null,null,null,null,null,null,null,null,null,null,null,null,null,"〇",null,"〇"]
[]
[]
["7月～\n9月",null,"7月　　区民意識調査の実施（1回目）\n8月9月　　区民意識調査結果報告書の納品　\n9月　　職員研修会の開催（主な内容：アンケート結果の活用手法について）\nＳＮＳ（LINEのアンケート機能）を活用した区民の意見やニーズの把握（随時）",null,null,null,null,null,null,null,null,null,null,null,null,null,null,null,null,null,null,null,null,null,null,null,null,null,"〇",null,"〇"]
[]
[]
["10月～\n12月",null,"10月　　区役所業務格付け調査の実施（市民局）\nＳＮＳ（LINEのアンケート機能）を活用した区民の意見やニーズの把握（随時）",null,null,null,null,null,null,null,null,null,null,null,null,null,null,null,null,null,null,null,null,null,"10月 HPへ掲載（第1回目結果）",null,null,null,"〇",null,"〇"]
[]
[]
["1月～\n3月",null,"1月　　区役所業務格付け調査の実施（市民局）\n2月　　区民意識調査の実施（2回目）\n3月　　区民意識調査結果報告書の納品\nＳＮＳ（LINEのアンケート機能）を活用した区民の意見やニーズの把握（随時）",null,null,null,null,null,null,null,null,null,null,null,null,null,null,null,null,null,null,null,null,null,"3月 HPへ掲載（第2回目結果）",null,null,null,"〇",null,"〇"]
[]
[]
["備考"]
[]
["項目",null,null,null,null,null,null,"内容"]
["講座・イベント・会議名",null,null,null,null,null,null,"―"]
["イベント等開催関係","開催日時",null,null,null,null,null,"―"]
[null,"開催場所",null,null,null,null,null,"―"]
[null,"区役所の主催等",null,null,null,null,null,"―"]
[null,"その他主催団体・組織等",null,null,null,null,null,"―"]
[null,"共催団体・組織等",null,null,null,null,null,"―"]
[null,"後援団体・組織等",null,null,null,null,null,"―"]
[null,"目標事業規模",null,null,null,null,null,"―"]
[null,"その他留意事項",null,null,null,null,null,"―"]
[null,"イベント等\n当日タイムテーブル",null,null,null,null,null,"―"]
[]
[]
[]
[]
[null,"挨拶者",null,null,null,null,null,"―"]
[null,"来賓紹介",null,null,null,null,null,"―"]
[null,"祝電紹介の方法",null,null,null,null,null,"―"]
[null,"動員の方法",null,null,null,null,null,"―"]
["その他他課との連携等",null,null,null,null,null,null,"（各課）設問の作成、調査結果の分析及び活用、（総務課）区長、副区長、各課、委託業者との調整"]
["前年度実績",null,null,null,null,null,null,"区民意識調査（区役所実施分2回、市民局実施分1回）\n様々な機会を通じて区民の意見やニーズを把握していると感じる区民の割合　45.2％(令和3年度実績)"]
["業績目標",null,null,null,"実績",null,null,"無作為抽出した区民に対する区民意識調査（年2回実施）\nＳＮＳ（LINE・Twitter・Facebook）を活用した区民の意見やニーズの把握（年１回以上）",null,null,null,null,null,null,null,null,null,null,null,null,"無作為抽出した区民に対する区民意識調査（年2回実施）\nＳＮＳ（LINE・Twitter・Facebook）を活用した区民の意見やニーズの把握は未実施",null,null,null,null,null,null,null,null,"自己評価"]
[null,null,null,null,null,null,null,null,null,null,null,null,null,null,null,null,null,null,null,null,null,null,null,null,null,null,null,null,null,"×"]
[]
[]
["成果目標",null,null,null,"実績",null,null,"区役所が、様々な機会を通じて区民の意見やニーズを把握していると感じる区民の割合：50％以上",null,null,null,null,null,null,null,null,null,null,null,null,0.47399999999999998,null,null,null,null,null,null,null,null,"△"]
[]
[]
[]
[]
["中期展望",null,null,null,null,null,null,"当該調査結果から区民ニーズを的確に把握し、施策へ反映させる。"]
[]
[]
["成果目標が\n中期展望に\n寄与する理由",null,null,null,null,null,null,"多くの区民の方に「区民ニーズを的確に把握している」と感じていただけることが、中期展望へ寄与する前提となるため、その成果目標を達成することは非常に重要である。"]
[]
[]
[]
[]
["SDGｓゴール",null,null,null,17,null,null,null,{"$f":"+IF(ISERROR(VLOOKUP($E86,[5]SDGｓ!$A$2:$B$18,2,0)),\"\",VLOOKUP($E86,[5]SDGｓ!$A$2:$B$18,2,0))","v":"パートナーシップで目標を達成しよう"}]
[null,null,null,null,null,null,null,null,{"$f":"+IF(ISERROR(VLOOKUP($E87,[5]SDGｓ!$A$2:$B$18,2,0)),\"\",VLOOKUP($E87,[5]SDGｓ!$A$2:$B$18,2,0))","v":""}]
[null,null,null,null,null,null,null,null,{"$f":"+IF(ISERROR(VLOOKUP($E88,[5]SDGｓ!$A$2:$B$18,2,0)),\"\",VLOOKUP($E88,[5]SDGｓ!$A$2:$B$18,2,0))","v":""}]
[]
["修正履歴",null,null,null,"・「スケジュール」欄の修正"]

{"sheet":"5-2-3","index":19,"n_rows":90,"n_cols":34,"rows_kept":90,"cut":false,"hidden":false,"merged":[[0,0,0,3],[0,4,0,20],[0,21,0,27],[0,28,0,29],[0,30,0,31],[1,4,2,20],[1,21,2,27],[1,28,2,29],[1,30,2,31],[1,0,2,3],[5,33,7,34],[9,1,16,6],[9,7,16,31],[17,1,17,6],[17,7,17,31],[18,1,18,6],[18,7,18,31],[4,0,4,6],[4,7,4,31],[5,0,19,0],[5,1,8,6],[5,7,8,31],[19,1,19,6],[19,7,19,31],[20,0,27,0],[20,1,20,6],[20,7,20,31],[21,1,23,6],[21,7,23,31],[24,1,26,6],[24,7,26,31],[27,1,27,6],[27,7,27,31],[29,0,29,23],[29,24,29,27],[29,28,29,29],[29,30,29,31],[30,0,32,0],[30,1,32,1],[30,2,32,23],[30,24,32,27],[30,28,32,29],[30,30,32,31],[33,0,35,1],[33,2,35,23],[33,24,35,27],[33,28,35,29],[33,30,35,31],[36,0,38,1],[36,2,38,23],[36,24,38,27],[36,28,38,29],[36,30,38,31],[45,0,46,1],[45,2,46,31],[47,0,47,6],[47,7,47,31],[48,0,48,6],[48,7,48,31],[39,0,41,1],[39,2,41,23],[39,24,41,27],[39,28,41,29],[39,30,41,31],[42,0,44,1],[42,2,44,23],[42,24,44,27],[42,28,44,29],[42,30,44,31],[53,7,53,31],[54,1,54,6],[54,7,54,31],[55,1,55,6],[55,7,55,31],[56,1,56,6],[56,7,56,31],[49,0,65,0],[49,1,49,6],[49,7,49,31],[50,1,50,6],[50,7,50,31],[51,1,51,6],[51,7,51,31],[52,1,52,6],[52,7,52,31],[53,1,53,6],[64,1,64,6],[64,7,64,31],[65,1,65,6],[65,7,65,31],[66,0,66,6],[66,7,66,31],[57,1,61,6],[57,7,61,31],[62,1,62,6],[62,7,62,31],[63,1,63,6],[63,7,63,31],[72,0,76,3],[72,4,76,6],[72,7,76,19],[72,20,76,28],[72,29,76,31],[77,0,79,6],[77,7,79,31],[67,0,67,6],[67,7,67,31],[68,0,71,3],[68,4,71,6],[68,7,71,19],[68,20,71,28],[68,29,68,31],[69,29,71,31],[89,0,89,3],[89,4,89,31],[80,0,83,6],[80,7,83,31],[85,0,87,3],[85,4,85,7],[85,8,85,31],[86,4,86,7],[86,8,86,31],[87,4,87,7],[87,8,87,31]]}
["取組番号",null,null,null,"事業名",null,null,null,null,null,null,null,null,null,null,null,null,null,null,null,null,"作成年月日・担当",null,null,null,null,null,null,"重点",null,"新規"]
[{"$f":"RIGHT(CELL(\"filename\",A4),LEN(CELL(\"filename\",A4))-FIND(\"]\",CELL(\"filename\",A4)))","v":"5-2-3"},null,null,null,"区民等の多様な意見の把握・反映（区政会議）",null,null,null,null,null,null,null,null,null,null,null,null,null,null,null,null,"令和4年4月1日\n総務課(庶務)"]
[]
[]
["項目",null,null,null,null,null,null,"内容"]
["事業・業務概要","目的\n（事業の背景を含む）",null,null,null,null,null,"区が所管する施策及び事業について、立案段階から区民の意見を把握し適宜これを反映させるとともに、その実績及び成果の評価に係る意見を聴くことを目的とし、区政におけるＰＤＣＡサイクルの確立を図る。",null,null,null,null,null,null,null,null,null,null,null,null,null,null,null,null,null,null,null,null,null,null,null,null,null,"一覧へ戻る"]
[]
[]
[]
[null,"内容",null,null,null,null,null,"区政会議を年４回開催する。\n・施策・事業の企画段階や事後だけではなく執行段階においても区政会議委員の意見を聴取して必要に応じて反映するなど、区政会議委員とより活発な意見交換を行う。\n・区政運営について、区役所の自己評価に対する意見に加え、委員の評価を直接受ける。前年度の結果を踏まえ、運営の改善に取り組む。\n・委員から出された意見などについて、区政への反映状況や反映できなかった場合の理由を区政会議の場で明らかにする。\n・当区役所の他の会議体（地域福祉推進会議、総合教育会議、防災会議、地域まちづくり実行委員会委員長会）と連携し、各会議体より抽出された議題について、区政会議において意見聴取し、当該会議体へのフィードバックを行う。"]
[]
[]
[]
[]
[]
[]
[]
[null,"予算額（予算科目）",null,null,null,null,null,"5千円（消耗品費）、68千円（通信運搬費）、177千円（筆耕翻訳料）"]
[null,"事業実施期間（回数）",null,null,null,null,null,"令和4年4月～令和5年3月（全体会議：年4回）"]
[null,"事業対象者（人数）",null,null,null,null,null,"区政会議委員　他"]
["委託関係","契約・入札方法",null,null,null,null,null,"―"]
[null,"募集要項のポイント",null,null,null,null,null,"―"]
[]
[]
[null,"仕様書のポイント",null,null,null,null,null,"―"]
[]
[]
[null,"選考委員等選考方式"]
[]
["スケジュール（実施決裁、入札募集開始、説明会、選考会、事業の実施　等）",null,null,null,null,null,null,null,null,null,null,null,null,null,null,null,null,null,null,null,null,null,null,null,"広報スケジュール",null,null,null,"スケ",null,"作業"]
["（前年度）","1月～3月","1月24日　事前資料・質問票等の送付（※開催1か月前）\n2月18日　事前質問に対する回答の送付（※開催1週間前）\n2月25日　令和3年度第4回区政会議（令和4年度運営方針（案）、予算（案）、各会議体から抽出した議題等）\n3月：各会議体へのフィードバック（第4回分）",null,null,null,null,null,null,null,null,null,null,null,null,null,null,null,null,null,null,null,null,null,"2月　ＨＰ（第４回案内）\n2月　区広報紙（第4回案内）\n3月HP（第4回報告）\n4月　区広報紙（第4回報告）",null,null,null,"〇",null,"〇"]
[]
[]
["4月～\n6月",null,"4月：各会議体からの議案の抽出にかかる照会\n5月1720日　事前資料・質問票等の送付（※開催1か月前）\n6月1013日　事前質問に対する回答の送付（※開催1週間前）\n6月17日　令和４年度第１回区政会議（令和３年度運営方針自己評価、各会議体から抽出した議題等）",null,null,null,null,null,null,null,null,null,null,null,null,null,null,null,null,null,null,null,null,null,"5月　区広報紙（第4回報告）\n6月　区広報紙（第1回案内）\n6月　ＨＰ（第1回案内）\n7月HP（第1回報告）\n",null,null,null,"〇",null,"〇"]
[]
[]
["7月～\n9月",null,"7月：各会議体からの議案の抽出にかかる照会（リマインド）\n　　　各会議体へのフィードバック（第1回分）\n8月1626日　事前資料・質問票等の送付（※開催1か月前）\n9月913日　事前質問に対する回答の送付（※開催1週間前）\n9月16日　令和４年度第２回区政会議（令和５年度予算編成に向けて将来ビジョン2025(骨子)、各会議体から抽出した議題等）",null,null,null,null,null,null,null,null,null,null,null,null,null,null,null,null,null,null,null,null,null,"9８月　区広報紙（第1回報告）\n9月　ＨＰ（第２回案内）\n10月　ＨＰ（第２回報告）\n9月　区広報紙（第２回案内）\n",null,null,null,"〇",null,"〇"]
[]
[]
["10月～\n12月",null,"10月： 各会議体からの議案の抽出にかかる照会（リマインド）\n　　　 各会議体へのフィードバック（第2 回分）\n11月1614日　事前資料・質問票等の送付（※開催1か月前）\n12月9日　事前質問に対する回答の送付（※開催1週間前）\n12月16日　令和４年度第３回区政会議（令和５年度運営方針（素案）、将来ビジョン2025(素案)、各会議体から抽出した議題等）\n12月：各会議体からの議案の抽出にかかる照会（リマインド）\n        各会議体へのフィードバック（第3回分）",null,null,null,null,null,null,null,null,null,null,null,null,null,null,null,null,null,null,null,null,null,"11月区広報紙（第2回報告）\n11月　ＨＰ（第3回案内）\n11月区広報紙（第3回案内）\n12月HP（第3回報告）\n2月　区広報紙（第3回報告）\n",null,null,null,"〇",null,"〇"]
[]
[]
["1月～\n3月",null,"1月1617日　事前資料・質問票等の送付（※開催1か月前）\n2月910日　事前質問に対する回答の送付（※開催1週間前）\n2月16日　令和3年度第4回区政会議（将来ビジョン2025(案)、令和45年度運営方針（案）、予算（案）、令和５年度事業・業務計画書(案)、各会議体から抽出した議題等）\n3月：各会議体へのフィードバック（第4回分）",null,null,null,null,null,null,null,null,null,null,null,null,null,null,null,null,null,null,null,null,null,"2月　ＨＰ（第４回案内）\n2月　区広報紙（第4回案内）\n3月HP（第4回報告）\n4月　区広報紙（第4回報告）\n",null,null,null,"〇",null,"〇"]
[]
[]
["備考"]
[]
["項目",null,null,null,null,null,null,"内容"]
["講座・イベント・会議名",null,null,null,null,null,null,"大正区区政会議"]
["イベント等開催関係","開催日時",null,null,null,null,null,"6月17日、9月16日、12月16日、2月16日 　　午後6時30分～8時30分"]
[null,"開催場所",null,null,null,null,null,"大正区区民ホール"]
[null,"区役所の主催等",null,null,null,null,null,"主催"]
[null,"その他主催団体・組織等",null,null,null,null,null,"―"]
[null,"共催団体・組織等",null,null,null,null,null,"―"]
[null,"後援団体・組織等",null,null,null,null,null,"―"]
[null,"目標事業規模",null,null,null,null,null,"―"]
[null,"その他留意事項",null,null,null,null,null,"―"]
[null,"イベント等\n当日タイムテーブル",null,null,null,null,null,"18:30　開会・区長あいさつ\n19:05　議事\n　　　　　事務局から説明後、委員から質問・意見、委員間での議論\n20:30　閉会"]
[]
[]
[]
[]
[null,"挨拶者",null,null,null,null,null,"区長"]
[null,"来賓紹介",null,null,null,null,null,"大正区内選出議員、大正消防署長、大正警察署長（オブザーバー）"]
[null,"祝電紹介の方法",null,null,null,null,null,"―"]
[null,"動員の方法",null,null,null,null,null,"―"]
["その他他課との連携等",null,null,null,null,null,null,"全課\n委嘱する市民の方に委嘱の趣旨・目的をしっかり理解していただくための取組を進めるとともに、一人に多くの委嘱をすることがないよう配慮する"]
["前年度実績",null,null,null,null,null,null,"・区政会議の開催（４回）（令和３年度）\n・区役所や委員との間で意見交換が行われていると感じている区政会議委員の割合：62.5\n・適切なフィードバックが行われたと感じる区政会議委員の割合：75.0"]
["業績目標",null,null,null,"実績",null,null,"区政会議の開催に際して、区政会議委員からの事前質問受付、それに対する事前回答及び事後質問・回答の実施：年４回（区政会議の開催数に準じる）",null,null,null,null,null,null,null,null,null,null,null,null,"年４回",null,null,null,null,null,null,null,null,"自己評価"]
[null,null,null,null,null,null,null,null,null,null,null,null,null,null,null,null,null,null,null,null,null,null,null,null,null,null,null,null,null,"○"]
[]
[]
["成果目標",null,null,null,"実績",null,null,"区役所や委員との間で意見交換が行われていると感じている区政会議委員の割合：87.5％以上\n\n区政会議において、各委員からの意見や要望、評価について、適切なフィードバックが行われたと感じる区政会議委員の割合：90％以上",null,null,null,null,null,null,null,null,null,null,null,null,"・区役所や委員との間で意見交換が行われていると感じている区政会議委員の割合：100％\n・区政会議において、各委員からの意見や要望、評価について、適切なフィードバックが行われたと感じる区政会議委員の割合：81.8％",null,null,null,null,null,null,null,null,"△"]
[]
[]
[]
[]
["中期展望",null,null,null,null,null,null,"多様な区民の意見やニーズを区政に反映するとともに、区民による区政の評価のできる仕組みが定着した状態。"]
[]
[]
["成果目標が\n中期展望に\n寄与する理由",null,null,null,null,null,null,"区民の代表である区政会議委員から区役所・委員間での意見交換が行われている、また、委員の意見等へのフィードバックができているとの評価を得ることは、当区区政会議が区民の意見を反映し、区民から区政への評価を適切に受ける場として機能していることを示し、「仕組み」としての区政会議の定着につながるため。"]
[]
[]
[]
[]
["SDGｓゴール",null,null,null,16,null,null,null,"平和と公正をすべての人に"]
[null,null,null,null,null,null,null,null,{"$f":"+IF(ISERROR(VLOOKUP($E87,#REF!,2,0)),\"\",VLOOKUP($E87,#REF!,2,0))","v":""}]
[null,null,null,null,null,null,null,null,{"$f":"+IF(ISERROR(VLOOKUP($E88,#REF!,2,0)),\"\",VLOOKUP($E88,#REF!,2,0))","v":""}]
[]
["修正履歴",null,null,null,"・「スケジュール」欄の修正"]

{"sheet":"5-3","index":20,"n_rows":26,"n_cols":5,"rows_kept":26,"cut":false,"hidden":false,"merged":[[25,2,25,3],[25,4,25,9],[23,2,23,3],[23,4,23,9],[24,2,24,3],[24,4,24,9]]}
["【5】「区民が主役」のまちへ"]
[]
[null,"5-3　情報発信・伝達力の強化"]
[]
[null,"◆","目指すべき将来像"]
[]
[]
[]
[]
[]
[null,"◆","施策"]
[]
[]
[]
[]
[]
[null,"◆","施策目標"]
[]
[]
[]
[]
[]
[null,"◆","具体的取組（事業・業務計画書）"]
[null,null,"取組番号",null,"事業名"]
[null,null,"5-3-1",null,{"$f":"'目次 (5)'!D31","v":"広報紙「こんにちは大正」の製作（企画編集・印刷・全戸配布）"}]
[null,null,"5-3-2",null,{"$f":"'目次 (5)'!D32","v":"区の行政情報・魅力発信の充実"}]

{"sheet":"5-3-1","index":21,"n_rows":90,"n_cols":34,"rows_kept":90,"cut":false,"hidden":false,"merged":[[0,0,0,3],[0,4,0,20],[0,21,0,27],[0,28,0,29],[0,30,0,31],[1,4,2,20],[1,21,2,27],[1,28,2,29],[1,30,2,31],[1,0,2,3],[5,33,7,34],[9,1,16,6],[9,7,16,31],[17,1,17,6],[17,7,17,31],[18,1,18,6],[18,7,18,31],[4,0,4,6],[4,7,4,31],[5,0,19,0],[5,1,8,6],[5,7,8,31],[19,1,19,6],[19,7,19,31],[20,0,27,0],[20,1,20,6],[20,7,20,31],[21,1,23,6],[21,7,23,31],[24,1,26,6],[24,7,26,31],[27,1,27,6],[27,7,27,31],[29,0,29,23],[29,24,29,27],[29,28,29,29],[29,30,29,31],[30,0,32,0],[30,1,32,1],[30,2,32,23],[30,24,32,27],[30,28,32,29],[30,30,32,31],[33,0,35,1],[33,2,35,23],[33,24,35,27],[33,28,35,29],[33,30,35,31],[36,0,38,1],[36,2,38,23],[36,24,38,27],[36,28,38,29],[36,30,38,31],[45,0,46,1],[45,2,46,31],[47,0,47,6],[47,7,47,31],[48,0,48,6],[48,7,48,31],[39,0,41,1],[39,2,41,23],[39,24,41,27],[39,28,41,29],[39,30,41,31],[42,0,44,1],[42,2,44,23],[42,24,44,27],[42,28,44,29],[42,30,44,31],[53,7,53,31],[54,1,54,6],[54,7,54,31],[55,1,55,6],[55,7,55,31],[56,1,56,6],[56,7,56,31],[49,0,65,0],[49,1,49,6],[49,7,49,31],[50,1,50,6],[50,7,50,31],[51,1,51,6],[51,7,51,31],[52,1,52,6],[52,7,52,31],[53,1,53,6],[64,1,64,6],[64,7,64,31],[65,1,65,6],[65,7,65,31],[66,0,66,6],[66,7,66,31],[57,1,61,6],[57,7,61,31],[62,1,62,6],[62,7,62,31],[63,1,63,6],[63,7,63,31],[72,0,76,3],[72,4,76,6],[72,7,76,19],[72,20,76,28],[72,29,76,31],[77,0,79,6],[77,7,79,31],[67,0,67,6],[67,7,67,31],[68,0,71,3],[68,4,71,6],[68,7,71,19],[68,20,71,28],[68,29,68,31],[69,29,71,31],[89,0,89,3],[89,4,89,31],[80,0,83,6],[80,7,83,31],[85,0,87,3],[85,4,85,7],[85,8,85,31],[86,4,86,7],[86,8,86,31],[87,4,87,7],[87,8,87,31]]}
["取組番号",null,null,null,"事業名",null,null,null,null,null,null,null,null,null,null,null,null,null,null,null,null,"作成年月日・担当",null,null,null,null,null,null,"重点",null,"新規"]
[{"$f":"RIGHT(CELL(\"filename\",A4),LEN(CELL(\"filename\",A4))-FIND(\"]\",CELL(\"filename\",A4)))","v":"5-3-1"},null,null,null,"広報紙「こんにちは大正」の製作（企画編集・印刷・全戸配布）",null,null,null,null,null,null,null,null,null,null,null,null,null,null,null,null,"令和4年4月1日\n総務課(庶務)"]
[]
[]
["項目",null,null,null,null,null,null,"内容"]
["事業・業務概要","目的\n（事業の背景を含む）",null,null,null,null,null,"市政・区政の情報を分かりやすく的確に全ての区民に伝える。特に区の重点施策についての情報発信を強化する。\nまた、ニーズを意識した紙面作りや市・区の施策やサービス情報を提供することにより、区民の市政・区政への理解や関心を高め、まちづくりや地域活動への積極的な参画につなげる。",null,null,null,null,null,null,null,null,null,null,null,null,null,null,null,null,null,null,null,null,null,null,null,null,null,"一覧へ戻る"]
[]
[]
[]
[null,"内容",null,null,null,null,null,"広報紙「こんにちは大正」の企画・編集・印刷・全戸配布\n・大正区年間広報計画を作成し、計画に基づき区の施策や事業を掲載する。\n・区民意識調査等の結果を踏まえ、大正区で活躍する人を紹介するなど市民参加型の記事、渡船など区内の魅力を紹介する記事など、自らの区にあらためて魅力を感じられる記事を連載することにより、広報紙への期待と関心が高まることにより、これまで区の広報に興味を示していない層への浸透を図る。\n・区の情報をどのような手段（広報紙・HP・SNS等）で入手しているかを区民意識調査で調査を実施。\n・全ての世代において読みやすい紙面構成やデザインを意識した編集を行う。\n・点字版・音訳版広報紙「こんにちは大正」の製作。\n・SDGｓの記事を掲載するなど全世界の課題に対して身近にできることをわかりやすく掲載し、区民の意識向上を図る。"]
[]
[]
[]
[]
[]
[]
[]
[null,"予算額（予算科目）",null,null,null,null,null,"１６，０４４千円\n内訳：６，９４９千円（印刷製本）、委託料６，９４９円、５３千円（報奨金）"]
[null,"事業実施期間（回数）",null,null,null,null,null,"12回"]
[null,"事業対象者（人数）",null,null,null,null,null,"区内有人の全世帯及び全事業所"]
["委託関係","契約・入札方法",null,null,null,null,null,"企画編集業務：地方自治法施行令167条の2第1項第2号の規定に基づく特名随意契約\n印刷業務、全戸配布：事後審査型一般競争入札\n点字版（点字プリンタ機器リース）：事後審査型制限付一般競争入札"]
[null,"募集要項のポイント",null,null,null,null,null,"企画編集業務：限られた紙面の中で分かりやすく読みやすい紙面とするため専門性・技術力を求める。"]
[]
[]
[null,"仕様書のポイント",null,null,null,null,null,"企画編集業務：書体や配色など誰でも読みやすい紙面づくり、市政・区政を分かりやすく\n的確に全ての区民に伝える工夫がされていること\n印刷業務：紙質など規格や納品日の遵守\n全戸配布：期日までに区内有人の全ての世帯及び事業所にもれなく配布すること。"]
[]
[]
[null,"選考委員等選考方式",null,null,null,null,null,"企画・編集業務：当業務に必要な専門性・技術力を持った専門家３名による選定委員会で選定"]
[]
["スケジュール（実施決裁、入札募集開始、説明会、選考会、事業の実施　等）",null,null,null,null,null,null,null,null,null,null,null,null,null,null,null,null,null,null,null,null,null,null,null,"広報スケジュール",null,null,null,"スケ",null,"作業"]
["（前年度）","1月～3月","１月：実施決裁（企画編集業務、印刷業務、全戸配布業務）、募集/入札開始（企画編集業務）\n２月：説明会（企画編集業務）、入札開始（印刷業務、全戸配布業務）\n３月：選考会・業者決定（企画編集業務）、入札質問回答・業者決定（印刷業務、全戸配布業務）\n広報紙の年間計画を作成（各担当へ年間広報計画を照会）",null,null,null,null,null,null,null,null,null,null,null,null,null,null,null,null,null,null,null,null,null,null,null,null,null,"○",null,"○"]
[]
[]
["4月～\n6月",null,"４月：契約締結、事業の開始（企画編集業務、印刷業務、全戸配布業務）\n《毎月業務》\n　【企画編集業務】発行月の２ヶ月前から入稿及び編集。前月15日頃に校了。納品。\n　【印刷業務】発行月の前月の27日頃、納品　【全戸配布】発行月の１～５日（１月は１～６日）の間に区内有人の全世帯及び全事業所へ配布　【点字版・音訳版】毎月利用者へ発送。",null,null,null,null,null,null,null,null,null,null,null,null,null,null,null,null,null,null,null,null,null,null,null,null,null,"○",null,"○"]
[]
[]
["7月～\n9月",null,"区民意識調査第1回（情報入手の手段）\n全戸配布：配布事業者への需要調査\n《毎月業務》\n【企画編集業務】、【印刷業務】、【全戸配布】、【点字版・音訳版】",null,null,null,null,null,null,null,null,null,null,null,null,null,null,null,null,null,null,null,null,null,null,null,null,null,"○",null,"○"]
[]
[]
["10月～\n12月",null,"《毎月業務》\n　【企画編集業務】、【印刷業務】、【全戸配布】、【点字版・音訳版】\n10月：令和５年度予算要求\n11～12月：次年度広報紙の契約方法及び仕様書を検討・作成。",null,null,null,null,null,null,null,null,null,null,null,null,null,null,null,null,null,null,null,null,null,null,null,null,null,"○",null,"○"]
[]
[]
["1月～\n3月",null,"区民意識調査第2回（広報紙に知りたい情報が掲載されているか、など）\n《毎月業務》　【企画編集業務】、【印刷業務】、【全戸配布】、【点字版・音訳版】\n１月：実施決裁（企画編集業務、印刷業務、全戸配布）\n２月：説明会および募集／入札開始、３月：業者決定",null,null,null,null,null,null,null,null,null,null,null,null,null,null,null,null,null,null,null,null,null,null,null,null,null,"〇",null,"〇"]
[]
[]
["備考",null,"点字プリンタ機器リース長期継続契約５ヵ年\n平成30年6月更新"]
[]
["項目",null,null,null,null,null,null,"内容"]
["講座・イベント・会議名",null,null,null,null,null,null,"―"]
["イベント等開催関係","開催日時",null,null,null,null,null,"―"]
[null,"開催場所",null,null,null,null,null,"―"]
[null,"区役所の主催等",null,null,null,null,null,"―"]
[null,"その他主催団体・組織等",null,null,null,null,null,"―"]
[null,"共催団体・組織等",null,null,null,null,null,"―"]
[null,"後援団体・組織等",null,null,null,null,null,"―"]
[null,"目標事業規模",null,null,null,null,null,"―"]
[null,"その他留意事項",null,null,null,null,null,"―"]
[null,"イベント等\n当日タイムテーブル",null,null,null,null,null,"―"]
[]
[]
[]
[]
[null,"挨拶者",null,null,null,null,null,"―"]
[null,"来賓紹介",null,null,null,null,null,"―"]
[null,"祝電紹介の方法",null,null,null,null,null,"―"]
[null,"動員の方法",null,null,null,null,null,"―"]
["その他他課との連携等",null,null,null,null,null,null,"―"]
["前年度実績",null,null,null,null,null,null,"【令和3年度実績】令和3年度より広報紙を全月12ページへ増ページし、毎月特集を掲載した。\n・区民参加記事：地域だより、大正PEOPLEインタビュー、#WELOVE大正区、ピンチをチャンスへ を掲載。\n・SDGｓ特集を広報紙令和3年11月号、令和4年2月号で掲載。\n【令和３年度成果】区民意識調査（令和３年度第２回調査）\n広報紙に知りたい情報が「（大いに、ある程度、どちらかというと）掲載されている」と回答した割合86.5%"]
["業績目標",null,null,null,"実績",null,null,"広報紙発行　年12回（１月１２ページ）\n企画編集業務：年間４回以上（３か月に１回）区の魅力紹介記事を掲載する。",null,null,null,null,null,null,null,null,null,null,null,null,"広報紙を年12回発行。\n毎月表紙にて「ツージィの大正さんぽ」として魅力スポット紹介を行い、区民に焦点をあてた「大正のホッとな人々」の記事を連載するなど、区の魅力発信を継続した。",null,null,null,null,null,null,null,null,"自己評価"]
[null,null,null,null,null,null,null,null,null,null,null,null,null,null,null,null,null,null,null,null,null,null,null,null,null,null,null,null,null,"◎"]
[]
[]
["成果目標",null,null,null,"実績",null,null,"区民意識調査等において\n・広報紙「こんにちは大正」に区民の知りたい内容が掲載されていると感じている割合：89.8％以上",null,null,null,null,null,null,null,null,null,null,null,null,"令和４年度第１回区民意識調査において「適切に対応した」と答えた区民の割合は83.3％となった。",null,null,null,null,null,null,null,null,"△"]
[]
[]
[]
[]
["中期展望",null,null,null,null,null,null,"全ての区民・区内企業に必要な情報を提供することによって区民の市・区政への関心を高め、まちづくりや地域活動への積極的な参画につながっている状態。"]
[]
[]
["成果目標が\n中期展望に\n寄与する理由",null,null,null,null,null,null,"区民が、知りたい情報を得ることにより、市・区政への関心が高まり、まちづくりや地域活動へ積極的に参画するようになるため。"]
[]
[]
[]
[]
["SDGｓゴール",null,null,null,17,null,null,null,"パートナーシップで目標を達成しよう"]
[null,null,null,null,null,null,null,null,""]
[null,null,null,null,null,null,null,null,""]
[]
["修正履歴"]

{"sheet":"5-3-2","index":22,"n_rows":90,"n_cols":34,"rows_kept":90,"cut":false,"hidden":false,"merged":[[0,0,0,3],[0,4,0,20],[0,21,0,27],[0,28,0,29],[0,30,0,31],[1,4,2,20],[1,21,2,27],[1,28,2,29],[1,30,2,31],[1,0,2,3],[5,33,7,34],[9,1,16,6],[9,7,16,31],[17,1,17,6],[17,7,17,31],[18,1,18,6],[18,7,18,31],[4,0,4,6],[4,7,4,31],[5,0,19,0],[5,1,8,6],[5,7,8,31],[19,1,19,6],[19,7,19,31],[20,0,27,0],[20,1,20,6],[20,7,20,31],[21,1,23,6],[21,7,23,31],[24,1,26,6],[24,7,26,31],[27,1,27,6],[27,7,27,31],[29,0,29,23],[29,24,29,27],[29,28,29,29],[29,30,29,31],[30,0,32,0],[30,1,32,1],[30,2,32,23],[30,24,32,27],[30,28,32,29],[30,30,32,31],[33,0,35,1],[33,2,35,23],[33,24,35,27],[33,28,35,29],[33,30,35,31],[36,0,38,1],[36,2,38,23],[36,24,38,27],[36,28,38,29],[36,30,38,31],[45,0,46,1],[45,2,46,31],[47,0,47,6],[47,7,47,31],[48,0,48,6],[48,7,48,31],[39,0,41,1],[39,2,41,23],[39,24,41,27],[39,28,41,29],[39,30,41,31],[42,0,44,1],[42,2,44,23],[42,24,44,27],[42,28,44,29],[42,30,44,31],[53,7,53,31],[54,1,54,6],[54,7,54,31],[55,1,55,6],[55,7,55,31],[56,1,56,6],[56,7,56,31],[49,0,65,0],[49,1,49,6],[49,7,49,31],[50,1,50,6],[50,7,50,31],[51,1,51,6],[51,7,51,31],[52,1,52,6],[52,7,52,31],[53,1,53,6],[64,1,64,6],[64,7,64,31],[65,1,65,6],[65,7,65,31],[66,0,66,6],[66,7,66,31],[57,1,61,6],[57,7,61,31],[62,1,62,6],[62,7,62,31],[63,1,63,6],[63,7,63,31],[72,0,76,3],[72,4,76,6],[72,7,76,19],[72,20,76,28],[72,29,76,31],[77,0,79,6],[77,7,79,31],[67,0,67,6],[67,7,67,31],[68,0,71,3],[68,4,71,6],[68,7,71,19],[68,20,71,28],[68,29,68,31],[69,29,71,31],[89,0,89,3],[89,4,89,31],[80,0,83,6],[80,7,83,31],[85,0,87,3],[85,4,85,7],[85,8,85,31],[86,4,86,7],[86,8,86,31],[87,4,87,7],[87,8,87,31]]}
["取組番号",null,null,null,"事業名",null,null,null,null,null,null,null,null,null,null,null,null,null,null,null,null,"作成年月日・担当",null,null,null,null,null,null,"重点",null,"新規"]
[{"$f":"RIGHT(CELL(\"filename\",A4),LEN(CELL(\"filename\",A4))-FIND(\"]\",CELL(\"filename\",A4)))","v":"5-3-2"},null,null,null,"区の行政情報・魅力発信の充実",null,null,null,null,null,null,null,null,null,null,null,null,null,null,null,null,"令和4年4月1日\n総務課(庶務)"]
[]
[]
["項目",null,null,null,null,null,null,"内容"]
["事業・業務概要","目的\n（事業の背景を含む）",null,null,null,null,null,"市政・区政の情報を分かりやすく的確に全ての区民に伝える。\nまた、ニーズを意識した情報を提供することにより、区民の市政・区政への理解や関心を高め、まちづくりや地域活動への積極的な参画につなげる。\n",null,null,null,null,null,null,null,null,null,null,null,null,null,null,null,null,null,null,null,null,null,null,null,null,null,"一覧へ戻る"]
[]
[]
[]
[null,"内容",null,null,null,null,null,"各種広報媒体を活用した区の行政情報・魅力発信の充実。発信するコンテンツに最適なツールを見極め、効果的な発信を行っていく。\n【共通事項】\n行政情報発信・魅力発信等広報事業の統括。\n市民目線のさらなる向上のため、区HP・SNSの作成について職員研修を実施、実施後各担当にて区HPを修正し、報告を受けるなど技術支援を行う。\nホームページ、ＳＮＳ（フェイスブック、ツイッター、ライン）で行政情報や魅力発信を行うことで、区民・市民の市・区政への関心を高め、まちづくりや地域活動の積極的な参画や、市民サービスの向上を図る。\nホームページやSNSへのアクセス数、および区民意識調査結果を分析し、情報発信を強化する。\nSNSでの行政情報・魅力発信について、SNSでアンケートを実施。\n区の行政情報・魅力発信の動画をさわやか広場で放映。\n【行政情報発信】\n広報紙（全戸配布）、区内広報板（55ヵ所）、広報サポーター（33カ所（令和３年度１月末））、バス停、イオン等大阪市包括連携先へのチラシ等の掲示。くらしの便利帳での情報発信。広報サポーター拡大。\nフェイスブック、ツイッターについて、総合的な行政情報とは別にテーマごとの５つの分野に分け情報発信を行う。\n【魅力発信】\n民間のメディアと連携することにより、区の魅力発信ツールの幅を拡げていく。\n#WELOVE大正区で投稿していただいたSNSの記事をシェア、リツイートし、区HP（プラグイン）で紹介する。\n「昭和山 はなのみち」及び「千島公園イベント広場『くさっパひろっパ』」などの魅力スポットを積極的に広報する。\nTUGBOAT大正と連携した新たな魅力発信手法の導入。\n大正区の魅力を凝縮したポスターやマスコットキャラクターなどの魅力発信ツールの活用。"]
[]
[]
[]
[]
[]
[]
[]
[null,"予算額（予算科目）",null,null,null,null,null,"８６３千円"]
[null,"事業実施期間（回数）",null,null,null,null,null,"通年"]
[null,"事業対象者（人数）",null,null,null,null,null,"すべての方"]
["委託関係","契約・入札方法",null,null,null,null,null,"魅力マップ制作業務委託：事後審査型一般競争入札"]
[null,"募集要項のポイント",null,null,null,null,null,"―"]
[]
[]
[null,"仕様書のポイント",null,null,null,null,null,"―"]
[]
[]
[null,"選考委員等選考方式",null,null,null,null,null,"―"]
[]
["スケジュール（実施決裁、入札募集開始、説明会、選考会、事業の実施　等）",null,null,null,null,null,null,null,null,null,null,null,null,null,null,null,null,null,null,null,null,null,null,null,"広報スケジュール",null,null,null,"スケ",null,"作業"]
["（前年度）","1月～3月","民間メディアとの連携について、他市町村や他区の事例を調査。\n区HP職員研修実施。\n随時：ホームページ、ＳＮＳ（フェイスブック、ツイッター）、区内広報板での情報発信、広報サポーターへの広報協力依頼、バス停へのチラシ等の掲示依頼",null,null,null,null,null,null,null,null,null,null,null,null,null,null,null,null,null,null,null,null,null,null,null,null,null,"○",null,"○"]
[]
[]
["4月～\n6月",null,"連携する民間メディアの募集要項を作成。\n6月：情報発信・魅力発信についてのSNSでのアンケートを実施。\n《通年業務》\n　ホームページ、フェイスブック、ツイッター、ライン、区内広報板へ掲載\n　大正区の魅力を凝縮したポスターを掲示（区内外問わず掲示を依頼）\n　バス停へのチラシ等の掲示依頼、SNSで広報サポータ－を募集（年12回）",null,null,null,null,null,null,null,null,null,null,null,null,null,null,null,null,null,null,null,null,null,null,null,null,null,"○",null,"○"]
[]
[]
["7月～\n9月",null,"民間メディアを募集。\n区HP・SNS作成職員研修（アクセス数確認依頼）。\n6月に実施したアンケート結果を事業計画に反映。\n《通年業務》",null,null,null,null,null,null,null,null,null,null,null,null,null,null,null,null,null,null,null,null,null,null,null,null,null,"○",null,"○"]
[]
[]
["10月～\n12月",null,"10月：令和４年度予算要求\n12月：情報発信・魅力発信についてのSNSでのアンケートを実施。\n連携する民間メディアの募集要項を作成。\n民間メディアを選定・協定締結。\n区HP作成職員研修後、各担当で実施した修正内容を報告。\n《通年業務》",null,null,null,null,null,null,null,null,null,null,null,null,null,null,null,null,null,null,null,null,null,null,null,null,null,"×",null,"×"]
[]
[]
["1月～\n3月",null,"民間メディアを募集。\n情報発信・魅力発信についてのSNSでのアンケートを実施。\n12月に実施したアンケート結果を事業計画に反映。\n民間メディアと連携した情報発信の実施。\n《通年業務》",null,null,null,null,null,null,null,null,null,null,null,null,null,null,null,null,null,null,null,null,null,null,null,null,null,"×",null,"×"]
[]
[]
["備考"]
[]
["項目",null,null,null,null,null,null,"内容"]
["講座・イベント・会議名",null,null,null,null,null,null,"―"]
["イベント等開催関係","開催日時",null,null,null,null,null,"―"]
[null,"開催場所",null,null,null,null,null,"―"]
[null,"区役所の主催等",null,null,null,null,null,"―"]
[null,"その他主催団体・組織等",null,null,null,null,null,"―"]
[null,"共催団体・組織等",null,null,null,null,null,"―"]
[null,"後援団体・組織等",null,null,null,null,null,"―"]
[null,"目標事業規模",null,null,null,null,null,"―"]
[null,"その他留意事項",null,null,null,null,null,"―"]
[null,"イベント等\n当日タイムテーブル",null,null,null,null,null,"―\n"]
[]
[]
[]
[]
[null,"挨拶者",null,null,null,null,null,"―"]
[null,"来賓紹介",null,null,null,null,null,"―"]
[null,"祝電紹介の方法",null,null,null,null,null,"―"]
[null,"動員の方法",null,null,null,null,null,"―"]
["その他他課との連携等",null,null,null,null,null,null,"―"]
["前年度実績",null,null,null,null,null,null,"【令和3年度実績】\n・「昭和山 はなのみち」と「千島公園イベント広場『くさっパひろっパ』」を広報紙令和3年5月号１面で広報。\n・渡船を広報紙令和3年8月号で広報。\n・#WELOVE大正区をつけてSNSで発信している記事をシェア・リツイート。\n・区HP・SNS作成職員研修実施（令和4年2月）\n・SNSでの情報発信を毎日実施。\n・協定を締結する民間メディア（実績なし）\n【令和３年度成果】\n令和３年度区民アンケート調査　区の様々な取組（施策・事業・イベントなど）に関する情報が、区役所から届いていると感じる区民の割合　48.3％（目標53%）\n広報サポーター　35か所"]
["業績目標",null,null,null,"実績",null,null,"区HP・SNS作成職員研修の実施（年２回）。\n協定を締結する民間メディア（2社以上）\nSNSでの情報発信を毎日実施。\n",null,null,null,null,null,null,null,null,null,null,null,null,"令和４年度に区HP作成職員研修を１回実施した。SNSについては、各担当がTwitter・Facebookアカウントで適宜情報発信を実施。",null,null,null,null,null,null,null,null,"自己評価"]
[null,null,null,null,null,null,null,null,null,null,null,null,null,null,null,null,null,null,null,null,null,null,null,null,null,null,null,null,null,"×"]
[]
[]
["成果目標",null,null,null,"実績",null,null,"区の様々な取組（施策・事業・イベントなど）に関する情報が、区役所から届いていると感じる区民の割合　53％\n「＃WELOVE大正区」をつけて魅力発信するアカウントが\n１２アカウント以上\n",null,null,null,null,null,null,null,null,null,null,null,null,"令和４年度の区民アンケートにおいて肯定的意見の割合は56.9％となった。\n令和４年度に「＃WELOVE大正区」をつけて魅力発信するアカウントはTwitter９アカウント・Facebook６アカウントであった。",null,null,null,null,null,null,null,null,"〇"]
[]
[]
[]
[]
["中期展望",null,null,null,null,null,null,"区民の市・区政への関心が高まり、まちづくりや地域活動への積極的な参画につながっている状態をめざす。\n"]
[]
[]
["成果目標が\n中期展望に\n寄与する理由",null,null,null,null,null,null,"区民が区の取組みの情報が十分届いていると感じることや、区民が区役所の情報発信に協力すること、さらには区の情報発信に参加することは、区民の市・区政への関心が高まることにつながり、ひいてはまちづくりや地域活動への積極的な参画につながり、中期展望の達成に寄与するため。"]
[]
[]
[]
[]
["SDGｓゴール",null,null,null,17,null,null,null,"パートナーシップで目標を達成しよう"]
[null,null,null,null,null,null,null,null,""]
[null,null,null,null,null,null,null,null,""]
[]
["修正履歴",null,null,null,"＜スケジュールの見直し＞\n事例調査等に「連携する民間メディアの募集要項を作成」・「民間メディアを募集」\n「情報発信・魅力発信についてのSNSでのアンケート」・「12月に実施したアンケート結果を事業計画に反映」"]

{"sheet":"5-4","index":23,"n_rows":38,"n_cols":5,"rows_kept":38,"cut":false,"hidden":false,"merged":[[36,2,36,3],[36,4,36,9],[37,2,37,3],[37,4,37,9],[32,2,32,3],[32,4,32,9],[33,2,33,3],[33,4,33,9],[34,2,34,3],[34,4,34,9],[35,2,35,3],[35,4,35,9],[26,2,26,3],[26,4,26,9],[27,2,27,3],[27,4,27,9],[28,2,28,3],[28,4,28,9],[29,2,29,3],[29,4,29,9],[30,2,30,3],[30,4,30,9],[31,2,31,3],[31,4,31,9],[25,2,25,3],[25,4,25,9],[23,2,23,3],[23,4,23,9],[24,2,24,3],[24,4,24,9]]}
["【5】「区民が主役」のまちへ"]
[]
[null,"5-4　窓口サービスの充実"]
[]
[null,"◆","目指すべき将来像"]
[]
[]
[]
[]
[]
[null,"◆","施策"]
[]
[]
[]
[]
[]
[null,"◆","施策目標"]
[]
[]
[]
[]
[]
[null,"◆","具体的取組（事業・業務計画書）"]
[null,null,"取組番号",null,"事業名"]
[null,null,"5-4-1",null,{"$f":"'目次 (5)'!D34","v":"窓口サービスの充実"}]
[null,null,"5-4-2",null,{"$f":"'目次 (5)'!D35","v":"マイナンバーカードの普及への取組み"}]
[null,null,"5-4-3",null,{"$f":"'目次 (5)'!D36","v":"窓口サービスにおける不適切事務の撲滅"}]
[null,null,"5-4-4",null,{"$f":"'目次 (5)'!D37","v":"国民健康保険料の未収金の減少及び未納防止"}]
[null,null,"5-4-5",null,{"$f":"'目次 (5)'!D38","v":"庶務業務及びコンプライアンスの確保"}]
[null,null,"5-4-6",null,{"$f":"'目次 (5)'!D39","v":"弁護士による無料法律相談の実施"}]
[null,null,"5-4-7",null,{"$f":"'目次 (5)'!D40","v":"不動産に関する無料相談の実施"}]
[null,null,"5-4-8",null,{"$f":"'目次 (5)'!D41","v":"区庁舎・設備等の維持管理"}]
[null,null,"5-4-9",null,{"$f":"'目次 (5)'!D42","v":"住民情報業務等の適切な運営管理"}]
[null,null,"5-4-10",null,{"$f":"'目次 (5)'!D43","v":"保健福祉課（福祉グループ）窓口受付等業務"}]
[null,null,"5-4-11",null,{"$f":"'目次 (5)'!D44","v":"介護保険料の収納率の向上"}]
[null,null,"5-4-12",null,{"$f":"'目次 (5)'!D45","v":"保健福祉課（介護保険グループ）窓口受付等業務"}]
[null,null,"5-4-13",null,{"$f":"'[6]目次 (5)'!D41","v":"保健福祉課（健康づくり・保健活動グループ）窓口受付等業務"}]
[null,null,"5-4-14",null,{"$f":"'[6]目次 (5)'!D42","v":"保健福祉課（こども・教育グループ）窓口受付等業務"}]

{"sheet":"5-4-1","index":24,"n_rows":90,"n_cols":34,"rows_kept":90,"cut":false,"hidden":false,"merged":[[0,0,0,3],[0,4,0,20],[0,21,0,27],[0,28,0,29],[0,30,0,31],[1,4,2,20],[1,21,2,27],[1,28,2,29],[1,30,2,31],[1,0,2,3],[5,33,7,34],[9,1,16,6],[9,7,16,31],[17,1,17,6],[17,7,17,31],[18,1,18,6],[18,7,18,31],[4,0,4,6],[4,7,4,31],[5,0,19,0],[5,1,8,6],[5,7,8,31],[19,1,19,6],[19,7,19,31],[20,0,27,0],[20,1,20,6],[20,7,20,31],[21,1,23,6],[21,7,23,31],[24,1,26,6],[24,7,26,31],[27,1,27,6],[27,7,27,31],[29,0,29,23],[29,24,29,27],[29,28,29,29],[29,30,29,31],[30,0,32,0],[30,1,32,1],[30,2,32,23],[30,24,32,27],[30,28,32,29],[30,30,32,31],[33,0,35,1],[33,2,35,23],[33,24,35,27],[33,28,35,29],[33,30,35,31],[36,0,38,1],[36,2,38,23],[36,24,38,27],[36,28,38,29],[36,30,38,31],[45,0,46,1],[45,2,46,31],[47,0,47,6],[47,7,47,31],[48,0,48,6],[48,7,48,31],[39,0,41,1],[39,2,41,23],[39,24,41,27],[39,28,41,29],[39,30,41,31],[42,0,44,1],[42,2,44,23],[42,24,44,27],[42,28,44,29],[42,30,44,31],[53,7,53,31],[54,1,54,6],[54,7,54,31],[55,1,55,6],[55,7,55,31],[56,1,56,6],[56,7,56,31],[49,0,65,0],[49,1,49,6],[49,7,49,31],[50,1,50,6],[50,7,50,31],[51,1,51,6],[51,7,51,31],[52,1,52,6],[52,7,52,31],[53,1,53,6],[64,1,64,6],[64,7,64,31],[65,1,65,6],[65,7,65,31],[66,0,66,6],[66,7,66,31],[57,1,61,6],[57,7,61,31],[62,1,62,6],[62,7,62,31],[63,1,63,6],[63,7,63,31],[72,0,76,3],[72,4,76,6],[72,7,76,19],[72,20,76,28],[72,29,76,31],[77,0,79,6],[77,7,79,31],[67,0,67,6],[67,7,67,31],[68,0,71,3],[68,4,71,6],[68,7,71,19],[68,20,71,28],[68,29,68,31],[69,29,71,31],[89,0,89,3],[89,4,89,31],[80,0,83,6],[80,7,83,31],[85,0,87,3],[85,4,85,7],[85,8,85,31],[86,4,86,7],[86,8,86,31],[87,4,87,7],[87,8,87,31]]}
["取組番号",null,null,null,"事業名",null,null,null,null,null,null,null,null,null,null,null,null,null,null,null,null,"作成年月日・担当",null,null,null,null,null,null,"重点",null,"新規"]
[{"$f":"RIGHT(CELL(\"filename\",A4),LEN(CELL(\"filename\",A4))-FIND(\"]\",CELL(\"filename\",A4)))","v":"5-4-1"},null,null,null,"窓口サービスの充実",null,null,null,null,null,null,null,null,null,null,null,null,null,null,null,null,"令和4年4月1日\n窓口サービス課\n(住民登録・戸籍・保険年金)"]
[]
[]
["項目",null,null,null,null,null,null,"内容"]
["事業・業務概要","目的\n（事業の背景を含む）",null,null,null,null,null,"来庁者のニーズをふまえ、快適で利用しやすい区役所となるよう利用者の視点に立ったサービスの充実・提供を目的とする。",null,null,null,null,null,null,null,null,null,null,null,null,null,null,null,null,null,null,null,null,null,null,null,null,null,"一覧へ戻る"]
[]
[]
[]
[null,"内容",null,null,null,null,null,"・住民登録・印鑑登録・住居表示に関すること及び証明、就学、特別永住者、マイナンバーカードに関すること。自動車臨時運行許可に関すること。市税に関する諸証明の発行に関すること。\n・戸籍関係届出、戸籍謄抄本・附票の写しの請求、埋火葬の許可申請に関すること。\n・国民健康保険の保険料納付・納付相談・減免・還付に関すること。\n・国民健康保険の加入・喪失・高額療養費等、後期高齢者医療制度、国民年金に関すること。\n\n（取組内容)\n・窓口来庁者アンケートの実施することにより市民満足度を検証する。\n・区民意識調査を活用することにより、普段は区役所に来ることのない人の窓口におけるニーズを分析する。\n・区役所窓口の混雑緩和と利便性の向上を目的として、窓口の待ち人数と待ち時間をスマートフォン等で随時確認できるようにＨＰに窓口混雑状況を掲載する。\n・婚姻されたお二人が大正区によりいっそうの愛着を持っていただくため、オリジナル婚姻届使用の普及に努める。\n・窓口５S推進会議の開催と課題の抽出、検討、実行\n・金曜窓口延長及び日曜開庁の広報紙及びSNS（ツイッター、フェイスブック）を活用した広報"]
[]
[]
[]
[]
[]
[]
[]
[null,"予算額（予算科目）",null,null,null,null,null,"70千円（通信運搬費37千円、印刷製本費33千円）"]
[null,"事業実施期間（回数）",null,null,null,null,null,"―"]
[null,"事業対象者（人数）",null,null,null,null,null,"―"]
["委託関係","契約・入札方法",null,null,null,null,null,"―"]
[null,"募集要項のポイント",null,null,null,null,null,"―"]
[]
[]
[null,"仕様書のポイント",null,null,null,null,null,"―"]
[]
[]
[null,"選考委員等選考方式",null,null,null,null,null,"―"]
[]
["スケジュール（実施決裁、入札募集開始、説明会、選考会、事業の実施　等）",null,null,null,null,null,null,null,null,null,null,null,null,null,null,null,null,null,null,null,null,null,null,null,"広報スケジュール",null,null,null,"スケ",null,"作業"]
["（前年度）","1月～3月","窓口来庁者アンケート結果の検証",null,null,null,null,null,null,null,null,null,null,null,null,null,null,null,null,null,null,null,null,null,null,null,null,null,"〇",null,"〇"]
[]
[]
["4月～\n6月",null,"区民意識調査内容の検討\nオリジナル婚姻届の印刷",null,null,null,null,null,null,null,null,null,null,null,null,null,null,null,null,null,null,null,null,null,"オリジナル婚姻届広報紙掲載\nSNSでの広報",null,null,null,"〇",null,"〇"]
[]
[]
["7月～\n9月",null,"区民意識調査の実施\n窓口５S推進会議",null,null,null,null,null,null,null,null,null,null,null,null,null,null,null,null,null,null,null,null,null,"SNSでの広報",null,null,null,"〇",null,"〇"]
[]
[]
["10月～\n12月",null,"区民意識調査結果の検証\n窓口来庁者アンケートの実施",null,null,null,null,null,null,null,null,null,null,null,null,null,null,null,null,null,null,null,null,null,"SNSでの広報",null,null,null,"〇",null,"〇"]
[]
[]
["1月～\n3月",null,"窓口来庁者アンケート結果の検証\n窓口５S推進会議",null,null,null,null,null,null,null,null,null,null,null,null,null,null,null,null,null,null,null,null,null,"金曜窓口延長及び日曜開庁広報紙掲載\nSNSでの広報",null,null,null,"〇",null,"〇"]
[]
[]
["備考"]
[]
["項目",null,null,null,null,null,null,"内容"]
["講座・イベント・会議名",null,null,null,null,null,null,"窓口来庁者アンケート"]
["イベント等開催関係","開催日時",null,null,null,null,null,"10月～12月"]
[null,"開催場所",null,null,null,null,null,"窓口待合"]
[null,"区役所の主催等",null,null,null,null,null,"―"]
[null,"その他主催団体・組織等",null,null,null,null,null,"―"]
[null,"共催団体・組織等",null,null,null,null,null,"―"]
[null,"後援団体・組織等",null,null,null,null,null,"―"]
[null,"目標事業規模",null,null,null,null,null,"窓口サービス課へ手続等の用件のために来られた区民400名"]
[null,"その他留意事項",null,null,null,null,null,"―"]
[null,"イベント等\n当日タイムテーブル",null,null,null,null,null,"実施期間　２週間程度\n（調査数４００名のアンケート回収次第終了）"]
[]
[]
[]
[]
[null,"挨拶者",null,null,null,null,null,"―"]
[null,"来賓紹介",null,null,null,null,null,"―"]
[null,"祝電紹介の方法",null,null,null,null,null,"―"]
[null,"動員の方法",null,null,null,null,null,"―"]
["その他他課との連携等",null,null,null,null,null,null,"―"]
["前年度実績",null,null,null,null,null,null,"・来庁者アンケートの実施　１回\n・来庁者アンケートにおいて、市民満足度が76 %\n・金曜窓口延長の認知率　48.8 %\n・日曜開庁の認知率　37.6 %"]
["業績目標",null,null,null,"実績",null,null,"来庁者アンケートの実施（年１回）",null,null,null,null,null,null,null,null,null,null,null,null,"令和4年１１月に実施",null,null,null,null,null,null,null,null,"自己評価"]
[null,null,null,null,null,null,null,null,null,null,null,null,null,null,null,null,null,null,null,null,null,null,null,null,null,null,null,null,null,"〇"]
[]
[]
["成果目標",null,null,null,"実績",null,null,"・来庁者アンケートにおいて、市民満足度が　85%以上\n・金曜窓口延長の認知率　60%以上\n・日曜開庁の認知率　50%以上",null,null,null,null,null,null,null,null,null,null,null,null,"・来庁者アンケートにおける市民満足度が85.1％\n・金曜窓口延長の認知率が47.5％\n・日曜開庁の認知率が38.6％",null,null,null,null,null,null,null,null,"×"]
[]
[]
[]
[]
["中期展望",null,null,null,null,null,null,"区役所の格付け調査において、星2つ以上の獲得が維持されている状態"]
[]
[]
["成果目標が\n中期展望に\n寄与する理由",null,null,null,null,null,null,"来庁者アンケートにおいて市民満足度85%以上の状態が維持されることで、区役所各付けへの高評価につながるものと考えられるため。\nまた、金曜窓口延長及び日曜開庁の認知率が高まることにより、普段区役所との接点が少ない働く世代にとってもサービスが向上していると感じる要因となるため。"]
[]
[]
[]
[]
["SDGｓゴール",null,null,null,16,null,null,null,"平和と公正をすべての人に"]
[null,null,null,null,null,null,null,null,""]
[null,null,null,null,null,null,null,null,""]
[]
["修正履歴"]

{"sheet":"5-4-2","index":25,"n_rows":90,"n_cols":34,"rows_kept":90,"cut":false,"hidden":false,"merged":[[1,0,2,3],[0,0,0,3],[0,4,0,20],[0,21,0,27],[0,28,0,29],[0,30,0,31],[1,4,2,20],[1,21,2,27],[1,28,2,29],[1,30,2,31],[5,33,7,34],[9,1,16,6],[9,7,16,31],[17,1,17,6],[17,7,17,31],[18,1,18,6],[18,7,18,31],[4,0,4,6],[4,7,4,31],[5,0,19,0],[5,1,8,6],[5,7,8,31],[19,1,19,6],[19,7,19,31],[20,0,27,0],[20,1,20,6],[20,7,20,31],[21,1,23,6],[21,7,23,31],[24,1,26,6],[24,7,26,31],[27,1,27,6],[27,7,27,31],[29,0,29,23],[29,24,29,27],[29,28,29,29],[29,30,29,31],[30,0,32,0],[30,1,32,1],[30,2,32,23],[30,24,32,27],[30,28,32,29],[30,30,32,31],[33,0,35,1],[33,2,35,23],[33,24,35,27],[33,28,35,29],[33,30,35,31],[36,0,38,1],[36,2,38,23],[36,24,38,27],[36,28,38,29],[36,30,38,31],[45,0,46,1],[45,2,46,31],[47,0,47,6],[47,7,47,31],[48,0,48,6],[48,7,48,31],[39,0,41,1],[39,2,41,23],[39,24,41,27],[39,28,41,29],[39,30,41,31],[42,0,44,1],[42,2,44,23],[42,24,44,27],[42,28,44,29],[42,30,44,31],[53,7,53,31],[54,1,54,6],[54,7,54,31],[55,1,55,6],[55,7,55,31],[56,1,56,6],[56,7,56,31],[49,0,65,0],[49,1,49,6],[49,7,49,31],[50,1,50,6],[50,7,50,31],[51,1,51,6],[51,7,51,31],[52,1,52,6],[52,7,52,31],[53,1,53,6],[64,1,64,6],[64,7,64,31],[65,1,65,6],[65,7,65,31],[66,0,66,6],[66,7,66,31],[57,1,61,6],[57,7,61,31],[62,1,62,6],[62,7,62,31],[63,1,63,6],[63,7,63,31],[72,0,76,3],[72,4,76,6],[72,7,76,19],[72,20,76,28],[72,29,76,31],[77,0,79,6],[77,7,79,31],[67,0,67,6],[67,7,67,31],[68,0,71,3],[68,4,71,6],[68,7,71,19],[68,20,71,28],[68,29,68,31],[69,29,71,31],[89,0,89,3],[89,4,89,31],[80,0,83,6],[80,7,83,31],[85,0,87,3],[85,4,85,7],[85,8,85,31],[86,4,86,7],[86,8,86,31],[87,4,87,7],[87,8,87,31]]}
["取組番号",null,null,null,"事業名",null,null,null,null,null,null,null,null,null,null,null,null,null,null,null,null,"作成年月日・担当",null,null,null,null,null,null,"重点",null,"新規"]
[{"$f":"RIGHT(CELL(\"filename\",A4),LEN(CELL(\"filename\",A4))-FIND(\"]\",CELL(\"filename\",A4)))","v":"5-4-2"},null,null,null,"マイナンバーカードの普及への取組み",null,null,null,null,null,null,null,null,null,null,null,null,null,null,null,null,"令和4年4月1日\n窓口サービス課\n(住民登録・戸籍)"]
[]
[]
["項目",null,null,null,null,null,null,"内容"]
["事業・業務概要","目的\n（事業の背景を含む）",null,null,null,null,null,"政府が目標として掲げる令和4年度の個人番号カード保有率100%に向けて、普及啓発等の取組みを行う。",null,null,null,null,null,null,null,null,null,null,null,null,null,null,null,null,null,null,null,null,null,null,null,null,null,"一覧へ戻る"]
[]
[]
[]
[null,"内容",null,null,null,null,null,"・区広報紙、SNS（ツイッター、フェイスブック）、HPでの情報提供\n・庁内のポスター掲示や転入者へのチラシの配布\n・区政情報広告モニターでの動画再生\n・各種申請書での記載例表示や提出物の案内時におけるマイナンバーカードを目立たせる表示物や説明\n・職員が町会や地域の団体やグループの学習会や研修会などに出向き、区役所の業務についてわかりやすく説明する「出前講座」の実施\n・住民異動届出時におけるマイナンバーカード交付申請書の発行勧奨\n・マイナンバーカード受け取りにかかる来庁予約受付システムの運用"]
[]
[]
[]
[]
[]
[]
[]
[null,"予算額（予算科目）",null,null,null,null,null,"―"]
[null,"事業実施期間（回数）",null,null,null,null,null,"―"]
[null,"事業対象者（人数）",null,null,null,null,null,"―"]
["委託関係","契約・入札方法",null,null,null,null,null,"―"]
[null,"募集要項のポイント",null,null,null,null,null,"―"]
[]
[]
[null,"仕様書のポイント",null,null,null,null,null,"―"]
[]
[]
[null,"選考委員等選考方式",null,null,null,null,null,"―"]
[]
["スケジュール（実施決裁、入札募集開始、説明会、選考会、事業の実施　等）",null,null,null,null,null,null,null,null,null,null,null,null,null,null,null,null,null,null,null,null,null,null,null,"広報スケジュール",null,null,null,"スケ",null,"作業"]
["（前年度）","1月～3月","マイナンバーカード普及への取組のため、区民意識調査結果を分析し、効果的な手法の検討を行う。\n",null,null,null,null,null,null,null,null,null,null,null,null,null,null,null,null,null,null,null,null,null,null,null,null,null,"〇",null,"〇"]
[]
[]
["4月～\n6月",null,"・マイナンバーカード普及への取組みを行う。\n・啓発の効果の測定を行うため、区民意識調査を行う。\n・【随時】出前講座の実施\n・【通年】マイナンバーカード受け取りにかかる来庁予約受付システムの運用",null,null,null,null,null,null,null,null,null,null,null,null,null,null,null,null,null,null,null,null,null,"SNSでの広報\nポスター掲示",null,null,null,"〇",null,"〇"]
[]
[]
["7月～\n9月",null,"・マイナンバーカード普及への取組みを行う。",null,null,null,null,null,null,null,null,null,null,null,null,null,null,null,null,null,null,null,null,null,"SNSでの広報",null,null,null,"〇",null,"〇"]
[]
[]
["10月～\n12月",null,"・マイナンバーカード普及への取組みを行う。\n・区民意識調査にて、啓発の効果の測定を行い、さらなる普及に向けた取組みを検討する。",null,null,null,null,null,null,null,null,null,null,null,null,null,null,null,null,null,null,null,null,null,"SNSでの広報",null,null,null,"〇",null,"〇"]
[]
[]
["1月～\n3月",null,"・マイナンバーカード普及への取組みを行う。\n",null,null,null,null,null,null,null,null,null,null,null,null,null,null,null,null,null,null,null,null,null,"マイナンバーカード普及啓発広報紙掲載\nSNSでの広報",null,null,null,"〇",null,"〇"]
[]
[]
["備考"]
[]
["項目",null,null,null,null,null,null,"内容"]
["講座・イベント・会議名",null,null,null,null,null,null,"―"]
["イベント等開催関係","開催日時",null,null,null,null,null,"―"]
[null,"開催場所",null,null,null,null,null,"―"]
[null,"区役所の主催等",null,null,null,null,null,"―"]
[null,"その他主催団体・組織等",null,null,null,null,null,"―"]
[null,"共催団体・組織等",null,null,null,null,null,"―"]
[null,"後援団体・組織等",null,null,null,null,null,"―"]
[null,"目標事業規模",null,null,null,null,null,"―"]
[null,"その他留意事項",null,null,null,null,null,"―"]
[null,"イベント等\n当日タイムテーブル",null,null,null,null,null,"―"]
[]
[]
[]
[]
[null,"挨拶者",null,null,null,null,null,"―"]
[null,"来賓紹介",null,null,null,null,null,"―"]
[null,"祝電紹介の方法",null,null,null,null,null,"―"]
[null,"動員の方法",null,null,null,null,null,"―"]
["その他他課との連携等",null,null,null,null,null,null,"―"]
["前年度実績",null,null,null,null,null,null,"区民のマイナンバーカードの保有率　41  ％\n交付枚数　25,692 人（令和４年３月末時点）（令和４年４月１日時点の区の人口：62,961人）\n区民意識調査において、\n・「そもそも個人番号カード（マイナンバーカード）のことを知らない」と回答する割合　0.2％\n・「持っていないし、作りたいと思わない」と回答する割合　27.7 %\n・「持っているが、使っていない」と回答する割合　35.9 %\n区広報紙への掲載　２回\nSNSでの広報　年１０回"]
["業績目標",null,null,null,"実績",null,null,"区広報紙への掲載　１回\nSNSでの広報　年１０回",null,null,null,null,null,null,null,null,null,null,null,null,"・区広報紙７月号の区長コラム欄の他、出張申請窓口の記事を３月号まで継続して掲載。\n・出張申請窓口の記事を毎月発信",null,null,null,null,null,null,null,null,"自己評価"]
[null,null,null,null,null,null,null,null,null,null,null,null,null,null,null,null,null,null,null,null,null,null,null,null,null,null,null,null,null,"〇"]
[]
[]
["成果目標",null,null,null,"実績",null,null,"区民のマイナンバーカード保有率80%",null,null,null,null,null,null,null,null,null,null,null,null,"・令和５年３月末での交付率が63.6％",null,null,null,null,null,null,null,null,"×"]
[]
[]
[]
[]
["中期展望",null,null,null,null,null,null,"令和４年度でのマイナンバーカードの保有率80％"]
[]
[]
["成果目標が\n中期展望に\n寄与する理由",null,null,null,null,null,null,"―"]
[]
[]
[]
[]
["SDGｓゴール",null,null,null,16,null,null,null,"平和と公正をすべての人に"]
[null,null,null,null,null,null,null,null,""]
[null,null,null,null,null,null,null,null,""]
[]
["修正履歴"]

{"sheet":"5-4-3","index":26,"n_rows":90,"n_cols":34,"rows_kept":90,"cut":false,"hidden":false,"merged":[[1,0,2,3],[0,0,0,3],[0,4,0,20],[0,21,0,27],[0,28,0,29],[0,30,0,31],[1,4,2,20],[1,21,2,27],[1,28,2,29],[1,30,2,31],[5,33,7,34],[9,1,16,6],[9,7,16,31],[17,1,17,6],[17,7,17,31],[18,1,18,6],[18,7,18,31],[4,0,4,6],[4,7,4,31],[5,0,19,0],[5,1,8,6],[5,7,8,31],[19,1,19,6],[19,7,19,31],[20,0,27,0],[20,1,20,6],[20,7,20,31],[21,1,23,6],[21,7,23,31],[24,1,26,6],[24,7,26,31],[27,1,27,6],[27,7,27,31],[29,0,29,23],[29,24,29,27],[29,28,29,29],[29,30,29,31],[30,0,32,0],[30,1,32,1],[30,2,32,23],[30,24,32,27],[30,28,32,29],[30,30,32,31],[33,0,35,1],[33,2,35,23],[33,24,35,27],[33,28,35,29],[33,30,35,31],[36,0,38,1],[36,2,38,23],[36,24,38,27],[36,28,38,29],[36,30,38,31],[45,0,46,1],[45,2,46,31],[47,0,47,6],[47,7,47,31],[48,0,48,6],[48,7,48,31],[39,0,41,1],[39,2,41,23],[39,24,41,27],[39,28,41,29],[39,30,41,31],[42,0,44,1],[42,2,44,23],[42,24,44,27],[42,28,44,29],[42,30,44,31],[53,7,53,31],[54,1,54,6],[54,7,54,31],[55,1,55,6],[55,7,55,31],[56,1,56,6],[56,7,56,31],[49,0,65,0],[49,1,49,6],[49,7,49,31],[50,1,50,6],[50,7,50,31],[51,1,51,6],[51,7,51,31],[52,1,52,6],[52,7,52,31],[53,1,53,6],[64,1,64,6],[64,7,64,31],[65,1,65,6],[65,7,65,31],[66,0,66,6],[66,7,66,31],[57,1,61,6],[57,7,61,31],[62,1,62,6],[62,7,62,31],[63,1,63,6],[63,7,63,31],[72,0,76,3],[72,4,76,6],[72,7,76,19],[72,20,76,28],[72,29,76,31],[77,0,79,6],[77,7,79,31],[67,0,67,6],[67,7,67,31],[68,0,71,3],[68,4,71,6],[68,7,71,19],[68,20,71,28],[68,29,68,31],[69,29,71,31],[89,0,89,3],[89,4,89,31],[80,0,83,6],[80,7,83,31],[85,0,87,3],[85,4,85,7],[85,8,85,31],[86,4,86,7],[86,8,86,31],[87,4,87,7],[87,8,87,31]]}
["取組番号",null,null,null,"事業名",null,null,null,null,null,null,null,null,null,null,null,null,null,null,null,null,"作成年月日・担当",null,null,null,null,null,null,"重点",null,"新規"]
[{"$f":"RIGHT(CELL(\"filename\",A4),LEN(CELL(\"filename\",A4))-FIND(\"]\",CELL(\"filename\",A4)))","v":"5-4-3"},null,null,null,"窓口サービスにおける不適切事務の撲滅",null,null,null,null,null,null,null,null,null,null,null,null,null,null,null,null,"令和4年4月1日\n窓口サービス課\n(住民登録・戸籍・保険年金)"]
[]
[]
["項目",null,null,null,null,null,null,"内容"]
["事業・業務概要","目的\n（事業の背景を含む）",null,null,null,null,null,"不適切な事務処理の発生を防ぎ、２４区における事務レベルの底上げを図る必要がある。（市政改革プラン３．０、改革の柱４、３区役所業務のさらなる標準化の推進）\n当区では、戸籍の不正閲覧や窓口手数料の着服等の不祥事が発生、国民健康保険については不適切な事務処理による保険料の徴収漏れが発生したため、二度と起こさないという決意のもと不適切事務を防止し、市民の信頼回復に努める。",null,null,null,null,null,null,null,null,null,null,null,null,null,null,null,null,null,null,null,null,null,null,null,null,null,"一覧へ戻る"]
[]
[]
[]
[null,"内容",null,null,null,null,null,"・不適切事務が発生した際には、速やかに上司に報告し、組織で対応していく体制を築くため風通しの良い職場づくりに努める。\n・１か月の自身の業務を振り返り、不適切事務を防止するためのチェック項目について遵守できていたか確認するセルフチェックを毎月実施する。\n・不正閲覧防止対策として、年1回以上、アクセスログ調査（住民登録・戸籍・保険年金）を実施する。"]
[]
[]
[]
[]
[]
[]
[]
[null,"予算額（予算科目）",null,null,null,null,null,"―"]
[null,"事業実施期間（回数）",null,null,null,null,null,"―"]
[null,"事業対象者（人数）",null,null,null,null,null,"―"]
["委託関係","契約・入札方法",null,null,null,null,null,"―"]
[null,"募集要項のポイント",null,null,null,null,null,"―"]
[]
[]
[null,"仕様書のポイント",null,null,null,null,null,"―"]
[]
[]
[null,"選考委員等選考方式",null,null,null,null,null,"―"]
[]
["スケジュール（実施決裁、入札募集開始、説明会、選考会、事業の実施　等）",null,null,null,null,null,null,null,null,null,null,null,null,null,null,null,null,null,null,null,null,null,null,null,"広報スケジュール",null,null,null,"スケ",null,"作業"]
["（前年度）","1月～3月","毎月のセルフチェック\nアクセスログ調査\n",null,null,null,null,null,null,null,null,null,null,null,null,null,null,null,null,null,null,null,null,null,null,null,null,null,"〇",null,"〇"]
[]
[]
["4月～\n6月",null,"毎月のセルフチェック\nアクセスログ調査（保険年金）\n",null,null,null,null,null,null,null,null,null,null,null,null,null,null,null,null,null,null,null,null,null,null,null,null,null,"〇",null,"〇"]
[]
[]
["7月～\n9月",null,"毎月のセルフチェック\nアクセスログ調査（保険年金）\n",null,null,null,null,null,null,null,null,null,null,null,null,null,null,null,null,null,null,null,null,null,null,null,null,null,"〇",null,"〇"]
[]
[]
["10月～\n12月",null,"毎月のセルフチェック\nアクセスログ調査（保険年金・住民登録・戸籍）\n",null,null,null,null,null,null,null,null,null,null,null,null,null,null,null,null,null,null,null,null,null,null,null,null,null,"〇",null,"〇"]
[]
[]
["1月～\n3月",null,"毎月のセルフチェック\nアクセスログ調査（保険年金）\n",null,null,null,null,null,null,null,null,null,null,null,null,null,null,null,null,null,null,null,null,null,null,null,null,null,"〇",null,"〇"]
[]
[]
["備考"]
[]
["項目",null,null,null,null,null,null,"内容"]
["講座・イベント・会議名",null,null,null,null,null,null,"―"]
["イベント等開催関係","開催日時",null,null,null,null,null,"―"]
[null,"開催場所",null,null,null,null,null,"―"]
[null,"区役所の主催等",null,null,null,null,null,"―"]
[null,"その他主催団体・組織等",null,null,null,null,null,"―"]
[null,"共催団体・組織等",null,null,null,null,null,"―"]
[null,"後援団体・組織等",null,null,null,null,null,"―"]
[null,"目標事業規模",null,null,null,null,null,"―"]
[null,"その他留意事項",null,null,null,null,null,"―"]
[null,"イベント等\n当日タイムテーブル",null,null,null,null,null,"―"]
[]
[]
[]
[]
[null,"挨拶者",null,null,null,null,null,"―"]
[null,"来賓紹介",null,null,null,null,null,"―"]
[null,"祝電紹介の方法",null,null,null,null,null,"―"]
[null,"動員の方法",null,null,null,null,null,"―"]
["その他他課との連携等"]
["前年度実績",null,null,null,null,null,null,"不適切事務の件数 ３ 件\n(住民登録・戸籍)毎月のセルフチェック（年12回）、アクセスログ１回調査\n(保険年金)毎月のセルフチェック（年12回）、アクセスログ 12回調査"]
["業績目標",null,null,null,"実績",null,null,"毎月のセルフチェック（年12回）\n（住民登録・戸籍）アクセスログ調査（年1回以上）\n（保険年金）国保業務システムアクセスログ調査（年4回程度）\n",null,null,null,null,null,null,null,null,null,null,null,null,"・セルフチェック　年12回実施\n・アクセスログ調査\n住民情報：１回実施　\n保険年金：12回実施",null,null,null,null,null,null,null,null,"自己評価"]
[null,null,null,null,null,null,null,null,null,null,null,null,null,null,null,null,null,null,null,null,null,null,null,null,null,null,null,null,null,"○"]
[]
[]
["成果目標",null,null,null,"実績",null,null,"不適切事務の件数　０件",null,null,null,null,null,null,null,null,null,null,null,null,"不適切事務の件数　２件",null,null,null,null,null,null,null,null,"×"]
[]
[]
[]
[]
["中期展望",null,null,null,null,null,null,"市民からの信頼が常に確保されている状態。"]
[]
[]
["成果目標が\n中期展望に\n寄与する理由",null,null,null,null,null,null,"不適切事務案件が発生していない状態を継続することで市民からの信頼を得られるため"]
[]
[]
[]
[]
["SDGｓゴール",null,null,null,16,null,null,null,"平和と公正をすべての人に"]
[null,null,null,null,null,null,null,null,{"$f":"+IF(ISERROR(VLOOKUP($E87,#REF!,2,0)),\"\",VLOOKUP($E87,#REF!,2,0))","v":""}]
[null,null,null,null,null,null,null,null,{"$f":"+IF(ISERROR(VLOOKUP($E88,#REF!,2,0)),\"\",VLOOKUP($E88,#REF!,2,0))","v":""}]
[]
["修正履歴"]

{"sheet":"5-4-4","index":27,"n_rows":90,"n_cols":34,"rows_kept":90,"cut":false,"hidden":false,"merged":[[1,0,2,3],[0,0,0,3],[0,4,0,20],[0,21,0,27],[0,28,0,29],[0,30,0,31],[1,4,2,20],[1,21,2,27],[1,28,2,29],[1,30,2,31],[5,33,7,34],[9,1,16,6],[9,7,16,31],[17,1,17,6],[17,7,17,31],[18,1,18,6],[18,7,18,31],[4,0,4,6],[4,7,4,31],[5,0,19,0],[5,1,8,6],[5,7,8,31],[19,1,19,6],[19,7,19,31],[20,0,27,0],[20,1,20,6],[20,7,20,31],[21,1,23,6],[21,7,23,31],[24,1,26,6],[24,7,26,31],[27,1,27,6],[27,7,27,31],[29,0,29,23],[29,24,29,27],[29,28,29,29],[29,30,29,31],[30,0,32,0],[30,1,32,1],[30,2,32,23],[30,24,32,27],[30,28,32,29],[30,30,32,31],[33,0,35,1],[33,2,35,23],[33,24,35,27],[33,28,35,29],[33,30,35,31],[36,0,38,1],[36,2,38,23],[36,24,38,27],[36,28,38,29],[36,30,38,31],[45,0,46,1],[45,2,46,31],[47,0,47,6],[47,7,47,31],[48,0,48,6],[48,7,48,31],[39,0,41,1],[39,2,41,23],[39,24,41,27],[39,28,41,29],[39,30,41,31],[42,0,44,1],[42,2,44,23],[42,24,44,27],[42,28,44,29],[42,30,44,31],[53,7,53,31],[54,1,54,6],[54,7,54,31],[55,1,55,6],[55,7,55,31],[56,1,56,6],[56,7,56,31],[49,0,65,0],[49,1,49,6],[49,7,49,31],[50,1,50,6],[50,7,50,31],[51,1,51,6],[51,7,51,31],[52,1,52,6],[52,7,52,31],[53,1,53,6],[64,1,64,6],[64,7,64,31],[65,1,65,6],[65,7,65,31],[66,0,66,6],[66,7,66,31],[57,1,61,6],[57,7,61,31],[62,1,62,6],[62,7,62,31],[63,1,63,6],[63,7,63,31],[72,0,76,3],[72,4,76,6],[72,7,76,19],[72,20,76,28],[72,29,76,31],[77,0,79,6],[77,7,79,31],[67,0,67,6],[67,7,67,31],[68,0,71,3],[68,4,71,6],[68,7,71,19],[68,20,71,28],[68,29,68,31],[69,29,71,31],[89,0,89,3],[89,4,89,31],[80,0,83,6],[80,7,83,31],[85,0,87,3],[85,4,85,7],[85,8,85,31],[86,4,86,7],[86,8,86,31],[87,4,87,7],[87,8,87,31]]}
["取組番号",null,null,null,"事業名",null,null,null,null,null,null,null,null,null,null,null,null,null,null,null,null,"作成年月日・担当",null,null,null,null,null,null,"重点",null,"新規"]
[{"$f":"RIGHT(CELL(\"filename\",A4),LEN(CELL(\"filename\",A4))-FIND(\"]\",CELL(\"filename\",A4)))","v":"5-4-4"},null,null,null,"国民健康保険料の未収金の減少及び未納防止",null,null,null,null,null,null,null,null,null,null,null,null,null,null,null,null,"令和4年4月1日\n窓口サービス課\n(保険年金)"]
[]
[]
["項目",null,null,null,null,null,null,"内容"]
["事業・業務概要","目的\n（事業の背景を含む）",null,null,null,null,null,"令和４年度の国民健康保険料について、加入者の保険料納付に対する公平性の観点から、未収金の減少、未納防止に取り組むことにより、コロナ禍での収入減少傾向の中、令和２年度収納率（91.23%）を維持する方向で計画する。\n〔市政改革プラン３．０の改革の柱３、３効率的な行財政運営、（４）未収金対策の強化〕",null,null,null,null,null,null,null,null,null,null,null,null,null,null,null,null,null,null,null,null,null,null,null,null,null,"一覧へ戻る"]
[]
[]
[]
[null,"内容",null,null,null,null,null,"初期未納からの督励強化及び処分財産判明世帯への滞納処分の強化を図る\n保険担当と管理担当との連携により不現住調査、他保険加入調査など取り組むことにより資格の適正化を図る"]
[]
[]
[]
[]
[]
[]
[]
[null,"予算額（予算科目）",null,null,null,null,null,"国民健康保険事業会計（区予算なし）\n【参考】　福祉局予算（当区配付分）\n※当年度分については前年度実績を参照して配付のため現段階では未確定\n（R２年度決算時）\n徴収事務用：5,286千円\n（R４ 予算要求）\n・区長マネジメント収納率向上独自取組：報酬　2,819 千円、消耗品費132 千円\n・保険料徴収関係窓口業務用：報酬　5,490千円"]
[null,"事業実施期間（回数）",null,null,null,null,null,"―"]
[null,"事業対象者（人数）",null,null,null,null,null,"―"]
["委託関係","契約・入札方法",null,null,null,null,null,"―"]
[null,"募集要項のポイント",null,null,null,null,null,"―"]
[]
[]
[null,"仕様書のポイント",null,null,null,null,null,"―"]
[]
[]
[null,"選考委員等選考方式",null,null,null,null,null,"―"]
[]
["スケジュール（実施決裁、入札募集開始、説明会、選考会、事業の実施　等）",null,null,null,null,null,null,null,null,null,null,null,null,null,null,null,null,null,null,null,null,null,null,null,"広報スケジュール",null,null,null,"スケ",null,"作業"]
["（前年度）","1月～3月","【２～３月】会計年度任用職員募集要項の区HPへの掲載、募集、試験、採用手続き",null,null,null,null,null,null,null,null,null,null,null,null,null,null,null,null,null,null,null,null,null,null,null,null,null,"〇",null,"〇"]
[]
[]
["4月～\n6月",null,"（現年度分）\n【４～５月】　現年度分のみ未納世帯への催告書送付、財産調査、財産判明世帯への差押予告送付\n【６月】　納付相談、減免申請受付\n（滞納繰越分）\n財産調査、財産判明世帯への差押予告送付及び滞納処分",null,null,null,null,null,null,null,null,null,null,null,null,null,null,null,null,null,null,null,null,null,null,null,null,null,"〇",null,"〇"]
[]
[]
["7月～\n9月",null,"（現年度分）\n過年度相当分未収世帯への特別催告書送付、財産調査、財産判明世帯への差押予告送付及び滞納処分及び現年度６・７月期未納世帯への催告書送付\n（滞納繰越分）\n財産調査、財産判明世帯への差押予告送付及び滞納処分、資格者証世帯主の勤務先調査",null,null,null,null,null,null,null,null,null,null,null,null,null,null,null,null,null,null,null,null,null,null,null,null,null,"〇",null,"〇"]
[]
[]
["10月～\n12月",null,"（現年度分）\n財産調査、財産判明世帯への差押予告送付及び滞納処分及び８～１０月期未納世帯への催告書送付\n（滞納繰越分）\n財産調査、財産判明世帯への差押予告送付及び滞納処分",null,null,null,null,null,null,null,null,null,null,null,null,null,null,null,null,null,null,null,null,null,null,null,null,null,"〇",null,"〇"]
[]
[]
["1月～\n3月",null,"（現年度分）\n現年度分のみ未納世帯への催告書送付、財産調査、財産判明世帯への差押予告送付及び滞納処分、年金事務所への社保加入疑義世帯調査\n（滞納繰越分）\n財産調査、財産判明世帯への差押予告送付及び滞納処分",null,null,null,null,null,null,null,null,null,null,null,null,null,null,null,null,null,null,null,null,null,null,null,null,null,"〇",null,"〇"]
[]
[]
["備考"]
[]
["項目",null,null,null,null,null,null,"内容"]
["講座・イベント・会議名",null,null,null,null,null,null,"―"]
["イベント等開催関係","開催日時",null,null,null,null,null,"―"]
[null,"開催場所",null,null,null,null,null,"―"]
[null,"区役所の主催等",null,null,null,null,null,"―"]
[null,"その他主催団体・組織等",null,null,null,null,null,"―"]
[null,"共催団体・組織等",null,null,null,null,null,"―"]
[null,"後援団体・組織等",null,null,null,null,null,"―"]
[null,"目標事業規模",null,null,null,null,null,"―"]
[null,"その他留意事項",null,null,null,null,null,"―"]
[null,"イベント等\n当日タイムテーブル",null,null,null,null,null,"―"]
[]
[]
[]
[]
[null,"挨拶者",null,null,null,null,null,"―"]
[null,"来賓紹介",null,null,null,null,null,"―"]
[null,"祝電紹介の方法",null,null,null,null,null,"―"]
[null,"動員の方法",null,null,null,null,null,"―"]
["その他他課との連携等"]
["前年度実績",null,null,null,null,null,null,"令和３年度決算時点、現年度収納率 92.13%（対前年度0.90P増）本市平均 92.07%（対前年度 1.09P増）。滞納繰越分収納率 27.78% （対前年度3.22P増）、本市平均24.28% （対前年度1.01P増）\n令和３年度社保疑義世帯の資格適正化等の取り組み（年3回、5月・10月・2月）\n令和３年度不現住調査【住民情報担当と連携】（年1回 ３月）\n\n"]
["業績目標",null,null,null,"実績",null,null,"最終催告書の送付による自主納付の増加、滞納処分の強化による収納率の維持。\n社保疑義世帯の資格適正化等の取り組みを行う。（年3回、5月・10月・2月）\n不現住調査の、住民情報担当と連携しての推進。（年2回の計画）",null,null,null,null,null,null,null,null,null,null,null,null,"最終催告書の送付により、滞納処分を強化した。\n社保疑義世帯の資格適正化等の確保を行った。（3回）\n不現住調査を住民情報担当と連携して実施（2回）\n",null,null,null,null,null,null,null,null,"自己評価"]
[null,null,null,null,null,null,null,null,null,null,null,null,null,null,null,null,null,null,null,null,null,null,null,null,null,null,null,null,null,"○"]
[]
[]
["成果目標",null,null,null,"実績",null,null,"令和２年度の現年度収納率（91.23％）・滞納繰越分収納率（24.56％）の水準を維持する。",null,null,null,null,null,null,null,null,null,null,null,null,"令和5年3月末現在の収納率は令和2年度の同時期と比べて、現年度は88.59%で0.88%プラス、滞納繰越分は25.85%で1.52%プラスである。",null,null,null,null,null,null,null,null,"○"]
[]
[]
[]
[]
["中期展望",null,null,null,null,null,null,"本市全体の目標以上の収納率達成を継続している状態。\n"]
[]
[]
["成果目標が\n中期展望に\n寄与する理由",null,null,null,null,null,null,"平成30年度より実施されている国保運営の広域化にあたり、財政基盤の強化と保険料の納付の公平性の観点から、収納率の向上はより一層求められている。コロナ禍で収納率低下の環境にある中で前年度収納率を維持することで本市全体の目標水準を達成できるため"]
[]
[]
[]
[]
["SDGｓゴール",null,null,null,16,null,null,null,"平和と公正をすべての人に"]
[null,null,null,null,null,null,null,null,{"$f":"+IF(ISERROR(VLOOKUP($E87,#REF!,2,0)),\"\",VLOOKUP($E87,#REF!,2,0))","v":""}]
[null,null,null,null,null,null,null,null,{"$f":"+IF(ISERROR(VLOOKUP($E88,#REF!,2,0)),\"\",VLOOKUP($E88,#REF!,2,0))","v":""}]
[]
["修正履歴"]

{"sheet":"5-4-5","index":28,"n_rows":90,"n_cols":34,"rows_kept":90,"cut":false,"hidden":false,"merged":[[1,0,2,3],[0,0,0,3],[0,4,0,20],[0,21,0,27],[0,28,0,29],[0,30,0,31],[1,4,2,20],[1,21,2,27],[1,28,2,29],[1,30,2,31],[5,33,7,34],[9,1,16,6],[9,7,16,31],[17,1,17,6],[17,7,17,31],[18,1,18,6],[18,7,18,31],[4,0,4,6],[4,7,4,31],[5,0,19,0],[5,1,8,6],[5,7,8,31],[19,1,19,6],[19,7,19,31],[30,28,32,29],[30,30,32,31],[29,0,29,23],[29,24,29,27],[29,28,29,29],[29,30,29,31],[30,0,32,0],[30,1,32,1],[30,2,32,23],[30,24,32,27],[33,0,35,1],[33,2,35,23],[33,24,35,27],[33,28,35,29],[33,30,35,31],[36,0,38,1],[36,2,38,23],[36,24,38,27],[36,28,38,29],[36,30,38,31],[66,0,66,6],[66,7,66,31],[69,29,71,31],[54,1,54,6],[54,7,54,31],[55,1,55,6],[45,0,46,1],[45,2,46,31],[47,0,47,6],[47,7,47,31],[48,0,48,6],[48,7,48,31],[55,7,55,31],[56,1,56,6],[56,7,56,31],[65,7,65,31],[57,1,61,6],[57,7,61,31],[62,1,62,6],[62,7,62,31],[63,1,63,6],[63,7,63,31],[72,0,76,3],[72,4,76,6],[72,7,76,19],[72,20,76,28],[72,29,76,31],[77,0,79,6],[77,7,79,31],[67,0,67,6],[67,7,67,31],[68,0,71,3],[68,4,71,6],[68,7,71,19],[68,20,71,28],[68,29,68,31],[89,0,89,3],[89,4,89,31],[80,0,83,6],[80,7,83,31],[85,0,87,3],[85,4,85,7],[85,8,85,31],[86,4,86,7],[86,8,86,31],[87,4,87,7],[87,8,87,31],[20,0,27,0],[20,1,20,6],[20,7,20,31],[21,1,23,6],[21,7,23,31],[24,1,26,6],[24,7,26,31],[27,1,27,6],[27,7,27,31],[39,24,41,27],[39,28,41,29],[39,30,41,31],[42,0,44,1],[42,2,44,23],[42,24,44,27],[42,28,44,29],[42,30,44,31],[53,7,53,31],[39,0,41,1],[39,2,41,23],[49,0,65,0],[49,1,49,6],[49,7,49,31],[50,1,50,6],[50,7,50,31],[51,1,51,6],[51,7,51,31],[52,1,52,6],[52,7,52,31],[53,1,53,6],[64,1,64,6],[64,7,64,31],[65,1,65,6]]}
["取組番号",null,null,null,"事業名",null,null,null,null,null,null,null,null,null,null,null,null,null,null,null,null,"作成年月日・担当",null,null,null,null,null,null,"重点",null,"新規"]
[{"$f":"RIGHT(CELL(\"filename\",A4),LEN(CELL(\"filename\",A4))-FIND(\"]\",CELL(\"filename\",A4)))","v":"5-4-5"},null,null,null,"庶務業務及びコンプライアンスの確保",null,null,null,null,null,null,null,null,null,null,null,null,null,null,null,null,"令和4年4月1日\n総務課"]
[]
[]
["項目",null,null,null,null,null,null,"内容"]
["事業・業務概要","目的\n（事業の背景を含む）",null,null,null,null,null,"　効果的な区政運営の行うため、区業務の進捗管理を行い、総合的かつ効率的に庶務業務を実施する。また、職員のコンプライアンス意識を向上させ、区民に対して説明責任を果たせる組織とすることで、区民の区政に対する信頼を確保する。",null,null,null,null,null,null,null,null,null,null,null,null,null,null,null,null,null,null,null,null,null,null,null,null,null,"一覧へ戻る"]
[]
[]
[]
[null,"内容",null,null,null,null,null,"庶務業務においては、区業務全般の進捗管理を行い、職員がスムーズに業務が行えるようサポートする。コンプライアンスの確保については、区民に対して説明責任を果たすため、これまで、区長・副区長のマネジメントのもと、さまざまなコンプライアンス意識の向上の取組を行うことで、「来庁者等に対する窓口サービス」の格付で星二つを獲得するなど、一定の成果をあげることができた。\n　しかしながら、コンプライアンス違反に起因した不祥事等が依然として発生している。\n　職員のコンプライアンス意識を向上させ、区民に対しての説明責任を果たすために自律的な取組をうながす。\n【庶務経常事務】\n・文書管理事務（文書収受、発送、各種照会・回答、情報公開・個人情報保護関係他）\n・公益通報、服務規律、コンプライアンス関係事務\n・内部統制関係事務\n・法務・訴訟関係事務　（顧問弁護士の活用を含む）\n・人材育成行動計画に基づく人材育成、研修の実施\n・安全衛生、公務災害、環境管理関係事務\n・会計年度任用職員等の臨時職員採用事務\n・勤怠処理\n・給与、福利厚生関係事務\n・所属長等日程管理\n・市会関係事務\n・表彰関係事務（市民表彰、美化運動功労者等）\n・監査関係事務\n・ＩＣＴ関係事務\n・自衛官の募集\n・災害動員、業務継続計画関係事務\n・経営会議の運営、課題の管理、事務改善\n・計理（他課等起案決裁承認）、寄付収受、財産・物品管理、小口支払基金関係事務\n・会計（支出命令の審査含む）、新公会計関係事務\n・他の所属に属さないもの　等\n【コンプライアンス意識の向上の具体的取組】\n・区長、副区長が参加する朝礼の実施および職場巡視\n・コンプライアンス、ハラスメント、個人情報保護、接遇、契約・会計等に係る研修について、課題に対応した適切な研修テーマを設定するなどして効果的に実施\n・人権問題についての理解・認識を深め、人権意識の高揚を図ることを目的とし、啓発事業への参加などによる研修を実施\n・コンプライアンス推進強化月間の取組の実施\n・他所属の不祥事案の共有\n・適正な決裁・審査事務の実施"]
[]
[]
[]
[]
[]
[]
[]
[null,"予算額（予算科目）",null,null,null,null,null,"597千円（接遇研修実施及び顧問弁護士利用の報償金）"]
[null,"事業実施期間（回数）",null,null,null,null,null,"接遇研修は１回以上・顧問弁護士費用は年７回"]
[null,"事業対象者（人数）",null,null,null,null,null,"区職員全員（接遇研修）"]
["委託関係","契約・入札方法",null,null,null,null,null,"　接遇に関して極めて専門的かつ高度な知識を有し、他の地方公共団体や民間企業において、接遇に関する研修の講師実績を多数有している講師に対し、報償金として支出する。\n　大阪弁護士会から推薦された、行政事件について豊富な知識と経験を有し、本市行政に精通している弁護士に対し、報償金として支出する。"]
[null,"募集要項のポイント",null,null,null,null,null,"―"]
[]
[]
[null,"仕様書のポイント",null,null,null,null,null,"―"]
[]
[]
[null,"選考委員等選考方式",null,null,null,null,null,"―"]
[]
["スケジュール（実施決裁、入札募集開始、説明会、選考会、事業の実施　等）",null,null,null,null,null,null,null,null,null,null,null,null,null,null,null,null,null,null,null,null,null,null,null,"広報スケジュール",null,null,null,"スケ",null,"作業"]
["（前年度）","1月～3月","・職場環境改善等の取組の実施（11月～3月）\n・区長、副区長の各課担当朝礼の参加（２月（各担当１回、計８回））\n・契約事務研修の実施（３月）\n・庶務経常業務（随時）\n・他所属の不祥事案の共有（随時）\n・適正な決裁・審査事務の実施（随時）\n・会計年度任用職員等の採用(随時)　",null,null,null,null,null,null,null,null,null,null,null,null,null,null,null,null,null,null,null,null,null,null,null,null,null,"〇",null,"〇"]
[]
[]
["4月～\n6月",null,"・庶務経常業務（随時）\n・災害動員・業務継続計画の更新作業及び各課共有（４月～６月）\n・区長、副区長の各課担当朝礼の参加（５月（各担当１回、計８回））\n・契約・会計事務研修の準備（６月～）\n・適正な決裁・審査事務の実施（随時）\n・会計年度任用職員等の採用(随時)",null,null,null,null,null,null,null,null,null,null,null,null,null,null,null,null,null,null,null,null,null,null,null,null,null,"〇",null,"〇"]
[]
[]
["7月～\n9月",null,"・庶務経常業務（随時）　\n・ワーク・ライフ・バランス推進月間の取組（７月～8月）\n・管理監督者向け(係長級以上対象）ハラスメント研修（７月）\n・契約・会計事務研修の実施（８月）\n・コンプライアンス推進強化月間の取組（９月）\n・区長、副区長の各課担当朝礼の参加（９月（各担当１回、計８回））\n・接遇研修の内容検討（７月～９月）\n・接遇研修の実施（９月～11月）\n・適正な決裁・審査事務の実施（随時）\n・会計年度任用職員等の採用(随時)",null,null,null,null,null,null,null,null,null,null,null,null,null,null,null,null,null,null,null,null,null,null,null,null,null,"〇",null,"〇"]
[]
[]
["10月～\n12月",null,"・庶務経常業務（随時）\n・ストレスチェックの結果を受けた対応策の検討（９月～10月）\n・接遇研修の実施（９月～11月）\n・人権研修の実施（12月）\n・接遇強化月間の取組（11月～12月）\n・ワーク・ライフ・バランス推進月間の取組（11月）　\n・コンプライアンス研修、個人情報保護研修（12月）\n・管理監督者向けメンタルヘルスに関する研修（12月）\n・職場環境改善等の取組の実施（11月～3月）\n・適正な決裁・審査事務の実施（随時）\n・会計年度任用職員等の採用(随時)　",null,null,null,null,null,null,null,null,null,null,null,null,null,null,null,null,null,null,null,null,null,null,null,null,null,"〇",null,"〇"]
[]
[]
["1月～\n3月",null,"・職場環境改善等の取組の実施（11月～3月）\n・区長、副区長の各課担当朝礼の参加（２月（各担当１回、計８回））\n・契約事務研修の実施（３月）\n・庶務経常業務（随時）\n・適正な決裁・審査事務の実施（随時）\n・会計年度任用職員等の採用(随時)　",null,null,null,null,null,null,null,null,null,null,null,null,null,null,null,null,null,null,null,null,null,null,null,null,null,"〇",null,"〇"]
[]
[]
["備考"]
[]
["項目",null,null,null,null,null,null,"内容"]
["講座・イベント・会議名",null,null,null,null,null,null,"―"]
["イベント等開催関係","開催日時",null,null,null,null,null,"―"]
[null,"開催場所",null,null,null,null,null,"―"]
[null,"区役所の主催等",null,null,null,null,null,"―"]
[null,"その他主催団体・組織等",null,null,null,null,null,"―"]
[null,"共催団体・組織等",null,null,null,null,null,"―"]
[null,"後援団体・組織等",null,null,null,null,null,"―"]
[null,"目標事業規模",null,null,null,null,null,"―"]
[null,"その他留意事項",null,null,null,null,null,"―"]
[null,"イベント等\n当日タイムテーブル",null,null,null,null,null,"―"]
[]
[]
[]
[]
[null,"挨拶者",null,null,null,null,null,"―"]
[null,"来賓紹介",null,null,null,null,null,"―"]
[null,"祝電紹介の方法",null,null,null,null,null,"―"]
[null,"動員の方法",null,null,null,null,null,"―"]
["その他他課との連携等",null,null,null,null,null,null,"―"]
["前年度実績",null,null,null,null,null,null,"・区長、副区長が参加する朝礼の実施および職場巡視（年３回）\n・コンプライアンス、個人情報保護、接遇、契約・会計に係る研修について、課題に対応した適切な研修テーマを設定するなどして効果的に実施（各１回）\n・管理監督者向けハラスメント研修（７月）\n・コンプライアンス推進強化月間の取組の実施（９月）\n・ワーク・ライフ・バランス推進月間の取組（７月・11月）\n・接遇強化月間の取組（11月～12月）\n・人権に関する研修の実施（1月）\n・管理監督者向け「講師派遣型職場環境ミーティング」に関する研修（12月）\n・他所属の不祥事案の共有（随時）\n・不適切な事務処理事案の件数　【14件】（令和３年度）\n・区役所来庁者等に対するサービスの格付け結果　(評価項目全課平均「身だしなみ」3.7点、印象3.7点（令和３年度）"]
["業績目標",null,null,null,"実績",null,null,"・区長、副区長が参加する朝礼の実施および職場巡視（年3回）\n・コンプライアンス、ハラスメント、個人情報保護、接遇、契約・会計等に係る研修の実施（各1回）\n・コンプライアンス推進強化月間の取組の実施（９月）\n・人権に関する啓発事業への参加などによる研修の実施（12月）\n・ストレスチェックの結果に基づく職場改善の取組の実施（11月～３月）\n",null,null,null,null,null,null,null,null,null,null,null,null,"・区長、副区長が参加する朝礼の実施及び職場巡視（５月・９月・２月）\n・ハラスメント研修（係長級以上対象）の実施（７月）　　　　　\n・契約・会計等研修の実施（８月）\n・コンプライアンス推進強化月間の取組の実施（９月）\n・窓口サービスアップ研修の実施（９～11月）\n・接遇強化月間の取組の実施（９月～11月）\n・服務研修、コンプライアンス研修・個人情報保護に関する研修の実施（11月～1月）\n・管理監督者向けラインケア研修（12月）\n・法務事務及び臨時職員採用にかかる区ガイドラインの説明会の実施（12月）\n・人権に関する研修の実施（12月～1月）\n・他所属の不祥事案の共有（随時）",null,null,null,null,null,null,null,null,"自己評価"]
[null,null,null,null,null,null,null,null,null,null,null,null,null,null,null,null,null,null,null,null,null,null,null,null,null,null,null,null,null,"〇"]
[]
[]
["成果目標",null,null,null,"実績",null,null,"・不適切な事務処理事案の件数を前年度から10％減とする\n・「区役所来庁者等に対するサービスの格付け結果」において、評価項目「身だしなみ」3.4点以上、「印象」3.4点以上を獲得する。",null,null,null,null,null,null,null,null,null,null,null,null,"・不適切な事務処理事案の件数８件で前年度から約43％減（昨年度14件）\n・区役所来庁者等に対するサービスの格付け結果　(評価項目全課平均「身だしなみ」3.8点、「話し方、説明」4.3点）",null,null,null,null,null,null,null,null,"◎"]
[]
[]
[]
[]
["中期展望",null,null,null,null,null,null,"コンプライアンスを確保し、区民に対して説明責任を果たすことで、より一層の区政に対する信頼を確保する。"]
[]
[]
["成果目標が\n中期展望に\n寄与する理由",null,null,null,null,null,null,"区役所来庁者等に対するサービスの維持・向上を図り、不適切事務処理事案の発生件数を減らすことが、区政に対する信頼の確保に必要なため。"]
[]
[]
[]
[]
["SDGｓゴール",null,null,null,5,null,null,null,"ジェンダー平等を実現しよう"]
[null,null,null,null,10,null,null,null,"人や国の不平等をなくそう"]
[null,null,null,null,16,null,null,null,"平和と公正をすべての人に"]
[]
["修正履歴",null,null,null,"スケジュール修正"]

{"sheet":"5-4-6","index":29,"n_rows":90,"n_cols":34,"rows_kept":90,"cut":false,"hidden":false,"merged":[[1,0,2,3],[0,0,0,3],[0,4,0,20],[0,21,0,27],[0,28,0,29],[0,30,0,31],[1,4,2,20],[1,21,2,27],[1,28,2,29],[1,30,2,31],[5,33,7,34],[9,1,16,6],[9,7,16,31],[17,1,17,6],[17,7,17,31],[18,1,18,6],[18,7,18,31],[4,0,4,6],[4,7,4,31],[5,0,19,0],[5,1,8,6],[5,7,8,31],[19,1,19,6],[19,7,19,31],[20,0,27,0],[20,1,20,6],[20,7,20,31],[21,1,23,6],[21,7,23,31],[24,1,26,6],[24,7,26,31],[27,1,27,6],[27,7,27,31],[29,0,29,23],[29,24,29,27],[29,28,29,29],[29,30,29,31],[30,0,32,0],[30,1,32,1],[30,2,32,23],[30,24,32,27],[30,28,32,29],[30,30,32,31],[33,0,35,1],[33,2,35,23],[33,24,35,27],[33,28,35,29],[33,30,35,31],[36,0,38,1],[36,2,38,23],[36,24,38,27],[36,28,38,29],[36,30,38,31],[45,0,46,1],[45,2,46,31],[47,0,47,6],[47,7,47,31],[48,0,48,6],[48,7,48,31],[39,0,41,1],[39,2,41,23],[39,24,41,27],[39,28,41,29],[39,30,41,31],[42,0,44,1],[42,2,44,23],[42,24,44,27],[42,28,44,29],[42,30,44,31],[53,7,53,31],[54,1,54,6],[54,7,54,31],[55,1,55,6],[55,7,55,31],[56,1,56,6],[56,7,56,31],[49,0,65,0],[49,1,49,6],[49,7,49,31],[50,1,50,6],[50,7,50,31],[51,1,51,6],[51,7,51,31],[52,1,52,6],[52,7,52,31],[53,1,53,6],[64,1,64,6],[64,7,64,31],[65,1,65,6],[65,7,65,31],[66,0,66,6],[66,7,66,31],[57,1,61,6],[57,7,61,31],[62,1,62,6],[62,7,62,31],[63,1,63,6],[63,7,63,31],[72,0,76,3],[72,4,76,6],[72,7,76,19],[72,20,76,28],[72,29,76,31],[77,0,79,6],[77,7,79,31],[67,0,67,6],[67,7,67,31],[68,0,71,3],[68,4,71,6],[68,7,71,19],[68,20,71,28],[68,29,68,31],[69,29,71,31],[89,0,89,3],[89,4,89,31],[80,0,83,6],[80,7,83,31],[85,0,87,3],[85,4,85,7],[85,8,85,31],[86,4,86,7],[86,8,86,31],[87,4,87,7],[87,8,87,31]]}
["取組番号",null,null,null,"事業名",null,null,null,null,null,null,null,null,null,null,null,null,null,null,null,null,"作成年月日・担当",null,null,null,null,null,null,"重点",null,"新規"]
[{"$f":"RIGHT(CELL(\"filename\",A4),LEN(CELL(\"filename\",A4))-FIND(\"]\",CELL(\"filename\",A4)))","v":"5-4-6"},null,null,null,"弁護士による無料法律相談の実施",null,null,null,null,null,null,null,null,null,null,null,null,null,null,null,null,"令和4年4月1日\n総務課（庶務）"]
[]
[]
["項目",null,null,null,null,null,null,"内容"]
["事業・業務概要","目的\n（事業の背景を含む）",null,null,null,null,null,"法的知識を要する問題を抱える市民の問題解決のため、弁護士が情報提供や助言を行い、市民福祉の増進に寄与することを目的とする。",null,null,null,null,null,null,null,null,null,null,null,null,null,null,null,null,null,null,null,null,null,null,null,null,null,"一覧へ戻る"]
[]
[]
[]
[null,"内容",null,null,null,null,null,"・弁護士による無料法律相談（原則毎月第１～第４水曜日　午後１時～５時）\n・面談による相談の実施にあたっては、新型コロナウイルス感染症対策を講じたうえで行う。\n・面談による相談が実施困難となった際は、速やかに本庁舎での電話相談に切り替える。"]
[]
[]
[]
[]
[]
[]
[]
[null,"予算額（予算科目）",null,null,null,null,null,"市民局予算"]
[null,"事業実施期間（回数）",null,null,null,null,null,"通年（年45回　　原則毎月第１～第４水曜日）"]
[null,"事業対象者（人数）",null,null,null,null,null,"各回定員８名（相談時間は1人30分）"]
["委託関係","契約・入札方法",null,null,null,null,null,"市民局で契約"]
[null,"募集要項のポイント",null,null,null,null,null,"―"]
[]
[]
[null,"仕様書のポイント",null,null,null,null,null,"―"]
[]
[]
[null,"選考委員等選考方式",null,null,null,null,null,"―"]
[]
["スケジュール（実施決裁、入札募集開始、説明会、選考会、事業の実施　等）",null,null,null,null,null,null,null,null,null,null,null,null,null,null,null,null,null,null,null,null,null,null,null,"広報スケジュール",null,null,null,"スケ",null,"作業"]
["（前年度）","1月～3月","弁護士による無料法律相談を実施",null,null,null,null,null,null,null,null,null,null,null,null,null,null,null,null,null,null,null,null,null,"3月　HPに次年度の年間予定表を掲載",null,null,null,"○",null,"○"]
[]
[]
["4月～\n6月",null,"弁護士による無料法律相談を実施",null,null,null,null,null,null,null,null,null,null,null,null,null,null,null,null,null,null,null,null,null,"毎月　広報紙へ掲載",null,null,null,"○",null,"○"]
[]
[]
["7月～\n9月",null,"弁護士による無料法律相談を実施",null,null,null,null,null,null,null,null,null,null,null,null,null,null,null,null,null,null,null,null,null,"毎月　広報紙へ掲載",null,null,null,"○",null,"○"]
[]
[]
["10月～\n12月",null,"弁護士による無料法律相談を実施",null,null,null,null,null,null,null,null,null,null,null,null,null,null,null,null,null,null,null,null,null,"毎月　広報紙へ掲載",null,null,null,"○",null,"○"]
[]
[]
["1月～\n3月",null,"弁護士による無料法律相談を実施",null,null,null,null,null,null,null,null,null,null,null,null,null,null,null,null,null,null,null,null,null,"毎月　広報紙へ掲載",null,null,null,"〇",null,"〇"]
[]
[]
["備考"]
[]
["項目",null,null,null,null,null,null,"内容"]
["講座・イベント・会議名",null,null,null,null,null,null,"弁護士による無料法律相談"]
["イベント等開催関係","開催日時",null,null,null,null,null,"原則毎月第１～第４水曜日　午後１時～５時"]
[null,"開催場所",null,null,null,null,null,"大正区役所5階503会議室"]
[null,"区役所の主催等",null,null,null,null,null,"市民局実施事業"]
[null,"その他主催団体・組織等",null,null,null,null,null,"大阪弁護士会へ委託"]
[null,"共催団体・組織等",null,null,null,null,null,"―"]
[null,"後援団体・組織等",null,null,null,null,null,"―"]
[null,"目標事業規模",null,null,null,null,null,"各回定員８名（相談時間は1人30分）"]
[null,"その他留意事項",null,null,null,null,null,"―"]
[null,"イベント等\n当日タイムテーブル",null,null,null,null,null,"9：00～　　電話にて受付（先着順）\n13：00～17：00　　弁護士による無料法律相談（1人30分）"]
[]
[]
[]
[]
[null,"挨拶者",null,null,null,null,null,"―"]
[null,"来賓紹介",null,null,null,null,null,"―"]
[null,"祝電紹介の方法",null,null,null,null,null,"―"]
[null,"動員の方法",null,null,null,null,null,"―"]
["その他他課との連携等",null,null,null,null,null,null,"―"]
["前年度実績",null,null,null,null,null,null,"【令和３年度実績見込み】\n年間45回開催\n定員に占める相談者の割合：92.8%\n相談者の満足度（アンケートで「満足した」「やや満足した」と回答した人の割合）：93.2％"]
["業績目標",null,null,null,"実績",null,null,"弁護士による無料法律相談（年45回開催）",null,null,null,null,null,null,null,null,null,null,null,null,"年間45回開催",null,null,null,null,null,null,null,null,"自己評価"]
[null,null,null,null,null,null,null,null,null,null,null,null,null,null,null,null,null,null,null,null,null,null,null,null,null,null,null,null,null,"〇"]
[]
[]
["成果目標",null,null,null,"実績",null,null,"相談者へのアンケートで「問題解決に必要な助言が得られた」と回答した人の割合：80％以上",null,null,null,null,null,null,null,null,null,null,null,null,"アンケートにおいて、「十分に得ることができた」「ある程度得ることができた」と回答した人の割合は、82.6％となった。",null,null,null,null,null,null,null,null,"〇"]
[]
[]
[]
[]
["中期展望",null,null,null,null,null,null,"法的知識を要する問題を抱える市民の問題解決の手段として、無料法律相談を浸透させる。"]
[]
[]
["成果目標が\n中期展望に\n寄与する理由",null,null,null,null,null,null,"相談者を増加させるとともに満足度を高めることが、事業の浸透"]
[]
[]
[]
[]
["SDGｓゴール",null,null,null,10,null,null,null,{"$f":"+IF(ISERROR(VLOOKUP($E86,[5]SDGｓ!$A$2:$B$18,2,0)),\"\",VLOOKUP($E86,[5]SDGｓ!$A$2:$B$18,2,0))","v":"人や国の不平等をなくそう"}]
[null,null,null,null,null,null,null,null,{"$f":"+IF(ISERROR(VLOOKUP($E87,[5]SDGｓ!$A$2:$B$18,2,0)),\"\",VLOOKUP($E87,[5]SDGｓ!$A$2:$B$18,2,0))","v":""}]
[null,null,null,null,null,null,null,null,{"$f":"+IF(ISERROR(VLOOKUP($E88,[5]SDGｓ!$A$2:$B$18,2,0)),\"\",VLOOKUP($E88,[5]SDGｓ!$A$2:$B$18,2,0))","v":""}]
[]
["修正履歴"]

{"sheet":"5-4-7","index":30,"n_rows":90,"n_cols":34,"rows_kept":90,"cut":false,"hidden":false,"merged":[[1,0,2,3],[0,0,0,3],[0,4,0,20],[0,21,0,27],[0,28,0,29],[0,30,0,31],[1,4,2,20],[1,21,2,27],[1,28,2,29],[1,30,2,31],[5,33,7,34],[9,1,16,6],[9,7,16,31],[17,1,17,6],[17,7,17,31],[18,1,18,6],[18,7,18,31],[4,0,4,6],[4,7,4,31],[5,0,19,0],[5,1,8,6],[5,7,8,31],[19,1,19,6],[19,7,19,31],[20,0,27,0],[20,1,20,6],[20,7,20,31],[21,1,23,6],[21,7,23,31],[24,1,26,6],[24,7,26,31],[27,1,27,6],[27,7,27,31],[29,0,29,23],[29,24,29,27],[29,28,29,29],[29,30,29,31],[30,0,32,0],[30,1,32,1],[30,2,32,23],[30,24,32,27],[30,28,32,29],[30,30,32,31],[33,0,35,1],[33,2,35,23],[33,24,35,27],[33,28,35,29],[33,30,35,31],[36,0,38,1],[36,2,38,23],[36,24,38,27],[36,28,38,29],[36,30,38,31],[45,0,46,1],[45,2,46,31],[47,0,47,6],[47,7,47,31],[48,0,48,6],[48,7,48,31],[39,0,41,1],[39,2,41,23],[39,24,41,27],[39,28,41,29],[39,30,41,31],[42,0,44,1],[42,2,44,23],[42,24,44,27],[42,28,44,29],[42,30,44,31],[53,7,53,31],[54,1,54,6],[54,7,54,31],[55,1,55,6],[55,7,55,31],[56,1,56,6],[56,7,56,31],[49,0,65,0],[49,1,49,6],[49,7,49,31],[50,1,50,6],[50,7,50,31],[51,1,51,6],[51,7,51,31],[52,1,52,6],[52,7,52,31],[53,1,53,6],[64,1,64,6],[64,7,64,31],[65,1,65,6],[65,7,65,31],[66,0,66,6],[66,7,66,31],[57,1,61,6],[57,7,61,31],[62,1,62,6],[62,7,62,31],[63,1,63,6],[63,7,63,31],[72,0,76,3],[72,4,76,6],[72,7,76,19],[72,20,76,28],[72,29,76,31],[77,0,79,6],[77,7,79,31],[67,0,67,6],[67,7,67,31],[68,0,71,3],[68,4,71,6],[68,7,71,19],[68,20,71,28],[68,29,68,31],[69,29,71,31],[89,0,89,3],[89,4,89,31],[80,0,83,6],[80,7,83,31],[85,0,87,3],[85,4,85,7],[85,8,85,31],[86,4,86,7],[86,8,86,31],[87,4,87,7],[87,8,87,31]]}
["取組番号",null,null,null,"事業名",null,null,null,null,null,null,null,null,null,null,null,null,null,null,null,null,"作成年月日・担当",null,null,null,null,null,null,"重点",null,"新規"]
[{"$f":"RIGHT(CELL(\"filename\",A4),LEN(CELL(\"filename\",A4))-FIND(\"]\",CELL(\"filename\",A4)))","v":"5-4-7"},null,null,null,"不動産に関する無料相談の実施",null,null,null,null,null,null,null,null,null,null,null,null,null,null,null,null,"令和4年4月1日\n総務課（庶務）"]
[]
[]
["項目",null,null,null,null,null,null,"内容"]
["事業・業務概要","目的\n（事業の背景を含む）",null,null,null,null,null,"市民が生活する上で生じる不動産の賃貸及び売買や宅建業法に関する一般的な相談に応じて助言を行い、もって市民の利益保護に資することを目的とする。",null,null,null,null,null,null,null,null,null,null,null,null,null,null,null,null,null,null,null,null,null,null,null,null,null,"一覧へ戻る"]
[]
[]
[]
[null,"内容",null,null,null,null,null,"・全日本不動産協会大阪府本部中央支部及び大阪府宅地建物取引業協会西支部と協力し、不動産に関する無料相談を実施。（奇数月の第3火曜日　　午後1時～4時）\n・面談による相談の実施にあたっては、新型コロナウイルス感染症対策を講じたうえで行う。\n・面談による相談が実施困難となった際を想定し、電話相談など面談によらない方法について検討・実施。"]
[]
[]
[]
[]
[]
[]
[]
[null,"予算額（予算科目）",null,null,null,null,null,"―"]
[null,"事業実施期間（回数）",null,null,null,null,null,"年6回（奇数月の第3火曜日）"]
[null,"事業対象者（人数）",null,null,null,null,null,"各回定員６名（相談時間は1人30分）"]
["委託関係","契約・入札方法",null,null,null,null,null,"―"]
[null,"募集要項のポイント",null,null,null,null,null,"―"]
[]
[]
[null,"仕様書のポイント",null,null,null,null,null,"―"]
[]
[]
[null,"選考委員等選考方式",null,null,null,null,null,"―"]
[]
["スケジュール（実施決裁、入札募集開始、説明会、選考会、事業の実施　等）",null,null,null,null,null,null,null,null,null,null,null,null,null,null,null,null,null,null,null,null,null,null,null,"広報スケジュール",null,null,null,"スケ",null,"作業"]
["（前年度）","1月～3月","1月　不動産に関する無料相談を実施\n\n３月　不動産に関する無料相談を実施",null,null,null,null,null,null,null,null,null,null,null,null,null,null,null,null,null,null,null,null,null,"1月、3月　広報紙に掲載",null,null,null,"○",null,"○"]
[]
[]
["4月～\n6月",null,"５月　不動産に関する無料相談を実施",null,null,null,null,null,null,null,null,null,null,null,null,null,null,null,null,null,null,null,null,null,"5月　広報紙に掲載",null,null,null,"○",null,"○"]
[]
[]
["7月～\n9月",null,"７月　不動産に関する無料相談を実施\n\n９月　不動産に関する無料相談を実施",null,null,null,null,null,null,null,null,null,null,null,null,null,null,null,null,null,null,null,null,null,"7月、9月　広報紙に掲載",null,null,null,"○",null,"○"]
[]
[]
["10月～\n12月",null,"11月　不動産に関する無料相談を実施",null,null,null,null,null,null,null,null,null,null,null,null,null,null,null,null,null,null,null,null,null,"11月　広報紙に掲載",null,null,null,"○",null,"○"]
[]
[]
["1月～\n3月",null,"1月　不動産に関する無料相談を実施\n\n３月　不動産に関する無料相談を実施",null,null,null,null,null,null,null,null,null,null,null,null,null,null,null,null,null,null,null,null,null,"1月、3月　広報紙に掲載",null,null,null,"〇",null,"〇"]
[]
[]
["備考"]
[]
["項目",null,null,null,null,null,null,"内容"]
["講座・イベント・会議名",null,null,null,null,null,null,"不動産に関する無料相談"]
["イベント等開催関係","開催日時",null,null,null,null,null,"奇数月の第3火曜日　　午後1時～4時"]
[null,"開催場所",null,null,null,null,null,"大正区役所　2階さわやか広場"]
[null,"区役所の主催等",null,null,null,null,null,"協力"]
[null,"その他主催団体・組織等",null,null,null,null,null,"全日本不動産協会大阪府本部中央支部、大阪府宅地建物取引業協会西支部"]
[null,"共催団体・組織等",null,null,null,null,null,"―"]
[null,"後援団体・組織等",null,null,null,null,null,"―"]
[null,"目標事業規模",null,null,null,null,null,"各回定員６名（相談時間は1人30分）"]
[null,"その他留意事項",null,null,null,null,null,"―"]
[null,"イベント等\n当日タイムテーブル",null,null,null,null,null,"開催日の2週間前から　　電話にて受付（先着順）\n当日　13：00～16：00　　不動産に関する無料相談（1人30分）"]
[]
[]
[]
[]
[null,"挨拶者",null,null,null,null,null,"―"]
[null,"来賓紹介",null,null,null,null,null,"―"]
[null,"祝電紹介の方法",null,null,null,null,null,"―"]
[null,"動員の方法",null,null,null,null,null,"―"]
["その他他課との連携等",null,null,null,null,null,null,"―"]
["前年度実績",null,null,null,null,null,null,"【令和３年度実績見込み】\n年４回開催\n定員に占める相談者の割合　66.6％\n相談者の満足度（アンケートで「大変良かった」「良かった」と回答した人の割合）：93.8％"]
["業績目標",null,null,null,"実績",null,null,"不動産に関する無料相談（年5回開催）",null,null,null,null,null,null,null,null,null,null,null,null,"目標どおりの回数を開催した。",null,null,null,null,null,null,null,null,"自己評価"]
[null,null,null,null,null,null,null,null,null,null,null,null,null,null,null,null,null,null,null,null,null,null,null,null,null,null,null,null,null,"〇"]
[]
[]
["成果目標",null,null,null,"実績",null,null,"相談者へのアンケートで「問題解決に必要な助言が得られた」と回答した人の割合：80％以上",null,null,null,null,null,null,null,null,null,null,null,null,"アンケートにおいて、「満足した」「やや満足した」と回答した人の割合は、93.3％となった。",null,null,null,null,null,null,null,null,"◎"]
[]
[]
[]
[]
["中期展望",null,null,null,null,null,null,"市民が生活する上で生じる不動産の賃貸及び売買や宅建業法に関する一般的な相談ができる場として、不動産相談を浸透させる。"]
[]
[]
["成果目標が\n中期展望に\n寄与する理由",null,null,null,null,null,null,"相談者を増加させるとともに満足度を高めることが、事業の浸透に繋がるため"]
[]
[]
[]
[]
["SDGｓゴール",null,null,null,10,null,null,null,{"$f":"+IF(ISERROR(VLOOKUP($E86,[5]SDGｓ!$A$2:$B$18,2,0)),\"\",VLOOKUP($E86,[5]SDGｓ!$A$2:$B$18,2,0))","v":"人や国の不平等をなくそう"}]
[null,null,null,null,null,null,null,null,{"$f":"+IF(ISERROR(VLOOKUP($E87,[5]SDGｓ!$A$2:$B$18,2,0)),\"\",VLOOKUP($E87,[5]SDGｓ!$A$2:$B$18,2,0))","v":""}]
[null,null,null,null,null,null,null,null,{"$f":"+IF(ISERROR(VLOOKUP($E88,[5]SDGｓ!$A$2:$B$18,2,0)),\"\",VLOOKUP($E88,[5]SDGｓ!$A$2:$B$18,2,0))","v":""}]
[]
["修正履歴"]

{"sheet":"5-4-8","index":31,"n_rows":90,"n_cols":34,"rows_kept":90,"cut":false,"hidden":false,"merged":[[1,0,2,3],[0,0,0,3],[0,4,0,20],[0,21,0,27],[0,28,0,29],[0,30,0,31],[1,4,2,20],[1,21,2,27],[1,28,2,29],[1,30,2,31],[5,33,7,34],[9,1,16,6],[9,7,16,31],[17,1,17,6],[17,7,17,31],[18,1,18,6],[18,7,18,31],[4,0,4,6],[4,7,4,31],[5,0,19,0],[5,1,8,6],[5,7,8,31],[19,1,19,6],[19,7,19,31],[29,0,29,23],[29,24,29,27],[29,28,29,29],[29,30,29,31],[30,0,32,0],[30,1,32,1],[30,2,32,23],[30,24,32,27],[30,28,32,29],[30,30,32,31],[77,0,79,6],[77,7,79,31],[67,0,67,6],[67,7,67,31],[68,0,71,3],[68,4,71,6],[68,7,71,19],[68,20,71,28],[68,29,68,31],[69,29,71,31],[89,0,89,3],[89,4,89,31],[80,0,83,6],[80,7,83,31],[85,0,87,3],[85,4,85,7],[85,8,85,31],[86,4,86,7],[86,8,86,31],[87,4,87,7],[87,8,87,31],[62,7,62,31],[63,1,63,6],[63,7,63,31],[72,0,76,3],[72,4,76,6],[72,7,76,19],[72,20,76,28],[72,29,76,31],[20,0,27,0],[20,1,20,6],[20,7,20,31],[21,1,23,6],[21,7,23,31],[24,1,26,6],[24,7,26,31],[27,1,27,6],[27,7,27,31],[66,0,66,6],[66,7,66,31],[33,0,35,1],[33,2,35,23],[33,24,35,27],[33,28,35,29],[33,30,35,31],[53,7,53,31],[54,1,54,6],[54,7,54,31],[55,1,55,6],[55,7,55,31],[56,1,56,6],[56,7,56,31],[49,0,65,0],[49,1,49,6],[49,7,49,31],[50,1,50,6],[50,7,50,31],[51,1,51,6],[51,7,51,31],[52,1,52,6],[52,7,52,31],[53,1,53,6],[64,1,64,6],[64,7,64,31],[65,1,65,6],[65,7,65,31],[57,1,61,6],[57,7,61,31],[62,1,62,6],[48,0,48,6],[48,7,48,31],[39,0,41,1],[39,2,41,23],[39,24,41,27],[39,28,41,29],[39,30,41,31],[42,0,44,1],[42,2,44,23],[42,24,44,27],[42,28,44,29],[42,30,44,31],[36,0,38,1],[36,2,38,23],[36,24,38,27],[36,28,38,29],[36,30,38,31],[45,0,46,1],[45,2,46,31],[47,0,47,6],[47,7,47,31]]}
["取組番号",null,null,null,"事業名",null,null,null,null,null,null,null,null,null,null,null,null,null,null,null,null,"作成年月日・担当",null,null,null,null,null,null,"重点",null,"新規"]
[{"$f":"RIGHT(CELL(\"filename\",A4),LEN(CELL(\"filename\",A4))-FIND(\"]\",CELL(\"filename\",A4)))","v":"5-4-8"},null,null,null,"区庁舎・設備等の維持管理",null,null,null,null,null,null,null,null,null,null,null,null,null,null,null,null,"令和4年4月1日\n総務課（庶務）"]
[]
[]
["項目",null,null,null,null,null,null,"内容"]
["事業・業務概要","目的\n（事業の背景を含む）",null,null,null,null,null,"区役所庁舎諸設備の各機能が、正常かつ安全に働くように維持し、快適で衛生的な状態の管理を行う。また、限られた予算の有効活用並びに、環境保全の観点から光熱水費の削減を図る。",null,null,null,null,null,null,null,null,null,null,null,null,null,null,null,null,null,null,null,null,null,null,null,null,null,"一覧へ戻る"]
[]
[]
[]
[null,"内容",null,null,null,null,null,"区役所庁舎設備の運営にかかる光熱水費の支払いをはじめ、設備の安全で快適、衛生的な状態での管理のための諸業務を行うとともに自衛消防訓練など職員への防火教育を行う。\nまた、夏期冬期の庁舎内温度の適正管理や、不要な照明の消灯による節電、照明器具のLED化により光熱水費を削減する。"]
[]
[]
[]
[]
[]
[]
[]
[null,"予算額（予算科目）",null,null,null,null,null,"18,532千円（消耗品費、光熱水費、建物修繕費、通信運搬費、手数料、委託料、使用料、庁用器具費、負担金　区庁舎設備維持費）"]
[null,"事業実施期間（回数）",null,null,null,null,null,"通年"]
[null,"事業対象者（人数）",null,null,null,null,null,"―"]
["委託関係","契約・入札方法",null,null,null,null,null,"区庁舎等保守点検業務については都市整備局による西エリア一括入札"]
[null,"募集要項のポイント",null,null,null,null,null,"―"]
[]
[]
[null,"仕様書のポイント",null,null,null,null,null,"―"]
[]
[]
[null,"選考委員等選考方式",null,null,null,null,null,"―"]
[]
["スケジュール（実施決裁、入札募集開始、説明会、選考会、事業の実施　等）",null,null,null,null,null,null,null,null,null,null,null,null,null,null,null,null,null,null,null,null,null,null,null,"広報スケジュール",null,null,null,"スケ",null,"作業"]
["（前年度）","1月～3月","・庁舎、設備等のメンテナンス\n・自衛消防訓練\n・適正な空調管理",null,null,null,null,null,null,null,null,null,null,null,null,null,null,null,null,null,null,null,null,null,null,null,null,null,"〇",null,"〇"]
[]
[]
["4月～\n6月",null,"・庁舎・設備等のメンテナンス\n・適正な空調管理\n・案内表示の点検・改善\n・光熱水費節減の周知",null,null,null,null,null,null,null,null,null,null,null,null,null,null,null,null,null,null,null,null,null,null,null,null,null,"△",null,"△"]
[]
[]
["7月～\n9月",null,"・庁舎、設備等のメンテナンス\n・防火教育（e-ラーニング）\n・適正な空調管理",null,null,null,null,null,null,null,null,null,null,null,null,null,null,null,null,null,null,null,null,null,null,null,null,null,"〇",null,"〇"]
[]
[]
["10月～\n12月",null,"・庁舎、設備等のメンテナンス\n・適正な空調管理\n・光熱水費節減の周知\n・案内表示の点検・改善",null,null,null,null,null,null,null,null,null,null,null,null,null,null,null,null,null,null,null,null,null,null,null,null,null,"△",null,"△"]
[]
[]
["1月～\n3月",null,"・庁舎、設備等のメンテナンス\n・自衛消防訓練\n・適正な空調管理\n・案内表示の点検・改善",null,null,null,null,null,null,null,null,null,null,null,null,null,null,null,null,null,null,null,null,null,null,null,null,null,"〇",null,"〇"]
[]
[]
["備考"]
[]
["項目",null,null,null,null,null,null,"内容"]
["講座・イベント・会議名",null,null,null,null,null,null,"―"]
["イベント等開催関係","開催日時",null,null,null,null,null,"―"]
[null,"開催場所",null,null,null,null,null,"―"]
[null,"区役所の主催等",null,null,null,null,null,"―"]
[null,"その他主催団体・組織等",null,null,null,null,null,"―"]
[null,"共催団体・組織等",null,null,null,null,null,"―"]
[null,"後援団体・組織等",null,null,null,null,null,"―"]
[null,"目標事業規模",null,null,null,null,null,"―"]
[null,"その他留意事項",null,null,null,null,null,"―"]
[null,"イベント等\n当日タイムテーブル",null,null,null,null,null,"―"]
[]
[]
[]
[]
[null,"挨拶者",null,null,null,null,null,"―"]
[null,"来賓紹介",null,null,null,null,null,"―"]
[null,"祝電紹介の方法",null,null,null,null,null,"―"]
[null,"動員の方法",null,null,null,null,null,"―"]
["その他他課との連携等",null,null,null,null,null,null,"―"]
["前年度実績",null,null,null,null,null,null,"・光熱水費　（令和３年度）\n　令和元年度電気代　  8,167,519円　令和元年度ガス代　2,707,595円　令和元年度水道代　2,212,338円\n　令和３年度電気代　   6,616,635円　令和３年度ガス代 　2,632,753円　令和３年度水道代   2,536,604円\n　効果額　　　             1,550,884円　　 効果額　　　　　　 　  74,842円　効果額　　　　  　   　 -324,266円\n　　　　　　　　　　　      　（19.0%減）　　　　　　　　    　　　　　  　（2.8%減）　        　　　　　　　 　　（14.7%増）\n(参考)\n令和２年度電気代　   7,068,879円　令和２年度ガス代 　2,521,963円　令和２年度水道代 　2,081,547円\n　\n※ 令和２年度は夏期空調機故障の影響で光熱水費大幅に減（電気・ガス・水道）\n\n・区役所の来庁者等に対するサービスの調査・評価による格付け結果…評価項目「庁舎の快適性」\n令和２年度＝3.0点\n令和３年度＝3.7点"]
["業績目標",null,null,null,"実績",null,null,"・各フロアの室温や会議室の使用状況を把握（行事予定表等により）し、適正な空調管理に努めるとともに、職員に対して積極的に光熱水費の節減に努めるよう周知を行う。特に冷暖房切替時にはより一層の節減を意識するように周知を行う。（２回）\n",null,null,null,null,null,null,null,null,null,null,null,null,"・各フロアの室温や会議室の使用状況を把握し、適正な空調管理に努め、冷暖房切替時にはより一層の節減を意識するように周知を行った。（１回）\n",null,null,null,null,null,null,null,null,"自己評価"]
[null,null,null,null,null,null,null,null,null,null,null,null,null,null,null,null,null,null,null,null,null,null,null,null,null,null,null,null,null,"×"]
[]
[]
["成果目標",null,null,null,"実績",null,null,"・令和３年度実績より光熱水費を3%経費削減。\n・区役所の来庁者等に対するサービスの調査・評価による格付け結果…評価項目「庁舎の快適性」を3.7点以上にする。",null,null,null,null,null,null,null,null,null,null,null,null,"・光熱水費が令和３年度実績より42％増(16,771,925円)\n・区役所の来庁者等に対するサービスの調査・評価による格付け結果…評価項目「庁舎の快適性」4.0点",null,null,null,null,null,null,null,null,"×"]
[]
[]
[]
[]
["中期展望",null,null,null,null,null,null,"・今後は、エスコ事業の利用による庁舎内照明のLED化など、経費削減をめざす。\n・「大阪市公共施設マネジメント基本方針」にもとづき、『長寿命化の推進』『用途転用による施設の有効活用』などの取組みを進めるとともに、区役所が区民をはじめ来庁者にとって快適で満足できる場所となることをめざす。"]
[]
[]
["成果目標が\n中期展望に\n寄与する理由",null,null,null,null,null,null,"・光熱水費の支出を抑制することが、中期展望に寄与することになるため。\n・サービスの調査・評価における「庁舎の快適性」の向上が、来庁者にとって区役所が快適で満足できる場所となることにつながるため。"]
[]
[]
[]
[]
["SDGｓゴール",null,null,null,6,null,null,null,"安全な水とトイレを世界中に"]
[null,null,null,null,7,null,null,null,"エネルギーをみんなに　そしてクリーンに"]
[null,null,null,null,13,null,null,null,"気候変動に具体的な対策を"]
[]
["修正履歴",null,null,null,"・スケジュールの削除・追記"]

{"sheet":"5-4-9","index":32,"n_rows":90,"n_cols":34,"rows_kept":90,"cut":false,"hidden":false,"merged":[[1,0,2,3],[0,0,0,3],[0,4,0,20],[0,21,0,27],[0,28,0,29],[0,30,0,31],[1,4,2,20],[1,21,2,27],[1,28,2,29],[1,30,2,31],[5,33,7,34],[9,1,16,6],[9,7,16,31],[17,1,17,6],[17,7,17,31],[18,1,18,6],[18,7,18,31],[4,0,4,6],[4,7,4,31],[5,0,19,0],[5,1,8,6],[5,7,8,31],[19,1,19,6],[19,7,19,31],[20,0,27,0],[20,1,20,6],[20,7,20,31],[21,1,23,6],[21,7,23,31],[24,1,26,6],[24,7,26,31],[27,1,27,6],[27,7,27,31],[29,0,29,23],[29,24,29,27],[29,28,29,29],[29,30,29,31],[30,0,32,0],[30,1,32,1],[30,2,32,23],[30,24,32,27],[30,28,32,29],[30,30,32,31],[33,0,35,1],[33,2,35,23],[33,24,35,27],[33,28,35,29],[33,30,35,31],[36,0,38,1],[36,2,38,23],[36,24,38,27],[36,28,38,29],[36,30,38,31],[45,0,46,1],[45,2,46,31],[47,0,47,6],[47,7,47,31],[48,0,48,6],[48,7,48,31],[39,0,41,1],[39,2,41,23],[39,24,41,27],[39,28,41,29],[39,30,41,31],[42,0,44,1],[42,2,44,23],[42,24,44,27],[42,28,44,29],[42,30,44,31],[53,7,53,31],[54,1,54,6],[54,7,54,31],[55,1,55,6],[55,7,55,31],[56,1,56,6],[56,7,56,31],[49,0,65,0],[49,1,49,6],[49,7,49,31],[50,1,50,6],[50,7,50,31],[51,1,51,6],[51,7,51,31],[52,1,52,6],[52,7,52,31],[53,1,53,6],[64,1,64,6],[64,7,64,31],[65,1,65,6],[65,7,65,31],[66,0,66,6],[66,7,66,31],[57,1,61,6],[57,7,61,31],[62,1,62,6],[62,7,62,31],[63,1,63,6],[63,7,63,31],[72,0,76,3],[72,4,76,6],[72,7,76,19],[72,20,76,28],[72,29,76,31],[77,0,79,6],[77,7,79,31],[67,0,67,6],[67,7,67,31],[68,0,71,3],[68,4,71,6],[68,7,71,19],[68,20,71,28],[68,29,68,31],[69,29,71,31],[89,0,89,3],[89,4,89,31],[80,0,83,6],[80,7,83,31],[80,32,83,41],[85,0,87,3],[85,4,85,7],[85,8,85,31],[86,4,86,7],[86,8,86,31],[87,4,87,7],[87,8,87,31]]}
["取組番号",null,null,null,"事業名",null,null,null,null,null,null,null,null,null,null,null,null,null,null,null,null,"作成年月日・担当",null,null,null,null,null,null,"重点",null,"新規"]
[{"$f":"RIGHT(CELL(\"filename\",A4),LEN(CELL(\"filename\",A4))-FIND(\"]\",CELL(\"filename\",A4)))","v":"5-4-9"},null,null,null,"住民情報業務等の適切な運営管理",null,null,null,null,null,null,null,null,null,null,null,null,null,null,null,null,"令和4年4月1日\n窓口サービス課\n(住民登録・戸籍)"]
[]
[]
["項目",null,null,null,null,null,null,"内容"]
["事業・業務概要","目的\n（事業の背景を含む）",null,null,null,null,null,"区役所における市民サービスの向上及び効率的な業務運営を目的とする。\n（市政改革プラン３．０、改革の柱４、３区役所業務のさらなる標準化の推進）",null,null,null,null,null,null,null,null,null,null,null,null,null,null,null,null,null,null,null,null,null,null,null,null,null,"一覧へ戻る"]
[]
[]
[]
[null,"内容",null,null,null,null,null,"・民間のノウハウを活用した効率的・効果的な運営、市民満足度の向上、個人情報保護の徹底、モニタリングの実施と品質の向上を図る。\n・委託者と受託者が意見交換を行うための定例会議を開催し、行政サービス水準の維持と市民サービスの向上を図る。\n・一方で、委託をすることによって失われる職員の処理スキルの回復のため、閑散期での端末研修を継続的に実施する。"]
[]
[]
[]
[]
[]
[]
[]
[null,"予算額（予算科目）",null,null,null,null,null,"43,933千円（委託料）【内訳：39,790千円（区まち）・4,316千円（市民局）】"]
[null,"事業実施期間（回数）",null,null,null,null,null,"令和2年4月～令和5年3月"]
[null,"事業対象者（人数）"]
["委託関係","契約・入札方法",null,null,null,null,null,"プロポーザル"]
[null,"募集要項のポイント",null,null,null,null,null,"令和2年3月～令和5年3月までの履行期間で契約"]
[]
[]
[null,"仕様書のポイント",null,null,null,null,null,"サービス水準の達成度ポイントに連動した契約金額の支払い"]
[]
[]
[null,"選考委員等選考方式"]
[]
["スケジュール（実施決裁、入札募集開始、説明会、選考会、事業の実施　等）",null,null,null,null,null,null,null,null,null,null,null,null,null,null,null,null,null,null,null,null,null,null,null,"広報スケジュール",null,null,null,"スケ",null,"作業"]
["（前年度）","1月～3月",null,null,null,null,null,null,null,null,null,null,null,null,null,null,null,null,null,null,null,null,null,null,null,null,null,null,"-",null,"-"]
[]
[]
["4月～\n6月",null,"・委託契約の履行の管理及び委託料の支出\n・サービス水準の評価（第1四半期）\n・業務報告定例会議（月１回）",null,null,null,null,null,null,null,null,null,null,null,null,null,null,null,null,null,null,null,null,null,null,null,null,null,"〇",null,"〇"]
[]
[]
["7月～\n9月",null,"・委託契約の履行の管理及び委託料の支出\n・サービス水準の評価（第2四半期）\n・業務報告定例会議（月１回）",null,null,null,null,null,null,null,null,null,null,null,null,null,null,null,null,null,null,null,null,null,null,null,null,null,"〇",null,"〇"]
[]
[]
["10月～\n12月",null,"・委託契約の履行の管理及び委託料の支出\n・サービス水準の評価（第3四半期）\n・業務報告定例会議（月１回）",null,null,null,null,null,null,null,null,null,null,null,null,null,null,null,null,null,null,null,null,null,null,null,null,null,"〇",null,"〇"]
[]
[]
["1月～\n3月",null,"・委託契約の履行の管理及び委託料の支出\n・サービス水準の評価（第4四半期）\n・業務報告定例会議（月１回）",null,null,null,null,null,null,null,null,null,null,null,null,null,null,null,null,null,null,null,null,null,null,null,null,null,"〇",null,"〇"]
[]
[]
["備考",null,"サービス水準の評価にあたり、事業者にて来庁者アンケートを行う。\n随時、職員の端末操作実務研修を実施する。"]
[]
["項目",null,null,null,null,null,null,"内容"]
["講座・イベント・会議名",null,null,null,null,null,null,"定例会議"]
["イベント等開催関係","開催日時",null,null,null,null,null,"毎月1回、1時間程度の会議を定例開催する。"]
[null,"開催場所",null,null,null,null,null,"窓口サービス課　住民情報グループ　打ち合わせ室"]
[null,"区役所の主催等",null,null,null,null,null,"主催"]
[null,"その他主催団体・組織等",null,null,null,null,null,"―"]
[null,"共催団体・組織等",null,null,null,null,null,"―"]
[null,"後援団体・組織等",null,null,null,null,null,"―"]
[null,"目標事業規模",null,null,null,null,null,"―"]
[null,"その他留意事項",null,null,null,null,null,"―"]
[null,"イベント等\n当日タイムテーブル",null,null,null,null,null,"次第\n1前月の事業内容の報告\n2意見交換 \n3その他\n"]
[]
[]
[]
[]
[null,"挨拶者",null,null,null,null,null,"―"]
[null,"来賓紹介",null,null,null,null,null,"―"]
[null,"祝電紹介の方法",null,null,null,null,null,"―"]
[null,"動員の方法",null,null,null,null,null,"―"]
["その他他課との連携等",null,null,null,null,null,null,"―"]
["前年度実績",null,null,null,null,null,null,"来庁者アンケートにおいて、市民満足度が５月 98.3 %　８月 100 %　11月 99.3 %　２月 98.8 %\n定例会議　12回開催\n業務改善提案を年 ５ 件実現"]
["業績目標",null,null,null,"実績",null,null,"・仕様書どおりの業務履行の確保\n・業務改善提案を年4件以上実現する。",null,null,null,null,null,null,null,null,null,null,null,null,"・仕様書通りの業務履行が確保できた\n・業務改善提案を７件実現した",null,null,null,null,null,null,null,null,"自己評価"]
[null,null,null,null,null,null,null,null,null,null,null,null,null,null,null,null,null,null,null,null,null,null,null,null,null,null,null,null,null,"〇"]
[]
[]
["成果目標",null,null,null,"実績",null,null,"委託事業者が行う年4回の来庁者アンケートにおいて、市民満足度が全て90%以上",null,null,null,null,null,null,null,null,null,null,null,null,"・四半期ごとに実施した来庁者アンケートにおいて、市民満足度がすべて90％以上を達成できた。",null,null,null,null,null,null,null,null,"〇"]
[]
[]
[]
[]
["中期展望",null,null,null,null,null,null,"民間事業者への委託によって、窓口サービス水準の維持・向上を図る。"]
[]
[]
["成果目標が\n中期展望に\n寄与する理由",null,null,null,null,null,null,"民間のノウハウを活用した効果的・効率的な運営等により、来庁者アンケートにおいて、毎年90%以上の市民満足度をクリアすることは、区民の方に安定した窓口サービスを提供していると考えられるため。"]
[]
[]
[]
[]
["SDGｓゴール",null,null,null,16,null,null,null,"平和と公正をすべての人に"]
[null,null,null,null,null,null,null,null,{"$f":"+IF(ISERROR(VLOOKUP($E87,#REF!,2,0)),\"\",VLOOKUP($E87,#REF!,2,0))","v":""}]
[null,null,null,null,null,null,null,null,{"$f":"+IF(ISERROR(VLOOKUP($E88,#REF!,2,0)),\"\",VLOOKUP($E88,#REF!,2,0))","v":""}]
[]
["修正履歴"]

{"sheet":"5-4-10","index":33,"n_rows":90,"n_cols":34,"rows_kept":90,"cut":false,"hidden":false,"merged":[[1,0,2,3],[0,0,0,3],[0,4,0,20],[0,21,0,27],[0,28,0,29],[0,30,0,31],[1,4,2,20],[1,21,2,27],[1,28,2,29],[1,30,2,31],[5,33,7,34],[9,1,16,6],[9,7,16,31],[17,1,17,6],[17,7,17,31],[18,1,18,6],[18,7,18,31],[4,0,4,6],[4,7,4,31],[5,0,19,0],[5,1,8,6],[5,7,8,31],[19,1,19,6],[19,7,19,31],[20,0,27,0],[20,1,20,6],[20,7,20,31],[21,1,23,6],[21,7,23,31],[24,1,26,6],[24,7,26,31],[27,1,27,6],[27,7,27,31],[29,0,29,23],[29,24,29,27],[29,28,29,29],[29,30,29,31],[30,0,32,0],[30,1,32,1],[30,2,32,23],[30,24,32,27],[30,28,32,29],[30,30,32,31],[33,0,35,1],[33,2,35,23],[33,24,35,27],[33,28,35,29],[33,30,35,31],[36,0,38,1],[36,2,38,23],[36,24,38,27],[36,28,38,29],[36,30,38,31],[45,0,46,1],[45,2,46,31],[47,0,47,6],[47,7,47,31],[48,0,48,6],[48,7,48,31],[39,0,41,1],[39,2,41,23],[39,24,41,27],[39,28,41,29],[39,30,41,31],[42,0,44,1],[42,2,44,23],[42,24,44,27],[42,28,44,29],[42,30,44,31],[53,7,53,31],[54,1,54,6],[54,7,54,31],[55,1,55,6],[55,7,55,31],[56,1,56,6],[56,7,56,31],[49,0,65,0],[49,1,49,6],[49,7,49,31],[50,1,50,6],[50,7,50,31],[51,1,51,6],[51,7,51,31],[52,1,52,6],[52,7,52,31],[53,1,53,6],[64,1,64,6],[64,7,64,31],[65,1,65,6],[65,7,65,31],[66,0,66,6],[66,7,66,31],[57,1,61,6],[57,7,61,31],[62,1,62,6],[62,7,62,31],[63,1,63,6],[63,7,63,31],[72,0,76,3],[72,4,76,6],[72,7,76,19],[72,20,76,28],[72,29,76,31],[77,0,79,6],[77,7,79,31],[67,0,67,6],[67,7,67,31],[68,0,71,3],[68,4,71,6],[68,7,71,19],[68,20,71,28],[68,29,68,31],[69,29,71,31],[89,0,89,3],[89,4,89,31],[80,0,83,6],[80,7,83,31],[85,0,87,3],[85,4,85,7],[85,8,85,31],[86,4,86,7],[86,8,86,31],[87,4,87,7],[87,8,87,31]]}
["取組番号",null,null,null,"事業名",null,null,null,null,null,null,null,null,null,null,null,null,null,null,null,null,"作成年月日・担当",null,null,null,null,null,null,"重点",null,"新規"]
[{"$f":"RIGHT(CELL(\"filename\",A4),LEN(CELL(\"filename\",A4))-FIND(\"]\",CELL(\"filename\",A4)))","v":"5-4-10"},null,null,null,"保健福祉課（福祉グループ）窓口受付等業務",null,null,null,null,null,null,null,null,null,null,null,null,null,null,null,null,"令和4年4月1日\n保健福祉課（福祉）"]
[]
[]
["項目",null,null,null,null,null,null,"内容"]
["事業・業務概要","目的\n（事業の背景を含む）",null,null,null,null,null,"保健福祉課（福祉グループ）窓口受付等業務について、市民サービスの向上並びに不適切な事務処理の撲滅に取り組む。",null,null,null,null,null,null,null,null,null,null,null,null,null,null,null,null,null,null,null,null,null,null,null,null,null,"一覧へ戻る"]
[]
[]
[]
[null,"内容",null,null,null,null,null,"保健福祉課の多岐にわたる受付業務において、丁寧で正確な対応を行えるように、受付業務に関する学習会を開催し、各種制度の知識向上及び課題の抽出・検討を行い不適切事務の発生を防ぐとともに、区で開催する接遇研修を受講し、笑顔・あいさつを心がけるなど窓口に訪れた来庁者が気持ち良いと思える対応に取り組む。\n\n【受付業務一覧】\n・成年後見制度に係る審判の請求・老人医療費助成制度・重度障がい者医療費助成制度・障がい者福祉サービス・障がい児福祉サービス・移動支援・日中一時支援・療育手帳・身体障がい者手帳・補装具費給付・日常生活用具給付（障がい者）・特別障がい者手当・障がい児福祉手当・特別児童扶養手当・外国人心身障がい者給付金・精神保健福祉・精神保健福祉手帳・乗車料金福祉措置及び重度障がい者等タクシー料金給付・自立支援医療（更生医療・育成医療）・住宅改修費給付事業・大阪府重度障がい者在宅生活応援制度・点字図書・ＮＨＫ放送受信料免除基準該当証明・心身障害者扶養共済・自動車税軽自動車税の減免にかかる証明・有料道路障がい者割引・戦傷病者戦没者遺族弔慰金・総合的な相談支援体制の充実事業\n【接遇研修】\n・窓口サービスアップ研修"]
[]
[]
[]
[]
[]
[]
[]
[null,"予算額（予算科目）",null,null,null,null,null,"―"]
[null,"事業実施期間（回数）",null,null,null,null,null,"令和4年4月1日～令和5年3月31日"]
[null,"事業対象者（人数）",null,null,null,null,null,"―"]
["委託関係","契約・入札方法",null,null,null,null,null,"―"]
[null,"募集要項のポイント",null,null,null,null,null,"―"]
[]
[]
[null,"仕様書のポイント",null,null,null,null,null,"―"]
[]
[]
[null,"選考委員等選考方式",null,null,null,null,null,"―"]
[]
["スケジュール（実施決裁、入札募集開始、説明会、選考会、事業の実施　等）",null,null,null,null,null,null,null,null,null,null,null,null,null,null,null,null,null,null,null,null,null,null,null,"広報スケジュール",null,null,null,"スケ",null,"作業"]
["（前年度）","1月～3月","受付業務の見直し・改善\n不適切事務の撲滅に向けた改善事例の共有、事務の改善",null,null,null,null,null,null,null,null,null,null,null,null,null,null,null,null,null,null,null,null,null,null,null,null,null,"○",null,"○"]
[]
[]
["4月～\n6月",null,"受付業務に関する学習会の開催【随時】\n受付業務の見直し・改善に向けた課題の抽出、検討\n不適切事務の撲滅に向けた改善事例の共有、事務の改善",null,null,null,null,null,null,null,null,null,null,null,null,null,null,null,null,null,null,null,null,null,null,null,null,null,"○",null,"○"]
[]
[]
["7月～\n9月",null,"受付業務に関する学習会の開催【随時】\n受付業務の見直し・改善に向けた課題の抽出、検討\n不適切事務の撲滅に向けた改善事例の共有、事務の改善",null,null,null,null,null,null,null,null,null,null,null,null,null,null,null,null,null,null,null,null,null,null,null,null,null,"○",null,"○"]
[]
[]
["10月～\n12月",null,"受付業務に関する学習会の開催【随時】\n受付業務の見直し・改善に向けた課題の抽出、検討\n不適切事務の撲滅に向けた改善事例の共有、事務の改善\n接遇研修の受講、接遇強化月間（11月・12月）の取組の実施",null,null,null,null,null,null,null,null,null,null,null,null,null,null,null,null,null,null,null,null,null,null,null,null,null,"○",null,"○"]
[]
[]
["1月～\n3月",null,"受付業務に関する学習会の開催【随時】\n受付業務の見直し・改善に向けた課題の抽出、検討\n不適切事務の撲滅に向けた改善事例の共有、事務の改善",null,null,null,null,null,null,null,null,null,null,null,null,null,null,null,null,null,null,null,null,null,null,null,null,null,"○",null,"○"]
[]
[]
["備考"]
[]
["項目",null,null,null,null,null,null,"内容"]
["講座・イベント・会議名",null,null,null,null,null,null,"－"]
["イベント等開催関係","開催日時",null,null,null,null,null,"－"]
[null,"開催場所",null,null,null,null,null,"－"]
[null,"区役所の主催等",null,null,null,null,null,"－"]
[null,"その他主催団体・組織等",null,null,null,null,null,"－"]
[null,"共催団体・組織等",null,null,null,null,null,"－"]
[null,"後援団体・組織等",null,null,null,null,null,"－"]
[null,"目標事業規模",null,null,null,null,null,"－"]
[null,"その他留意事項",null,null,null,null,null,"－"]
[null,"イベント等\n当日タイムテーブル",null,null,null,null,null,"－"]
[]
[]
[]
[]
[null,"挨拶者",null,null,null,null,null,"－"]
[null,"来賓紹介",null,null,null,null,null,"－"]
[null,"祝電紹介の方法",null,null,null,null,null,"－"]
[null,"動員の方法",null,null,null,null,null,"－"]
["その他他課との連携等",null,null,null,null,null,null,"－"]
["前年度実績",null,null,null,null,null,null,"・学習会開催回数：年２回（令和３年度）\n・区で開催する接遇研修の受講率：100%（11/11人）（令和３年度）　\n・窓口サービス格付け調査の評価点平均　4.0（令和３年度）\n・不適切事務の未発生期間　12か月（令和３年度）"]
["業績目標",null,null,null,"実績",null,null,"・学習会開催：年２回\n・区で開催する接遇研修の受講率：100%（11人/11人）",null,null,null,null,null,null,null,null,null,null,null,null,"・学習会２回\n・100%",null,null,null,null,null,null,null,null,"自己評価"]
[null,null,null,null,null,null,null,null,null,null,null,null,null,null,null,null,null,null,null,null,null,null,null,null,null,null,null,null,null,"○"]
[]
[]
["成果目標",null,null,null,"実績",null,null,"・窓口サービス格付け調査の評価点平均　3.7以上\n・不適切事務の未発生期間　12か月以上",null,null,null,null,null,null,null,null,null,null,null,null,"・平均点　4.0点\n・12ヶ月",null,null,null,null,null,null,null,null,"○"]
[]
[]
[]
[]
["中期展望",null,null,null,null,null,null,"大正区役所に対する信頼が確保されている状態"]
[]
[]
["成果目標が\n中期展望に\n寄与する理由",null,null,null,null,null,null,"不適切事務が発生しない状態の維持・継続、来庁者の満足度の向上を図っていくことが、大正区役所に対する信頼の獲得につながるものと考えられるため"]
[]
[]
[]
[]
["SDGｓゴール",null,null,null,3,null,null,null,"すべての人に健康と福祉を"]
[null,null,null,null,16,null,null,null,"平和と公正をすべての人に"]
[null,null,null,null,null,null,null,null,""]
[]
["修正履歴"]

{"sheet":"5-4-11","index":34,"n_rows":90,"n_cols":34,"rows_kept":90,"cut":false,"hidden":false,"merged":[[1,0,2,3],[0,0,0,3],[0,4,0,20],[0,21,0,27],[0,28,0,29],[0,30,0,31],[1,4,2,20],[1,21,2,27],[1,28,2,29],[1,30,2,31],[5,33,7,34],[9,1,16,6],[9,7,16,31],[17,1,17,6],[17,7,17,31],[18,1,18,6],[18,7,18,31],[4,0,4,6],[4,7,4,31],[5,0,19,0],[5,1,8,6],[5,7,8,31],[19,1,19,6],[19,7,19,31],[20,0,27,0],[20,1,20,6],[20,7,20,31],[21,1,23,6],[21,7,23,31],[24,1,26,6],[24,7,26,31],[27,1,27,6],[27,7,27,31],[29,0,29,23],[29,24,29,27],[29,28,29,29],[29,30,29,31],[30,0,32,0],[30,1,32,1],[30,2,32,23],[30,24,32,27],[30,28,32,29],[30,30,32,31],[33,0,35,1],[33,2,35,23],[33,24,35,27],[33,28,35,29],[33,30,35,31],[36,0,38,1],[36,2,38,23],[36,24,38,27],[36,28,38,29],[36,30,38,31],[45,0,46,1],[45,2,46,31],[47,0,47,6],[47,7,47,31],[48,0,48,6],[48,7,48,31],[39,0,41,1],[39,2,41,23],[39,24,41,27],[39,28,41,29],[39,30,41,31],[42,0,44,1],[42,2,44,23],[42,24,44,27],[42,28,44,29],[42,30,44,31],[53,7,53,31],[54,1,54,6],[54,7,54,31],[55,1,55,6],[55,7,55,31],[56,1,56,6],[56,7,56,31],[49,0,65,0],[49,1,49,6],[49,7,49,31],[50,1,50,6],[50,7,50,31],[51,1,51,6],[51,7,51,31],[52,1,52,6],[52,7,52,31],[53,1,53,6],[64,1,64,6],[64,7,64,31],[65,1,65,6],[65,7,65,31],[66,0,66,6],[66,7,66,31],[57,1,61,6],[57,7,61,31],[62,1,62,6],[62,7,62,31],[63,1,63,6],[63,7,63,31],[72,0,76,3],[72,4,76,6],[72,7,76,19],[72,20,76,28],[72,29,76,31],[77,0,79,6],[77,7,79,31],[67,0,67,6],[67,7,67,31],[68,0,71,3],[68,4,71,6],[68,7,71,19],[68,20,71,28],[68,29,68,31],[69,29,71,31],[89,0,89,3],[89,4,89,31],[80,0,83,6],[80,7,83,31],[85,0,87,3],[85,4,85,7],[85,8,85,31],[86,4,86,7],[86,8,86,31],[87,4,87,7],[87,8,87,31]]}
["取組番号",null,null,null,"事業名",null,null,null,null,null,null,null,null,null,null,null,null,null,null,null,null,"作成年月日・担当",null,null,null,null,null,null,"重点",null,"新規"]
[{"$f":"RIGHT(CELL(\"filename\",A4),LEN(CELL(\"filename\",A4))-FIND(\"]\",CELL(\"filename\",A4)))","v":"5-4-11"},null,null,null,"介護保険料の収納率の向上",null,null,null,null,null,null,null,null,null,null,null,null,null,null,null,null,"令和4年4月1日\n保健福祉課（介護）"]
[]
[]
["項目",null,null,null,null,null,null,"内容"]
["事業・業務概要","目的\n（事業の背景を含む）",null,null,null,null,null,"介護保険を今後も持続可能な制度として維持・継続するとともに、被保険者間の公平性を確保するために介護保険料の収納率の向上を図る。",null,null,null,null,null,null,null,null,null,null,null,null,null,null,null,null,null,null,null,null,null,null,null,null,null,"一覧へ戻る"]
[]
[]
[]
[null,"内容",null,null,null,null,null,"きめ細やかな納付相談・納付指導や口座振替勧奨、滞納者への計画的・継続的な納付督励、保険資格の確認の徹底、厳正な滞納処分の実施など収納対策を強化し、収納率の向上に取り組む。"]
[]
[]
[]
[]
[]
[]
[]
[null,"予算額（予算科目）",null,null,null,null,null,"介護保険事業会計　福祉局予算148,414千円（内区配分予算 1,503千円）令和4年度"]
[null,"事業実施期間（回数）",null,null,null,null,null,"令和4年4月1日～令和5年3月31日"]
[null,"事業対象者（人数）",null,null,null,null,null,"介護保険料滞納者"]
["委託関係","契約・入札方法",null,null,null,null,null,"－"]
[null,"募集要項のポイント",null,null,null,null,null,"－"]
[]
[]
[null,"仕様書のポイント",null,null,null,null,null,"－"]
[]
[]
[null,"選考委員等選考方式",null,null,null,null,null,"－"]
[]
["スケジュール（実施決裁、入札募集開始、説明会、選考会、事業の実施　等）",null,null,null,null,null,null,null,null,null,null,null,null,null,null,null,null,null,null,null,null,null,null,null,"広報スケジュール",null,null,null,"スケ",null,"作業"]
["（前年度）","1月～3月","令和3年度第3次収納対策期間（2月～3月）",null,null,null,null,null,null,null,null,null,null,null,null,null,null,null,null,null,null,null,null,null,null,null,null,null,"○",null,"○"]
[]
[]
["4月～\n6月",null,"前年度の第1次～第3次収納対策対象のフォロー（出納閉鎖期間）",null,null,null,null,null,null,null,null,null,null,null,null,null,null,null,null,null,null,null,null,null,null,null,null,null,"○",null,"○"]
[]
[]
["7月～\n9月",null,"福祉局介護保険課及び市債権回収対策室と連携した令和4年度第1次収納対策期間　（7月～9月）の取り組みを行う。\nまた、全期間を通じて区の独自対策として、滞納のある介護認定更新対象者に対しての納付督励を行う。\n",null,null,null,null,null,null,null,null,null,null,null,null,null,null,null,null,null,null,null,null,null,null,null,null,null,"○",null,"○"]
[]
[]
["10月～\n12月",null,"令和4年度第2次収納対策期間（11月～1月）",null,null,null,null,null,null,null,null,null,null,null,null,null,null,null,null,null,null,null,null,null,null,null,null,null,"○",null,"○"]
[]
[]
["1月～\n3月",null,"令和4年度第3次収納対策期間（2月～3月）",null,null,null,null,null,null,null,null,null,null,null,null,null,null,null,null,null,null,null,null,null,null,null,null,null,"○",null,"○"]
[]
[]
["備考"]
[]
["項目",null,null,null,null,null,null,"内容"]
["講座・イベント・会議名",null,null,null,null,null,null,"－"]
["イベント等開催関係","開催日時",null,null,null,null,null,"－"]
[null,"開催場所",null,null,null,null,null,"－"]
[null,"区役所の主催等",null,null,null,null,null,"－"]
[null,"その他主催団体・組織等",null,null,null,null,null,"－"]
[null,"共催団体・組織等",null,null,null,null,null,"－"]
[null,"後援団体・組織等",null,null,null,null,null,"－"]
[null,"目標事業規模",null,null,null,null,null,"－"]
[null,"その他留意事項",null,null,null,null,null,"－"]
[null,"イベント等\n当日タイムテーブル",null,null,null,null,null,"－"]
[]
[]
[]
[]
[null,"挨拶者",null,null,null,null,null,"－"]
[null,"来賓紹介",null,null,null,null,null,"－"]
[null,"祝電紹介の方法",null,null,null,null,null,"－"]
[null,"動員の方法",null,null,null,null,null,"－"]
["その他他課との連携等",null,null,null,null,null,null,"－"]
["前年度実績",null,null,null,null,null,null,"収納率98.60％（令和3年度)　\n給付実績のある滞納者の期別保険料全件の２７件について納付督励を行った。（令和3年度）\n生保受給期間に滞納となった期別保険料全体の５８件について納付督励をおこなった。（令和3年度）"]
["業績目標",null,null,null,"実績",null,null,"給付実績のある滞納者の期別保険料及び生保受給期間に滞納となった期別保険料に対しての納付督励を行う。\n（目標：対象者全員、ただし、入院中等の特別の場合を除く）\n",null,null,null,null,null,null,null,null,null,null,null,null,"給付実績のある滞納者全件の40件及び生保受給期間に滞納のある全件の４１件に対しての納付督励を行った",null,null,null,null,null,null,null,null,"自己評価"]
[null,null,null,null,null,null,null,null,null,null,null,null,null,null,null,null,null,null,null,null,null,null,null,null,null,null,null,null,null,"〇"]
[]
[]
["成果目標",null,null,null,"実績",null,null,"被保険者全体の公平性を図る観点から滞納者への納付指導に取り組み、前年度(98.31%)を上回る収納率を目指す。",null,null,null,null,null,null,null,null,null,null,null,null,"令和4年度収納率９８．７１％",null,null,null,null,null,null,null,null,"〇"]
[]
[]
[]
[]
["中期展望",null,null,null,null,null,null,"歳入の確保や健全な財政運用を図り、介護保険制度を持続可能な制度として維持・継続している状態。"]
[]
[]
["成果目標が\n中期展望に\n寄与する理由",null,null,null,null,null,null,"未収金対策の強化で収納率を向上させ、歳入の確保をはかることにより、被保険者間の保険料負担の不公平感をなくし、また健全の財政運営を図ることができる。そのことにより介護保険制度を持続可能な制度としていくことに寄与できるため。"]
[]
[]
[]
[]
["SDGｓゴール",null,null,null,3,null,null,null,"すべての人に健康と福祉を"]
[null,null,null,null,null,null,null,null,{"$f":"+IF(ISERROR(VLOOKUP($E87,#REF!,2,0)),\"\",VLOOKUP($E87,#REF!,2,0))","v":""}]
[null,null,null,null,null,null,null,null,{"$f":"+IF(ISERROR(VLOOKUP($E88,#REF!,2,0)),\"\",VLOOKUP($E88,#REF!,2,0))","v":""}]
[]
["修正履歴"]

{"sheet":"5-4-12","index":35,"n_rows":90,"n_cols":34,"rows_kept":90,"cut":false,"hidden":false,"merged":[[1,0,2,3],[0,0,0,3],[0,4,0,20],[0,21,0,27],[0,28,0,29],[0,30,0,31],[1,4,2,20],[1,21,2,27],[1,28,2,29],[1,30,2,31],[5,33,7,34],[9,1,16,6],[9,7,16,31],[17,1,17,6],[17,7,17,31],[18,1,18,6],[18,7,18,31],[4,0,4,6],[4,7,4,31],[5,0,19,0],[5,1,8,6],[5,7,8,31],[19,1,19,6],[19,7,19,31],[20,0,27,0],[20,1,20,6],[20,7,20,31],[21,1,23,6],[21,7,23,31],[24,1,26,6],[24,7,26,31],[27,1,27,6],[27,7,27,31],[29,0,29,23],[29,24,29,27],[29,28,29,29],[29,30,29,31],[30,0,32,0],[30,1,32,1],[30,2,32,23],[30,24,32,27],[30,28,32,29],[30,30,32,31],[33,0,35,1],[33,2,35,23],[33,24,35,27],[33,28,35,29],[33,30,35,31],[36,0,38,1],[36,2,38,23],[36,24,38,27],[36,28,38,29],[36,30,38,31],[45,0,46,1],[45,2,46,31],[47,0,47,6],[47,7,47,31],[48,0,48,6],[48,7,48,31],[39,0,41,1],[39,2,41,23],[39,24,41,27],[39,28,41,29],[39,30,41,31],[42,0,44,1],[42,2,44,23],[42,24,44,27],[42,28,44,29],[42,30,44,31],[53,7,53,31],[54,1,54,6],[54,7,54,31],[55,1,55,6],[55,7,55,31],[56,1,56,6],[56,7,56,31],[49,0,65,0],[49,1,49,6],[49,7,49,31],[50,1,50,6],[50,7,50,31],[51,1,51,6],[51,7,51,31],[52,1,52,6],[52,7,52,31],[53,1,53,6],[64,1,64,6],[64,7,64,31],[65,1,65,6],[65,7,65,31],[66,0,66,6],[66,7,66,31],[57,1,61,6],[57,7,61,31],[62,1,62,6],[62,7,62,31],[63,1,63,6],[63,7,63,31],[72,0,76,3],[72,4,76,6],[72,7,76,19],[72,20,76,28],[72,29,76,31],[77,0,79,6],[77,7,79,31],[67,0,67,6],[67,7,67,31],[68,0,71,3],[68,4,71,6],[68,7,71,19],[68,20,71,28],[68,29,68,31],[69,29,71,31],[89,0,89,3],[89,4,89,31],[80,0,83,6],[80,7,83,31],[85,0,87,3],[85,4,85,7],[85,8,85,31],[86,4,86,7],[86,8,86,31],[87,4,87,7],[87,8,87,31]]}
["取組番号",null,null,null,"事業名",null,null,null,null,null,null,null,null,null,null,null,null,null,null,null,null,"作成年月日・担当",null,null,null,null,null,null,"重点",null,"新規"]
[{"$f":"RIGHT(CELL(\"filename\",A4),LEN(CELL(\"filename\",A4))-FIND(\"]\",CELL(\"filename\",A4)))","v":"5-4-12"},null,null,null,"保健福祉課（介護保険グループ）窓口受付等業務",null,null,null,null,null,null,null,null,null,null,null,null,null,null,null,null,"令和4年4月1日\n保健福祉課（介護）"]
[]
[]
["項目",null,null,null,null,null,null,"内容"]
["事業・業務概要","目的\n（事業の背景を含む）",null,null,null,null,null,"保健福祉課（介護）グループ）の窓口受付業務について、市民サービスの向上並びに不適切な事務処理の撲滅に取り組む。",null,null,null,null,null,null,null,null,null,null,null,null,null,null,null,null,null,null,null,null,null,null,null,null,null,"一覧へ戻る"]
[]
[]
[]
[null,"内容",null,null,null,null,null,"保健福祉課の多岐にわたる受付業務において、丁寧で正確な対応を行えるように、受付業務に関する学習会を開催し、各種制度の知識向上及び課題の抽出・検討を行い不適切事務の発生を防ぐ。\n・所属が開催する接遇研修の受講を通じて、窓口サービスの質の維持・向上に取り組む。\n\n受付業務一覧\n・介護保険・敬老優待乗車証・成年後見制度に係る審判の請求・日常生活用具給付（高齢者）・介護用品支給・養護老人ホーム・外国人高齢者給付金\n"]
[]
[]
[]
[]
[]
[]
[]
[null,"予算額（予算科目）",null,null,null,null,null,"―"]
[null,"事業実施期間（回数）",null,null,null,null,null,"―"]
[null,"事業対象者（人数）",null,null,null,null,null,"―"]
["委託関係","契約・入札方法",null,null,null,null,null,"―"]
[null,"募集要項のポイント",null,null,null,null,null,"―"]
[]
[]
[null,"仕様書のポイント",null,null,null,null,null,"―"]
[]
[]
[null,"選考委員等選考方式",null,null,null,null,null,"―"]
[]
["スケジュール（実施決裁、入札募集開始、説明会、選考会、事業の実施　等）",null,null,null,null,null,null,null,null,null,null,null,null,null,null,null,null,null,null,null,null,null,null,null,"広報スケジュール",null,null,null,"スケ",null,"作業"]
["（前年度）","1月～3月","受付業務の見直し・改善\n不適切事務の撲滅に向けた改善事例の共有、事務の改善",null,null,null,null,null,null,null,null,null,null,null,null,null,null,null,null,null,null,null,null,null,null,null,null,null,"○",null,"○"]
[]
[]
["4月～\n6月",null,"受付業務に関する学習会の開催\n課題の抽出、検討\n不適切事務の撲滅に向けた改善事例の共有、事務の改善",null,null,null,null,null,null,null,null,null,null,null,null,null,null,null,null,null,null,null,null,null,null,null,null,null,"○",null,"○"]
[]
[]
["7月～\n9月",null,"課題の抽出、検討\n不適切事務の撲滅に向けた改善事例の共有、事務の改善",null,null,null,null,null,null,null,null,null,null,null,null,null,null,null,null,null,null,null,null,null,null,null,null,null,"○",null,"○"]
[]
[]
["10月～\n12月",null,"受付業務に関する学習会の開催\n課題の抽出、検討\n不適切事務の撲滅に向けた改善事例の共有、事務の改善",null,null,null,null,null,null,null,null,null,null,null,null,null,null,null,null,null,null,null,null,null,null,null,null,null,"○",null,"○"]
[]
[]
["1月～\n3月",null,"課題の抽出、検討\n受付業務の見直し・改善\n不適切事務の撲滅に向けた改善事例の共有、事務の改善",null,null,null,null,null,null,null,null,null,null,null,null,null,null,null,null,null,null,null,null,null,null,null,null,null,"○",null,"○"]
[]
[]
["備考"]
[]
["項目",null,null,null,null,null,null,"内容"]
["講座・イベント・会議名",null,null,null,null,null,null,"-"]
["イベント等開催関係","開催日時",null,null,null,null,null,"-"]
[null,"開催場所",null,null,null,null,null,"-"]
[null,"区役所の主催等",null,null,null,null,null,"-"]
[null,"その他主催団体・組織等",null,null,null,null,null,"-"]
[null,"共催団体・組織等",null,null,null,null,null,"-"]
[null,"後援団体・組織等",null,null,null,null,null,"-"]
[null,"目標事業規模",null,null,null,null,null,"-"]
[null,"その他留意事項",null,null,null,null,null,"-"]
[null,"イベント等\n当日タイムテーブル",null,null,null,null,null,"-"]
[]
[]
[]
[]
[null,"挨拶者",null,null,null,null,null,"-"]
[null,"来賓紹介",null,null,null,null,null,"-"]
[null,"祝電紹介の方法",null,null,null,null,null,"-"]
[null,"動員の方法",null,null,null,null,null,"-"]
["その他他課との連携等",null,null,null,null,null,null,"-"]
["前年度実績",null,null,null,null,null,null,"・学習会年4回開催（令和3年度）\n・不適切事務改善事例の共有　年2回（令和3年度）\n・不適切な事務処理事案の件数　0件（令和3年度）\n・区で開催する接遇研修の受講率：100%（9人/9人）\n・窓口サービス課格付け調査の評価で平均4.0（保健福祉課）"]
["業績目標",null,null,null,"実績",null,null,"・学習会年４回以上開催\n・区で開催する接遇研修の受講率：100%（9人/9人）\n・不適切事務改善事例の共有　年4 回\n",null,null,null,null,null,null,null,null,null,null,null,null,"・学習会年4回開催実施した\n・区で開催する接遇研修の受講率：100%（9人/9人）受講した\n・不適切事務改善事例の共有　年4回開催した\n",null,null,null,null,null,null,null,null,"自己評価"]
[null,null,null,null,null,null,null,null,null,null,null,null,null,null,null,null,null,null,null,null,null,null,null,null,null,null,null,null,null,"〇"]
[]
[]
["成果目標",null,null,null,"実績",null,null,"・窓口サービス格付け調査の評価で平均4.0以上\n・不適切事務の未発生期間　12か月以上\n",null,null,null,null,null,null,null,null,null,null,null,null,"・不適切事務5月と9月に発生した。それ以降の未発生期間6か月以上継続中\n・窓口サービス格付け調査の評価点平均　4.0",null,null,null,null,null,null,null,null,"×"]
[]
[]
[]
[]
["中期展望",null,null,null,null,null,null,"大正区役所に対する信頼が確保されている状態"]
[]
[]
["成果目標が\n中期展望に\n寄与する理由",null,null,null,null,null,null,"不適切事務が発生しない状態の維持・継続、来庁者の満足度の向上を図っていくことが、大正区役所に対する信頼の獲得につながるものと考えられるため"]
[]
[]
[]
[]
["SDGｓゴール",null,null,null,3,null,null,null,"すべての人に健康と福祉を"]
[null,null,null,null,null,null,null,null,{"$f":"+IF(ISERROR(VLOOKUP($E87,#REF!,2,0)),\"\",VLOOKUP($E87,#REF!,2,0))","v":""}]
[null,null,null,null,null,null,null,null,{"$f":"+IF(ISERROR(VLOOKUP($E88,#REF!,2,0)),\"\",VLOOKUP($E88,#REF!,2,0))","v":""}]
[]
["修正履歴"]

{"sheet":"5-4-13","index":36,"n_rows":90,"n_cols":34,"rows_kept":90,"cut":false,"hidden":false,"merged":[[1,0,2,3],[0,0,0,3],[0,4,0,20],[0,21,0,27],[0,28,0,29],[0,30,0,31],[1,4,2,20],[1,21,2,27],[1,28,2,29],[1,30,2,31],[5,33,7,34],[9,1,16,6],[9,7,16,31],[17,1,17,6],[17,7,17,31],[18,1,18,6],[18,7,18,31],[4,0,4,6],[4,7,4,31],[5,0,19,0],[5,1,8,6],[5,7,8,31],[19,1,19,6],[19,7,19,31],[20,0,27,0],[20,1,20,6],[20,7,20,31],[21,1,23,6],[21,7,23,31],[24,1,26,6],[24,7,26,31],[27,1,27,6],[27,7,27,31],[29,0,29,23],[29,24,29,27],[29,28,29,29],[29,30,29,31],[30,0,32,0],[30,1,32,1],[30,2,32,23],[30,24,32,27],[30,28,32,29],[30,30,32,31],[33,0,35,1],[33,2,35,23],[33,24,35,27],[33,28,35,29],[33,30,35,31],[36,0,38,1],[36,2,38,23],[36,24,38,27],[36,28,38,29],[36,30,38,31],[46,0,46,1],[46,2,46,31],[47,0,47,6],[47,7,47,31],[48,0,48,6],[48,7,48,31],[39,0,41,1],[39,2,41,23],[39,24,41,27],[39,28,41,29],[39,30,41,31],[42,0,45,1],[42,2,45,23],[42,24,45,27],[42,28,45,29],[42,30,45,31],[53,7,53,31],[54,1,54,6],[54,7,54,31],[55,1,55,6],[55,7,55,31],[56,1,56,6],[56,7,56,31],[49,0,65,0],[49,1,49,6],[49,7,49,31],[50,1,50,6],[50,7,50,31],[51,1,51,6],[51,7,51,31],[52,1,52,6],[52,7,52,31],[53,1,53,6],[64,1,64,6],[64,7,64,31],[65,1,65,6],[65,7,65,31],[66,0,66,6],[66,7,66,31],[57,1,61,6],[57,7,61,31],[62,1,62,6],[62,7,62,31],[63,1,63,6],[63,7,63,31],[72,0,76,3],[72,4,76,6],[72,7,76,19],[72,20,76,28],[72,29,76,31],[77,0,79,6],[77,7,79,31],[67,0,67,6],[67,7,67,31],[68,0,71,3],[68,4,71,6],[68,7,71,19],[68,20,71,28],[68,29,68,31],[69,29,71,31],[89,0,89,3],[89,4,89,31],[80,0,83,6],[80,7,83,31],[85,0,87,3],[85,4,85,7],[85,8,85,31],[86,4,86,7],[86,8,86,31],[87,4,87,7],[87,8,87,31]]}
["取組番号",null,null,null,"事業名",null,null,null,null,null,null,null,null,null,null,null,null,null,null,null,null,"作成年月日・担当",null,null,null,null,null,null,"重点",null,"新規"]
[{"$f":"RIGHT(CELL(\"filename\",A4),LEN(CELL(\"filename\",A4))-FIND(\"]\",CELL(\"filename\",A4)))","v":"5-4-13"},null,null,null,"保健福祉課（健康づくり・保健活動グループ）窓口受付等業務",null,null,null,null,null,null,null,null,null,null,null,null,null,null,null,null,"令和４年４月１日\n保健福祉課（健康づくり）\n保健福祉課（保健活動）"]
[]
[]
["項目",null,null,null,null,null,null,"内容"]
["事業・業務概要","目的\n（事業の背景を含む）",null,null,null,null,null,"受付業務に精通した職員による丁寧な窓口業務を実施することにより、区民サービスの向上と効率的な区行政の運営を図る",null,null,null,null,null,null,null,null,null,null,null,null,null,null,null,null,null,null,null,null,null,null,null,null,null,"一覧へ戻る"]
[]
[]
[]
[null,"内容",null,null,null,null,null,"保健福祉課の多岐にわたる受付業務において、丁寧で正確な対応を行う。各種制度の知識向上及び課題の抽出・検討を行い、正確な窓口業務を実現するために日々の朝礼にて注意喚起を行い不適切事務の発生を防ぐ。所属が開催する「窓口サービスアップ研修」の受講を通じて、窓口サービスの質の維持・向上を図ることにより、来庁者に来てよかったと感じてもらえる接遇に取り組む。\n・個人情報の漏洩については、常にコンプライアンス意識を持ち、重要管理ポイント設定届に基づき、毎月セルフチェックシートにより各自が送付・交付・持出において、都度ダブルチェックを行うよう不適切事務の発生を防ぐことの重要性の確認を行う。\nまた、課長級は随時係長以下の職員に対しヒアリングを行いヒヤリハットの事象がないか検証する。\n●受付業務一覧\n・母子保健・乳幼児健診・健康相談・新生児訪問・乳幼児精密検査依頼・妊婦健康診査受診還付・産後ケア事業・母子手帳・地区担当保健師による予約制母子健康手帳交付時妊婦面接（試行実施）・不妊治療医療費助成・小児慢性特定疾病医療費助成・健康診査・特定健康診査・特定保健指導・がん検診・長期療養児・歯科保健・栄養指導・食育・食生活栄養相談・公害健康被害補償・感染症対策・結核・ＢＣＧ・ＨＩＶ・予防接種・難病・特定疾患・医療法届出・医師免許等・保健師業務・環境衛生・食品衛生・狂犬病予防・動物愛護"]
[]
[]
[]
[]
[]
[]
[]
[null,"予算額（予算科目）",null,null,null,null,null,"―"]
[null,"事業実施期間（回数）",null,null,null,null,null,"―"]
[null,"事業対象者（人数）",null,null,null,null,null,"―"]
["委託関係","契約・入札方法",null,null,null,null,null,"―"]
[null,"募集要項のポイント",null,null,null,null,null,"―"]
[]
[]
[null,"仕様書のポイント",null,null,null,null,null,"―"]
[]
[]
[null,"選考委員等選考方式",null,null,null,null,null,"―"]
[]
["スケジュール（実施決裁、入札募集開始、説明会、選考会、事業の実施　等）",null,null,null,null,null,null,null,null,null,null,null,null,null,null,null,null,null,null,null,null,null,null,null,"広報スケジュール",null,null,null,"スケ",null,"作業"]
["（前年度）","1月～3月","受付業務の見直し・改善",null,null,null,null,null,null,null,null,null,null,null,null,null,null,null,null,null,null,null,null,null,null,null,null,null,"〇",null,"〇"]
[]
[]
["4月～\n6月",null,"課題の抽出・検討、受付業務の見直し・改善\n受付業務に関する学習会の開催\n朝礼における注意喚起\nセルフチェックシートによる振り返り（１回／月）",null,null,null,null,null,null,null,null,null,null,null,null,null,null,null,null,null,null,null,null,null,null,null,null,null,"〇",null,"〇"]
[]
[]
["7月～\n9月",null,"課題の抽出・検討、受付業務の見直し・改善\n朝礼における注意喚起\nセルフチェックシートによる振り返り（１回／月）",null,null,null,null,null,null,null,null,null,null,null,null,null,null,null,null,null,null,null,null,null,null,null,null,null,"〇",null,"〇"]
[]
[]
["10月～\n12月",null,"課題の抽出・検討、受付業務の見直し・改善\n窓口サービスアップ研修\n接遇強化月間（11・12月）の取り組み\n朝礼における注意喚起\nセルフチェックシートによる振り返り（１回／月）",null,null,null,null,null,null,null,null,null,null,null,null,null,null,null,null,null,null,null,null,null,null,null,null,null,"〇",null,"〇"]
[]
[]
["1月～\n3月",null,"課題の抽出・検討、受付業務の見直し・改善\n受付業務に関する学習会の開催\n朝礼における注意喚起\nセルフチェックシートによる振り返り（１回／月）",null,null,null,null,null,null,null,null,null,null,null,null,null,null,null,null,null,null,null,null,null,null,null,null,null,"〇",null,"〇"]
[]
[]
[]
["備考"]
["項目",null,null,null,null,null,null,"内容"]
["講座・イベント・会議名",null,null,null,null,null,null,"―"]
["イベント等開催関係","開催日時",null,null,null,null,null,"―"]
[null,"開催場所",null,null,null,null,null,"―"]
[null,"区役所の主催等",null,null,null,null,null,"―"]
[null,"その他主催団体・組織等",null,null,null,null,null,"―"]
[null,"共催団体・組織等",null,null,null,null,null,"―"]
[null,"後援団体・組織等",null,null,null,null,null,"―"]
[null,"目標事業規模",null,null,null,null,null,"―"]
[null,"その他留意事項",null,null,null,null,null,"―"]
[null,"イベント等\n当日タイムテーブル",null,null,null,null,null,"―"]
[]
[]
[]
[]
[null,"挨拶者",null,null,null,null,null,"―"]
[null,"来賓紹介",null,null,null,null,null,"―"]
[null,"祝電紹介の方法",null,null,null,null,null,"―"]
[null,"動員の方法",null,null,null,null,null,"―"]
["その他他課との連携等",null,null,null,null,null,null,"―"]
["前年度実績",null,null,null,null,null,null,"不適切な事務処理事案の件数1件　・窓口サービス格付け調査の評価点平均3.5\n・学習会の年２回開催　・窓口サービスアップ研修受講率100%\n・セルフチェックシートの提出100％"]
["業績目標",null,null,null,"実績",null,null,"・学習会の年２回開催\n・窓口サービスアップ研修受講率100%\n・セルフチェックシートの提出100％",null,null,null,null,null,null,null,null,null,null,null,null,"・学習会の年２回開催\n・窓口サービスアップ研修受講率100%\n・セルフチェックシートの提出100％",null,null,null,null,null,null,null,null,"自己評価"]
[null,null,null,null,null,null,null,null,null,null,null,null,null,null,null,null,null,null,null,null,null,null,null,null,null,null,null,null,null,"〇"]
[]
[]
["成果目標",null,null,null,"実績",null,null,"・不適切な事務処理事案の件数　０件\n・窓口サービス格付け調査の評価点平均3.5以上",null,null,null,null,null,null,null,null,null,null,null,null,"・不適切な事務処理事案の件数　０件\n・窓口サービス格付け調査の評価点平均4",null,null,null,null,null,null,null,null,"◎"]
[]
[]
[]
[]
["中期展望",null,null,null,null,null,null,"大正区役所に対する信頼が確保されている状態"]
[]
[]
["成果目標が\n中期展望に\n寄与する理由",null,null,null,null,null,null,"不適切事務が発生しない状態の維持・継続、来庁者の満足度の向上を図っていくことが、大正区役所に対する信頼の獲得につながるものと考えられるため"]
[]
[]
[]
[]
["SDGｓゴール",null,null,null,3,null,null,null,"すべての人に健康と福祉を"]
[null,null,null,null,16,null,null,null,"平和と公正をすべての人に"]
[null,null,null,null,null,null,null,null,{"$f":"+IF(ISERROR(VLOOKUP($E88,#REF!,2,0)),\"\",VLOOKUP($E88,#REF!,2,0))","v":""}]
[]
["修正履歴"]

{"sheet":"5-4-14","index":37,"n_rows":90,"n_cols":34,"rows_kept":90,"cut":false,"hidden":false,"merged":[[89,0,89,3],[89,4,89,31],[80,0,83,6],[80,7,83,31],[85,0,87,3],[85,4,85,7],[85,8,85,31],[86,4,86,7],[86,8,86,31],[87,4,87,7],[87,8,87,31],[77,0,79,6],[77,7,79,31],[67,0,67,6],[67,7,67,31],[68,0,71,3],[68,4,71,6],[68,7,71,19],[68,20,71,28],[68,29,68,31],[69,29,71,31],[66,0,66,6],[66,7,66,31],[57,1,61,6],[57,7,61,31],[62,1,62,6],[62,7,62,31],[63,1,63,6],[63,7,63,31],[72,0,76,3],[72,4,76,6],[72,7,76,19],[72,20,76,28],[72,29,76,31],[53,7,53,31],[54,1,54,6],[54,7,54,31],[55,1,55,6],[55,7,55,31],[56,1,56,6],[56,7,56,31],[49,0,65,0],[49,1,49,6],[49,7,49,31],[50,1,50,6],[50,7,50,31],[51,1,51,6],[51,7,51,31],[52,1,52,6],[52,7,52,31],[53,1,53,6],[64,1,64,6],[64,7,64,31],[65,1,65,6],[65,7,65,31],[45,0,46,1],[45,2,46,31],[47,0,47,6],[47,7,47,31],[48,0,48,6],[48,7,48,31],[39,0,41,1],[39,2,41,23],[39,24,41,27],[39,28,41,29],[39,30,41,31],[42,0,44,1],[42,2,44,23],[42,24,44,27],[42,28,44,29],[42,30,44,31],[33,0,35,1],[33,2,35,23],[33,24,35,27],[33,28,35,29],[33,30,35,31],[36,0,38,1],[36,2,38,23],[36,24,38,27],[36,28,38,29],[36,30,38,31],[20,0,27,0],[20,1,20,6],[20,7,20,31],[21,1,23,6],[21,7,23,31],[24,1,26,6],[30,0,32,0],[30,1,32,1],[30,2,32,23],[30,24,32,27],[30,28,32,29],[30,30,32,31],[24,7,26,31],[27,1,27,6],[27,7,27,31],[29,0,29,23],[29,24,29,27],[29,28,29,29],[29,30,29,31],[4,0,4,6],[4,7,4,31],[5,0,19,0],[5,1,8,6],[5,7,8,31],[5,33,7,34],[9,1,16,6],[9,7,16,31],[17,1,17,6],[17,7,17,31],[18,1,18,6],[18,7,18,31],[19,1,19,6],[19,7,19,31],[0,0,0,3],[0,4,0,20],[0,21,0,27],[0,28,0,29],[0,30,0,31],[1,0,2,3],[1,4,2,20],[1,21,2,27],[1,28,2,29],[1,30,2,31]]}
["取組番号",null,null,null,"事業名",null,null,null,null,null,null,null,null,null,null,null,null,null,null,null,null,"作成年月日・担当",null,null,null,null,null,null,"重点",null,"新規"]
[{"$f":"RIGHT(CELL(\"filename\",A4),LEN(CELL(\"filename\",A4))-FIND(\"]\",CELL(\"filename\",A4)))","v":"5-4-14"},null,null,null,"保健福祉課（こども・教育グループ）窓口受付等業務",null,null,null,null,null,null,null,null,null,null,null,null,null,null,null,null,"令和４年４月１日\n保健福祉課（こども・教育）"]
[]
[]
["項目",null,null,null,null,null,null,"内容"]
["事業・業務概要","目的\n（事業の背景を含む）",null,null,null,null,null,"窓口受付業務は、来庁される区民と直接関わる業務であり、対応した職員のスキルや態度により、区役所に対するイメージが良くも悪くもなり、不適切な事務が発生すれば区役所に対する信用を失うことになる。各職員がスキルアップすることにより、区民サービスの向上・効率的な区行政の運営に取り組む。",null,null,null,null,null,null,null,null,null,null,null,null,null,null,null,null,null,null,null,null,null,null,null,null,null,"一覧へ戻る"]
[]
[]
[]
[null,"内容",null,null,null,null,null,"保健福祉課の多岐にわたる受付業務において、丁寧で正確な対応を行えるように、受付業務に関する学習会を開催し、各種制度の知識向上及び課題の抽出・検討を行い不適切事務の発生を防ぐとともに、区で開催する接遇研修を受講し、笑顔・あいさつを心がけ、子ども連れの来庁者でも安全で安心して手続きができるよう取り組む。\nまた、他区の取組（改善策）を取り入れた事例等を課内で共有し、見直しを図りながら不適切な事務処理の発生を防ぐ。\n【受付業務一覧】\n・児童手当・児童扶養手当・こども医療費助成・ひとり親医療費助成・ひとり親家庭サポート・母子父子寡婦貸付金\n"]
[]
[]
[]
[]
[]
[]
[]
[null,"予算額（予算科目）",null,null,null,null,null,"―"]
[null,"事業実施期間（回数）",null,null,null,null,null,"令和4年4月1日～令和5年3月31日"]
[null,"事業対象者（人数）",null,null,null,null,null,"―"]
["委託関係","契約・入札方法",null,null,null,null,null,"―"]
[null,"募集要項のポイント",null,null,null,null,null,"―"]
[]
[]
[null,"仕様書のポイント",null,null,null,null,null,"―"]
[]
[]
[null,"選考委員等選考方式",null,null,null,null,null,"―"]
[]
["スケジュール（実施決裁、入札募集開始、説明会、選考会、事業の実施　等）",null,null,null,null,null,null,null,null,null,null,null,null,null,null,null,null,null,null,null,null,null,null,null,"広報スケジュール",null,null,null,"スケ",null,"作業"]
["（前年度）","1月～3月","受付業務の見直し・改善\n",null,null,null,null,null,null,null,null,null,null,null,null,null,null,null,null,null,null,null,null,null,null,null,null,null,"〇",null,"〇"]
[]
[]
["4月～\n6月",null,"受付業務に関する学習会の開催\n課題の抽出、検討",null,null,null,null,null,null,null,null,null,null,null,null,null,null,null,null,null,null,null,null,null,null,null,null,null,"〇",null,"〇"]
[]
[]
["7月～\n9月",null,"受付業務に関する学習会の開催\n課題の抽出、検討\n",null,null,null,null,null,null,null,null,null,null,null,null,null,null,null,null,null,null,null,null,null,null,null,null,null,"〇",null,"〇"]
[]
[]
["10月～\n12月",null,"不適切事務の発生防止に向けた改善事例の共有、事務の改善\n接遇研修の受講、接遇強化月間（11月・12月）の取組の実施",null,null,null,null,null,null,null,null,null,null,null,null,null,null,null,null,null,null,null,null,null,null,null,null,null,"〇",null,"〇"]
[]
[]
["1月～\n3月",null,"課題の抽出、検討\n受付業務の見直し・改善",null,null,null,null,null,null,null,null,null,null,null,null,null,null,null,null,null,null,null,null,null,null,null,null,null,"〇",null,"〇"]
[]
[]
["備考"]
[]
["項目",null,null,null,null,null,null,"内容"]
["講座・イベント・会議名",null,null,null,null,null,null,"―"]
["イベント等開催関係","開催日時",null,null,null,null,null,"―"]
[null,"開催場所",null,null,null,null,null,"―"]
[null,"区役所の主催等",null,null,null,null,null,"―"]
[null,"その他主催団体・組織等",null,null,null,null,null,"―"]
[null,"共催団体・組織等",null,null,null,null,null,"―"]
[null,"後援団体・組織等",null,null,null,null,null,"―"]
[null,"目標事業規模",null,null,null,null,null,"―"]
[null,"その他留意事項",null,null,null,null,null,"―"]
[null,"イベント等\n当日タイムテーブル",null,null,null,null,null,"―"]
[]
[]
[]
[]
[null,"挨拶者",null,null,null,null,null,"―"]
[null,"来賓紹介",null,null,null,null,null,"―"]
[null,"祝電紹介の方法",null,null,null,null,null,"―"]
[null,"動員の方法",null,null,null,null,null,"―"]
["その他他課との連携等",null,null,null,null,null,null,"―"]
["前年度実績",null,null,null,null,null,null,"・学習会開催：年2回（令和３年度）\n・区で開催する接遇研修の受講率：新規転入者１００％\n・窓口サービス格付け調査の評価点平均：4.0（令和3年度）\n・不適切な事務処理事案の件数：3件（令和3年度）"]
["業績目標",null,null,null,"実績",null,null,"・学習会開催：年２回\n・区で開催する接遇研修の受講率：100%",null,null,null,null,null,null,null,null,null,null,null,null,"・学習会開催：年２回\n・接遇研修の受講率：100%",null,null,null,null,null,null,null,null,"自己評価"]
[null,null,null,null,null,null,null,null,null,null,null,null,null,null,null,null,null,null,null,null,null,null,null,null,null,null,null,null,null,"〇"]
[]
[]
["成果目標",null,null,null,"実績",null,null,"・窓口サービス格付け調査の評価点平均　3.5以上\n・不適切な事務処理事案の件数　0件",null,null,null,null,null,null,null,null,null,null,null,null,"・評価点平均　4.0\n・不適切事案　2件",null,null,null,null,null,null,null,null,"×"]
[]
[]
[]
[]
["中期展望",null,null,null,null,null,null,"大正区役所に対する信頼が確保されている状態"]
[]
[]
["成果目標が\n中期展望に\n寄与する理由",null,null,null,null,null,null,"不適切事務が発生しない状態の維持・継続、来庁者の満足度の向上を図っていくことが、大正区役所に対する信頼の獲得につながるものと考えられるため"]
[]
[]
[]
[]
["SDGｓゴール",null,null,null,3,null,null,null,{"$f":"+IF(ISERROR(VLOOKUP($E86,[7]SDGｓ!$A$2:$B$18,2,0)),\"\",VLOOKUP($E86,[7]SDGｓ!$A$2:$B$18,2,0))","v":"すべての人に健康と福祉を"}]
[null,null,null,null,16,null,null,null,{"$f":"+IF(ISERROR(VLOOKUP($E87,[7]SDGｓ!$A$2:$B$18,2,0)),\"\",VLOOKUP($E87,[7]SDGｓ!$A$2:$B$18,2,0))","v":"平和と公正をすべての人に"}]
[null,null,null,null,null,null,null,null,{"$f":"+IF(ISERROR(VLOOKUP($E88,[7]SDGｓ!$A$2:$B$18,2,0)),\"\",VLOOKUP($E88,[7]SDGｓ!$A$2:$B$18,2,0))","v":""}]
[]
["修正履歴"]

{"sheet":"1-1-12","index":38,"n_rows":90,"n_cols":34,"rows_kept":90,"cut":false,"hidden":true,"merged":[[0,0,0,3],[0,4,0,20],[0,21,0,27],[0,28,0,29],[0,30,0,31],[1,0,1,3],[1,4,2,20],[1,21,2,27],[1,28,2,29],[1,30,2,31],[5,33,7,34],[9,1,16,6],[9,7,16,31],[17,1,17,6],[17,7,17,31],[18,1,18,6],[18,7,18,31],[2,0,2,3],[3,0,3,3],[4,0,4,6],[4,7,4,31],[5,0,19,0],[5,1,8,6],[5,7,8,31],[19,1,19,6],[19,7,19,31],[20,0,27,0],[20,1,20,6],[20,7,20,31],[21,1,23,6],[21,7,23,31],[24,1,26,6],[24,7,26,31],[27,1,27,6],[27,7,27,31],[29,0,29,23],[29,24,29,27],[29,28,29,29],[29,30,29,31],[30,0,32,0],[30,1,32,1],[30,2,32,23],[30,24,32,27],[30,28,32,29],[30,30,32,31],[33,0,35,1],[33,2,35,23],[33,24,35,27],[33,28,35,29],[33,30,35,31],[36,0,38,1],[36,2,38,23],[36,24,38,27],[36,28,38,29],[36,30,38,31],[45,0,46,1],[45,2,46,31],[47,0,47,6],[47,7,47,31],[48,0,48,6],[48,7,48,31],[39,0,41,1],[39,2,41,23],[39,24,41,27],[39,28,41,29],[39,30,41,31],[42,0,44,1],[42,2,44,23],[42,24,44,27],[42,28,44,29],[42,30,44,31],[53,7,53,31],[54,1,54,6],[54,7,54,31],[55,1,55,6],[55,7,55,31],[56,1,56,6],[56,7,56,31],[49,0,65,0],[49,1,49,6],[49,7,49,31],[50,1,50,6],[50,7,50,31],[51,1,51,6],[51,7,51,31],[52,1,52,6],[52,7,52,31],[53,1,53,6],[64,1,64,6],[64,7,64,31],[65,1,65,6],[65,7,65,31],[66,0,66,6],[66,7,66,31],[57,1,61,6],[57,7,61,31],[62,1,62,6],[62,7,62,31],[63,1,63,6],[63,7,63,31],[72,0,76,3],[72,4,76,6],[72,7,76,19],[72,20,76,28],[72,29,76,31],[77,0,79,6],[77,7,79,31],[67,0,67,6],[67,7,67,31],[68,0,71,3],[68,4,71,6],[68,7,71,19],[68,20,71,28],[68,29,68,31],[69,29,71,31],[89,0,89,3],[89,4,89,31],[80,0,83,6],[80,7,83,31],[85,0,87,3],[85,4,85,7],[85,8,85,31],[86,4,86,7],[86,8,86,31],[87,4,87,7],[87,8,87,31]]}
["取組番号",null,null,null,"事業名",null,null,null,null,null,null,null,null,null,null,null,null,null,null,null,null,"作成年月日・担当",null,null,null,null,null,null,"重点",null,"新規"]
["保福7",null,null,null,"福祉課題の解決に向けた地域による自律的な話し合いへの支援\n小学校区福祉委員会（仮称）の設置及び運営支援",null,null,null,null,null,null,null,null,null,null,null,null,null,null,null,null,"令和3年8月1日\n保健福祉課（福祉）"]
["令和３年度取組番号"]
["1-1-12"]
["項目",null,null,null,null,null,null,"内容"]
["事業・業務概要","目的\n（事業の背景を含む）",null,null,null,null,null,"地域団体等による福祉課題の解決に向けた自律的な話し合いの場を設けるために必要な支援を行うことで、大正区地域福祉ビジョンがめざす「だれもが自分らしく安心して暮らし続けられる地域づくり」の推進に寄与する。",null,null,null,null,null,null,null,null,null,null,null,null,null,null,null,null,null,null,null,null,null,null,null,null,null,"一覧へ戻る"]
[]
[]
[]
[null,"内容",null,null,null,null,null,"大正区役所、大正区社会福祉協議会、関係機関と連携し、地域団体等による自律的な話し合いの場を設けるために必要な支援を行う。\n「区政会議」をはじめとする会議体への報告等に必要な支援を行う。\n・地域への意向調査\n・関係部署・関係機関等との連絡調整\n・資料準備・作成\n・話し合いへの参加（福祉Ｇ、区社協、関係部署・機関等）\n・その他必要な支援"]
[]
[]
[]
[]
[]
[]
[]
[null,"予算額（予算科目）",null,null,null,null,null,"－"]
[null,"事業実施期間（回数）",null,null,null,null,null,"令和4年4月1日～令和5年3月31日"]
[null,"事業対象者（人数）",null,null,null,null,null,"地域団体など"]
["委託関係","契約・入札方法",null,null,null,null,null,"－"]
[null,"募集要項のポイント",null,null,null,null,null,"－"]
[]
[]
[null,"仕様書のポイント",null,null,null,null,null,"－"]
[]
[]
[null,"選考委員等選考方式",null,null,null,null,null,"－"]
[]
["スケジュール（実施決裁、入札募集開始、説明会、選考会、事業の実施　等）",null,null,null,null,null,null,null,null,null,null,null,null,null,null,null,null,null,null,null,null,null,null,null,"広報スケジュール",null,null,null,"スケ",null,"作業"]
["（前年度）","1月～3月","【随時】\n・地域への意向確認、関係部署・関係機関等との連絡調整、資料準備・作成、話し合いへの参加、その他必要な支援"]
[]
[]
["4月～\n6月",null,"【随時】\n・地域への意向確認、関係部署・関係機関等との連絡調整、資料準備・作成、話し合いへの参加、その他必要な支援"]
[]
[]
["7月～\n9月",null,"【随時】\n・地域への意向確認、関係部署・関係機関等との連絡調整、資料準備・作成、話し合いへの参加、その他必要な支援"]
[]
[]
["10月～\n12月",null,"【随時】\n・地域への意向確認、関係部署・関係機関等との連絡調整、資料準備・作成、話し合いへの参加、その他必要な支援"]
[]
[]
["1月～\n3月",null,"【随時】\n・地域への意向確認、関係部署・関係機関等との連絡調整、資料準備・作成、話し合いへの参加、その他必要な支援"]
[]
[]
["備考"]
[]
["項目",null,null,null,null,null,null,"内容"]
["講座・イベント・会議名"]
["イベント等開催関係","開催日時",null,null,null,null,null,"―"]
[null,"開催場所",null,null,null,null,null,"―"]
[null,"区役所の主催等",null,null,null,null,null,"―"]
[null,"その他主催団体・組織等",null,null,null,null,null,"地域団体"]
[null,"共催団体・組織等",null,null,null,null,null,"－"]
[null,"後援団体・組織等",null,null,null,null,null,"大正区役所、大正区社会福祉協議会、関係部署、関係機関"]
[null,"目標事業規模",null,null,null,null,null,"【地域住民】地域活動協議会"]
[null,"その他留意事項",null,null,null,null,null,"－"]
[null,"イベント等\n当日タイムテーブル",null,null,null,null,null,"―"]
[]
[]
[]
[]
[null,"挨拶者",null,null,null,null,null,"－"]
[null,"来賓紹介",null,null,null,null,null,"－"]
[null,"祝電紹介の方法",null,null,null,null,null,"－"]
[null,"動員の方法",null,null,null,null,null,"－"]
["その他他課との連携等",null,null,null,null,null,null,"―"]
["前年度実績",null,null,null,null,null,null,"なし"]
["業績目標",null,null,null,"実績",null,null,"地域団体等による自律的な地域福祉課題の解決に向けた話し合いの開催回数：年10回",null,null,null,null,null,null,null,null,null,null,null,null,null,null,null,null,null,null,null,null,null,"自己評価"]
[]
[]
[]
["成果目標",null,null,null,"実績",null,null,"区の支援が地域福祉課題の解決に役に立っていると感じる参加者の割合：60％以上。"]
[]
[]
[]
[]
["中期展望",null,null,null,null,null,null,"大正区地域福祉ビジョンがめざす「だれもが自分らしく安心して暮らし続けられる地域づくり」が充実・強化されている状態\n"]
[]
[]
["成果目標が\n中期展望に\n寄与する理由",null,null,null,null,null,null,"区の支援が地域福祉課題の解決に役に立っていると感じている参加者の割合が向上していることは、地域団体等による話し合いが地域福祉課題の解決に資することにより「だれもが自分らしく安心して暮らし続けられる地域づくり」の充実・強化にに寄与していると考えられるため\n"]
[]
[]
[]
[]
["SDGｓゴール",null,null,null,3,null,null,null,{"$f":"+IF(ISERROR(VLOOKUP($E86,[8]SDGｓ!$A$2:$B$18,2,0)),\"\",VLOOKUP($E86,[8]SDGｓ!$A$2:$B$18,2,0))","v":"すべての人に健康と福祉を"}]
[null,null,null,null,null,null,null,null,{"$f":"+IF(ISERROR(VLOOKUP($E87,[8]SDGｓ!$A$2:$B$18,2,0)),\"\",VLOOKUP($E87,[8]SDGｓ!$A$2:$B$18,2,0))","v":""}]
[null,null,null,null,null,null,null,null,{"$f":"+IF(ISERROR(VLOOKUP($E88,[8]SDGｓ!$A$2:$B$18,2,0)),\"\",VLOOKUP($E88,[8]SDGｓ!$A$2:$B$18,2,0))","v":""}]
[]
["修正履歴"]